Workbook

Sheet Statistik
B2: Statistik | P2: Index
B3: Anzahl Bände | C3: =COUNTA(Titel) -> 3008 | E3: Genres | F3: Bände | H3: Serien | J3: Verlage | K3: Bände | M3: Serien | P3: 0
B4: Davon 18+/Mature | C4: =COUNTIF(Mature,"X") -> 315 | D4: =C4/$C$3 -> 0.1047207447 | E4: =INDEX(Genre_Def,P4) -> Action | F4: =COUNTIF(Genre,E4) -> 230 | G4: =F4/$C$3 -> 0.07646276596 | H4: =SUM(IF(Genre=E4,1/COUNTIF(Sort_Titel,Sort_Titel),0)) -> 35 | I4: =H4/$C$5 -> 0.06505576208 | J4: =INDEX(Verlag_Def,P4) -> Altraverse | K4: =COUNTIF(Verlag,J4) -> 571 | L4: =K4/$C$3 -> 0.1898271277 | M4: =SUM(IF(Verlag=J4,1/COUNTIF(Sort_Titel,Sort_Titel),0)) -> 88 | N4: =M4/$C$5 -> 0.1635687732 | P4: =P3+1 -> 1
B5: Anzahl Serien | C5: =SUM(IF(LEN(Sort_Titel)=0,0,1/COUNTIF(Sort_Titel,Sort_Titel))) -> 538 | E5: =INDEX(Genre_Def,P5) -> Artbook | F5: =COUNTIF(Genre,E5) -> 5 | G5: =F5/$C$3 -> 0.001662234043 | H5: =SUM(IF(Genre=E5,1/COUNTIF(Sort_Titel,Sort_Titel),0)) -> 5 | I5: =H5/$C$5 -> 0.009293680297 | J5: =INDEX(Verlag_Def,P5) -> Carlsen Manga | K5: =COUNTIF(Verlag,J5) -> 177 | L5: =K5/$C$3 -> 0.05884308511 | M5: =SUM(IF(Verlag=J5,1/COUNTIF(Sort_Titel,Sort_Titel),0)) -> 23 | N5: =M5/$C$5 -> 0.04275092937 | P5: =P4+1 -> 2
B6: Davon 18+/Mature | C6: =SUM(IF(Mature="",0,1/COUNTIF(Sort_Titel,Sort_Titel))) -> 103 | D6: =C6/$C$5 -> 0.1914498141 | E6: Boys Love | F6: 1 | G6: 0.0003324468085 | H6: =SUM(IF(Genre=E6,1/COUNTIF(Sort_Titel,Sort_Titel),0)) -> 1 | I6: 0.001858736059 | J6: Dani Books | K6: 5 | L6: 0.001662234043 | M6: =SUM(IF(Verlag=J6,1/COUNTIF(Sort_Titel,Sort_Titel),0)) -> 2 | N6: 0.003717472119 | P6: 3
B7: Gelesene Bände | C7: =COUNTIF(Gelesen,"X") -> 2567 | D7: =C7/$C$3 -> 0.8533909574 | E7: Comedy | F7: 623 | G7: 0.2071143617 | H7: =SUM(IF(Genre=E7,1/COUNTIF(Sort_Titel,Sort_Titel),0)) -> 69 | I7: 0.1282527881 | J7: Dark Horse | K7: 4 | L7: 0.001329787234 | M7: =SUM(IF(Verlag=J7,1/COUNTIF(Sort_Titel,Sort_Titel),0)) -> 1 | N7: 0.001858736059 | P7: 4
B8: Ungelesene Bände | C8: =$C$3-$C$7 -> 441 | D8: =C8/$C$3 -> 0.1466090426 | E8: Drama | F8: 65 | G8: 0.02160904255 | H8: =SUM(IF(Genre=E8,1/COUNTIF(Sort_Titel,Sort_Titel),0)) -> 8 | I8: 0.01486988848 | J8: Denpa | K8: 6 | L8: 0.001994680851 | M8: =SUM(IF(Verlag=J8,1/COUNTIF(Sort_Titel,Sort_Titel),0)) -> 1 | N8: 0.001858736059 | P8: 5
B9: Im Bestand | C9: =$C$3-$C$10 -> 2990 | D9: =C9/$C$3 -> 0.9940159574 | E9: Erotik | F9: 78 | G9: 0.02593085106 | H9: =SUM(IF(Genre=E9,1/COUNTIF(Sort_Titel,Sort_Titel),0)) -> 12 | I9: 0.02230483271 | J9: Dokico | K9: 9 | L9: 0.002992021277 | M9: =SUM(IF(Verlag=J9,1/COUNTIF(Sort_Titel,Sort_Titel),0)) -> 4 | N9: 0.007434944238 | P9: 6
B10: Nicht im Bestand | C10: =COUNTIF(Verliehen,"*") -> 18 | D10: =C10/$C$3 -> 0.005984042553 | E10: Fantasy | F10: 495 | G10: 0.1645611702 | H10: =SUM(IF(Genre=E10,1/COUNTIF(Sort_Titel,Sort_Titel),0)) -> 74 | I10: 0.1375464684 | J10: Egmont Manga | K10: 218 | L10: 0.07247340426 | M10: =SUM(IF(Verlag=J10,1/COUNTIF(Sort_Titel,Sort_Titel),0)) -> 40 | N10: 0.07434944238 | P10: 7
B11: Sprachen | E11: Girls Love | F11: 380 | G11: 0.1263297872 | H11: =SUM(IF(Genre=E11,1/COUNTIF(Sort_Titel,Sort_Titel),0)) -> 97 | I11: 0.1802973978 | J11: Fakku Books | K11: 64 | L11: 0.02127659574 | M11: =SUM(IF(Verlag=J11,1/COUNTIF(Sort_Titel,Sort_Titel),0)) -> 57 | N11: 0.1059479554 | P11: 8
B12: Bände | E12: =INDEX(Genre_Def,P12) -> Guidebook | F12: =COUNTIF(Genre,E12) -> 2 | G12: =F12/$C$3 -> 0.000664893617 | H12: =SUM(IF(Genre=E12,1/COUNTIF(Sort_Titel,Sort_Titel),0)) -> 2 | I12: =H12/$C$5 -> 0.003717472119 | J12: Ghost Ship | K12: 231 | L12: 0.07679521277 | M12: =SUM(IF(Verlag=J12,1/COUNTIF(Sort_Titel,Sort_Titel),0)) -> 33 | N12: 0.06133828996 | P12: 9
B13: Deutsch | C13: =COUNTIF(Sprache,INDEX(Sprache_Def,P4)) -> 2177 | D13: =C13/$C$3 -> 0.7237367021 | E13: Hentai | F13: 60 | G13: 0.01994680851 | H13: =SUM(IF(Genre=E13,1/COUNTIF(Sort_Titel,Sort_Titel),0)) -> 55 | I13: 0.1022304833 | J13: Hayabusa | K13: 79 | L13: 0.02626329787 | M13: =SUM(IF(Verlag=J13,1/COUNTIF(Sort_Titel,Sort_Titel),0)) -> 18 | N13: 0.03345724907 | P13: 10
B14: Englisch | C14: =COUNTIF(Sprache,INDEX(Sprache_Def,P5)) -> 831 | D14: =C14/$C$3 -> 0.2762632979 | E14: Horror | F14: 5 | G14: 0.001662234043 | H14: =SUM(IF(Genre=E14,1/COUNTIF(Sort_Titel,Sort_Titel),0)) -> 2 | I14: 0.003717472119 | J14: Image Comics | K14: 10 | L14: 0.003324468085 | M14: =SUM(IF(Verlag=J14,1/COUNTIF(Sort_Titel,Sort_Titel),0)) -> 3 | N14: 0.005576208178 | P14: 11
B15: Serien | E15: Mystery | F15: 234 | G15: 0.07779255319 | H15: =SUM(IF(Genre=E15,1/COUNTIF(Sort_Titel,Sort_Titel),0)) -> 28 | I15: 0.05204460967 | J15: Ize Press | K15: 16 | L15: 0.005319148936 | M15: =SUM(IF(Verlag=J15,1/COUNTIF(Sort_Titel,Sort_Titel),0)) -> 2 | N15: 0.003717472119 | P15: 12
B16: Deutsch | C16: =SUM(IF(Sprache=INDEX(Sprache_Def,P4),1/COUNTIF(Sort_Titel,Sort_Titel),0)) -> 346 | D16: =C16/$C$5 -> 0.6431226766 | E16: Romance | F16: 536 | G16: 0.1781914894 | H16: =SUM(IF(Genre=E16,1/COUNTIF(Sort_Titel,Sort_Titel),0)) -> 97 | I16: 0.1802973978 | J16: Kazé Manga/Crunchyroll | K16: 273 | L16: 0.09075797872 | M16: =SUM(IF(Verlag=J16,1/COUNTIF(Sort_Titel,Sort_Titel),0)) -> 25 | N16: 0.04646840149 | P16: 13
B17: Englisch | C17: =SUM(IF(Sprache=INDEX(Sprache_Def,P5),1/COUNTIF(Sort_Titel,Sort_Titel),0)) -> 192 | D17: =C17/$C$5 -> 0.3568773234 | E17: Romantasy | F17: 37 | G17: 0.01230053191 | H17: =SUM(IF(Genre=E17,1/COUNTIF(Sort_Titel,Sort_Titel),0)) -> 5 | I17: 0.009293680297 | J17: Kodansha | K17: 46 | L17: 0.01529255319 | M17: =SUM(IF(Verlag=J17,1/COUNTIF(Sort_Titel,Sort_Titel),0)) -> 6 | N17: 0.01115241636 | P17: 14
B18: Formate | E18: RomCom | F18: 24 | G18: 0.007978723404 | H18: =SUM(IF(Genre=E18,1/COUNTIF(Sort_Titel,Sort_Titel),0)) -> 6 | I18: 0.01115241636 | J18: Manga Cult | K18: 185 | L18: 0.06150265957 | M18: =SUM(IF(Verlag=J18,1/COUNTIF(Sort_Titel,Sort_Titel),0)) -> 18 | N18: 0.03345724907 | P18: 15
B19: Bände | E19: Sci-Fi | F19: 62 | G19: 0.02061170213 | H19: =SUM(IF(Genre=E19,1/COUNTIF(Sort_Titel,Sort_Titel),0)) -> 12 | I19: 0.02230483271 | J19: Manga Jamsession | K19: 21 | L19: 0.006981382979 | M19: =SUM(IF(Verlag=J19,1/COUNTIF(Sort_Titel,Sort_Titel),0)) -> 3 | N19: 0.005576208178 | P19: 16
B20: =INDEX(Format_Def,P4)&"format" -> Standardformat | C20: =COUNTIF(Format,INDEX(Format_Def,P4)) -> 2295 | D20: =C20/$C$3 -> 0.7629654255 | E20: Slice of Life | F20: 136 | G20: 0.04521276596 | H20: =SUM(IF(Genre=E20,1/COUNTIF(Sort_Titel,Sort_Titel),0)) -> 24 | I20: 0.04460966543 | J20: Mangamoon | K20: 0 | L20: 0 | M20: =SUM(IF(Verlag=J20,1/COUNTIF(Sort_Titel,Sort_Titel),0)) -> 0 | N20: 0 | P20: 17
B21: =INDEX(Format_Def,P5)&"format" -> Großformat | C21: =COUNTIF(Format,INDEX(Format_Def,P5)) -> 696 | D21: =C21/$C$3 -> 0.2313829787 | E21: Thriller | F21: 35 | G21: 0.0116356383 | H21: =SUM(IF(Genre=E21,1/COUNTIF(Sort_Titel,Sort_Titel),0)) -> 6 | I21: 0.01115241636 | J21: Manlin | K21: 2 | L21: 0.000664893617 | M21: =SUM(IF(Verlag=J21,1/COUNTIF(Sort_Titel,Sort_Titel),0)) -> 1 | N21: 0.001858736059 | P21: 18
B22: =INDEX(Format_Def,P6)&"format" -> Übergroßformat | C22: =COUNTIF(Format,INDEX(Format_Def,P6)) -> 17 | D22: 0.005651595745 | J22: One Peace Books | K22: 16 | L22: 0.005319148936 | M22: =SUM(IF(Verlag=J22,1/COUNTIF(Sort_Titel,Sort_Titel),0)) -> 2 | N22: 0.003717472119 | P22: 19
B23: Serien | J23: Panini Comics | K23: 1 | L23: 0.0003324468085 | M23: =SUM(IF(Verlag=J23,1/COUNTIF(Sort_Titel,Sort_Titel),0)) -> 1 | N23: 0.001858736059 | P23: 20
B24: =INDEX(Format_Def,P4)&"format" -> Standardformat | C24: =SUM(IF(Format=INDEX(Format_Def,P4),1/COUNTIF(Sort_Titel,Sort_Titel),0)) -> 366 | D24: =C24/$C$5 -> 0.6802973978 | J24: Papertoons | K24: 34 | L24: 0.01130319149 | M24: =SUM(IF(Verlag=J24,1/COUNTIF(Sort_Titel,Sort_Titel),0)) -> 5 | N24: 0.009293680297 | P24: 21
B25: =INDEX(Format_Def,P5)&"format" -> Großformat | C25: =SUM(IF(Format=INDEX(Format_Def,P5),1/COUNTIF(Sort_Titel,Sort_Titel),0)) -> 162 | D25: =C25/$C$5 -> 0.3011152416 | J25: Planet Manga/Panini Manga | K25: 123 | L25: 0.04089095745 | M25: =SUM(IF(Verlag=J25,1/COUNTIF(Sort_Titel,Sort_Titel),0)) -> 23 | N25: 0.04275092937 | P25: 22
B26: =INDEX(Format_Def,P6)&"format" -> Übergroßformat | C26: =SUM(IF(Format=INDEX(Format_Def,P6),1/COUNTIF(Sort_Titel,Sort_Titel),0)) -> 10 | D26: 0.01858736059 | J26: Seven Seas | K26: 263 | L26: 0.08743351064 | M26: =SUM(IF(Verlag=J26,1/COUNTIF(Sort_Titel,Sort_Titel),0)) -> 54 | N26: 0.1003717472 | P26: 23
J27: Splitter | K27: 1 | L27: 0.0003324468085 | M27: =SUM(IF(Verlag=J27,1/COUNTIF(Sort_Titel,Sort_Titel),0)) -> 1 | N27: 0.001858736059 | P27: 24
J28: Square Enix Books | K28: 1 | L28: 0.0003324468085 | M28: =SUM(IF(Verlag=J28,1/COUNTIF(Sort_Titel,Sort_Titel),0)) -> 1 | N28: 0.001858736059 | P28: 25
J29: =INDEX(Verlag_Def,P29) -> Steamship | K29: =COUNTIF(Verlag,J29) -> 7 | L29: =K29/$C$3 -> 0.00232712766 | M29: =SUM(IF(Verlag=J29,1/COUNTIF(Sort_Titel,Sort_Titel),0)) -> 2 | N29: =M29/$C$5 -> 0.003717472119 | P29: 26
J30: Tokyopop | K30: 479 | L30: 0.1592420213 | M30: =SUM(IF(Verlag=J30,1/COUNTIF(Sort_Titel,Sort_Titel),0)) -> 95 | N30: 0.1765799257 | P30: 27
J31: =INDEX(Verlag_Def,P31) -> Udon Entertainment | K31: =COUNTIF(Verlag,J31) -> 2 | L31: =K31/$C$3 -> 0.000664893617 | M31: =SUM(IF(Verlag=J31,1/COUNTIF(Sort_Titel,Sort_Titel),0)) -> 1 | N31: =M31/$C$5 -> 0.001858736059 | P31: 28
J32: Vertical Comics | K32: 12 | L32: 0.003989361702 | M32: =SUM(IF(Verlag=J32,1/COUNTIF(Sort_Titel,Sort_Titel),0)) -> 1 | N32: 0.001858736059 | P32: 29
J33: Viz Media | K33: 59 | L33: 0.0196143617 | M33: =SUM(IF(Verlag=J33,1/COUNTIF(Sort_Titel,Sort_Titel),0)) -> 6 | N33: 0.01115241636 | P33: 30
J34: Yen Press | K34: 92 | L34: 0.03058510638 | M34: =SUM(IF(Verlag=J34,1/COUNTIF(Sort_Titel,Sort_Titel),0)) -> 20 | N34: 0.03717472119 | P34: 31
J35: Yurico | K35: 1 | L35: 0.0003324468085 | M35: =SUM(IF(Verlag=J35,1/COUNTIF(Sort_Titel,Sort_Titel),0)) -> 1 | N35: 0.001858736059 | P35: 32
P45: Summe Genres | Q45: =SUM(F4:F21) -> 3008
P46: Summe Formate | Q46: =SUM(C20:C22) -> 3008
P47: Summe Sprachen | Q47: =SUM(C13:C14) -> 3008
P48: Summe Verlag | Q48: =SUM(K4:K35) -> 3008

Sheet Bücher
D1: =IF(COUNTIF(Erstes_Zeichen,"")>0,IF($C$1="",HYPERLINK("#C1","<< Auswahl"),HYPERLINK("#"&CELL("adresse",INDEX(Titel,MATCH(C1&"*",Titel,0))),"Gehe zu "&C1)),HYPERLINK("#Definitionen!L1","Anpassen!")) -> << Auswahl
C2: =IF(COUNTIF(Titel_Eindeutig,"")>0,IF($B$2="",HYPERLINK("#B2","<< Auswahl"),HYPERLINK("#"&CELL("adresse",INDEX(Titel,MATCH(B2,Titel,0))),"Gehe zu Titel")),HYPERLINK("#Definitionen!H1","Anpassen!")) -> << Auswahl | E2: =HYPERLINK("#B"&H2+3,"Gehe zu Eintrag:") -> Gehe zu Eintrag: | H2: =CELL("zeile",INDEX(Titel,MIN(IF(Titel="",ROW(Titel)))-6)) -> 3009 | K2: =IF($J$2="",HYPERLINK("#j1","<< ISBN eingeben"),IF(_xlfn.IFNA(MATCH(J2,ISBN,0),0)>0,HYPERLINK("#"&CELL("adresse",INDEX(ISBN,MATCH(J2,ISBN,0))),"Gehe zu ISBN"),HYPERLINK("#j1","nicht gefunden"))) -> << ISBN eingeben | P2: Spalten Barcode | Q2: 0
B3: Titel | C3: Band | D3: Genre | E3: 18+ | F3: Sprache | G3: Format | H3: Verlag | I3: Gelesen | J3: ISBN | K3: Entleiher / nicht im Bestand | L3: Sort_Titel | M3: Sortierung | N3: Zeilen pro Seite: | O3: 80
A4: =A3+1 -> 1 | B4: #plüschmond | C4: 1 | D4: Slice of Life | F4: deu | G4: Groß | H4: Altraverse | I4: X | J4: 9783963582356 | L4: =IF(B4<>"",B4&Trenner&Einschluss&F4&Einschluss,"") -> #plüschmond •deu• | M4: =IF(C4<>"", IF(ISNUMBER(C4), IF(COUNTIF(Sort_Titel,L4)>99,L4&Trenner&TEXT(C4,"000"), IF(COUNTIF(Sort_Titel,L4)>9,L4&Trenner&TEXT(C4,"00"),L4&Trenner&TEXT(C4,"0")) ),L4&Trenner&C4 ),IF(L4<>"",L4,Titel_Leer) ) -> #plüschmond •deu• 1 | O4: ="Seite "&TEXT(ROUND(((A4-1)/$O$3)+0.5,0),"0") -> Seite 1 | P4: =IF(CELL("spalte",P4)<CELL("spalte",$P4)+$Q$2, IF(MOD(CELL("zeile",P4)-CELL("zeile",P$4),$Q$2)=MOD(CELL("spalte",P4)-(CELL("spalte",$P4)),$Q$2),ean_conv(LEFT($J4,12)),""), "<>") -> <> | Q4: =IF(CELL("spalte",Q4)<CELL("spalte",$P4)+$Q$2, IF(MOD(CELL("zeile",Q4)-CELL("zeile",Q$4),$Q$2)=MOD(CELL("spalte",Q4)-(CELL("spalte",$P4)),$Q$2),ean_conv(LEFT($J4,12)),""), "<>") -> <> | R4: =IF(CELL("spalte",R4)<CELL("spalte",$P4)+$Q$2, IF(MOD(CELL("zeile",R4)-CELL("zeile",R$4),$Q$2)=MOD(CELL("spalte",R4)-(CELL("spalte",$P4)),$Q$2),ean_conv(LEFT($J4,12)),""), "<>") -> <> | S4: =IF(CELL("spalte",S4)<CELL("spalte",$P4)+$Q$2, IF(MOD(CELL("zeile",S4)-CELL("zeile",S$4),$Q$2)=MOD(CELL("spalte",S4)-(CELL("spalte",$P4)),$Q$2),ean_conv(LEFT($J4,12)),""), "<>") -> <> | T4: =IF(CELL("spalte",T4)<CELL("spalte",$P4)+$Q$2, IF(MOD(CELL("zeile",T4)-CELL("zeile",T$4),$Q$2)=MOD(CELL("spalte",T4)-(CELL("spalte",$P4)),$Q$2),ean_conv(LEFT($J4,12)),""), "<>") -> <> | U4: =IF(CELL("spalte",U4)<CELL("spalte",$P4)+$Q$2, IF(MOD(CELL("zeile",U4)-CELL("zeile",U$4),$Q$2)=MOD(CELL("spalte",U4)-(CELL("spalte",$P4)),$Q$2),ean_conv(LEFT($J4,12)),""), "<>") -> <> | V4: =IF(CELL("spalte",V4)<CELL("spalte",$P4)+$Q$2, IF(MOD(CELL("zeile",V4)-CELL("zeile",V$4),$Q$2)=MOD(CELL("spalte",V4)-(CELL("spalte",$P4)),$Q$2),ean_conv(LEFT($J4,12)),""), "<>") -> <> | W4: =IF(CELL("spalte",W4)<CELL("spalte",$P4)+$Q$2, IF(MOD(CELL("zeile",W4)-CELL("zeile",W$4),$Q$2)=MOD(CELL("spalte",W4)-(CELL("spalte",$P4)),$Q$2),ean_conv(LEFT($J4,12)),""), "<>") -> <> | X4: =IF(CELL("spalte",X4)<CELL("spalte",$P4)+$Q$2, IF(MOD(CELL("zeile",X4)-CELL("zeile",X$4),$Q$2)=MOD(CELL("spalte",X4)-(CELL("spalte",$P4)),$Q$2),ean_conv(LEFT($J4,12)),""), "<>") -> <> | Y4: =IF(CELL("spalte",Y4)<CELL("spalte",$P4)+$Q$2, IF(MOD(CELL("zeile",Y4)-CELL("zeile",Y$4),$Q$2)=MOD(CELL("spalte",Y4)-(CELL("spalte",$P4)),$Q$2),ean_conv(LEFT($J4,12)),""), "<>") -> <>
A5: 2 | B5: #plüschmond | C5: 2 | D5: Slice of Life | F5: deu | G5: Groß | H5: Altraverse | I5: X | J5: 9783963582363 | L5: =IF(B5<>"",B5&Trenner&Einschluss&F5&Einschluss,"") -> #plüschmond •deu• | M5: =IF(C5<>"", IF(ISNUMBER(C5), IF(COUNTIF(Sort_Titel,L5)>99,L5&Trenner&TEXT(C5,"000"), IF(COUNTIF(Sort_Titel,L5)>9,L5&Trenner&TEXT(C5,"00"),L5&Trenner&TEXT(C5,"0")) ),L5&Trenner&C5 ),IF(L5<>"",L5,Titel_Leer) ) -> #plüschmond •deu• 2 | O5: Seite 1 | P5: =IF(CELL("spalte",P5)<CELL("spalte",$P5)+$Q$2, IF(MOD(CELL("zeile",P5)-CELL("zeile",P$4),$Q$2)=MOD(CELL("spalte",P5)-(CELL("spalte",$P5)),$Q$2),ean_conv(LEFT($J5,12)),""), "<>") -> <> | Q5: =IF(CELL("spalte",Q5)<CELL("spalte",$P5)+$Q$2, IF(MOD(CELL("zeile",Q5)-CELL("zeile",Q$4),$Q$2)=MOD(CELL("spalte",Q5)-(CELL("spalte",$P5)),$Q$2),ean_conv(LEFT($J5,12)),""), "<>") -> <> | R5: =IF(CELL("spalte",R5)<CELL("spalte",$P5)+$Q$2, IF(MOD(CELL("zeile",R5)-CELL("zeile",R$4),$Q$2)=MOD(CELL("spalte",R5)-(CELL("spalte",$P5)),$Q$2),ean_conv(LEFT($J5,12)),""), "<>") -> <> | S5: =IF(CELL("spalte",S5)<CELL("spalte",$P5)+$Q$2, IF(MOD(CELL("zeile",S5)-CELL("zeile",S$4),$Q$2)=MOD(CELL("spalte",S5)-(CELL("spalte",$P5)),$Q$2),ean_conv(LEFT($J5,12)),""), "<>") -> <> | T5: =IF(CELL("spalte",T5)<CELL("spalte",$P5)+$Q$2, IF(MOD(CELL("zeile",T5)-CELL("zeile",T$4),$Q$2)=MOD(CELL("spalte",T5)-(CELL("spalte",$P5)),$Q$2),ean_conv(LEFT($J5,12)),""), "<>") -> <> | U5: =IF(CELL("spalte",U5)<CELL("spalte",$P5)+$Q$2, IF(MOD(CELL("zeile",U5)-CELL("zeile",U$4),$Q$2)=MOD(CELL("spalte",U5)-(CELL("spalte",$P5)),$Q$2),ean_conv(LEFT($J5,12)),""), "<>") -> <> | V5: =IF(CELL("spalte",V5)<CELL("spalte",$P5)+$Q$2, IF(MOD(CELL("zeile",V5)-CELL("zeile",V$4),$Q$2)=MOD(CELL("spalte",V5)-(CELL("spalte",$P5)),$Q$2),ean_conv(LEFT($J5,12)),""), "<>") -> <> | W5: =IF(CELL("spalte",W5)<CELL("spalte",$P5)+$Q$2, IF(MOD(CELL("zeile",W5)-CELL("zeile",W$4),$Q$2)=MOD(CELL("spalte",W5)-(CELL("spalte",$P5)),$Q$2),ean_conv(LEFT($J5,12)),""), "<>") -> <> | X5: =IF(CELL("spalte",X5)<CELL("spalte",$P5)+$Q$2, IF(MOD(CELL("zeile",X5)-CELL("zeile",X$4),$Q$2)=MOD(CELL("spalte",X5)-(CELL("spalte",$P5)),$Q$2),ean_conv(LEFT($J5,12)),""), "<>") -> <> | Y5: =IF(CELL("spalte",Y5)<CELL("spalte",$P5)+$Q$2, IF(MOD(CELL("zeile",Y5)-CELL("zeile",Y$4),$Q$2)=MOD(CELL("spalte",Y5)-(CELL("spalte",$P5)),$Q$2),ean_conv(LEFT($J5,12)),""), "<>") -> <>
A6: 3 | B6: #plüschmond | C6: 3 | D6: Slice of Life | F6: deu | G6: Groß | H6: Altraverse | I6: X | J6: 9783963585562 | L6: =IF(B6<>"",B6&Trenner&Einschluss&F6&Einschluss,"") -> #plüschmond •deu• | M6: =IF(C6<>"", IF(ISNUMBER(C6), IF(COUNTIF(Sort_Titel,L6)>99,L6&Trenner&TEXT(C6,"000"), IF(COUNTIF(Sort_Titel,L6)>9,L6&Trenner&TEXT(C6,"00"),L6&Trenner&TEXT(C6,"0")) ),L6&Trenner&C6 ),IF(L6<>"",L6,Titel_Leer) ) -> #plüschmond •deu• 3 | O6: Seite 1 | P6: =IF(CELL("spalte",P6)<CELL("spalte",$P6)+$Q$2, IF(MOD(CELL("zeile",P6)-CELL("zeile",P$4),$Q$2)=MOD(CELL("spalte",P6)-(CELL("spalte",$P6)),$Q$2),ean_conv(LEFT($J6,12)),""), "<>") -> <> | Q6: =IF(CELL("spalte",Q6)<CELL("spalte",$P6)+$Q$2, IF(MOD(CELL("zeile",Q6)-CELL("zeile",Q$4),$Q$2)=MOD(CELL("spalte",Q6)-(CELL("spalte",$P6)),$Q$2),ean_conv(LEFT($J6,12)),""), "<>") -> <> | R6: =IF(CELL("spalte",R6)<CELL("spalte",$P6)+$Q$2, IF(MOD(CELL("zeile",R6)-CELL("zeile",R$4),$Q$2)=MOD(CELL("spalte",R6)-(CELL("spalte",$P6)),$Q$2),ean_conv(LEFT($J6,12)),""), "<>") -> <> | S6: =IF(CELL("spalte",S6)<CELL("spalte",$P6)+$Q$2, IF(MOD(CELL("zeile",S6)-CELL("zeile",S$4),$Q$2)=MOD(CELL("spalte",S6)-(CELL("spalte",$P6)),$Q$2),ean_conv(LEFT($J6,12)),""), "<>") -> <> | T6: =IF(CELL("spalte",T6)<CELL("spalte",$P6)+$Q$2, IF(MOD(CELL("zeile",T6)-CELL("zeile",T$4),$Q$2)=MOD(CELL("spalte",T6)-(CELL("spalte",$P6)),$Q$2),ean_conv(LEFT($J6,12)),""), "<>") -> <> | U6: =IF(CELL("spalte",U6)<CELL("spalte",$P6)+$Q$2, IF(MOD(CELL("zeile",U6)-CELL("zeile",U$4),$Q$2)=MOD(CELL("spalte",U6)-(CELL("spalte",$P6)),$Q$2),ean_conv(LEFT($J6,12)),""), "<>") -> <> | V6: =IF(CELL("spalte",V6)<CELL("spalte",$P6)+$Q$2, IF(MOD(CELL("zeile",V6)-CELL("zeile",V$4),$Q$2)=MOD(CELL("spalte",V6)-(CELL("spalte",$P6)),$Q$2),ean_conv(LEFT($J6,12)),""), "<>") -> <> | W6: =IF(CELL("spalte",W6)<CELL("spalte",$P6)+$Q$2, IF(MOD(CELL("zeile",W6)-CELL("zeile",W$4),$Q$2)=MOD(CELL("spalte",W6)-(CELL("spalte",$P6)),$Q$2),ean_conv(LEFT($J6,12)),""), "<>") -> <> | X6: =IF(CELL("spalte",X6)<CELL("spalte",$P6)+$Q$2, IF(MOD(CELL("zeile",X6)-CELL("zeile",X$4),$Q$2)=MOD(CELL("spalte",X6)-(CELL("spalte",$P6)),$Q$2),ean_conv(LEFT($J6,12)),""), "<>") -> <> | Y6: =IF(CELL("spalte",Y6)<CELL("spalte",$P6)+$Q$2, IF(MOD(CELL("zeile",Y6)-CELL("zeile",Y$4),$Q$2)=MOD(CELL("spalte",Y6)-(CELL("spalte",$P6)),$Q$2),ean_conv(LEFT($J6,12)),""), "<>") -> <>
A7: 4 | B7: #plüschmond | C7: 4 | D7: Slice of Life | F7: deu | G7: Groß | H7: Altraverse | I7: X | J7: 9783963585579 | L7: =IF(B7<>"",B7&Trenner&Einschluss&F7&Einschluss,"") -> #plüschmond •deu• | M7: =IF(C7<>"", IF(ISNUMBER(C7), IF(COUNTIF(Sort_Titel,L7)>99,L7&Trenner&TEXT(C7,"000"), IF(COUNTIF(Sort_Titel,L7)>9,L7&Trenner&TEXT(C7,"00"),L7&Trenner&TEXT(C7,"0")) ),L7&Trenner&C7 ),IF(L7<>"",L7,Titel_Leer) ) -> #plüschmond •deu• 4 | O7: Seite 1 | P7: =IF(CELL("spalte",P7)<CELL("spalte",$P7)+$Q$2, IF(MOD(CELL("zeile",P7)-CELL("zeile",P$4),$Q$2)=MOD(CELL("spalte",P7)-(CELL("spalte",$P7)),$Q$2),ean_conv(LEFT($J7,12)),""), "<>") -> <> | Q7: =IF(CELL("spalte",Q7)<CELL("spalte",$P7)+$Q$2, IF(MOD(CELL("zeile",Q7)-CELL("zeile",Q$4),$Q$2)=MOD(CELL("spalte",Q7)-(CELL("spalte",$P7)),$Q$2),ean_conv(LEFT($J7,12)),""), "<>") -> <> | R7: =IF(CELL("spalte",R7)<CELL("spalte",$P7)+$Q$2, IF(MOD(CELL("zeile",R7)-CELL("zeile",R$4),$Q$2)=MOD(CELL("spalte",R7)-(CELL("spalte",$P7)),$Q$2),ean_conv(LEFT($J7,12)),""), "<>") -> <> | S7: =IF(CELL("spalte",S7)<CELL("spalte",$P7)+$Q$2, IF(MOD(CELL("zeile",S7)-CELL("zeile",S$4),$Q$2)=MOD(CELL("spalte",S7)-(CELL("spalte",$P7)),$Q$2),ean_conv(LEFT($J7,12)),""), "<>") -> <> | T7: =IF(CELL("spalte",T7)<CELL("spalte",$P7)+$Q$2, IF(MOD(CELL("zeile",T7)-CELL("zeile",T$4),$Q$2)=MOD(CELL("spalte",T7)-(CELL("spalte",$P7)),$Q$2),ean_conv(LEFT($J7,12)),""), "<>") -> <> | U7: =IF(CELL("spalte",U7)<CELL("spalte",$P7)+$Q$2, IF(MOD(CELL("zeile",U7)-CELL("zeile",U$4),$Q$2)=MOD(CELL("spalte",U7)-(CELL("spalte",$P7)),$Q$2),ean_conv(LEFT($J7,12)),""), "<>") -> <> | V7: =IF(CELL("spalte",V7)<CELL("spalte",$P7)+$Q$2, IF(MOD(CELL("zeile",V7)-CELL("zeile",V$4),$Q$2)=MOD(CELL("spalte",V7)-(CELL("spalte",$P7)),$Q$2),ean_conv(LEFT($J7,12)),""), "<>") -> <> | W7: =IF(CELL("spalte",W7)<CELL("spalte",$P7)+$Q$2, IF(MOD(CELL("zeile",W7)-CELL("zeile",W$4),$Q$2)=MOD(CELL("spalte",W7)-(CELL("spalte",$P7)),$Q$2),ean_conv(LEFT($J7,12)),""), "<>") -> <> | X7: =IF(CELL("spalte",X7)<CELL("spalte",$P7)+$Q$2, IF(MOD(CELL("zeile",X7)-CELL("zeile",X$4),$Q$2)=MOD(CELL("spalte",X7)-(CELL("spalte",$P7)),$Q$2),ean_conv(LEFT($J7,12)),""), "<>") -> <> | Y7: =IF(CELL("spalte",Y7)<CELL("spalte",$P7)+$Q$2, IF(MOD(CELL("zeile",Y7)-CELL("zeile",Y$4),$Q$2)=MOD(CELL("spalte",Y7)-(CELL("spalte",$P7)),$Q$2),ean_conv(LEFT($J7,12)),""), "<>") -> <>
A8: 5 | B8: 12 Dirty Deeds to Unite the Princess and Her Heroine | C8: 1 | D8: Girls Love | F8: eng | G8: Standard | H8: Ghost Ship | I8: X | J8: 9798893731262 | L8: =IF(B8<>"",B8&Trenner&Einschluss&F8&Einschluss,"") -> 12 Dirty Deeds to Unite the Princess and Her Heroine •eng• | M8: =IF(C8<>"", IF(ISNUMBER(C8), IF(COUNTIF(Sort_Titel,L8)>99,L8&Trenner&TEXT(C8,"000"), IF(COUNTIF(Sort_Titel,L8)>9,L8&Trenner&TEXT(C8,"00"),L8&Trenner&TEXT(C8,"0")) ),L8&Trenner&C8 ),IF(L8<>"",L8,Titel_Leer) ) -> 12 Dirty Deeds to Unite the Princess and Her Heroine •eng• 1 | O8: Seite 1 | P8: =IF(CELL("spalte",P8)<CELL("spalte",$P8)+$Q$2, IF(MOD(CELL("zeile",P8)-CELL("zeile",P$4),$Q$2)=MOD(CELL("spalte",P8)-(CELL("spalte",$P8)),$Q$2),ean_conv(LEFT($J8,12)),""), "<>") -> <> | Q8: =IF(CELL("spalte",Q8)<CELL("spalte",$P8)+$Q$2, IF(MOD(CELL("zeile",Q8)-CELL("zeile",Q$4),$Q$2)=MOD(CELL("spalte",Q8)-(CELL("spalte",$P8)),$Q$2),ean_conv(LEFT($J8,12)),""), "<>") -> <> | R8: =IF(CELL("spalte",R8)<CELL("spalte",$P8)+$Q$2, IF(MOD(CELL("zeile",R8)-CELL("zeile",R$4),$Q$2)=MOD(CELL("spalte",R8)-(CELL("spalte",$P8)),$Q$2),ean_conv(LEFT($J8,12)),""), "<>") -> <> | S8: =IF(CELL("spalte",S8)<CELL("spalte",$P8)+$Q$2, IF(MOD(CELL("zeile",S8)-CELL("zeile",S$4),$Q$2)=MOD(CELL("spalte",S8)-(CELL("spalte",$P8)),$Q$2),ean_conv(LEFT($J8,12)),""), "<>") -> <> | T8: =IF(CELL("spalte",T8)<CELL("spalte",$P8)+$Q$2, IF(MOD(CELL("zeile",T8)-CELL("zeile",T$4),$Q$2)=MOD(CELL("spalte",T8)-(CELL("spalte",$P8)),$Q$2),ean_conv(LEFT($J8,12)),""), "<>") -> <> | U8: =IF(CELL("spalte",U8)<CELL("spalte",$P8)+$Q$2, IF(MOD(CELL("zeile",U8)-CELL("zeile",U$4),$Q$2)=MOD(CELL("spalte",U8)-(CELL("spalte",$P8)),$Q$2),ean_conv(LEFT($J8,12)),""), "<>") -> <> | V8: =IF(CELL("spalte",V8)<CELL("spalte",$P8)+$Q$2, IF(MOD(CELL("zeile",V8)-CELL("zeile",V$4),$Q$2)=MOD(CELL("spalte",V8)-(CELL("spalte",$P8)),$Q$2),ean_conv(LEFT($J8,12)),""), "<>") -> <> | W8: =IF(CELL("spalte",W8)<CELL("spalte",$P8)+$Q$2, IF(MOD(CELL("zeile",W8)-CELL("zeile",W$4),$Q$2)=MOD(CELL("spalte",W8)-(CELL("spalte",$P8)),$Q$2),ean_conv(LEFT($J8,12)),""), "<>") -> <> | X8: =IF(CELL("spalte",X8)<CELL("spalte",$P8)+$Q$2, IF(MOD(CELL("zeile",X8)-CELL("zeile",X$4),$Q$2)=MOD(CELL("spalte",X8)-(CELL("spalte",$P8)),$Q$2),ean_conv(LEFT($J8,12)),""), "<>") -> <> | Y8: =IF(CELL("spalte",Y8)<CELL("spalte",$P8)+$Q$2, IF(MOD(CELL("zeile",Y8)-CELL("zeile",Y$4),$Q$2)=MOD(CELL("spalte",Y8)-(CELL("spalte",$P8)),$Q$2),ean_conv(LEFT($J8,12)),""), "<>") -> <>
A9: 6 | B9: 12 Dirty Deeds to Unite the Princess and Her Heroine | C9: 2 | D9: Girls Love | F9: eng | G9: Standard | H9: Ghost Ship | J9: 9798893731279 | L9: =IF(B9<>"",B9&Trenner&Einschluss&F9&Einschluss,"") -> 12 Dirty Deeds to Unite the Princess and Her Heroine •eng• | M9: =IF(C9<>"", IF(ISNUMBER(C9), IF(COUNTIF(Sort_Titel,L9)>99,L9&Trenner&TEXT(C9,"000"), IF(COUNTIF(Sort_Titel,L9)>9,L9&Trenner&TEXT(C9,"00"),L9&Trenner&TEXT(C9,"0")) ),L9&Trenner&C9 ),IF(L9<>"",L9,Titel_Leer) ) -> 12 Dirty Deeds to Unite the Princess and Her Heroine •eng• 2 | O9: Seite 1 | P9: =IF(CELL("spalte",P9)<CELL("spalte",$P9)+$Q$2, IF(MOD(CELL("zeile",P9)-CELL("zeile",P$4),$Q$2)=MOD(CELL("spalte",P9)-(CELL("spalte",$P9)),$Q$2),ean_conv(LEFT($J9,12)),""), "<>") -> <> | Q9: =IF(CELL("spalte",Q9)<CELL("spalte",$P9)+$Q$2, IF(MOD(CELL("zeile",Q9)-CELL("zeile",Q$4),$Q$2)=MOD(CELL("spalte",Q9)-(CELL("spalte",$P9)),$Q$2),ean_conv(LEFT($J9,12)),""), "<>") -> <> | R9: =IF(CELL("spalte",R9)<CELL("spalte",$P9)+$Q$2, IF(MOD(CELL("zeile",R9)-CELL("zeile",R$4),$Q$2)=MOD(CELL("spalte",R9)-(CELL("spalte",$P9)),$Q$2),ean_conv(LEFT($J9,12)),""), "<>") -> <> | S9: =IF(CELL("spalte",S9)<CELL("spalte",$P9)+$Q$2, IF(MOD(CELL("zeile",S9)-CELL("zeile",S$4),$Q$2)=MOD(CELL("spalte",S9)-(CELL("spalte",$P9)),$Q$2),ean_conv(LEFT($J9,12)),""), "<>") -> <> | T9: =IF(CELL("spalte",T9)<CELL("spalte",$P9)+$Q$2, IF(MOD(CELL("zeile",T9)-CELL("zeile",T$4),$Q$2)=MOD(CELL("spalte",T9)-(CELL("spalte",$P9)),$Q$2),ean_conv(LEFT($J9,12)),""), "<>") -> <> | U9: =IF(CELL("spalte",U9)<CELL("spalte",$P9)+$Q$2, IF(MOD(CELL("zeile",U9)-CELL("zeile",U$4),$Q$2)=MOD(CELL("spalte",U9)-(CELL("spalte",$P9)),$Q$2),ean_conv(LEFT($J9,12)),""), "<>") -> <> | V9: =IF(CELL("spalte",V9)<CELL("spalte",$P9)+$Q$2, IF(MOD(CELL("zeile",V9)-CELL("zeile",V$4),$Q$2)=MOD(CELL("spalte",V9)-(CELL("spalte",$P9)),$Q$2),ean_conv(LEFT($J9,12)),""), "<>") -> <> | W9: =IF(CELL("spalte",W9)<CELL("spalte",$P9)+$Q$2, IF(MOD(CELL("zeile",W9)-CELL("zeile",W$4),$Q$2)=MOD(CELL("spalte",W9)-(CELL("spalte",$P9)),$Q$2),ean_conv(LEFT($J9,12)),""), "<>") -> <> | X9: =IF(CELL("spalte",X9)<CELL("spalte",$P9)+$Q$2, IF(MOD(CELL("zeile",X9)-CELL("zeile",X$4),$Q$2)=MOD(CELL("spalte",X9)-(CELL("spalte",$P9)),$Q$2),ean_conv(LEFT($J9,12)),""), "<>") -> <> | Y9: =IF(CELL("spalte",Y9)<CELL("spalte",$P9)+$Q$2, IF(MOD(CELL("zeile",Y9)-CELL("zeile",Y$4),$Q$2)=MOD(CELL("spalte",Y9)-(CELL("spalte",$P9)),$Q$2),ean_conv(LEFT($J9,12)),""), "<>") -> <>
A10: 7 | B10: 2.5 Dimensional Seduction | C10: 1 | D10: Comedy | F10: eng | G10: Standard | H10: Ghost Ship | I10: X | J10: 9781648278815 | L10: =IF(B10<>"",B10&Trenner&Einschluss&F10&Einschluss,"") -> 2.5 Dimensional Seduction •eng• | M10: =IF(C10<>"", IF(ISNUMBER(C10), IF(COUNTIF(Sort_Titel,L10)>99,L10&Trenner&TEXT(C10,"000"), IF(COUNTIF(Sort_Titel,L10)>9,L10&Trenner&TEXT(C10,"00"),L10&Trenner&TEXT(C10,"0")) ),L10&Trenner&C10 ),IF(L10<>"",L10,Titel_Leer) ) -> 2.5 Dimensional Seduction •eng• 01 | O10: Seite 1 | P10: =IF(CELL("spalte",P10)<CELL("spalte",$P10)+$Q$2, IF(MOD(CELL("zeile",P10)-CELL("zeile",P$4),$Q$2)=MOD(CELL("spalte",P10)-(CELL("spalte",$P10)),$Q$2),ean_conv(LEFT($J10,12)),""), "<>") -> <> | Q10: =IF(CELL("spalte",Q10)<CELL("spalte",$P10)+$Q$2, IF(MOD(CELL("zeile",Q10)-CELL("zeile",Q$4),$Q$2)=MOD(CELL("spalte",Q10)-(CELL("spalte",$P10)),$Q$2),ean_conv(LEFT($J10,12)),""), "<>") -> <> | R10: =IF(CELL("spalte",R10)<CELL("spalte",$P10)+$Q$2, IF(MOD(CELL("zeile",R10)-CELL("zeile",R$4),$Q$2)=MOD(CELL("spalte",R10)-(CELL("spalte",$P10)),$Q$2),ean_conv(LEFT($J10,12)),""), "<>") -> <> | S10: =IF(CELL("spalte",S10)<CELL("spalte",$P10)+$Q$2, IF(MOD(CELL("zeile",S10)-CELL("zeile",S$4),$Q$2)=MOD(CELL("spalte",S10)-(CELL("spalte",$P10)),$Q$2),ean_conv(LEFT($J10,12)),""), "<>") -> <> | T10: =IF(CELL("spalte",T10)<CELL("spalte",$P10)+$Q$2, IF(MOD(CELL("zeile",T10)-CELL("zeile",T$4),$Q$2)=MOD(CELL("spalte",T10)-(CELL("spalte",$P10)),$Q$2),ean_conv(LEFT($J10,12)),""), "<>") -> <> | U10: =IF(CELL("spalte",U10)<CELL("spalte",$P10)+$Q$2, IF(MOD(CELL("zeile",U10)-CELL("zeile",U$4),$Q$2)=MOD(CELL("spalte",U10)-(CELL("spalte",$P10)),$Q$2),ean_conv(LEFT($J10,12)),""), "<>") -> <> | V10: =IF(CELL("spalte",V10)<CELL("spalte",$P10)+$Q$2, IF(MOD(CELL("zeile",V10)-CELL("zeile",V$4),$Q$2)=MOD(CELL("spalte",V10)-(CELL("spalte",$P10)),$Q$2),ean_conv(LEFT($J10,12)),""), "<>") -> <> | W10: =IF(CELL("spalte",W10)<CELL("spalte",$P10)+$Q$2, IF(MOD(CELL("zeile",W10)-CELL("zeile",W$4),$Q$2)=MOD(CELL("spalte",W10)-(CELL("spalte",$P10)),$Q$2),ean_conv(LEFT($J10,12)),""), "<>") -> <> | X10: =IF(CELL("spalte",X10)<CELL("spalte",$P10)+$Q$2, IF(MOD(CELL("zeile",X10)-CELL("zeile",X$4),$Q$2)=MOD(CELL("spalte",X10)-(CELL("spalte",$P10)),$Q$2),ean_conv(LEFT($J10,12)),""), "<>") -> <> | Y10: =IF(CELL("spalte",Y10)<CELL("spalte",$P10)+$Q$2, IF(MOD(CELL("zeile",Y10)-CELL("zeile",Y$4),$Q$2)=MOD(CELL("spalte",Y10)-(CELL("spalte",$P10)),$Q$2),ean_conv(LEFT($J10,12)),""), "<>") -> <>
A11: 8 | B11: 2.5 Dimensional Seduction | C11: 2 | D11: Comedy | F11: eng | G11: Standard | H11: Ghost Ship | I11: X | J11: 9781638582755 | L11: =IF(B11<>"",B11&Trenner&Einschluss&F11&Einschluss,"") -> 2.5 Dimensional Seduction •eng• | M11: =IF(C11<>"", IF(ISNUMBER(C11), IF(COUNTIF(Sort_Titel,L11)>99,L11&Trenner&TEXT(C11,"000"), IF(COUNTIF(Sort_Titel,L11)>9,L11&Trenner&TEXT(C11,"00"),L11&Trenner&TEXT(C11,"0")) ),L11&Trenner&C11 ),IF(L11<>"",L11,Titel_Leer) ) -> 2.5 Dimensional Seduction •eng• 02 | O11: Seite 1 | P11: =IF(CELL("spalte",P11)<CELL("spalte",$P11)+$Q$2, IF(MOD(CELL("zeile",P11)-CELL("zeile",P$4),$Q$2)=MOD(CELL("spalte",P11)-(CELL("spalte",$P11)),$Q$2),ean_conv(LEFT($J11,12)),""), "<>") -> <> | Q11: =IF(CELL("spalte",Q11)<CELL("spalte",$P11)+$Q$2, IF(MOD(CELL("zeile",Q11)-CELL("zeile",Q$4),$Q$2)=MOD(CELL("spalte",Q11)-(CELL("spalte",$P11)),$Q$2),ean_conv(LEFT($J11,12)),""), "<>") -> <> | R11: =IF(CELL("spalte",R11)<CELL("spalte",$P11)+$Q$2, IF(MOD(CELL("zeile",R11)-CELL("zeile",R$4),$Q$2)=MOD(CELL("spalte",R11)-(CELL("spalte",$P11)),$Q$2),ean_conv(LEFT($J11,12)),""), "<>") -> <> | S11: =IF(CELL("spalte",S11)<CELL("spalte",$P11)+$Q$2, IF(MOD(CELL("zeile",S11)-CELL("zeile",S$4),$Q$2)=MOD(CELL("spalte",S11)-(CELL("spalte",$P11)),$Q$2),ean_conv(LEFT($J11,12)),""), "<>") -> <> | T11: =IF(CELL("spalte",T11)<CELL("spalte",$P11)+$Q$2, IF(MOD(CELL("zeile",T11)-CELL("zeile",T$4),$Q$2)=MOD(CELL("spalte",T11)-(CELL("spalte",$P11)),$Q$2),ean_conv(LEFT($J11,12)),""), "<>") -> <> | U11: =IF(CELL("spalte",U11)<CELL("spalte",$P11)+$Q$2, IF(MOD(CELL("zeile",U11)-CELL("zeile",U$4),$Q$2)=MOD(CELL("spalte",U11)-(CELL("spalte",$P11)),$Q$2),ean_conv(LEFT($J11,12)),""), "<>") -> <> | V11: =IF(CELL("spalte",V11)<CELL("spalte",$P11)+$Q$2, IF(MOD(CELL("zeile",V11)-CELL("zeile",V$4),$Q$2)=MOD(CELL("spalte",V11)-(CELL("spalte",$P11)),$Q$2),ean_conv(LEFT($J11,12)),""), "<>") -> <> | W11: =IF(CELL("spalte",W11)<CELL("spalte",$P11)+$Q$2, IF(MOD(CELL("zeile",W11)-CELL("zeile",W$4),$Q$2)=MOD(CELL("spalte",W11)-(CELL("spalte",$P11)),$Q$2),ean_conv(LEFT($J11,12)),""), "<>") -> <> | X11: =IF(CELL("spalte",X11)<CELL("spalte",$P11)+$Q$2, IF(MOD(CELL("zeile",X11)-CELL("zeile",X$4),$Q$2)=MOD(CELL("spalte",X11)-(CELL("spalte",$P11)),$Q$2),ean_conv(LEFT($J11,12)),""), "<>") -> <> | Y11: =IF(CELL("spalte",Y11)<CELL("spalte",$P11)+$Q$2, IF(MOD(CELL("zeile",Y11)-CELL("zeile",Y$4),$Q$2)=MOD(CELL("spalte",Y11)-(CELL("spalte",$P11)),$Q$2),ean_conv(LEFT($J11,12)),""), "<>") -> <>
A12: 9 | B12: 2.5 Dimensional Seduction | C12: 3 | D12: Comedy | F12: eng | G12: Standard | H12: Ghost Ship | I12: X | J12: 9781638583912 | L12: =IF(B12<>"",B12&Trenner&Einschluss&F12&Einschluss,"") -> 2.5 Dimensional Seduction •eng• | M12: =IF(C12<>"", IF(ISNUMBER(C12), IF(COUNTIF(Sort_Titel,L12)>99,L12&Trenner&TEXT(C12,"000"), IF(COUNTIF(Sort_Titel,L12)>9,L12&Trenner&TEXT(C12,"00"),L12&Trenner&TEXT(C12,"0")) ),L12&Trenner&C12 ),IF(L12<>"",L12,Titel_Leer) ) -> 2.5 Dimensional Seduction •eng• 03 | O12: Seite 1 | P12: =IF(CELL("spalte",P12)<CELL("spalte",$P12)+$Q$2, IF(MOD(CELL("zeile",P12)-CELL("zeile",P$4),$Q$2)=MOD(CELL("spalte",P12)-(CELL("spalte",$P12)),$Q$2),ean_conv(LEFT($J12,12)),""), "<>") -> <> | Q12: =IF(CELL("spalte",Q12)<CELL("spalte",$P12)+$Q$2, IF(MOD(CELL("zeile",Q12)-CELL("zeile",Q$4),$Q$2)=MOD(CELL("spalte",Q12)-(CELL("spalte",$P12)),$Q$2),ean_conv(LEFT($J12,12)),""), "<>") -> <> | R12: =IF(CELL("spalte",R12)<CELL("spalte",$P12)+$Q$2, IF(MOD(CELL("zeile",R12)-CELL("zeile",R$4),$Q$2)=MOD(CELL("spalte",R12)-(CELL("spalte",$P12)),$Q$2),ean_conv(LEFT($J12,12)),""), "<>") -> <> | S12: =IF(CELL("spalte",S12)<CELL("spalte",$P12)+$Q$2, IF(MOD(CELL("zeile",S12)-CELL("zeile",S$4),$Q$2)=MOD(CELL("spalte",S12)-(CELL("spalte",$P12)),$Q$2),ean_conv(LEFT($J12,12)),""), "<>") -> <> | T12: =IF(CELL("spalte",T12)<CELL("spalte",$P12)+$Q$2, IF(MOD(CELL("zeile",T12)-CELL("zeile",T$4),$Q$2)=MOD(CELL("spalte",T12)-(CELL("spalte",$P12)),$Q$2),ean_conv(LEFT($J12,12)),""), "<>") -> <> | U12: =IF(CELL("spalte",U12)<CELL("spalte",$P12)+$Q$2, IF(MOD(CELL("zeile",U12)-CELL("zeile",U$4),$Q$2)=MOD(CELL("spalte",U12)-(CELL("spalte",$P12)),$Q$2),ean_conv(LEFT($J12,12)),""), "<>") -> <> | V12: =IF(CELL("spalte",V12)<CELL("spalte",$P12)+$Q$2, IF(MOD(CELL("zeile",V12)-CELL("zeile",V$4),$Q$2)=MOD(CELL("spalte",V12)-(CELL("spalte",$P12)),$Q$2),ean_conv(LEFT($J12,12)),""), "<>") -> <> | W12: =IF(CELL("spalte",W12)<CELL("spalte",$P12)+$Q$2, IF(MOD(CELL("zeile",W12)-CELL("zeile",W$4),$Q$2)=MOD(CELL("spalte",W12)-(CELL("spalte",$P12)),$Q$2),ean_conv(LEFT($J12,12)),""), "<>") -> <> | X12: =IF(CELL("spalte",X12)<CELL("spalte",$P12)+$Q$2, IF(MOD(CELL("zeile",X12)-CELL("zeile",X$4),$Q$2)=MOD(CELL("spalte",X12)-(CELL("spalte",$P12)),$Q$2),ean_conv(LEFT($J12,12)),""), "<>") -> <> | Y12: =IF(CELL("spalte",Y12)<CELL("spalte",$P12)+$Q$2, IF(MOD(CELL("zeile",Y12)-CELL("zeile",Y$4),$Q$2)=MOD(CELL("spalte",Y12)-(CELL("spalte",$P12)),$Q$2),ean_conv(LEFT($J12,12)),""), "<>") -> <>
A13: 10 | B13: 2.5 Dimensional Seduction | C13: 4 | D13: Comedy | F13: eng | G13: Standard | H13: Ghost Ship | I13: X | J13: 9781638587378 | L13: =IF(B13<>"",B13&Trenner&Einschluss&F13&Einschluss,"") -> 2.5 Dimensional Seduction •eng• | M13: =IF(C13<>"", IF(ISNUMBER(C13), IF(COUNTIF(Sort_Titel,L13)>99,L13&Trenner&TEXT(C13,"000"), IF(COUNTIF(Sort_Titel,L13)>9,L13&Trenner&TEXT(C13,"00"),L13&Trenner&TEXT(C13,"0")) ),L13&Trenner&C13 ),IF(L13<>"",L13,Titel_Leer) ) -> 2.5 Dimensional Seduction •eng• 04 | O13: Seite 1 | P13: =IF(CELL("spalte",P13)<CELL("spalte",$P13)+$Q$2, IF(MOD(CELL("zeile",P13)-CELL("zeile",P$4),$Q$2)=MOD(CELL("spalte",P13)-(CELL("spalte",$P13)),$Q$2),ean_conv(LEFT($J13,12)),""), "<>") -> <> | Q13: =IF(CELL("spalte",Q13)<CELL("spalte",$P13)+$Q$2, IF(MOD(CELL("zeile",Q13)-CELL("zeile",Q$4),$Q$2)=MOD(CELL("spalte",Q13)-(CELL("spalte",$P13)),$Q$2),ean_conv(LEFT($J13,12)),""), "<>") -> <> | R13: =IF(CELL("spalte",R13)<CELL("spalte",$P13)+$Q$2, IF(MOD(CELL("zeile",R13)-CELL("zeile",R$4),$Q$2)=MOD(CELL("spalte",R13)-(CELL("spalte",$P13)),$Q$2),ean_conv(LEFT($J13,12)),""), "<>") -> <> | S13: =IF(CELL("spalte",S13)<CELL("spalte",$P13)+$Q$2, IF(MOD(CELL("zeile",S13)-CELL("zeile",S$4),$Q$2)=MOD(CELL("spalte",S13)-(CELL("spalte",$P13)),$Q$2),ean_conv(LEFT($J13,12)),""), "<>") -> <> | T13: =IF(CELL("spalte",T13)<CELL("spalte",$P13)+$Q$2, IF(MOD(CELL("zeile",T13)-CELL("zeile",T$4),$Q$2)=MOD(CELL("spalte",T13)-(CELL("spalte",$P13)),$Q$2),ean_conv(LEFT($J13,12)),""), "<>") -> <> | U13: =IF(CELL("spalte",U13)<CELL("spalte",$P13)+$Q$2, IF(MOD(CELL("zeile",U13)-CELL("zeile",U$4),$Q$2)=MOD(CELL("spalte",U13)-(CELL("spalte",$P13)),$Q$2),ean_conv(LEFT($J13,12)),""), "<>") -> <> | V13: =IF(CELL("spalte",V13)<CELL("spalte",$P13)+$Q$2, IF(MOD(CELL("zeile",V13)-CELL("zeile",V$4),$Q$2)=MOD(CELL("spalte",V13)-(CELL("spalte",$P13)),$Q$2),ean_conv(LEFT($J13,12)),""), "<>") -> <> | W13: =IF(CELL("spalte",W13)<CELL("spalte",$P13)+$Q$2, IF(MOD(CELL("zeile",W13)-CELL("zeile",W$4),$Q$2)=MOD(CELL("spalte",W13)-(CELL("spalte",$P13)),$Q$2),ean_conv(LEFT($J13,12)),""), "<>") -> <> | X13: =IF(CELL("spalte",X13)<CELL("spalte",$P13)+$Q$2, IF(MOD(CELL("zeile",X13)-CELL("zeile",X$4),$Q$2)=MOD(CELL("spalte",X13)-(CELL("spalte",$P13)),$Q$2),ean_conv(LEFT($J13,12)),""), "<>") -> <> | Y13: =IF(CELL("spalte",Y13)<CELL("spalte",$P13)+$Q$2, IF(MOD(CELL("zeile",Y13)-CELL("zeile",Y$4),$Q$2)=MOD(CELL("spalte",Y13)-(CELL("spalte",$P13)),$Q$2),ean_conv(LEFT($J13,12)),""), "<>") -> <>
A14: 11 | B14: 2.5 Dimensional Seduction | C14: 5 | D14: Comedy | F14: eng | G14: Standard | H14: Ghost Ship | I14: X | J14: 9781638589273 | L14: =IF(B14<>"",B14&Trenner&Einschluss&F14&Einschluss,"") -> 2.5 Dimensional Seduction •eng• | M14: =IF(C14<>"", IF(ISNUMBER(C14), IF(COUNTIF(Sort_Titel,L14)>99,L14&Trenner&TEXT(C14,"000"), IF(COUNTIF(Sort_Titel,L14)>9,L14&Trenner&TEXT(C14,"00"),L14&Trenner&TEXT(C14,"0")) ),L14&Trenner&C14 ),IF(L14<>"",L14,Titel_Leer) ) -> 2.5 Dimensional Seduction •eng• 05 | O14: Seite 1 | P14: =IF(CELL("spalte",P14)<CELL("spalte",$P14)+$Q$2, IF(MOD(CELL("zeile",P14)-CELL("zeile",P$4),$Q$2)=MOD(CELL("spalte",P14)-(CELL("spalte",$P14)),$Q$2),ean_conv(LEFT($J14,12)),""), "<>") -> <> | Q14: =IF(CELL("spalte",Q14)<CELL("spalte",$P14)+$Q$2, IF(MOD(CELL("zeile",Q14)-CELL("zeile",Q$4),$Q$2)=MOD(CELL("spalte",Q14)-(CELL("spalte",$P14)),$Q$2),ean_conv(LEFT($J14,12)),""), "<>") -> <> | R14: =IF(CELL("spalte",R14)<CELL("spalte",$P14)+$Q$2, IF(MOD(CELL("zeile",R14)-CELL("zeile",R$4),$Q$2)=MOD(CELL("spalte",R14)-(CELL("spalte",$P14)),$Q$2),ean_conv(LEFT($J14,12)),""), "<>") -> <> | S14: =IF(CELL("spalte",S14)<CELL("spalte",$P14)+$Q$2, IF(MOD(CELL("zeile",S14)-CELL("zeile",S$4),$Q$2)=MOD(CELL("spalte",S14)-(CELL("spalte",$P14)),$Q$2),ean_conv(LEFT($J14,12)),""), "<>") -> <> | T14: =IF(CELL("spalte",T14)<CELL("spalte",$P14)+$Q$2, IF(MOD(CELL("zeile",T14)-CELL("zeile",T$4),$Q$2)=MOD(CELL("spalte",T14)-(CELL("spalte",$P14)),$Q$2),ean_conv(LEFT($J14,12)),""), "<>") -> <> | U14: =IF(CELL("spalte",U14)<CELL("spalte",$P14)+$Q$2, IF(MOD(CELL("zeile",U14)-CELL("zeile",U$4),$Q$2)=MOD(CELL("spalte",U14)-(CELL("spalte",$P14)),$Q$2),ean_conv(LEFT($J14,12)),""), "<>") -> <> | V14: =IF(CELL("spalte",V14)<CELL("spalte",$P14)+$Q$2, IF(MOD(CELL("zeile",V14)-CELL("zeile",V$4),$Q$2)=MOD(CELL("spalte",V14)-(CELL("spalte",$P14)),$Q$2),ean_conv(LEFT($J14,12)),""), "<>") -> <> | W14: =IF(CELL("spalte",W14)<CELL("spalte",$P14)+$Q$2, IF(MOD(CELL("zeile",W14)-CELL("zeile",W$4),$Q$2)=MOD(CELL("spalte",W14)-(CELL("spalte",$P14)),$Q$2),ean_conv(LEFT($J14,12)),""), "<>") -> <> | X14: =IF(CELL("spalte",X14)<CELL("spalte",$P14)+$Q$2, IF(MOD(CELL("zeile",X14)-CELL("zeile",X$4),$Q$2)=MOD(CELL("spalte",X14)-(CELL("spalte",$P14)),$Q$2),ean_conv(LEFT($J14,12)),""), "<>") -> <> | Y14: =IF(CELL("spalte",Y14)<CELL("spalte",$P14)+$Q$2, IF(MOD(CELL("zeile",Y14)-CELL("zeile",Y$4),$Q$2)=MOD(CELL("spalte",Y14)-(CELL("spalte",$P14)),$Q$2),ean_conv(LEFT($J14,12)),""), "<>") -> <>
A15: 12 | B15: 2.5 Dimensional Seduction | C15: 6 | D15: Comedy | F15: eng | G15: Standard | H15: Ghost Ship | I15: X | J15: 9781638589921 | L15: =IF(B15<>"",B15&Trenner&Einschluss&F15&Einschluss,"") -> 2.5 Dimensional Seduction •eng• | M15: =IF(C15<>"", IF(ISNUMBER(C15), IF(COUNTIF(Sort_Titel,L15)>99,L15&Trenner&TEXT(C15,"000"), IF(COUNTIF(Sort_Titel,L15)>9,L15&Trenner&TEXT(C15,"00"),L15&Trenner&TEXT(C15,"0")) ),L15&Trenner&C15 ),IF(L15<>"",L15,Titel_Leer) ) -> 2.5 Dimensional Seduction •eng• 06 | O15: Seite 1 | P15: =IF(CELL("spalte",P15)<CELL("spalte",$P15)+$Q$2, IF(MOD(CELL("zeile",P15)-CELL("zeile",P$4),$Q$2)=MOD(CELL("spalte",P15)-(CELL("spalte",$P15)),$Q$2),ean_conv(LEFT($J15,12)),""), "<>") -> <> | Q15: =IF(CELL("spalte",Q15)<CELL("spalte",$P15)+$Q$2, IF(MOD(CELL("zeile",Q15)-CELL("zeile",Q$4),$Q$2)=MOD(CELL("spalte",Q15)-(CELL("spalte",$P15)),$Q$2),ean_conv(LEFT($J15,12)),""), "<>") -> <> | R15: =IF(CELL("spalte",R15)<CELL("spalte",$P15)+$Q$2, IF(MOD(CELL("zeile",R15)-CELL("zeile",R$4),$Q$2)=MOD(CELL("spalte",R15)-(CELL("spalte",$P15)),$Q$2),ean_conv(LEFT($J15,12)),""), "<>") -> <> | S15: =IF(CELL("spalte",S15)<CELL("spalte",$P15)+$Q$2, IF(MOD(CELL("zeile",S15)-CELL("zeile",S$4),$Q$2)=MOD(CELL("spalte",S15)-(CELL("spalte",$P15)),$Q$2),ean_conv(LEFT($J15,12)),""), "<>") -> <> | T15: =IF(CELL("spalte",T15)<CELL("spalte",$P15)+$Q$2, IF(MOD(CELL("zeile",T15)-CELL("zeile",T$4),$Q$2)=MOD(CELL("spalte",T15)-(CELL("spalte",$P15)),$Q$2),ean_conv(LEFT($J15,12)),""), "<>") -> <> | U15: =IF(CELL("spalte",U15)<CELL("spalte",$P15)+$Q$2, IF(MOD(CELL("zeile",U15)-CELL("zeile",U$4),$Q$2)=MOD(CELL("spalte",U15)-(CELL("spalte",$P15)),$Q$2),ean_conv(LEFT($J15,12)),""), "<>") -> <> | V15: =IF(CELL("spalte",V15)<CELL("spalte",$P15)+$Q$2, IF(MOD(CELL("zeile",V15)-CELL("zeile",V$4),$Q$2)=MOD(CELL("spalte",V15)-(CELL("spalte",$P15)),$Q$2),ean_conv(LEFT($J15,12)),""), "<>") -> <> | W15: =IF(CELL("spalte",W15)<CELL("spalte",$P15)+$Q$2, IF(MOD(CELL("zeile",W15)-CELL("zeile",W$4),$Q$2)=MOD(CELL("spalte",W15)-(CELL("spalte",$P15)),$Q$2),ean_conv(LEFT($J15,12)),""), "<>") -> <> | X15: =IF(CELL("spalte",X15)<CELL("spalte",$P15)+$Q$2, IF(MOD(CELL("zeile",X15)-CELL("zeile",X$4),$Q$2)=MOD(CELL("spalte",X15)-(CELL("spalte",$P15)),$Q$2),ean_conv(LEFT($J15,12)),""), "<>") -> <> | Y15: =IF(CELL("spalte",Y15)<CELL("spalte",$P15)+$Q$2, IF(MOD(CELL("zeile",Y15)-CELL("zeile",Y$4),$Q$2)=MOD(CELL("spalte",Y15)-(CELL("spalte",$P15)),$Q$2),ean_conv(LEFT($J15,12)),""), "<>") -> <>
A16: 13 | B16: 2.5 Dimensional Seduction | C16: 7 | D16: Comedy | F16: eng | G16: Standard | H16: Ghost Ship | I16: X | J16: 9781685796006 | L16: =IF(B16<>"",B16&Trenner&Einschluss&F16&Einschluss,"") -> 2.5 Dimensional Seduction •eng• | M16: =IF(C16<>"", IF(ISNUMBER(C16), IF(COUNTIF(Sort_Titel,L16)>99,L16&Trenner&TEXT(C16,"000"), IF(COUNTIF(Sort_Titel,L16)>9,L16&Trenner&TEXT(C16,"00"),L16&Trenner&TEXT(C16,"0")) ),L16&Trenner&C16 ),IF(L16<>"",L16,Titel_Leer) ) -> 2.5 Dimensional Seduction •eng• 07 | O16: Seite 1 | P16: =IF(CELL("spalte",P16)<CELL("spalte",$P16)+$Q$2, IF(MOD(CELL("zeile",P16)-CELL("zeile",P$4),$Q$2)=MOD(CELL("spalte",P16)-(CELL("spalte",$P16)),$Q$2),ean_conv(LEFT($J16,12)),""), "<>") -> <> | Q16: =IF(CELL("spalte",Q16)<CELL("spalte",$P16)+$Q$2, IF(MOD(CELL("zeile",Q16)-CELL("zeile",Q$4),$Q$2)=MOD(CELL("spalte",Q16)-(CELL("spalte",$P16)),$Q$2),ean_conv(LEFT($J16,12)),""), "<>") -> <> | R16: =IF(CELL("spalte",R16)<CELL("spalte",$P16)+$Q$2, IF(MOD(CELL("zeile",R16)-CELL("zeile",R$4),$Q$2)=MOD(CELL("spalte",R16)-(CELL("spalte",$P16)),$Q$2),ean_conv(LEFT($J16,12)),""), "<>") -> <> | S16: =IF(CELL("spalte",S16)<CELL("spalte",$P16)+$Q$2, IF(MOD(CELL("zeile",S16)-CELL("zeile",S$4),$Q$2)=MOD(CELL("spalte",S16)-(CELL("spalte",$P16)),$Q$2),ean_conv(LEFT($J16,12)),""), "<>") -> <> | T16: =IF(CELL("spalte",T16)<CELL("spalte",$P16)+$Q$2, IF(MOD(CELL("zeile",T16)-CELL("zeile",T$4),$Q$2)=MOD(CELL("spalte",T16)-(CELL("spalte",$P16)),$Q$2),ean_conv(LEFT($J16,12)),""), "<>") -> <> | U16: =IF(CELL("spalte",U16)<CELL("spalte",$P16)+$Q$2, IF(MOD(CELL("zeile",U16)-CELL("zeile",U$4),$Q$2)=MOD(CELL("spalte",U16)-(CELL("spalte",$P16)),$Q$2),ean_conv(LEFT($J16,12)),""), "<>") -> <> | V16: =IF(CELL("spalte",V16)<CELL("spalte",$P16)+$Q$2, IF(MOD(CELL("zeile",V16)-CELL("zeile",V$4),$Q$2)=MOD(CELL("spalte",V16)-(CELL("spalte",$P16)),$Q$2),ean_conv(LEFT($J16,12)),""), "<>") -> <> | W16: =IF(CELL("spalte",W16)<CELL("spalte",$P16)+$Q$2, IF(MOD(CELL("zeile",W16)-CELL("zeile",W$4),$Q$2)=MOD(CELL("spalte",W16)-(CELL("spalte",$P16)),$Q$2),ean_conv(LEFT($J16,12)),""), "<>") -> <> | X16: =IF(CELL("spalte",X16)<CELL("spalte",$P16)+$Q$2, IF(MOD(CELL("zeile",X16)-CELL("zeile",X$4),$Q$2)=MOD(CELL("spalte",X16)-(CELL("spalte",$P16)),$Q$2),ean_conv(LEFT($J16,12)),""), "<>") -> <> | Y16: =IF(CELL("spalte",Y16)<CELL("spalte",$P16)+$Q$2, IF(MOD(CELL("zeile",Y16)-CELL("zeile",Y$4),$Q$2)=MOD(CELL("spalte",Y16)-(CELL("spalte",$P16)),$Q$2),ean_conv(LEFT($J16,12)),""), "<>") -> <>
A17: 14 | B17: 2.5 Dimensional Seduction | C17: 8 | D17: Comedy | F17: eng | G17: Standard | H17: Ghost Ship | I17: X | J17: 9781685795764 | L17: =IF(B17<>"",B17&Trenner&Einschluss&F17&Einschluss,"") -> 2.5 Dimensional Seduction •eng• | M17: =IF(C17<>"", IF(ISNUMBER(C17), IF(COUNTIF(Sort_Titel,L17)>99,L17&Trenner&TEXT(C17,"000"), IF(COUNTIF(Sort_Titel,L17)>9,L17&Trenner&TEXT(C17,"00"),L17&Trenner&TEXT(C17,"0")) ),L17&Trenner&C17 ),IF(L17<>"",L17,Titel_Leer) ) -> 2.5 Dimensional Seduction •eng• 08 | O17: Seite 1 | P17: =IF(CELL("spalte",P17)<CELL("spalte",$P17)+$Q$2, IF(MOD(CELL("zeile",P17)-CELL("zeile",P$4),$Q$2)=MOD(CELL("spalte",P17)-(CELL("spalte",$P17)),$Q$2),ean_conv(LEFT($J17,12)),""), "<>") -> <> | Q17: =IF(CELL("spalte",Q17)<CELL("spalte",$P17)+$Q$2, IF(MOD(CELL("zeile",Q17)-CELL("zeile",Q$4),$Q$2)=MOD(CELL("spalte",Q17)-(CELL("spalte",$P17)),$Q$2),ean_conv(LEFT($J17,12)),""), "<>") -> <> | R17: =IF(CELL("spalte",R17)<CELL("spalte",$P17)+$Q$2, IF(MOD(CELL("zeile",R17)-CELL("zeile",R$4),$Q$2)=MOD(CELL("spalte",R17)-(CELL("spalte",$P17)),$Q$2),ean_conv(LEFT($J17,12)),""), "<>") -> <> | S17: =IF(CELL("spalte",S17)<CELL("spalte",$P17)+$Q$2, IF(MOD(CELL("zeile",S17)-CELL("zeile",S$4),$Q$2)=MOD(CELL("spalte",S17)-(CELL("spalte",$P17)),$Q$2),ean_conv(LEFT($J17,12)),""), "<>") -> <> | T17: =IF(CELL("spalte",T17)<CELL("spalte",$P17)+$Q$2, IF(MOD(CELL("zeile",T17)-CELL("zeile",T$4),$Q$2)=MOD(CELL("spalte",T17)-(CELL("spalte",$P17)),$Q$2),ean_conv(LEFT($J17,12)),""), "<>") -> <> | U17: =IF(CELL("spalte",U17)<CELL("spalte",$P17)+$Q$2, IF(MOD(CELL("zeile",U17)-CELL("zeile",U$4),$Q$2)=MOD(CELL("spalte",U17)-(CELL("spalte",$P17)),$Q$2),ean_conv(LEFT($J17,12)),""), "<>") -> <> | V17: =IF(CELL("spalte",V17)<CELL("spalte",$P17)+$Q$2, IF(MOD(CELL("zeile",V17)-CELL("zeile",V$4),$Q$2)=MOD(CELL("spalte",V17)-(CELL("spalte",$P17)),$Q$2),ean_conv(LEFT($J17,12)),""), "<>") -> <> | W17: =IF(CELL("spalte",W17)<CELL("spalte",$P17)+$Q$2, IF(MOD(CELL("zeile",W17)-CELL("zeile",W$4),$Q$2)=MOD(CELL("spalte",W17)-(CELL("spalte",$P17)),$Q$2),ean_conv(LEFT($J17,12)),""), "<>") -> <> | X17: =IF(CELL("spalte",X17)<CELL("spalte",$P17)+$Q$2, IF(MOD(CELL("zeile",X17)-CELL("zeile",X$4),$Q$2)=MOD(CELL("spalte",X17)-(CELL("spalte",$P17)),$Q$2),ean_conv(LEFT($J17,12)),""), "<>") -> <> | Y17: =IF(CELL("spalte",Y17)<CELL("spalte",$P17)+$Q$2, IF(MOD(CELL("zeile",Y17)-CELL("zeile",Y$4),$Q$2)=MOD(CELL("spalte",Y17)-(CELL("spalte",$P17)),$Q$2),ean_conv(LEFT($J17,12)),""), "<>") -> <>
A18: 15 | B18: 2.5 Dimensional Seduction | C18: 9 | D18: Comedy | F18: eng | G18: Standard | H18: Ghost Ship | I18: X | J18: 9798888434086 | L18: =IF(B18<>"",B18&Trenner&Einschluss&F18&Einschluss,"") -> 2.5 Dimensional Seduction •eng• | M18: =IF(C18<>"", IF(ISNUMBER(C18), IF(COUNTIF(Sort_Titel,L18)>99,L18&Trenner&TEXT(C18,"000"), IF(COUNTIF(Sort_Titel,L18)>9,L18&Trenner&TEXT(C18,"00"),L18&Trenner&TEXT(C18,"0")) ),L18&Trenner&C18 ),IF(L18<>"",L18,Titel_Leer) ) -> 2.5 Dimensional Seduction •eng• 09 | O18: Seite 1 | P18: =IF(CELL("spalte",P18)<CELL("spalte",$P18)+$Q$2, IF(MOD(CELL("zeile",P18)-CELL("zeile",P$4),$Q$2)=MOD(CELL("spalte",P18)-(CELL("spalte",$P18)),$Q$2),ean_conv(LEFT($J18,12)),""), "<>") -> <> | Q18: =IF(CELL("spalte",Q18)<CELL("spalte",$P18)+$Q$2, IF(MOD(CELL("zeile",Q18)-CELL("zeile",Q$4),$Q$2)=MOD(CELL("spalte",Q18)-(CELL("spalte",$P18)),$Q$2),ean_conv(LEFT($J18,12)),""), "<>") -> <> | R18: =IF(CELL("spalte",R18)<CELL("spalte",$P18)+$Q$2, IF(MOD(CELL("zeile",R18)-CELL("zeile",R$4),$Q$2)=MOD(CELL("spalte",R18)-(CELL("spalte",$P18)),$Q$2),ean_conv(LEFT($J18,12)),""), "<>") -> <> | S18: =IF(CELL("spalte",S18)<CELL("spalte",$P18)+$Q$2, IF(MOD(CELL("zeile",S18)-CELL("zeile",S$4),$Q$2)=MOD(CELL("spalte",S18)-(CELL("spalte",$P18)),$Q$2),ean_conv(LEFT($J18,12)),""), "<>") -> <> | T18: =IF(CELL("spalte",T18)<CELL("spalte",$P18)+$Q$2, IF(MOD(CELL("zeile",T18)-CELL("zeile",T$4),$Q$2)=MOD(CELL("spalte",T18)-(CELL("spalte",$P18)),$Q$2),ean_conv(LEFT($J18,12)),""), "<>") -> <> | U18: =IF(CELL("spalte",U18)<CELL("spalte",$P18)+$Q$2, IF(MOD(CELL("zeile",U18)-CELL("zeile",U$4),$Q$2)=MOD(CELL("spalte",U18)-(CELL("spalte",$P18)),$Q$2),ean_conv(LEFT($J18,12)),""), "<>") -> <> | V18: =IF(CELL("spalte",V18)<CELL("spalte",$P18)+$Q$2, IF(MOD(CELL("zeile",V18)-CELL("zeile",V$4),$Q$2)=MOD(CELL("spalte",V18)-(CELL("spalte",$P18)),$Q$2),ean_conv(LEFT($J18,12)),""), "<>") -> <> | W18: =IF(CELL("spalte",W18)<CELL("spalte",$P18)+$Q$2, IF(MOD(CELL("zeile",W18)-CELL("zeile",W$4),$Q$2)=MOD(CELL("spalte",W18)-(CELL("spalte",$P18)),$Q$2),ean_conv(LEFT($J18,12)),""), "<>") -> <> | X18: =IF(CELL("spalte",X18)<CELL("spalte",$P18)+$Q$2, IF(MOD(CELL("zeile",X18)-CELL("zeile",X$4),$Q$2)=MOD(CELL("spalte",X18)-(CELL("spalte",$P18)),$Q$2),ean_conv(LEFT($J18,12)),""), "<>") -> <> | Y18: =IF(CELL("spalte",Y18)<CELL("spalte",$P18)+$Q$2, IF(MOD(CELL("zeile",Y18)-CELL("zeile",Y$4),$Q$2)=MOD(CELL("spalte",Y18)-(CELL("spalte",$P18)),$Q$2),ean_conv(LEFT($J18,12)),""), "<>") -> <>
A19: 16 | B19: 2.5 Dimensional Seduction | C19: 10 | D19: Comedy | F19: eng | G19: Standard | H19: Ghost Ship | I19: X | J19: 9798888436318 | L19: =IF(B19<>"",B19&Trenner&Einschluss&F19&Einschluss,"") -> 2.5 Dimensional Seduction •eng• | M19: =IF(C19<>"", IF(ISNUMBER(C19), IF(COUNTIF(Sort_Titel,L19)>99,L19&Trenner&TEXT(C19,"000"), IF(COUNTIF(Sort_Titel,L19)>9,L19&Trenner&TEXT(C19,"00"),L19&Trenner&TEXT(C19,"0")) ),L19&Trenner&C19 ),IF(L19<>"",L19,Titel_Leer) ) -> 2.5 Dimensional Seduction •eng• 10 | O19: Seite 1 | P19: =IF(CELL("spalte",P19)<CELL("spalte",$P19)+$Q$2, IF(MOD(CELL("zeile",P19)-CELL("zeile",P$4),$Q$2)=MOD(CELL("spalte",P19)-(CELL("spalte",$P19)),$Q$2),ean_conv(LEFT($J19,12)),""), "<>") -> <> | Q19: =IF(CELL("spalte",Q19)<CELL("spalte",$P19)+$Q$2, IF(MOD(CELL("zeile",Q19)-CELL("zeile",Q$4),$Q$2)=MOD(CELL("spalte",Q19)-(CELL("spalte",$P19)),$Q$2),ean_conv(LEFT($J19,12)),""), "<>") -> <> | R19: =IF(CELL("spalte",R19)<CELL("spalte",$P19)+$Q$2, IF(MOD(CELL("zeile",R19)-CELL("zeile",R$4),$Q$2)=MOD(CELL("spalte",R19)-(CELL("spalte",$P19)),$Q$2),ean_conv(LEFT($J19,12)),""), "<>") -> <> | S19: =IF(CELL("spalte",S19)<CELL("spalte",$P19)+$Q$2, IF(MOD(CELL("zeile",S19)-CELL("zeile",S$4),$Q$2)=MOD(CELL("spalte",S19)-(CELL("spalte",$P19)),$Q$2),ean_conv(LEFT($J19,12)),""), "<>") -> <> | T19: =IF(CELL("spalte",T19)<CELL("spalte",$P19)+$Q$2, IF(MOD(CELL("zeile",T19)-CELL("zeile",T$4),$Q$2)=MOD(CELL("spalte",T19)-(CELL("spalte",$P19)),$Q$2),ean_conv(LEFT($J19,12)),""), "<>") -> <> | U19: =IF(CELL("spalte",U19)<CELL("spalte",$P19)+$Q$2, IF(MOD(CELL("zeile",U19)-CELL("zeile",U$4),$Q$2)=MOD(CELL("spalte",U19)-(CELL("spalte",$P19)),$Q$2),ean_conv(LEFT($J19,12)),""), "<>") -> <> | V19: =IF(CELL("spalte",V19)<CELL("spalte",$P19)+$Q$2, IF(MOD(CELL("zeile",V19)-CELL("zeile",V$4),$Q$2)=MOD(CELL("spalte",V19)-(CELL("spalte",$P19)),$Q$2),ean_conv(LEFT($J19,12)),""), "<>") -> <> | W19: =IF(CELL("spalte",W19)<CELL("spalte",$P19)+$Q$2, IF(MOD(CELL("zeile",W19)-CELL("zeile",W$4),$Q$2)=MOD(CELL("spalte",W19)-(CELL("spalte",$P19)),$Q$2),ean_conv(LEFT($J19,12)),""), "<>") -> <> | X19: =IF(CELL("spalte",X19)<CELL("spalte",$P19)+$Q$2, IF(MOD(CELL("zeile",X19)-CELL("zeile",X$4),$Q$2)=MOD(CELL("spalte",X19)-(CELL("spalte",$P19)),$Q$2),ean_conv(LEFT($J19,12)),""), "<>") -> <> | Y19: =IF(CELL("spalte",Y19)<CELL("spalte",$P19)+$Q$2, IF(MOD(CELL("zeile",Y19)-CELL("zeile",Y$4),$Q$2)=MOD(CELL("spalte",Y19)-(CELL("spalte",$P19)),$Q$2),ean_conv(LEFT($J19,12)),""), "<>") -> <>
A20: 17 | B20: 2.5 Dimensional Seduction | C20: 11 | D20: Comedy | F20: eng | G20: Standard | H20: Ghost Ship | I20: X | J20: 9798891602069 | L20: =IF(B20<>"",B20&Trenner&Einschluss&F20&Einschluss,"") -> 2.5 Dimensional Seduction •eng• | M20: =IF(C20<>"", IF(ISNUMBER(C20), IF(COUNTIF(Sort_Titel,L20)>99,L20&Trenner&TEXT(C20,"000"), IF(COUNTIF(Sort_Titel,L20)>9,L20&Trenner&TEXT(C20,"00"),L20&Trenner&TEXT(C20,"0")) ),L20&Trenner&C20 ),IF(L20<>"",L20,Titel_Leer) ) -> 2.5 Dimensional Seduction •eng• 11 | O20: Seite 1 | P20: =IF(CELL("spalte",P20)<CELL("spalte",$P20)+$Q$2, IF(MOD(CELL("zeile",P20)-CELL("zeile",P$4),$Q$2)=MOD(CELL("spalte",P20)-(CELL("spalte",$P20)),$Q$2),ean_conv(LEFT($J20,12)),""), "<>") -> <> | Q20: =IF(CELL("spalte",Q20)<CELL("spalte",$P20)+$Q$2, IF(MOD(CELL("zeile",Q20)-CELL("zeile",Q$4),$Q$2)=MOD(CELL("spalte",Q20)-(CELL("spalte",$P20)),$Q$2),ean_conv(LEFT($J20,12)),""), "<>") -> <> | R20: =IF(CELL("spalte",R20)<CELL("spalte",$P20)+$Q$2, IF(MOD(CELL("zeile",R20)-CELL("zeile",R$4),$Q$2)=MOD(CELL("spalte",R20)-(CELL("spalte",$P20)),$Q$2),ean_conv(LEFT($J20,12)),""), "<>") -> <> | S20: =IF(CELL("spalte",S20)<CELL("spalte",$P20)+$Q$2, IF(MOD(CELL("zeile",S20)-CELL("zeile",S$4),$Q$2)=MOD(CELL("spalte",S20)-(CELL("spalte",$P20)),$Q$2),ean_conv(LEFT($J20,12)),""), "<>") -> <> | T20: =IF(CELL("spalte",T20)<CELL("spalte",$P20)+$Q$2, IF(MOD(CELL("zeile",T20)-CELL("zeile",T$4),$Q$2)=MOD(CELL("spalte",T20)-(CELL("spalte",$P20)),$Q$2),ean_conv(LEFT($J20,12)),""), "<>") -> <> | U20: =IF(CELL("spalte",U20)<CELL("spalte",$P20)+$Q$2, IF(MOD(CELL("zeile",U20)-CELL("zeile",U$4),$Q$2)=MOD(CELL("spalte",U20)-(CELL("spalte",$P20)),$Q$2),ean_conv(LEFT($J20,12)),""), "<>") -> <> | V20: =IF(CELL("spalte",V20)<CELL("spalte",$P20)+$Q$2, IF(MOD(CELL("zeile",V20)-CELL("zeile",V$4),$Q$2)=MOD(CELL("spalte",V20)-(CELL("spalte",$P20)),$Q$2),ean_conv(LEFT($J20,12)),""), "<>") -> <> | W20: =IF(CELL("spalte",W20)<CELL("spalte",$P20)+$Q$2, IF(MOD(CELL("zeile",W20)-CELL("zeile",W$4),$Q$2)=MOD(CELL("spalte",W20)-(CELL("spalte",$P20)),$Q$2),ean_conv(LEFT($J20,12)),""), "<>") -> <> | X20: =IF(CELL("spalte",X20)<CELL("spalte",$P20)+$Q$2, IF(MOD(CELL("zeile",X20)-CELL("zeile",X$4),$Q$2)=MOD(CELL("spalte",X20)-(CELL("spalte",$P20)),$Q$2),ean_conv(LEFT($J20,12)),""), "<>") -> <> | Y20: =IF(CELL("spalte",Y20)<CELL("spalte",$P20)+$Q$2, IF(MOD(CELL("zeile",Y20)-CELL("zeile",Y$4),$Q$2)=MOD(CELL("spalte",Y20)-(CELL("spalte",$P20)),$Q$2),ean_conv(LEFT($J20,12)),""), "<>") -> <>
A21: 18 | B21: 2.5 Dimensional Seduction | C21: 12 | D21: Comedy | F21: eng | G21: Standard | H21: Ghost Ship | I21: X | J21: 9798891602076 | L21: =IF(B21<>"",B21&Trenner&Einschluss&F21&Einschluss,"") -> 2.5 Dimensional Seduction •eng• | M21: =IF(C21<>"", IF(ISNUMBER(C21), IF(COUNTIF(Sort_Titel,L21)>99,L21&Trenner&TEXT(C21,"000"), IF(COUNTIF(Sort_Titel,L21)>9,L21&Trenner&TEXT(C21,"00"),L21&Trenner&TEXT(C21,"0")) ),L21&Trenner&C21 ),IF(L21<>"",L21,Titel_Leer) ) -> 2.5 Dimensional Seduction •eng• 12 | O21: Seite 1 | P21: =IF(CELL("spalte",P21)<CELL("spalte",$P21)+$Q$2, IF(MOD(CELL("zeile",P21)-CELL("zeile",P$4),$Q$2)=MOD(CELL("spalte",P21)-(CELL("spalte",$P21)),$Q$2),ean_conv(LEFT($J21,12)),""), "<>") -> <> | Q21: =IF(CELL("spalte",Q21)<CELL("spalte",$P21)+$Q$2, IF(MOD(CELL("zeile",Q21)-CELL("zeile",Q$4),$Q$2)=MOD(CELL("spalte",Q21)-(CELL("spalte",$P21)),$Q$2),ean_conv(LEFT($J21,12)),""), "<>") -> <> | R21: =IF(CELL("spalte",R21)<CELL("spalte",$P21)+$Q$2, IF(MOD(CELL("zeile",R21)-CELL("zeile",R$4),$Q$2)=MOD(CELL("spalte",R21)-(CELL("spalte",$P21)),$Q$2),ean_conv(LEFT($J21,12)),""), "<>") -> <> | S21: =IF(CELL("spalte",S21)<CELL("spalte",$P21)+$Q$2, IF(MOD(CELL("zeile",S21)-CELL("zeile",S$4),$Q$2)=MOD(CELL("spalte",S21)-(CELL("spalte",$P21)),$Q$2),ean_conv(LEFT($J21,12)),""), "<>") -> <> | T21: =IF(CELL("spalte",T21)<CELL("spalte",$P21)+$Q$2, IF(MOD(CELL("zeile",T21)-CELL("zeile",T$4),$Q$2)=MOD(CELL("spalte",T21)-(CELL("spalte",$P21)),$Q$2),ean_conv(LEFT($J21,12)),""), "<>") -> <> | U21: =IF(CELL("spalte",U21)<CELL("spalte",$P21)+$Q$2, IF(MOD(CELL("zeile",U21)-CELL("zeile",U$4),$Q$2)=MOD(CELL("spalte",U21)-(CELL("spalte",$P21)),$Q$2),ean_conv(LEFT($J21,12)),""), "<>") -> <> | V21: =IF(CELL("spalte",V21)<CELL("spalte",$P21)+$Q$2, IF(MOD(CELL("zeile",V21)-CELL("zeile",V$4),$Q$2)=MOD(CELL("spalte",V21)-(CELL("spalte",$P21)),$Q$2),ean_conv(LEFT($J21,12)),""), "<>") -> <> | W21: =IF(CELL("spalte",W21)<CELL("spalte",$P21)+$Q$2, IF(MOD(CELL("zeile",W21)-CELL("zeile",W$4),$Q$2)=MOD(CELL("spalte",W21)-(CELL("spalte",$P21)),$Q$2),ean_conv(LEFT($J21,12)),""), "<>") -> <> | X21: =IF(CELL("spalte",X21)<CELL("spalte",$P21)+$Q$2, IF(MOD(CELL("zeile",X21)-CELL("zeile",X$4),$Q$2)=MOD(CELL("spalte",X21)-(CELL("spalte",$P21)),$Q$2),ean_conv(LEFT($J21,12)),""), "<>") -> <> | Y21: =IF(CELL("spalte",Y21)<CELL("spalte",$P21)+$Q$2, IF(MOD(CELL("zeile",Y21)-CELL("zeile",Y$4),$Q$2)=MOD(CELL("spalte",Y21)-(CELL("spalte",$P21)),$Q$2),ean_conv(LEFT($J21,12)),""), "<>") -> <>
A22: 19 | B22: 2.5 Dimensional Seduction | C22: 13 | D22: Comedy | F22: eng | G22: Standard | H22: Ghost Ship | I22: X | J22: 9798891603912 | L22: =IF(B22<>"",B22&Trenner&Einschluss&F22&Einschluss,"") -> 2.5 Dimensional Seduction •eng• | M22: =IF(C22<>"", IF(ISNUMBER(C22), IF(COUNTIF(Sort_Titel,L22)>99,L22&Trenner&TEXT(C22,"000"), IF(COUNTIF(Sort_Titel,L22)>9,L22&Trenner&TEXT(C22,"00"),L22&Trenner&TEXT(C22,"0")) ),L22&Trenner&C22 ),IF(L22<>"",L22,Titel_Leer) ) -> 2.5 Dimensional Seduction •eng• 13 | O22: Seite 1 | P22: =IF(CELL("spalte",P22)<CELL("spalte",$P22)+$Q$2, IF(MOD(CELL("zeile",P22)-CELL("zeile",P$4),$Q$2)=MOD(CELL("spalte",P22)-(CELL("spalte",$P22)),$Q$2),ean_conv(LEFT($J22,12)),""), "<>") -> <> | Q22: =IF(CELL("spalte",Q22)<CELL("spalte",$P22)+$Q$2, IF(MOD(CELL("zeile",Q22)-CELL("zeile",Q$4),$Q$2)=MOD(CELL("spalte",Q22)-(CELL("spalte",$P22)),$Q$2),ean_conv(LEFT($J22,12)),""), "<>") -> <> | R22: =IF(CELL("spalte",R22)<CELL("spalte",$P22)+$Q$2, IF(MOD(CELL("zeile",R22)-CELL("zeile",R$4),$Q$2)=MOD(CELL("spalte",R22)-(CELL("spalte",$P22)),$Q$2),ean_conv(LEFT($J22,12)),""), "<>") -> <> | S22: =IF(CELL("spalte",S22)<CELL("spalte",$P22)+$Q$2, IF(MOD(CELL("zeile",S22)-CELL("zeile",S$4),$Q$2)=MOD(CELL("spalte",S22)-(CELL("spalte",$P22)),$Q$2),ean_conv(LEFT($J22,12)),""), "<>") -> <> | T22: =IF(CELL("spalte",T22)<CELL("spalte",$P22)+$Q$2, IF(MOD(CELL("zeile",T22)-CELL("zeile",T$4),$Q$2)=MOD(CELL("spalte",T22)-(CELL("spalte",$P22)),$Q$2),ean_conv(LEFT($J22,12)),""), "<>") -> <> | U22: =IF(CELL("spalte",U22)<CELL("spalte",$P22)+$Q$2, IF(MOD(CELL("zeile",U22)-CELL("zeile",U$4),$Q$2)=MOD(CELL("spalte",U22)-(CELL("spalte",$P22)),$Q$2),ean_conv(LEFT($J22,12)),""), "<>") -> <> | V22: =IF(CELL("spalte",V22)<CELL("spalte",$P22)+$Q$2, IF(MOD(CELL("zeile",V22)-CELL("zeile",V$4),$Q$2)=MOD(CELL("spalte",V22)-(CELL("spalte",$P22)),$Q$2),ean_conv(LEFT($J22,12)),""), "<>") -> <> | W22: =IF(CELL("spalte",W22)<CELL("spalte",$P22)+$Q$2, IF(MOD(CELL("zeile",W22)-CELL("zeile",W$4),$Q$2)=MOD(CELL("spalte",W22)-(CELL("spalte",$P22)),$Q$2),ean_conv(LEFT($J22,12)),""), "<>") -> <> | X22: =IF(CELL("spalte",X22)<CELL("spalte",$P22)+$Q$2, IF(MOD(CELL("zeile",X22)-CELL("zeile",X$4),$Q$2)=MOD(CELL("spalte",X22)-(CELL("spalte",$P22)),$Q$2),ean_conv(LEFT($J22,12)),""), "<>") -> <> | Y22: =IF(CELL("spalte",Y22)<CELL("spalte",$P22)+$Q$2, IF(MOD(CELL("zeile",Y22)-CELL("zeile",Y$4),$Q$2)=MOD(CELL("spalte",Y22)-(CELL("spalte",$P22)),$Q$2),ean_conv(LEFT($J22,12)),""), "<>") -> <>
A23: 20 | B23: 2.5 Dimensional Seduction | C23: 14 | D23: Comedy | F23: eng | G23: Standard | H23: Ghost Ship | I23: X | J23: 9798891609549 | L23: =IF(B23<>"",B23&Trenner&Einschluss&F23&Einschluss,"") -> 2.5 Dimensional Seduction •eng• | M23: =IF(C23<>"", IF(ISNUMBER(C23), IF(COUNTIF(Sort_Titel,L23)>99,L23&Trenner&TEXT(C23,"000"), IF(COUNTIF(Sort_Titel,L23)>9,L23&Trenner&TEXT(C23,"00"),L23&Trenner&TEXT(C23,"0")) ),L23&Trenner&C23 ),IF(L23<>"",L23,Titel_Leer) ) -> 2.5 Dimensional Seduction •eng• 14 | O23: Seite 1 | P23: =IF(CELL("spalte",P23)<CELL("spalte",$P23)+$Q$2, IF(MOD(CELL("zeile",P23)-CELL("zeile",P$4),$Q$2)=MOD(CELL("spalte",P23)-(CELL("spalte",$P23)),$Q$2),ean_conv(LEFT($J23,12)),""), "<>") -> <> | Q23: =IF(CELL("spalte",Q23)<CELL("spalte",$P23)+$Q$2, IF(MOD(CELL("zeile",Q23)-CELL("zeile",Q$4),$Q$2)=MOD(CELL("spalte",Q23)-(CELL("spalte",$P23)),$Q$2),ean_conv(LEFT($J23,12)),""), "<>") -> <> | R23: =IF(CELL("spalte",R23)<CELL("spalte",$P23)+$Q$2, IF(MOD(CELL("zeile",R23)-CELL("zeile",R$4),$Q$2)=MOD(CELL("spalte",R23)-(CELL("spalte",$P23)),$Q$2),ean_conv(LEFT($J23,12)),""), "<>") -> <> | S23: =IF(CELL("spalte",S23)<CELL("spalte",$P23)+$Q$2, IF(MOD(CELL("zeile",S23)-CELL("zeile",S$4),$Q$2)=MOD(CELL("spalte",S23)-(CELL("spalte",$P23)),$Q$2),ean_conv(LEFT($J23,12)),""), "<>") -> <> | T23: =IF(CELL("spalte",T23)<CELL("spalte",$P23)+$Q$2, IF(MOD(CELL("zeile",T23)-CELL("zeile",T$4),$Q$2)=MOD(CELL("spalte",T23)-(CELL("spalte",$P23)),$Q$2),ean_conv(LEFT($J23,12)),""), "<>") -> <> | U23: =IF(CELL("spalte",U23)<CELL("spalte",$P23)+$Q$2, IF(MOD(CELL("zeile",U23)-CELL("zeile",U$4),$Q$2)=MOD(CELL("spalte",U23)-(CELL("spalte",$P23)),$Q$2),ean_conv(LEFT($J23,12)),""), "<>") -> <> | V23: =IF(CELL("spalte",V23)<CELL("spalte",$P23)+$Q$2, IF(MOD(CELL("zeile",V23)-CELL("zeile",V$4),$Q$2)=MOD(CELL("spalte",V23)-(CELL("spalte",$P23)),$Q$2),ean_conv(LEFT($J23,12)),""), "<>") -> <> | W23: =IF(CELL("spalte",W23)<CELL("spalte",$P23)+$Q$2, IF(MOD(CELL("zeile",W23)-CELL("zeile",W$4),$Q$2)=MOD(CELL("spalte",W23)-(CELL("spalte",$P23)),$Q$2),ean_conv(LEFT($J23,12)),""), "<>") -> <> | X23: =IF(CELL("spalte",X23)<CELL("spalte",$P23)+$Q$2, IF(MOD(CELL("zeile",X23)-CELL("zeile",X$4),$Q$2)=MOD(CELL("spalte",X23)-(CELL("spalte",$P23)),$Q$2),ean_conv(LEFT($J23,12)),""), "<>") -> <> | Y23: =IF(CELL("spalte",Y23)<CELL("spalte",$P23)+$Q$2, IF(MOD(CELL("zeile",Y23)-CELL("zeile",Y$4),$Q$2)=MOD(CELL("spalte",Y23)-(CELL("spalte",$P23)),$Q$2),ean_conv(LEFT($J23,12)),""), "<>") -> <>
A24: 21 | B24: 2.5 Dimensional Seduction | C24: 15 | D24: Comedy | F24: eng | G24: Standard | H24: Ghost Ship | J24: 9798893735864 | L24: =IF(B24<>"",B24&Trenner&Einschluss&F24&Einschluss,"") -> 2.5 Dimensional Seduction •eng• | M24: =IF(C24<>"", IF(ISNUMBER(C24), IF(COUNTIF(Sort_Titel,L24)>99,L24&Trenner&TEXT(C24,"000"), IF(COUNTIF(Sort_Titel,L24)>9,L24&Trenner&TEXT(C24,"00"),L24&Trenner&TEXT(C24,"0")) ),L24&Trenner&C24 ),IF(L24<>"",L24,Titel_Leer) ) -> 2.5 Dimensional Seduction •eng• 15 | O24: Seite 1 | P24: =IF(CELL("spalte",P24)<CELL("spalte",$P24)+$Q$2, IF(MOD(CELL("zeile",P24)-CELL("zeile",P$4),$Q$2)=MOD(CELL("spalte",P24)-(CELL("spalte",$P24)),$Q$2),ean_conv(LEFT($J24,12)),""), "<>") -> <> | Q24: =IF(CELL("spalte",Q24)<CELL("spalte",$P24)+$Q$2, IF(MOD(CELL("zeile",Q24)-CELL("zeile",Q$4),$Q$2)=MOD(CELL("spalte",Q24)-(CELL("spalte",$P24)),$Q$2),ean_conv(LEFT($J24,12)),""), "<>") -> <> | R24: =IF(CELL("spalte",R24)<CELL("spalte",$P24)+$Q$2, IF(MOD(CELL("zeile",R24)-CELL("zeile",R$4),$Q$2)=MOD(CELL("spalte",R24)-(CELL("spalte",$P24)),$Q$2),ean_conv(LEFT($J24,12)),""), "<>") -> <> | S24: =IF(CELL("spalte",S24)<CELL("spalte",$P24)+$Q$2, IF(MOD(CELL("zeile",S24)-CELL("zeile",S$4),$Q$2)=MOD(CELL("spalte",S24)-(CELL("spalte",$P24)),$Q$2),ean_conv(LEFT($J24,12)),""), "<>") -> <> | T24: =IF(CELL("spalte",T24)<CELL("spalte",$P24)+$Q$2, IF(MOD(CELL("zeile",T24)-CELL("zeile",T$4),$Q$2)=MOD(CELL("spalte",T24)-(CELL("spalte",$P24)),$Q$2),ean_conv(LEFT($J24,12)),""), "<>") -> <> | U24: =IF(CELL("spalte",U24)<CELL("spalte",$P24)+$Q$2, IF(MOD(CELL("zeile",U24)-CELL("zeile",U$4),$Q$2)=MOD(CELL("spalte",U24)-(CELL("spalte",$P24)),$Q$2),ean_conv(LEFT($J24,12)),""), "<>") -> <> | V24: =IF(CELL("spalte",V24)<CELL("spalte",$P24)+$Q$2, IF(MOD(CELL("zeile",V24)-CELL("zeile",V$4),$Q$2)=MOD(CELL("spalte",V24)-(CELL("spalte",$P24)),$Q$2),ean_conv(LEFT($J24,12)),""), "<>") -> <> | W24: =IF(CELL("spalte",W24)<CELL("spalte",$P24)+$Q$2, IF(MOD(CELL("zeile",W24)-CELL("zeile",W$4),$Q$2)=MOD(CELL("spalte",W24)-(CELL("spalte",$P24)),$Q$2),ean_conv(LEFT($J24,12)),""), "<>") -> <> | X24: =IF(CELL("spalte",X24)<CELL("spalte",$P24)+$Q$2, IF(MOD(CELL("zeile",X24)-CELL("zeile",X$4),$Q$2)=MOD(CELL("spalte",X24)-(CELL("spalte",$P24)),$Q$2),ean_conv(LEFT($J24,12)),""), "<>") -> <> | Y24: =IF(CELL("spalte",Y24)<CELL("spalte",$P24)+$Q$2, IF(MOD(CELL("zeile",Y24)-CELL("zeile",Y$4),$Q$2)=MOD(CELL("spalte",Y24)-(CELL("spalte",$P24)),$Q$2),ean_conv(LEFT($J24,12)),""), "<>") -> <>
A25: 22 | B25: 2ZKB, Feder & Wecker | C25: 1 | D25: Girls Love | F25: deu | G25: Groß | H25: Altraverse | I25: X | J25: 9783963583209 | L25: =IF(B25<>"",B25&Trenner&Einschluss&F25&Einschluss,"") -> 2ZKB, Feder & Wecker •deu• | M25: =IF(C25<>"", IF(ISNUMBER(C25), IF(COUNTIF(Sort_Titel,L25)>99,L25&Trenner&TEXT(C25,"000"), IF(COUNTIF(Sort_Titel,L25)>9,L25&Trenner&TEXT(C25,"00"),L25&Trenner&TEXT(C25,"0")) ),L25&Trenner&C25 ),IF(L25<>"",L25,Titel_Leer) ) -> 2ZKB, Feder & Wecker •deu• 1 | O25: Seite 1 | P25: =IF(CELL("spalte",P25)<CELL("spalte",$P25)+$Q$2, IF(MOD(CELL("zeile",P25)-CELL("zeile",P$4),$Q$2)=MOD(CELL("spalte",P25)-(CELL("spalte",$P25)),$Q$2),ean_conv(LEFT($J25,12)),""), "<>") -> <> | Q25: =IF(CELL("spalte",Q25)<CELL("spalte",$P25)+$Q$2, IF(MOD(CELL("zeile",Q25)-CELL("zeile",Q$4),$Q$2)=MOD(CELL("spalte",Q25)-(CELL("spalte",$P25)),$Q$2),ean_conv(LEFT($J25,12)),""), "<>") -> <> | R25: =IF(CELL("spalte",R25)<CELL("spalte",$P25)+$Q$2, IF(MOD(CELL("zeile",R25)-CELL("zeile",R$4),$Q$2)=MOD(CELL("spalte",R25)-(CELL("spalte",$P25)),$Q$2),ean_conv(LEFT($J25,12)),""), "<>") -> <> | S25: =IF(CELL("spalte",S25)<CELL("spalte",$P25)+$Q$2, IF(MOD(CELL("zeile",S25)-CELL("zeile",S$4),$Q$2)=MOD(CELL("spalte",S25)-(CELL("spalte",$P25)),$Q$2),ean_conv(LEFT($J25,12)),""), "<>") -> <> | T25: =IF(CELL("spalte",T25)<CELL("spalte",$P25)+$Q$2, IF(MOD(CELL("zeile",T25)-CELL("zeile",T$4),$Q$2)=MOD(CELL("spalte",T25)-(CELL("spalte",$P25)),$Q$2),ean_conv(LEFT($J25,12)),""), "<>") -> <> | U25: =IF(CELL("spalte",U25)<CELL("spalte",$P25)+$Q$2, IF(MOD(CELL("zeile",U25)-CELL("zeile",U$4),$Q$2)=MOD(CELL("spalte",U25)-(CELL("spalte",$P25)),$Q$2),ean_conv(LEFT($J25,12)),""), "<>") -> <> | V25: =IF(CELL("spalte",V25)<CELL("spalte",$P25)+$Q$2, IF(MOD(CELL("zeile",V25)-CELL("zeile",V$4),$Q$2)=MOD(CELL("spalte",V25)-(CELL("spalte",$P25)),$Q$2),ean_conv(LEFT($J25,12)),""), "<>") -> <> | W25: =IF(CELL("spalte",W25)<CELL("spalte",$P25)+$Q$2, IF(MOD(CELL("zeile",W25)-CELL("zeile",W$4),$Q$2)=MOD(CELL("spalte",W25)-(CELL("spalte",$P25)),$Q$2),ean_conv(LEFT($J25,12)),""), "<>") -> <> | X25: =IF(CELL("spalte",X25)<CELL("spalte",$P25)+$Q$2, IF(MOD(CELL("zeile",X25)-CELL("zeile",X$4),$Q$2)=MOD(CELL("spalte",X25)-(CELL("spalte",$P25)),$Q$2),ean_conv(LEFT($J25,12)),""), "<>") -> <> | Y25: =IF(CELL("spalte",Y25)<CELL("spalte",$P25)+$Q$2, IF(MOD(CELL("zeile",Y25)-CELL("zeile",Y$4),$Q$2)=MOD(CELL("spalte",Y25)-(CELL("spalte",$P25)),$Q$2),ean_conv(LEFT($J25,12)),""), "<>") -> <>
A26: 23 | B26: 2ZKB, Feder & Wecker | C26: 2 | D26: Girls Love | F26: deu | G26: Groß | H26: Altraverse | I26: X | J26: 9783963583216 | L26: =IF(B26<>"",B26&Trenner&Einschluss&F26&Einschluss,"") -> 2ZKB, Feder & Wecker •deu• | M26: =IF(C26<>"", IF(ISNUMBER(C26), IF(COUNTIF(Sort_Titel,L26)>99,L26&Trenner&TEXT(C26,"000"), IF(COUNTIF(Sort_Titel,L26)>9,L26&Trenner&TEXT(C26,"00"),L26&Trenner&TEXT(C26,"0")) ),L26&Trenner&C26 ),IF(L26<>"",L26,Titel_Leer) ) -> 2ZKB, Feder & Wecker •deu• 2 | O26: Seite 1 | P26: =IF(CELL("spalte",P26)<CELL("spalte",$P26)+$Q$2, IF(MOD(CELL("zeile",P26)-CELL("zeile",P$4),$Q$2)=MOD(CELL("spalte",P26)-(CELL("spalte",$P26)),$Q$2),ean_conv(LEFT($J26,12)),""), "<>") -> <> | Q26: =IF(CELL("spalte",Q26)<CELL("spalte",$P26)+$Q$2, IF(MOD(CELL("zeile",Q26)-CELL("zeile",Q$4),$Q$2)=MOD(CELL("spalte",Q26)-(CELL("spalte",$P26)),$Q$2),ean_conv(LEFT($J26,12)),""), "<>") -> <> | R26: =IF(CELL("spalte",R26)<CELL("spalte",$P26)+$Q$2, IF(MOD(CELL("zeile",R26)-CELL("zeile",R$4),$Q$2)=MOD(CELL("spalte",R26)-(CELL("spalte",$P26)),$Q$2),ean_conv(LEFT($J26,12)),""), "<>") -> <> | S26: =IF(CELL("spalte",S26)<CELL("spalte",$P26)+$Q$2, IF(MOD(CELL("zeile",S26)-CELL("zeile",S$4),$Q$2)=MOD(CELL("spalte",S26)-(CELL("spalte",$P26)),$Q$2),ean_conv(LEFT($J26,12)),""), "<>") -> <> | T26: =IF(CELL("spalte",T26)<CELL("spalte",$P26)+$Q$2, IF(MOD(CELL("zeile",T26)-CELL("zeile",T$4),$Q$2)=MOD(CELL("spalte",T26)-(CELL("spalte",$P26)),$Q$2),ean_conv(LEFT($J26,12)),""), "<>") -> <> | U26: =IF(CELL("spalte",U26)<CELL("spalte",$P26)+$Q$2, IF(MOD(CELL("zeile",U26)-CELL("zeile",U$4),$Q$2)=MOD(CELL("spalte",U26)-(CELL("spalte",$P26)),$Q$2),ean_conv(LEFT($J26,12)),""), "<>") -> <> | V26: =IF(CELL("spalte",V26)<CELL("spalte",$P26)+$Q$2, IF(MOD(CELL("zeile",V26)-CELL("zeile",V$4),$Q$2)=MOD(CELL("spalte",V26)-(CELL("spalte",$P26)),$Q$2),ean_conv(LEFT($J26,12)),""), "<>") -> <> | W26: =IF(CELL("spalte",W26)<CELL("spalte",$P26)+$Q$2, IF(MOD(CELL("zeile",W26)-CELL("zeile",W$4),$Q$2)=MOD(CELL("spalte",W26)-(CELL("spalte",$P26)),$Q$2),ean_conv(LEFT($J26,12)),""), "<>") -> <> | X26: =IF(CELL("spalte",X26)<CELL("spalte",$P26)+$Q$2, IF(MOD(CELL("zeile",X26)-CELL("zeile",X$4),$Q$2)=MOD(CELL("spalte",X26)-(CELL("spalte",$P26)),$Q$2),ean_conv(LEFT($J26,12)),""), "<>") -> <> | Y26: =IF(CELL("spalte",Y26)<CELL("spalte",$P26)+$Q$2, IF(MOD(CELL("zeile",Y26)-CELL("zeile",Y$4),$Q$2)=MOD(CELL("spalte",Y26)-(CELL("spalte",$P26)),$Q$2),ean_conv(LEFT($J26,12)),""), "<>") -> <>
A27: 24 | B27: 2ZKB, Feder & Wecker | C27: 3 | D27: Girls Love | F27: deu | G27: Groß | H27: Altraverse | I27: X | J27: 9783963583940 | L27: =IF(B27<>"",B27&Trenner&Einschluss&F27&Einschluss,"") -> 2ZKB, Feder & Wecker •deu• | M27: =IF(C27<>"", IF(ISNUMBER(C27), IF(COUNTIF(Sort_Titel,L27)>99,L27&Trenner&TEXT(C27,"000"), IF(COUNTIF(Sort_Titel,L27)>9,L27&Trenner&TEXT(C27,"00"),L27&Trenner&TEXT(C27,"0")) ),L27&Trenner&C27 ),IF(L27<>"",L27,Titel_Leer) ) -> 2ZKB, Feder & Wecker •deu• 3 | O27: Seite 1 | P27: =IF(CELL("spalte",P27)<CELL("spalte",$P27)+$Q$2, IF(MOD(CELL("zeile",P27)-CELL("zeile",P$4),$Q$2)=MOD(CELL("spalte",P27)-(CELL("spalte",$P27)),$Q$2),ean_conv(LEFT($J27,12)),""), "<>") -> <> | Q27: =IF(CELL("spalte",Q27)<CELL("spalte",$P27)+$Q$2, IF(MOD(CELL("zeile",Q27)-CELL("zeile",Q$4),$Q$2)=MOD(CELL("spalte",Q27)-(CELL("spalte",$P27)),$Q$2),ean_conv(LEFT($J27,12)),""), "<>") -> <> | R27: =IF(CELL("spalte",R27)<CELL("spalte",$P27)+$Q$2, IF(MOD(CELL("zeile",R27)-CELL("zeile",R$4),$Q$2)=MOD(CELL("spalte",R27)-(CELL("spalte",$P27)),$Q$2),ean_conv(LEFT($J27,12)),""), "<>") -> <> | S27: =IF(CELL("spalte",S27)<CELL("spalte",$P27)+$Q$2, IF(MOD(CELL("zeile",S27)-CELL("zeile",S$4),$Q$2)=MOD(CELL("spalte",S27)-(CELL("spalte",$P27)),$Q$2),ean_conv(LEFT($J27,12)),""), "<>") -> <> | T27: =IF(CELL("spalte",T27)<CELL("spalte",$P27)+$Q$2, IF(MOD(CELL("zeile",T27)-CELL("zeile",T$4),$Q$2)=MOD(CELL("spalte",T27)-(CELL("spalte",$P27)),$Q$2),ean_conv(LEFT($J27,12)),""), "<>") -> <> | U27: =IF(CELL("spalte",U27)<CELL("spalte",$P27)+$Q$2, IF(MOD(CELL("zeile",U27)-CELL("zeile",U$4),$Q$2)=MOD(CELL("spalte",U27)-(CELL("spalte",$P27)),$Q$2),ean_conv(LEFT($J27,12)),""), "<>") -> <> | V27: =IF(CELL("spalte",V27)<CELL("spalte",$P27)+$Q$2, IF(MOD(CELL("zeile",V27)-CELL("zeile",V$4),$Q$2)=MOD(CELL("spalte",V27)-(CELL("spalte",$P27)),$Q$2),ean_conv(LEFT($J27,12)),""), "<>") -> <> | W27: =IF(CELL("spalte",W27)<CELL("spalte",$P27)+$Q$2, IF(MOD(CELL("zeile",W27)-CELL("zeile",W$4),$Q$2)=MOD(CELL("spalte",W27)-(CELL("spalte",$P27)),$Q$2),ean_conv(LEFT($J27,12)),""), "<>") -> <> | X27: =IF(CELL("spalte",X27)<CELL("spalte",$P27)+$Q$2, IF(MOD(CELL("zeile",X27)-CELL("zeile",X$4),$Q$2)=MOD(CELL("spalte",X27)-(CELL("spalte",$P27)),$Q$2),ean_conv(LEFT($J27,12)),""), "<>") -> <> | Y27: =IF(CELL("spalte",Y27)<CELL("spalte",$P27)+$Q$2, IF(MOD(CELL("zeile",Y27)-CELL("zeile",Y$4),$Q$2)=MOD(CELL("spalte",Y27)-(CELL("spalte",$P27)),$Q$2),ean_conv(LEFT($J27,12)),""), "<>") -> <>
A28: 25 | B28: 2ZKB, Feder & Wecker | C28: 4 | D28: Girls Love | F28: deu | G28: Groß | H28: Altraverse | I28: X | J28: 9783963583957 | L28: =IF(B28<>"",B28&Trenner&Einschluss&F28&Einschluss,"") -> 2ZKB, Feder & Wecker •deu• | M28: =IF(C28<>"", IF(ISNUMBER(C28), IF(COUNTIF(Sort_Titel,L28)>99,L28&Trenner&TEXT(C28,"000"), IF(COUNTIF(Sort_Titel,L28)>9,L28&Trenner&TEXT(C28,"00"),L28&Trenner&TEXT(C28,"0")) ),L28&Trenner&C28 ),IF(L28<>"",L28,Titel_Leer) ) -> 2ZKB, Feder & Wecker •deu• 4 | O28: Seite 1 | P28: =IF(CELL("spalte",P28)<CELL("spalte",$P28)+$Q$2, IF(MOD(CELL("zeile",P28)-CELL("zeile",P$4),$Q$2)=MOD(CELL("spalte",P28)-(CELL("spalte",$P28)),$Q$2),ean_conv(LEFT($J28,12)),""), "<>") -> <> | Q28: =IF(CELL("spalte",Q28)<CELL("spalte",$P28)+$Q$2, IF(MOD(CELL("zeile",Q28)-CELL("zeile",Q$4),$Q$2)=MOD(CELL("spalte",Q28)-(CELL("spalte",$P28)),$Q$2),ean_conv(LEFT($J28,12)),""), "<>") -> <> | R28: =IF(CELL("spalte",R28)<CELL("spalte",$P28)+$Q$2, IF(MOD(CELL("zeile",R28)-CELL("zeile",R$4),$Q$2)=MOD(CELL("spalte",R28)-(CELL("spalte",$P28)),$Q$2),ean_conv(LEFT($J28,12)),""), "<>") -> <> | S28: =IF(CELL("spalte",S28)<CELL("spalte",$P28)+$Q$2, IF(MOD(CELL("zeile",S28)-CELL("zeile",S$4),$Q$2)=MOD(CELL("spalte",S28)-(CELL("spalte",$P28)),$Q$2),ean_conv(LEFT($J28,12)),""), "<>") -> <> | T28: =IF(CELL("spalte",T28)<CELL("spalte",$P28)+$Q$2, IF(MOD(CELL("zeile",T28)-CELL("zeile",T$4),$Q$2)=MOD(CELL("spalte",T28)-(CELL("spalte",$P28)),$Q$2),ean_conv(LEFT($J28,12)),""), "<>") -> <> | U28: =IF(CELL("spalte",U28)<CELL("spalte",$P28)+$Q$2, IF(MOD(CELL("zeile",U28)-CELL("zeile",U$4),$Q$2)=MOD(CELL("spalte",U28)-(CELL("spalte",$P28)),$Q$2),ean_conv(LEFT($J28,12)),""), "<>") -> <> | V28: =IF(CELL("spalte",V28)<CELL("spalte",$P28)+$Q$2, IF(MOD(CELL("zeile",V28)-CELL("zeile",V$4),$Q$2)=MOD(CELL("spalte",V28)-(CELL("spalte",$P28)),$Q$2),ean_conv(LEFT($J28,12)),""), "<>") -> <> | W28: =IF(CELL("spalte",W28)<CELL("spalte",$P28)+$Q$2, IF(MOD(CELL("zeile",W28)-CELL("zeile",W$4),$Q$2)=MOD(CELL("spalte",W28)-(CELL("spalte",$P28)),$Q$2),ean_conv(LEFT($J28,12)),""), "<>") -> <> | X28: =IF(CELL("spalte",X28)<CELL("spalte",$P28)+$Q$2, IF(MOD(CELL("zeile",X28)-CELL("zeile",X$4),$Q$2)=MOD(CELL("spalte",X28)-(CELL("spalte",$P28)),$Q$2),ean_conv(LEFT($J28,12)),""), "<>") -> <> | Y28: =IF(CELL("spalte",Y28)<CELL("spalte",$P28)+$Q$2, IF(MOD(CELL("zeile",Y28)-CELL("zeile",Y$4),$Q$2)=MOD(CELL("spalte",Y28)-(CELL("spalte",$P28)),$Q$2),ean_conv(LEFT($J28,12)),""), "<>") -> <>
A29: 26 | B29: 2ZKB, Feder & Wecker | C29: 5 | D29: Girls Love | F29: deu | G29: Groß | H29: Altraverse | I29: X | J29: 9783963584336 | L29: =IF(B29<>"",B29&Trenner&Einschluss&F29&Einschluss,"") -> 2ZKB, Feder & Wecker •deu• | M29: =IF(C29<>"", IF(ISNUMBER(C29), IF(COUNTIF(Sort_Titel,L29)>99,L29&Trenner&TEXT(C29,"000"), IF(COUNTIF(Sort_Titel,L29)>9,L29&Trenner&TEXT(C29,"00"),L29&Trenner&TEXT(C29,"0")) ),L29&Trenner&C29 ),IF(L29<>"",L29,Titel_Leer) ) -> 2ZKB, Feder & Wecker •deu• 5 | O29: Seite 1 | P29: =IF(CELL("spalte",P29)<CELL("spalte",$P29)+$Q$2, IF(MOD(CELL("zeile",P29)-CELL("zeile",P$4),$Q$2)=MOD(CELL("spalte",P29)-(CELL("spalte",$P29)),$Q$2),ean_conv(LEFT($J29,12)),""), "<>") -> <> | Q29: =IF(CELL("spalte",Q29)<CELL("spalte",$P29)+$Q$2, IF(MOD(CELL("zeile",Q29)-CELL("zeile",Q$4),$Q$2)=MOD(CELL("spalte",Q29)-(CELL("spalte",$P29)),$Q$2),ean_conv(LEFT($J29,12)),""), "<>") -> <> | R29: =IF(CELL("spalte",R29)<CELL("spalte",$P29)+$Q$2, IF(MOD(CELL("zeile",R29)-CELL("zeile",R$4),$Q$2)=MOD(CELL("spalte",R29)-(CELL("spalte",$P29)),$Q$2),ean_conv(LEFT($J29,12)),""), "<>") -> <> | S29: =IF(CELL("spalte",S29)<CELL("spalte",$P29)+$Q$2, IF(MOD(CELL("zeile",S29)-CELL("zeile",S$4),$Q$2)=MOD(CELL("spalte",S29)-(CELL("spalte",$P29)),$Q$2),ean_conv(LEFT($J29,12)),""), "<>") -> <> | T29: =IF(CELL("spalte",T29)<CELL("spalte",$P29)+$Q$2, IF(MOD(CELL("zeile",T29)-CELL("zeile",T$4),$Q$2)=MOD(CELL("spalte",T29)-(CELL("spalte",$P29)),$Q$2),ean_conv(LEFT($J29,12)),""), "<>") -> <> | U29: =IF(CELL("spalte",U29)<CELL("spalte",$P29)+$Q$2, IF(MOD(CELL("zeile",U29)-CELL("zeile",U$4),$Q$2)=MOD(CELL("spalte",U29)-(CELL("spalte",$P29)),$Q$2),ean_conv(LEFT($J29,12)),""), "<>") -> <> | V29: =IF(CELL("spalte",V29)<CELL("spalte",$P29)+$Q$2, IF(MOD(CELL("zeile",V29)-CELL("zeile",V$4),$Q$2)=MOD(CELL("spalte",V29)-(CELL("spalte",$P29)),$Q$2),ean_conv(LEFT($J29,12)),""), "<>") -> <> | W29: =IF(CELL("spalte",W29)<CELL("spalte",$P29)+$Q$2, IF(MOD(CELL("zeile",W29)-CELL("zeile",W$4),$Q$2)=MOD(CELL("spalte",W29)-(CELL("spalte",$P29)),$Q$2),ean_conv(LEFT($J29,12)),""), "<>") -> <> | X29: =IF(CELL("spalte",X29)<CELL("spalte",$P29)+$Q$2, IF(MOD(CELL("zeile",X29)-CELL("zeile",X$4),$Q$2)=MOD(CELL("spalte",X29)-(CELL("spalte",$P29)),$Q$2),ean_conv(LEFT($J29,12)),""), "<>") -> <> | Y29: =IF(CELL("spalte",Y29)<CELL("spalte",$P29)+$Q$2, IF(MOD(CELL("zeile",Y29)-CELL("zeile",Y$4),$Q$2)=MOD(CELL("spalte",Y29)-(CELL("spalte",$P29)),$Q$2),ean_conv(LEFT($J29,12)),""), "<>") -> <>
A30: 27 | B30: 2ZKB, Feder & Wecker | C30: 6 | D30: Girls Love | F30: deu | G30: Groß | H30: Altraverse | I30: X | J30: 9783963585036 | L30: =IF(B30<>"",B30&Trenner&Einschluss&F30&Einschluss,"") -> 2ZKB, Feder & Wecker •deu• | M30: =IF(C30<>"", IF(ISNUMBER(C30), IF(COUNTIF(Sort_Titel,L30)>99,L30&Trenner&TEXT(C30,"000"), IF(COUNTIF(Sort_Titel,L30)>9,L30&Trenner&TEXT(C30,"00"),L30&Trenner&TEXT(C30,"0")) ),L30&Trenner&C30 ),IF(L30<>"",L30,Titel_Leer) ) -> 2ZKB, Feder & Wecker •deu• 6 | O30: Seite 1 | P30: =IF(CELL("spalte",P30)<CELL("spalte",$P30)+$Q$2, IF(MOD(CELL("zeile",P30)-CELL("zeile",P$4),$Q$2)=MOD(CELL("spalte",P30)-(CELL("spalte",$P30)),$Q$2),ean_conv(LEFT($J30,12)),""), "<>") -> <> | Q30: =IF(CELL("spalte",Q30)<CELL("spalte",$P30)+$Q$2, IF(MOD(CELL("zeile",Q30)-CELL("zeile",Q$4),$Q$2)=MOD(CELL("spalte",Q30)-(CELL("spalte",$P30)),$Q$2),ean_conv(LEFT($J30,12)),""), "<>") -> <> | R30: =IF(CELL("spalte",R30)<CELL("spalte",$P30)+$Q$2, IF(MOD(CELL("zeile",R30)-CELL("zeile",R$4),$Q$2)=MOD(CELL("spalte",R30)-(CELL("spalte",$P30)),$Q$2),ean_conv(LEFT($J30,12)),""), "<>") -> <> | S30: =IF(CELL("spalte",S30)<CELL("spalte",$P30)+$Q$2, IF(MOD(CELL("zeile",S30)-CELL("zeile",S$4),$Q$2)=MOD(CELL("spalte",S30)-(CELL("spalte",$P30)),$Q$2),ean_conv(LEFT($J30,12)),""), "<>") -> <> | T30: =IF(CELL("spalte",T30)<CELL("spalte",$P30)+$Q$2, IF(MOD(CELL("zeile",T30)-CELL("zeile",T$4),$Q$2)=MOD(CELL("spalte",T30)-(CELL("spalte",$P30)),$Q$2),ean_conv(LEFT($J30,12)),""), "<>") -> <> | U30: =IF(CELL("spalte",U30)<CELL("spalte",$P30)+$Q$2, IF(MOD(CELL("zeile",U30)-CELL("zeile",U$4),$Q$2)=MOD(CELL("spalte",U30)-(CELL("spalte",$P30)),$Q$2),ean_conv(LEFT($J30,12)),""), "<>") -> <> | V30: =IF(CELL("spalte",V30)<CELL("spalte",$P30)+$Q$2, IF(MOD(CELL("zeile",V30)-CELL("zeile",V$4),$Q$2)=MOD(CELL("spalte",V30)-(CELL("spalte",$P30)),$Q$2),ean_conv(LEFT($J30,12)),""), "<>") -> <> | W30: =IF(CELL("spalte",W30)<CELL("spalte",$P30)+$Q$2, IF(MOD(CELL("zeile",W30)-CELL("zeile",W$4),$Q$2)=MOD(CELL("spalte",W30)-(CELL("spalte",$P30)),$Q$2),ean_conv(LEFT($J30,12)),""), "<>") -> <> | X30: =IF(CELL("spalte",X30)<CELL("spalte",$P30)+$Q$2, IF(MOD(CELL("zeile",X30)-CELL("zeile",X$4),$Q$2)=MOD(CELL("spalte",X30)-(CELL("spalte",$P30)),$Q$2),ean_conv(LEFT($J30,12)),""), "<>") -> <> | Y30: =IF(CELL("spalte",Y30)<CELL("spalte",$P30)+$Q$2, IF(MOD(CELL("zeile",Y30)-CELL("zeile",Y$4),$Q$2)=MOD(CELL("spalte",Y30)-(CELL("spalte",$P30)),$Q$2),ean_conv(LEFT($J30,12)),""), "<>") -> <>
A31: 28 | B31: 2ZKB, Feder & Wecker | C31: 7 | D31: Girls Love | F31: deu | G31: Groß | H31: Altraverse | I31: X | J31: 9783963585043 | L31: =IF(B31<>"",B31&Trenner&Einschluss&F31&Einschluss,"") -> 2ZKB, Feder & Wecker •deu• | M31: =IF(C31<>"", IF(ISNUMBER(C31), IF(COUNTIF(Sort_Titel,L31)>99,L31&Trenner&TEXT(C31,"000"), IF(COUNTIF(Sort_Titel,L31)>9,L31&Trenner&TEXT(C31,"00"),L31&Trenner&TEXT(C31,"0")) ),L31&Trenner&C31 ),IF(L31<>"",L31,Titel_Leer) ) -> 2ZKB, Feder & Wecker •deu• 7 | O31: Seite 1 | P31: =IF(CELL("spalte",P31)<CELL("spalte",$P31)+$Q$2, IF(MOD(CELL("zeile",P31)-CELL("zeile",P$4),$Q$2)=MOD(CELL("spalte",P31)-(CELL("spalte",$P31)),$Q$2),ean_conv(LEFT($J31,12)),""), "<>") -> <> | Q31: =IF(CELL("spalte",Q31)<CELL("spalte",$P31)+$Q$2, IF(MOD(CELL("zeile",Q31)-CELL("zeile",Q$4),$Q$2)=MOD(CELL("spalte",Q31)-(CELL("spalte",$P31)),$Q$2),ean_conv(LEFT($J31,12)),""), "<>") -> <> | R31: =IF(CELL("spalte",R31)<CELL("spalte",$P31)+$Q$2, IF(MOD(CELL("zeile",R31)-CELL("zeile",R$4),$Q$2)=MOD(CELL("spalte",R31)-(CELL("spalte",$P31)),$Q$2),ean_conv(LEFT($J31,12)),""), "<>") -> <> | S31: =IF(CELL("spalte",S31)<CELL("spalte",$P31)+$Q$2, IF(MOD(CELL("zeile",S31)-CELL("zeile",S$4),$Q$2)=MOD(CELL("spalte",S31)-(CELL("spalte",$P31)),$Q$2),ean_conv(LEFT($J31,12)),""), "<>") -> <> | T31: =IF(CELL("spalte",T31)<CELL("spalte",$P31)+$Q$2, IF(MOD(CELL("zeile",T31)-CELL("zeile",T$4),$Q$2)=MOD(CELL("spalte",T31)-(CELL("spalte",$P31)),$Q$2),ean_conv(LEFT($J31,12)),""), "<>") -> <> | U31: =IF(CELL("spalte",U31)<CELL("spalte",$P31)+$Q$2, IF(MOD(CELL("zeile",U31)-CELL("zeile",U$4),$Q$2)=MOD(CELL("spalte",U31)-(CELL("spalte",$P31)),$Q$2),ean_conv(LEFT($J31,12)),""), "<>") -> <> | V31: =IF(CELL("spalte",V31)<CELL("spalte",$P31)+$Q$2, IF(MOD(CELL("zeile",V31)-CELL("zeile",V$4),$Q$2)=MOD(CELL("spalte",V31)-(CELL("spalte",$P31)),$Q$2),ean_conv(LEFT($J31,12)),""), "<>") -> <> | W31: =IF(CELL("spalte",W31)<CELL("spalte",$P31)+$Q$2, IF(MOD(CELL("zeile",W31)-CELL("zeile",W$4),$Q$2)=MOD(CELL("spalte",W31)-(CELL("spalte",$P31)),$Q$2),ean_conv(LEFT($J31,12)),""), "<>") -> <> | X31: =IF(CELL("spalte",X31)<CELL("spalte",$P31)+$Q$2, IF(MOD(CELL("zeile",X31)-CELL("zeile",X$4),$Q$2)=MOD(CELL("spalte",X31)-(CELL("spalte",$P31)),$Q$2),ean_conv(LEFT($J31,12)),""), "<>") -> <> | Y31: =IF(CELL("spalte",Y31)<CELL("spalte",$P31)+$Q$2, IF(MOD(CELL("zeile",Y31)-CELL("zeile",Y$4),$Q$2)=MOD(CELL("spalte",Y31)-(CELL("spalte",$P31)),$Q$2),ean_conv(LEFT($J31,12)),""), "<>") -> <>
A32: 29 | B32: 2ZKB, Feder & Wecker | C32: 8 | D32: Girls Love | F32: deu | G32: Groß | H32: Altraverse | I32: X | J32: 9783963586361 | L32: =IF(B32<>"",B32&Trenner&Einschluss&F32&Einschluss,"") -> 2ZKB, Feder & Wecker •deu• | M32: =IF(C32<>"", IF(ISNUMBER(C32), IF(COUNTIF(Sort_Titel,L32)>99,L32&Trenner&TEXT(C32,"000"), IF(COUNTIF(Sort_Titel,L32)>9,L32&Trenner&TEXT(C32,"00"),L32&Trenner&TEXT(C32,"0")) ),L32&Trenner&C32 ),IF(L32<>"",L32,Titel_Leer) ) -> 2ZKB, Feder & Wecker •deu• 8 | O32: Seite 1 | P32: =IF(CELL("spalte",P32)<CELL("spalte",$P32)+$Q$2, IF(MOD(CELL("zeile",P32)-CELL("zeile",P$4),$Q$2)=MOD(CELL("spalte",P32)-(CELL("spalte",$P32)),$Q$2),ean_conv(LEFT($J32,12)),""), "<>") -> <> | Q32: =IF(CELL("spalte",Q32)<CELL("spalte",$P32)+$Q$2, IF(MOD(CELL("zeile",Q32)-CELL("zeile",Q$4),$Q$2)=MOD(CELL("spalte",Q32)-(CELL("spalte",$P32)),$Q$2),ean_conv(LEFT($J32,12)),""), "<>") -> <> | R32: =IF(CELL("spalte",R32)<CELL("spalte",$P32)+$Q$2, IF(MOD(CELL("zeile",R32)-CELL("zeile",R$4),$Q$2)=MOD(CELL("spalte",R32)-(CELL("spalte",$P32)),$Q$2),ean_conv(LEFT($J32,12)),""), "<>") -> <> | S32: =IF(CELL("spalte",S32)<CELL("spalte",$P32)+$Q$2, IF(MOD(CELL("zeile",S32)-CELL("zeile",S$4),$Q$2)=MOD(CELL("spalte",S32)-(CELL("spalte",$P32)),$Q$2),ean_conv(LEFT($J32,12)),""), "<>") -> <> | T32: =IF(CELL("spalte",T32)<CELL("spalte",$P32)+$Q$2, IF(MOD(CELL("zeile",T32)-CELL("zeile",T$4),$Q$2)=MOD(CELL("spalte",T32)-(CELL("spalte",$P32)),$Q$2),ean_conv(LEFT($J32,12)),""), "<>") -> <> | U32: =IF(CELL("spalte",U32)<CELL("spalte",$P32)+$Q$2, IF(MOD(CELL("zeile",U32)-CELL("zeile",U$4),$Q$2)=MOD(CELL("spalte",U32)-(CELL("spalte",$P32)),$Q$2),ean_conv(LEFT($J32,12)),""), "<>") -> <> | V32: =IF(CELL("spalte",V32)<CELL("spalte",$P32)+$Q$2, IF(MOD(CELL("zeile",V32)-CELL("zeile",V$4),$Q$2)=MOD(CELL("spalte",V32)-(CELL("spalte",$P32)),$Q$2),ean_conv(LEFT($J32,12)),""), "<>") -> <> | W32: =IF(CELL("spalte",W32)<CELL("spalte",$P32)+$Q$2, IF(MOD(CELL("zeile",W32)-CELL("zeile",W$4),$Q$2)=MOD(CELL("spalte",W32)-(CELL("spalte",$P32)),$Q$2),ean_conv(LEFT($J32,12)),""), "<>") -> <> | X32: =IF(CELL("spalte",X32)<CELL("spalte",$P32)+$Q$2, IF(MOD(CELL("zeile",X32)-CELL("zeile",X$4),$Q$2)=MOD(CELL("spalte",X32)-(CELL("spalte",$P32)),$Q$2),ean_conv(LEFT($J32,12)),""), "<>") -> <> | Y32: =IF(CELL("spalte",Y32)<CELL("spalte",$P32)+$Q$2, IF(MOD(CELL("zeile",Y32)-CELL("zeile",Y$4),$Q$2)=MOD(CELL("spalte",Y32)-(CELL("spalte",$P32)),$Q$2),ean_conv(LEFT($J32,12)),""), "<>") -> <>
A33: 30 | B33: A Business Proposal | C33: 1 | D33: Romance | F33: eng | G33: Groß | H33: Ize Press | I33: X | J33: 9798400900334 | L33: =IF(B33<>"",B33&Trenner&Einschluss&F33&Einschluss,"") -> A Business Proposal •eng• | M33: =IF(C33<>"", IF(ISNUMBER(C33), IF(COUNTIF(Sort_Titel,L33)>99,L33&Trenner&TEXT(C33,"000"), IF(COUNTIF(Sort_Titel,L33)>9,L33&Trenner&TEXT(C33,"00"),L33&Trenner&TEXT(C33,"0")) ),L33&Trenner&C33 ),IF(L33<>"",L33,Titel_Leer) ) -> A Business Proposal •eng• 01 | O33: Seite 1 | P33: =IF(CELL("spalte",P33)<CELL("spalte",$P33)+$Q$2, IF(MOD(CELL("zeile",P33)-CELL("zeile",P$4),$Q$2)=MOD(CELL("spalte",P33)-(CELL("spalte",$P33)),$Q$2),ean_conv(LEFT($J33,12)),""), "<>") -> <> | Q33: =IF(CELL("spalte",Q33)<CELL("spalte",$P33)+$Q$2, IF(MOD(CELL("zeile",Q33)-CELL("zeile",Q$4),$Q$2)=MOD(CELL("spalte",Q33)-(CELL("spalte",$P33)),$Q$2),ean_conv(LEFT($J33,12)),""), "<>") -> <> | R33: =IF(CELL("spalte",R33)<CELL("spalte",$P33)+$Q$2, IF(MOD(CELL("zeile",R33)-CELL("zeile",R$4),$Q$2)=MOD(CELL("spalte",R33)-(CELL("spalte",$P33)),$Q$2),ean_conv(LEFT($J33,12)),""), "<>") -> <> | S33: =IF(CELL("spalte",S33)<CELL("spalte",$P33)+$Q$2, IF(MOD(CELL("zeile",S33)-CELL("zeile",S$4),$Q$2)=MOD(CELL("spalte",S33)-(CELL("spalte",$P33)),$Q$2),ean_conv(LEFT($J33,12)),""), "<>") -> <> | T33: =IF(CELL("spalte",T33)<CELL("spalte",$P33)+$Q$2, IF(MOD(CELL("zeile",T33)-CELL("zeile",T$4),$Q$2)=MOD(CELL("spalte",T33)-(CELL("spalte",$P33)),$Q$2),ean_conv(LEFT($J33,12)),""), "<>") -> <> | U33: =IF(CELL("spalte",U33)<CELL("spalte",$P33)+$Q$2, IF(MOD(CELL("zeile",U33)-CELL("zeile",U$4),$Q$2)=MOD(CELL("spalte",U33)-(CELL("spalte",$P33)),$Q$2),ean_conv(LEFT($J33,12)),""), "<>") -> <> | V33: =IF(CELL("spalte",V33)<CELL("spalte",$P33)+$Q$2, IF(MOD(CELL("zeile",V33)-CELL("zeile",V$4),$Q$2)=MOD(CELL("spalte",V33)-(CELL("spalte",$P33)),$Q$2),ean_conv(LEFT($J33,12)),""), "<>") -> <> | W33: =IF(CELL("spalte",W33)<CELL("spalte",$P33)+$Q$2, IF(MOD(CELL("zeile",W33)-CELL("zeile",W$4),$Q$2)=MOD(CELL("spalte",W33)-(CELL("spalte",$P33)),$Q$2),ean_conv(LEFT($J33,12)),""), "<>") -> <> | X33: =IF(CELL("spalte",X33)<CELL("spalte",$P33)+$Q$2, IF(MOD(CELL("zeile",X33)-CELL("zeile",X$4),$Q$2)=MOD(CELL("spalte",X33)-(CELL("spalte",$P33)),$Q$2),ean_conv(LEFT($J33,12)),""), "<>") -> <> | Y33: =IF(CELL("spalte",Y33)<CELL("spalte",$P33)+$Q$2, IF(MOD(CELL("zeile",Y33)-CELL("zeile",Y$4),$Q$2)=MOD(CELL("spalte",Y33)-(CELL("spalte",$P33)),$Q$2),ean_conv(LEFT($J33,12)),""), "<>") -> <>
A34: 31 | B34: A Business Proposal | C34: 2 | D34: Romance | F34: eng | G34: Groß | H34: Ize Press | I34: X | J34: 9798400900402 | L34: =IF(B34<>"",B34&Trenner&Einschluss&F34&Einschluss,"") -> A Business Proposal •eng• | M34: =IF(C34<>"", IF(ISNUMBER(C34), IF(COUNTIF(Sort_Titel,L34)>99,L34&Trenner&TEXT(C34,"000"), IF(COUNTIF(Sort_Titel,L34)>9,L34&Trenner&TEXT(C34,"00"),L34&Trenner&TEXT(C34,"0")) ),L34&Trenner&C34 ),IF(L34<>"",L34,Titel_Leer) ) -> A Business Proposal •eng• 02 | O34: Seite 1 | P34: =IF(CELL("spalte",P34)<CELL("spalte",$P34)+$Q$2, IF(MOD(CELL("zeile",P34)-CELL("zeile",P$4),$Q$2)=MOD(CELL("spalte",P34)-(CELL("spalte",$P34)),$Q$2),ean_conv(LEFT($J34,12)),""), "<>") -> <> | Q34: =IF(CELL("spalte",Q34)<CELL("spalte",$P34)+$Q$2, IF(MOD(CELL("zeile",Q34)-CELL("zeile",Q$4),$Q$2)=MOD(CELL("spalte",Q34)-(CELL("spalte",$P34)),$Q$2),ean_conv(LEFT($J34,12)),""), "<>") -> <> | R34: =IF(CELL("spalte",R34)<CELL("spalte",$P34)+$Q$2, IF(MOD(CELL("zeile",R34)-CELL("zeile",R$4),$Q$2)=MOD(CELL("spalte",R34)-(CELL("spalte",$P34)),$Q$2),ean_conv(LEFT($J34,12)),""), "<>") -> <> | S34: =IF(CELL("spalte",S34)<CELL("spalte",$P34)+$Q$2, IF(MOD(CELL("zeile",S34)-CELL("zeile",S$4),$Q$2)=MOD(CELL("spalte",S34)-(CELL("spalte",$P34)),$Q$2),ean_conv(LEFT($J34,12)),""), "<>") -> <> | T34: =IF(CELL("spalte",T34)<CELL("spalte",$P34)+$Q$2, IF(MOD(CELL("zeile",T34)-CELL("zeile",T$4),$Q$2)=MOD(CELL("spalte",T34)-(CELL("spalte",$P34)),$Q$2),ean_conv(LEFT($J34,12)),""), "<>") -> <> | U34: =IF(CELL("spalte",U34)<CELL("spalte",$P34)+$Q$2, IF(MOD(CELL("zeile",U34)-CELL("zeile",U$4),$Q$2)=MOD(CELL("spalte",U34)-(CELL("spalte",$P34)),$Q$2),ean_conv(LEFT($J34,12)),""), "<>") -> <> | V34: =IF(CELL("spalte",V34)<CELL("spalte",$P34)+$Q$2, IF(MOD(CELL("zeile",V34)-CELL("zeile",V$4),$Q$2)=MOD(CELL("spalte",V34)-(CELL("spalte",$P34)),$Q$2),ean_conv(LEFT($J34,12)),""), "<>") -> <> | W34: =IF(CELL("spalte",W34)<CELL("spalte",$P34)+$Q$2, IF(MOD(CELL("zeile",W34)-CELL("zeile",W$4),$Q$2)=MOD(CELL("spalte",W34)-(CELL("spalte",$P34)),$Q$2),ean_conv(LEFT($J34,12)),""), "<>") -> <> | X34: =IF(CELL("spalte",X34)<CELL("spalte",$P34)+$Q$2, IF(MOD(CELL("zeile",X34)-CELL("zeile",X$4),$Q$2)=MOD(CELL("spalte",X34)-(CELL("spalte",$P34)),$Q$2),ean_conv(LEFT($J34,12)),""), "<>") -> <> | Y34: =IF(CELL("spalte",Y34)<CELL("spalte",$P34)+$Q$2, IF(MOD(CELL("zeile",Y34)-CELL("zeile",Y$4),$Q$2)=MOD(CELL("spalte",Y34)-(CELL("spalte",$P34)),$Q$2),ean_conv(LEFT($J34,12)),""), "<>") -> <>
A35: 32 | B35: A Business Proposal | C35: 3 | D35: Romance | F35: eng | G35: Groß | H35: Ize Press | I35: X | J35: 9798400900426 | L35: =IF(B35<>"",B35&Trenner&Einschluss&F35&Einschluss,"") -> A Business Proposal •eng• | M35: =IF(C35<>"", IF(ISNUMBER(C35), IF(COUNTIF(Sort_Titel,L35)>99,L35&Trenner&TEXT(C35,"000"), IF(COUNTIF(Sort_Titel,L35)>9,L35&Trenner&TEXT(C35,"00"),L35&Trenner&TEXT(C35,"0")) ),L35&Trenner&C35 ),IF(L35<>"",L35,Titel_Leer) ) -> A Business Proposal •eng• 03 | O35: Seite 1 | P35: =IF(CELL("spalte",P35)<CELL("spalte",$P35)+$Q$2, IF(MOD(CELL("zeile",P35)-CELL("zeile",P$4),$Q$2)=MOD(CELL("spalte",P35)-(CELL("spalte",$P35)),$Q$2),ean_conv(LEFT($J35,12)),""), "<>") -> <> | Q35: =IF(CELL("spalte",Q35)<CELL("spalte",$P35)+$Q$2, IF(MOD(CELL("zeile",Q35)-CELL("zeile",Q$4),$Q$2)=MOD(CELL("spalte",Q35)-(CELL("spalte",$P35)),$Q$2),ean_conv(LEFT($J35,12)),""), "<>") -> <> | R35: =IF(CELL("spalte",R35)<CELL("spalte",$P35)+$Q$2, IF(MOD(CELL("zeile",R35)-CELL("zeile",R$4),$Q$2)=MOD(CELL("spalte",R35)-(CELL("spalte",$P35)),$Q$2),ean_conv(LEFT($J35,12)),""), "<>") -> <> | S35: =IF(CELL("spalte",S35)<CELL("spalte",$P35)+$Q$2, IF(MOD(CELL("zeile",S35)-CELL("zeile",S$4),$Q$2)=MOD(CELL("spalte",S35)-(CELL("spalte",$P35)),$Q$2),ean_conv(LEFT($J35,12)),""), "<>") -> <> | T35: =IF(CELL("spalte",T35)<CELL("spalte",$P35)+$Q$2, IF(MOD(CELL("zeile",T35)-CELL("zeile",T$4),$Q$2)=MOD(CELL("spalte",T35)-(CELL("spalte",$P35)),$Q$2),ean_conv(LEFT($J35,12)),""), "<>") -> <> | U35: =IF(CELL("spalte",U35)<CELL("spalte",$P35)+$Q$2, IF(MOD(CELL("zeile",U35)-CELL("zeile",U$4),$Q$2)=MOD(CELL("spalte",U35)-(CELL("spalte",$P35)),$Q$2),ean_conv(LEFT($J35,12)),""), "<>") -> <> | V35: =IF(CELL("spalte",V35)<CELL("spalte",$P35)+$Q$2, IF(MOD(CELL("zeile",V35)-CELL("zeile",V$4),$Q$2)=MOD(CELL("spalte",V35)-(CELL("spalte",$P35)),$Q$2),ean_conv(LEFT($J35,12)),""), "<>") -> <> | W35: =IF(CELL("spalte",W35)<CELL("spalte",$P35)+$Q$2, IF(MOD(CELL("zeile",W35)-CELL("zeile",W$4),$Q$2)=MOD(CELL("spalte",W35)-(CELL("spalte",$P35)),$Q$2),ean_conv(LEFT($J35,12)),""), "<>") -> <> | X35: =IF(CELL("spalte",X35)<CELL("spalte",$P35)+$Q$2, IF(MOD(CELL("zeile",X35)-CELL("zeile",X$4),$Q$2)=MOD(CELL("spalte",X35)-(CELL("spalte",$P35)),$Q$2),ean_conv(LEFT($J35,12)),""), "<>") -> <> | Y35: =IF(CELL("spalte",Y35)<CELL("spalte",$P35)+$Q$2, IF(MOD(CELL("zeile",Y35)-CELL("zeile",Y$4),$Q$2)=MOD(CELL("spalte",Y35)-(CELL("spalte",$P35)),$Q$2),ean_conv(LEFT($J35,12)),""), "<>") -> <>
A36: 33 | B36: A Business Proposal | C36: 4 | D36: Romance | F36: eng | G36: Groß | H36: Ize Press | I36: X | J36: 9798400900440 | L36: =IF(B36<>"",B36&Trenner&Einschluss&F36&Einschluss,"") -> A Business Proposal •eng• | M36: =IF(C36<>"", IF(ISNUMBER(C36), IF(COUNTIF(Sort_Titel,L36)>99,L36&Trenner&TEXT(C36,"000"), IF(COUNTIF(Sort_Titel,L36)>9,L36&Trenner&TEXT(C36,"00"),L36&Trenner&TEXT(C36,"0")) ),L36&Trenner&C36 ),IF(L36<>"",L36,Titel_Leer) ) -> A Business Proposal •eng• 04 | O36: Seite 1 | P36: =IF(CELL("spalte",P36)<CELL("spalte",$P36)+$Q$2, IF(MOD(CELL("zeile",P36)-CELL("zeile",P$4),$Q$2)=MOD(CELL("spalte",P36)-(CELL("spalte",$P36)),$Q$2),ean_conv(LEFT($J36,12)),""), "<>") -> <> | Q36: =IF(CELL("spalte",Q36)<CELL("spalte",$P36)+$Q$2, IF(MOD(CELL("zeile",Q36)-CELL("zeile",Q$4),$Q$2)=MOD(CELL("spalte",Q36)-(CELL("spalte",$P36)),$Q$2),ean_conv(LEFT($J36,12)),""), "<>") -> <> | R36: =IF(CELL("spalte",R36)<CELL("spalte",$P36)+$Q$2, IF(MOD(CELL("zeile",R36)-CELL("zeile",R$4),$Q$2)=MOD(CELL("spalte",R36)-(CELL("spalte",$P36)),$Q$2),ean_conv(LEFT($J36,12)),""), "<>") -> <> | S36: =IF(CELL("spalte",S36)<CELL("spalte",$P36)+$Q$2, IF(MOD(CELL("zeile",S36)-CELL("zeile",S$4),$Q$2)=MOD(CELL("spalte",S36)-(CELL("spalte",$P36)),$Q$2),ean_conv(LEFT($J36,12)),""), "<>") -> <> | T36: =IF(CELL("spalte",T36)<CELL("spalte",$P36)+$Q$2, IF(MOD(CELL("zeile",T36)-CELL("zeile",T$4),$Q$2)=MOD(CELL("spalte",T36)-(CELL("spalte",$P36)),$Q$2),ean_conv(LEFT($J36,12)),""), "<>") -> <> | U36: =IF(CELL("spalte",U36)<CELL("spalte",$P36)+$Q$2, IF(MOD(CELL("zeile",U36)-CELL("zeile",U$4),$Q$2)=MOD(CELL("spalte",U36)-(CELL("spalte",$P36)),$Q$2),ean_conv(LEFT($J36,12)),""), "<>") -> <> | V36: =IF(CELL("spalte",V36)<CELL("spalte",$P36)+$Q$2, IF(MOD(CELL("zeile",V36)-CELL("zeile",V$4),$Q$2)=MOD(CELL("spalte",V36)-(CELL("spalte",$P36)),$Q$2),ean_conv(LEFT($J36,12)),""), "<>") -> <> | W36: =IF(CELL("spalte",W36)<CELL("spalte",$P36)+$Q$2, IF(MOD(CELL("zeile",W36)-CELL("zeile",W$4),$Q$2)=MOD(CELL("spalte",W36)-(CELL("spalte",$P36)),$Q$2),ean_conv(LEFT($J36,12)),""), "<>") -> <> | X36: =IF(CELL("spalte",X36)<CELL("spalte",$P36)+$Q$2, IF(MOD(CELL("zeile",X36)-CELL("zeile",X$4),$Q$2)=MOD(CELL("spalte",X36)-(CELL("spalte",$P36)),$Q$2),ean_conv(LEFT($J36,12)),""), "<>") -> <> | Y36: =IF(CELL("spalte",Y36)<CELL("spalte",$P36)+$Q$2, IF(MOD(CELL("zeile",Y36)-CELL("zeile",Y$4),$Q$2)=MOD(CELL("spalte",Y36)-(CELL("spalte",$P36)),$Q$2),ean_conv(LEFT($J36,12)),""), "<>") -> <>
A37: 34 | B37: A Business Proposal | C37: 5 | D37: Romance | F37: eng | G37: Groß | H37: Ize Press | I37: X | J37: 9798400901560 | L37: =IF(B37<>"",B37&Trenner&Einschluss&F37&Einschluss,"") -> A Business Proposal •eng• | M37: =IF(C37<>"", IF(ISNUMBER(C37), IF(COUNTIF(Sort_Titel,L37)>99,L37&Trenner&TEXT(C37,"000"), IF(COUNTIF(Sort_Titel,L37)>9,L37&Trenner&TEXT(C37,"00"),L37&Trenner&TEXT(C37,"0")) ),L37&Trenner&C37 ),IF(L37<>"",L37,Titel_Leer) ) -> A Business Proposal •eng• 05 | O37: Seite 1 | P37: =IF(CELL("spalte",P37)<CELL("spalte",$P37)+$Q$2, IF(MOD(CELL("zeile",P37)-CELL("zeile",P$4),$Q$2)=MOD(CELL("spalte",P37)-(CELL("spalte",$P37)),$Q$2),ean_conv(LEFT($J37,12)),""), "<>") -> <> | Q37: =IF(CELL("spalte",Q37)<CELL("spalte",$P37)+$Q$2, IF(MOD(CELL("zeile",Q37)-CELL("zeile",Q$4),$Q$2)=MOD(CELL("spalte",Q37)-(CELL("spalte",$P37)),$Q$2),ean_conv(LEFT($J37,12)),""), "<>") -> <> | R37: =IF(CELL("spalte",R37)<CELL("spalte",$P37)+$Q$2, IF(MOD(CELL("zeile",R37)-CELL("zeile",R$4),$Q$2)=MOD(CELL("spalte",R37)-(CELL("spalte",$P37)),$Q$2),ean_conv(LEFT($J37,12)),""), "<>") -> <> | S37: =IF(CELL("spalte",S37)<CELL("spalte",$P37)+$Q$2, IF(MOD(CELL("zeile",S37)-CELL("zeile",S$4),$Q$2)=MOD(CELL("spalte",S37)-(CELL("spalte",$P37)),$Q$2),ean_conv(LEFT($J37,12)),""), "<>") -> <> | T37: =IF(CELL("spalte",T37)<CELL("spalte",$P37)+$Q$2, IF(MOD(CELL("zeile",T37)-CELL("zeile",T$4),$Q$2)=MOD(CELL("spalte",T37)-(CELL("spalte",$P37)),$Q$2),ean_conv(LEFT($J37,12)),""), "<>") -> <> | U37: =IF(CELL("spalte",U37)<CELL("spalte",$P37)+$Q$2, IF(MOD(CELL("zeile",U37)-CELL("zeile",U$4),$Q$2)=MOD(CELL("spalte",U37)-(CELL("spalte",$P37)),$Q$2),ean_conv(LEFT($J37,12)),""), "<>") -> <> | V37: =IF(CELL("spalte",V37)<CELL("spalte",$P37)+$Q$2, IF(MOD(CELL("zeile",V37)-CELL("zeile",V$4),$Q$2)=MOD(CELL("spalte",V37)-(CELL("spalte",$P37)),$Q$2),ean_conv(LEFT($J37,12)),""), "<>") -> <> | W37: =IF(CELL("spalte",W37)<CELL("spalte",$P37)+$Q$2, IF(MOD(CELL("zeile",W37)-CELL("zeile",W$4),$Q$2)=MOD(CELL("spalte",W37)-(CELL("spalte",$P37)),$Q$2),ean_conv(LEFT($J37,12)),""), "<>") -> <> | X37: =IF(CELL("spalte",X37)<CELL("spalte",$P37)+$Q$2, IF(MOD(CELL("zeile",X37)-CELL("zeile",X$4),$Q$2)=MOD(CELL("spalte",X37)-(CELL("spalte",$P37)),$Q$2),ean_conv(LEFT($J37,12)),""), "<>") -> <> | Y37: =IF(CELL("spalte",Y37)<CELL("spalte",$P37)+$Q$2, IF(MOD(CELL("zeile",Y37)-CELL("zeile",Y$4),$Q$2)=MOD(CELL("spalte",Y37)-(CELL("spalte",$P37)),$Q$2),ean_conv(LEFT($J37,12)),""), "<>") -> <>
A38: 35 | B38: A Business Proposal | C38: 6 | D38: Romance | F38: eng | G38: Groß | H38: Ize Press | I38: X | J38: 9798400901713 | L38: =IF(B38<>"",B38&Trenner&Einschluss&F38&Einschluss,"") -> A Business Proposal •eng• | M38: =IF(C38<>"", IF(ISNUMBER(C38), IF(COUNTIF(Sort_Titel,L38)>99,L38&Trenner&TEXT(C38,"000"), IF(COUNTIF(Sort_Titel,L38)>9,L38&Trenner&TEXT(C38,"00"),L38&Trenner&TEXT(C38,"0")) ),L38&Trenner&C38 ),IF(L38<>"",L38,Titel_Leer) ) -> A Business Proposal •eng• 06 | O38: Seite 1 | P38: =IF(CELL("spalte",P38)<CELL("spalte",$P38)+$Q$2, IF(MOD(CELL("zeile",P38)-CELL("zeile",P$4),$Q$2)=MOD(CELL("spalte",P38)-(CELL("spalte",$P38)),$Q$2),ean_conv(LEFT($J38,12)),""), "<>") -> <> | Q38: =IF(CELL("spalte",Q38)<CELL("spalte",$P38)+$Q$2, IF(MOD(CELL("zeile",Q38)-CELL("zeile",Q$4),$Q$2)=MOD(CELL("spalte",Q38)-(CELL("spalte",$P38)),$Q$2),ean_conv(LEFT($J38,12)),""), "<>") -> <> | R38: =IF(CELL("spalte",R38)<CELL("spalte",$P38)+$Q$2, IF(MOD(CELL("zeile",R38)-CELL("zeile",R$4),$Q$2)=MOD(CELL("spalte",R38)-(CELL("spalte",$P38)),$Q$2),ean_conv(LEFT($J38,12)),""), "<>") -> <> | S38: =IF(CELL("spalte",S38)<CELL("spalte",$P38)+$Q$2, IF(MOD(CELL("zeile",S38)-CELL("zeile",S$4),$Q$2)=MOD(CELL("spalte",S38)-(CELL("spalte",$P38)),$Q$2),ean_conv(LEFT($J38,12)),""), "<>") -> <> | T38: =IF(CELL("spalte",T38)<CELL("spalte",$P38)+$Q$2, IF(MOD(CELL("zeile",T38)-CELL("zeile",T$4),$Q$2)=MOD(CELL("spalte",T38)-(CELL("spalte",$P38)),$Q$2),ean_conv(LEFT($J38,12)),""), "<>") -> <> | U38: =IF(CELL("spalte",U38)<CELL("spalte",$P38)+$Q$2, IF(MOD(CELL("zeile",U38)-CELL("zeile",U$4),$Q$2)=MOD(CELL("spalte",U38)-(CELL("spalte",$P38)),$Q$2),ean_conv(LEFT($J38,12)),""), "<>") -> <> | V38: =IF(CELL("spalte",V38)<CELL("spalte",$P38)+$Q$2, IF(MOD(CELL("zeile",V38)-CELL("zeile",V$4),$Q$2)=MOD(CELL("spalte",V38)-(CELL("spalte",$P38)),$Q$2),ean_conv(LEFT($J38,12)),""), "<>") -> <> | W38: =IF(CELL("spalte",W38)<CELL("spalte",$P38)+$Q$2, IF(MOD(CELL("zeile",W38)-CELL("zeile",W$4),$Q$2)=MOD(CELL("spalte",W38)-(CELL("spalte",$P38)),$Q$2),ean_conv(LEFT($J38,12)),""), "<>") -> <> | X38: =IF(CELL("spalte",X38)<CELL("spalte",$P38)+$Q$2, IF(MOD(CELL("zeile",X38)-CELL("zeile",X$4),$Q$2)=MOD(CELL("spalte",X38)-(CELL("spalte",$P38)),$Q$2),ean_conv(LEFT($J38,12)),""), "<>") -> <> | Y38: =IF(CELL("spalte",Y38)<CELL("spalte",$P38)+$Q$2, IF(MOD(CELL("zeile",Y38)-CELL("zeile",Y$4),$Q$2)=MOD(CELL("spalte",Y38)-(CELL("spalte",$P38)),$Q$2),ean_conv(LEFT($J38,12)),""), "<>") -> <>
A39: 36 | B39: A Business Proposal | C39: 7 | D39: Romance | F39: eng | G39: Groß | H39: Ize Press | J39: 9798400901737 | L39: =IF(B39<>"",B39&Trenner&Einschluss&F39&Einschluss,"") -> A Business Proposal •eng• | M39: =IF(C39<>"", IF(ISNUMBER(C39), IF(COUNTIF(Sort_Titel,L39)>99,L39&Trenner&TEXT(C39,"000"), IF(COUNTIF(Sort_Titel,L39)>9,L39&Trenner&TEXT(C39,"00"),L39&Trenner&TEXT(C39,"0")) ),L39&Trenner&C39 ),IF(L39<>"",L39,Titel_Leer) ) -> A Business Proposal •eng• 07 | O39: Seite 1 | P39: =IF(CELL("spalte",P39)<CELL("spalte",$P39)+$Q$2, IF(MOD(CELL("zeile",P39)-CELL("zeile",P$4),$Q$2)=MOD(CELL("spalte",P39)-(CELL("spalte",$P39)),$Q$2),ean_conv(LEFT($J39,12)),""), "<>") -> <> | Q39: =IF(CELL("spalte",Q39)<CELL("spalte",$P39)+$Q$2, IF(MOD(CELL("zeile",Q39)-CELL("zeile",Q$4),$Q$2)=MOD(CELL("spalte",Q39)-(CELL("spalte",$P39)),$Q$2),ean_conv(LEFT($J39,12)),""), "<>") -> <> | R39: =IF(CELL("spalte",R39)<CELL("spalte",$P39)+$Q$2, IF(MOD(CELL("zeile",R39)-CELL("zeile",R$4),$Q$2)=MOD(CELL("spalte",R39)-(CELL("spalte",$P39)),$Q$2),ean_conv(LEFT($J39,12)),""), "<>") -> <> | S39: =IF(CELL("spalte",S39)<CELL("spalte",$P39)+$Q$2, IF(MOD(CELL("zeile",S39)-CELL("zeile",S$4),$Q$2)=MOD(CELL("spalte",S39)-(CELL("spalte",$P39)),$Q$2),ean_conv(LEFT($J39,12)),""), "<>") -> <> | T39: =IF(CELL("spalte",T39)<CELL("spalte",$P39)+$Q$2, IF(MOD(CELL("zeile",T39)-CELL("zeile",T$4),$Q$2)=MOD(CELL("spalte",T39)-(CELL("spalte",$P39)),$Q$2),ean_conv(LEFT($J39,12)),""), "<>") -> <> | U39: =IF(CELL("spalte",U39)<CELL("spalte",$P39)+$Q$2, IF(MOD(CELL("zeile",U39)-CELL("zeile",U$4),$Q$2)=MOD(CELL("spalte",U39)-(CELL("spalte",$P39)),$Q$2),ean_conv(LEFT($J39,12)),""), "<>") -> <> | V39: =IF(CELL("spalte",V39)<CELL("spalte",$P39)+$Q$2, IF(MOD(CELL("zeile",V39)-CELL("zeile",V$4),$Q$2)=MOD(CELL("spalte",V39)-(CELL("spalte",$P39)),$Q$2),ean_conv(LEFT($J39,12)),""), "<>") -> <> | W39: =IF(CELL("spalte",W39)<CELL("spalte",$P39)+$Q$2, IF(MOD(CELL("zeile",W39)-CELL("zeile",W$4),$Q$2)=MOD(CELL("spalte",W39)-(CELL("spalte",$P39)),$Q$2),ean_conv(LEFT($J39,12)),""), "<>") -> <> | X39: =IF(CELL("spalte",X39)<CELL("spalte",$P39)+$Q$2, IF(MOD(CELL("zeile",X39)-CELL("zeile",X$4),$Q$2)=MOD(CELL("spalte",X39)-(CELL("spalte",$P39)),$Q$2),ean_conv(LEFT($J39,12)),""), "<>") -> <> | Y39: =IF(CELL("spalte",Y39)<CELL("spalte",$P39)+$Q$2, IF(MOD(CELL("zeile",Y39)-CELL("zeile",Y$4),$Q$2)=MOD(CELL("spalte",Y39)-(CELL("spalte",$P39)),$Q$2),ean_conv(LEFT($J39,12)),""), "<>") -> <>
A40: 37 | B40: A Business Proposal | C40: 8 | D40: Romance | F40: eng | G40: Groß | H40: Ize Press | J40: 9798400901751 | L40: =IF(B40<>"",B40&Trenner&Einschluss&F40&Einschluss,"") -> A Business Proposal •eng• | M40: =IF(C40<>"", IF(ISNUMBER(C40), IF(COUNTIF(Sort_Titel,L40)>99,L40&Trenner&TEXT(C40,"000"), IF(COUNTIF(Sort_Titel,L40)>9,L40&Trenner&TEXT(C40,"00"),L40&Trenner&TEXT(C40,"0")) ),L40&Trenner&C40 ),IF(L40<>"",L40,Titel_Leer) ) -> A Business Proposal •eng• 08 | O40: Seite 1 | P40: =IF(CELL("spalte",P40)<CELL("spalte",$P40)+$Q$2, IF(MOD(CELL("zeile",P40)-CELL("zeile",P$4),$Q$2)=MOD(CELL("spalte",P40)-(CELL("spalte",$P40)),$Q$2),ean_conv(LEFT($J40,12)),""), "<>") -> <> | Q40: =IF(CELL("spalte",Q40)<CELL("spalte",$P40)+$Q$2, IF(MOD(CELL("zeile",Q40)-CELL("zeile",Q$4),$Q$2)=MOD(CELL("spalte",Q40)-(CELL("spalte",$P40)),$Q$2),ean_conv(LEFT($J40,12)),""), "<>") -> <> | R40: =IF(CELL("spalte",R40)<CELL("spalte",$P40)+$Q$2, IF(MOD(CELL("zeile",R40)-CELL("zeile",R$4),$Q$2)=MOD(CELL("spalte",R40)-(CELL("spalte",$P40)),$Q$2),ean_conv(LEFT($J40,12)),""), "<>") -> <> | S40: =IF(CELL("spalte",S40)<CELL("spalte",$P40)+$Q$2, IF(MOD(CELL("zeile",S40)-CELL("zeile",S$4),$Q$2)=MOD(CELL("spalte",S40)-(CELL("spalte",$P40)),$Q$2),ean_conv(LEFT($J40,12)),""), "<>") -> <> | T40: =IF(CELL("spalte",T40)<CELL("spalte",$P40)+$Q$2, IF(MOD(CELL("zeile",T40)-CELL("zeile",T$4),$Q$2)=MOD(CELL("spalte",T40)-(CELL("spalte",$P40)),$Q$2),ean_conv(LEFT($J40,12)),""), "<>") -> <> | U40: =IF(CELL("spalte",U40)<CELL("spalte",$P40)+$Q$2, IF(MOD(CELL("zeile",U40)-CELL("zeile",U$4),$Q$2)=MOD(CELL("spalte",U40)-(CELL("spalte",$P40)),$Q$2),ean_conv(LEFT($J40,12)),""), "<>") -> <> | V40: =IF(CELL("spalte",V40)<CELL("spalte",$P40)+$Q$2, IF(MOD(CELL("zeile",V40)-CELL("zeile",V$4),$Q$2)=MOD(CELL("spalte",V40)-(CELL("spalte",$P40)),$Q$2),ean_conv(LEFT($J40,12)),""), "<>") -> <> | W40: =IF(CELL("spalte",W40)<CELL("spalte",$P40)+$Q$2, IF(MOD(CELL("zeile",W40)-CELL("zeile",W$4),$Q$2)=MOD(CELL("spalte",W40)-(CELL("spalte",$P40)),$Q$2),ean_conv(LEFT($J40,12)),""), "<>") -> <> | X40: =IF(CELL("spalte",X40)<CELL("spalte",$P40)+$Q$2, IF(MOD(CELL("zeile",X40)-CELL("zeile",X$4),$Q$2)=MOD(CELL("spalte",X40)-(CELL("spalte",$P40)),$Q$2),ean_conv(LEFT($J40,12)),""), "<>") -> <> | Y40: =IF(CELL("spalte",Y40)<CELL("spalte",$P40)+$Q$2, IF(MOD(CELL("zeile",Y40)-CELL("zeile",Y$4),$Q$2)=MOD(CELL("spalte",Y40)-(CELL("spalte",$P40)),$Q$2),ean_conv(LEFT($J40,12)),""), "<>") -> <>
A41: 38 | B41: A Business Proposal | C41: 9 | D41: Romance | F41: eng | G41: Groß | H41: Ize Press | J41: 9798400901775 | L41: =IF(B41<>"",B41&Trenner&Einschluss&F41&Einschluss,"") -> A Business Proposal •eng• | M41: =IF(C41<>"", IF(ISNUMBER(C41), IF(COUNTIF(Sort_Titel,L41)>99,L41&Trenner&TEXT(C41,"000"), IF(COUNTIF(Sort_Titel,L41)>9,L41&Trenner&TEXT(C41,"00"),L41&Trenner&TEXT(C41,"0")) ),L41&Trenner&C41 ),IF(L41<>"",L41,Titel_Leer) ) -> A Business Proposal •eng• 09 | O41: Seite 1 | P41: =IF(CELL("spalte",P41)<CELL("spalte",$P41)+$Q$2, IF(MOD(CELL("zeile",P41)-CELL("zeile",P$4),$Q$2)=MOD(CELL("spalte",P41)-(CELL("spalte",$P41)),$Q$2),ean_conv(LEFT($J41,12)),""), "<>") -> <> | Q41: =IF(CELL("spalte",Q41)<CELL("spalte",$P41)+$Q$2, IF(MOD(CELL("zeile",Q41)-CELL("zeile",Q$4),$Q$2)=MOD(CELL("spalte",Q41)-(CELL("spalte",$P41)),$Q$2),ean_conv(LEFT($J41,12)),""), "<>") -> <> | R41: =IF(CELL("spalte",R41)<CELL("spalte",$P41)+$Q$2, IF(MOD(CELL("zeile",R41)-CELL("zeile",R$4),$Q$2)=MOD(CELL("spalte",R41)-(CELL("spalte",$P41)),$Q$2),ean_conv(LEFT($J41,12)),""), "<>") -> <> | S41: =IF(CELL("spalte",S41)<CELL("spalte",$P41)+$Q$2, IF(MOD(CELL("zeile",S41)-CELL("zeile",S$4),$Q$2)=MOD(CELL("spalte",S41)-(CELL("spalte",$P41)),$Q$2),ean_conv(LEFT($J41,12)),""), "<>") -> <> | T41: =IF(CELL("spalte",T41)<CELL("spalte",$P41)+$Q$2, IF(MOD(CELL("zeile",T41)-CELL("zeile",T$4),$Q$2)=MOD(CELL("spalte",T41)-(CELL("spalte",$P41)),$Q$2),ean_conv(LEFT($J41,12)),""), "<>") -> <> | U41: =IF(CELL("spalte",U41)<CELL("spalte",$P41)+$Q$2, IF(MOD(CELL("zeile",U41)-CELL("zeile",U$4),$Q$2)=MOD(CELL("spalte",U41)-(CELL("spalte",$P41)),$Q$2),ean_conv(LEFT($J41,12)),""), "<>") -> <> | V41: =IF(CELL("spalte",V41)<CELL("spalte",$P41)+$Q$2, IF(MOD(CELL("zeile",V41)-CELL("zeile",V$4),$Q$2)=MOD(CELL("spalte",V41)-(CELL("spalte",$P41)),$Q$2),ean_conv(LEFT($J41,12)),""), "<>") -> <> | W41: =IF(CELL("spalte",W41)<CELL("spalte",$P41)+$Q$2, IF(MOD(CELL("zeile",W41)-CELL("zeile",W$4),$Q$2)=MOD(CELL("spalte",W41)-(CELL("spalte",$P41)),$Q$2),ean_conv(LEFT($J41,12)),""), "<>") -> <> | X41: =IF(CELL("spalte",X41)<CELL("spalte",$P41)+$Q$2, IF(MOD(CELL("zeile",X41)-CELL("zeile",X$4),$Q$2)=MOD(CELL("spalte",X41)-(CELL("spalte",$P41)),$Q$2),ean_conv(LEFT($J41,12)),""), "<>") -> <> | Y41: =IF(CELL("spalte",Y41)<CELL("spalte",$P41)+$Q$2, IF(MOD(CELL("zeile",Y41)-CELL("zeile",Y$4),$Q$2)=MOD(CELL("spalte",Y41)-(CELL("spalte",$P41)),$Q$2),ean_conv(LEFT($J41,12)),""), "<>") -> <>
A42: 39 | B42: A Business Proposal | C42: 10 | D42: Romance | F42: eng | G42: Groß | H42: Ize Press | J42: 9798400901799 | L42: =IF(B42<>"",B42&Trenner&Einschluss&F42&Einschluss,"") -> A Business Proposal •eng• | M42: =IF(C42<>"", IF(ISNUMBER(C42), IF(COUNTIF(Sort_Titel,L42)>99,L42&Trenner&TEXT(C42,"000"), IF(COUNTIF(Sort_Titel,L42)>9,L42&Trenner&TEXT(C42,"00"),L42&Trenner&TEXT(C42,"0")) ),L42&Trenner&C42 ),IF(L42<>"",L42,Titel_Leer) ) -> A Business Proposal •eng• 10 | O42: Seite 1 | P42: =IF(CELL("spalte",P42)<CELL("spalte",$P42)+$Q$2, IF(MOD(CELL("zeile",P42)-CELL("zeile",P$4),$Q$2)=MOD(CELL("spalte",P42)-(CELL("spalte",$P42)),$Q$2),ean_conv(LEFT($J42,12)),""), "<>") -> <> | Q42: =IF(CELL("spalte",Q42)<CELL("spalte",$P42)+$Q$2, IF(MOD(CELL("zeile",Q42)-CELL("zeile",Q$4),$Q$2)=MOD(CELL("spalte",Q42)-(CELL("spalte",$P42)),$Q$2),ean_conv(LEFT($J42,12)),""), "<>") -> <> | R42: =IF(CELL("spalte",R42)<CELL("spalte",$P42)+$Q$2, IF(MOD(CELL("zeile",R42)-CELL("zeile",R$4),$Q$2)=MOD(CELL("spalte",R42)-(CELL("spalte",$P42)),$Q$2),ean_conv(LEFT($J42,12)),""), "<>") -> <> | S42: =IF(CELL("spalte",S42)<CELL("spalte",$P42)+$Q$2, IF(MOD(CELL("zeile",S42)-CELL("zeile",S$4),$Q$2)=MOD(CELL("spalte",S42)-(CELL("spalte",$P42)),$Q$2),ean_conv(LEFT($J42,12)),""), "<>") -> <> | T42: =IF(CELL("spalte",T42)<CELL("spalte",$P42)+$Q$2, IF(MOD(CELL("zeile",T42)-CELL("zeile",T$4),$Q$2)=MOD(CELL("spalte",T42)-(CELL("spalte",$P42)),$Q$2),ean_conv(LEFT($J42,12)),""), "<>") -> <> | U42: =IF(CELL("spalte",U42)<CELL("spalte",$P42)+$Q$2, IF(MOD(CELL("zeile",U42)-CELL("zeile",U$4),$Q$2)=MOD(CELL("spalte",U42)-(CELL("spalte",$P42)),$Q$2),ean_conv(LEFT($J42,12)),""), "<>") -> <> | V42: =IF(CELL("spalte",V42)<CELL("spalte",$P42)+$Q$2, IF(MOD(CELL("zeile",V42)-CELL("zeile",V$4),$Q$2)=MOD(CELL("spalte",V42)-(CELL("spalte",$P42)),$Q$2),ean_conv(LEFT($J42,12)),""), "<>") -> <> | W42: =IF(CELL("spalte",W42)<CELL("spalte",$P42)+$Q$2, IF(MOD(CELL("zeile",W42)-CELL("zeile",W$4),$Q$2)=MOD(CELL("spalte",W42)-(CELL("spalte",$P42)),$Q$2),ean_conv(LEFT($J42,12)),""), "<>") -> <> | X42: =IF(CELL("spalte",X42)<CELL("spalte",$P42)+$Q$2, IF(MOD(CELL("zeile",X42)-CELL("zeile",X$4),$Q$2)=MOD(CELL("spalte",X42)-(CELL("spalte",$P42)),$Q$2),ean_conv(LEFT($J42,12)),""), "<>") -> <> | Y42: =IF(CELL("spalte",Y42)<CELL("spalte",$P42)+$Q$2, IF(MOD(CELL("zeile",Y42)-CELL("zeile",Y$4),$Q$2)=MOD(CELL("spalte",Y42)-(CELL("spalte",$P42)),$Q$2),ean_conv(LEFT($J42,12)),""), "<>") -> <>
A43: 40 | B43: A Couple of Cuckoos | C43: 1 | D43: Comedy | F43: deu | G43: Standard | H43: Carlsen Manga | I43: X | J43: 9783551793737 | L43: =IF(B43<>"",B43&Trenner&Einschluss&F43&Einschluss,"") -> A Couple of Cuckoos •deu• | M43: =IF(C43<>"", IF(ISNUMBER(C43), IF(COUNTIF(Sort_Titel,L43)>99,L43&Trenner&TEXT(C43,"000"), IF(COUNTIF(Sort_Titel,L43)>9,L43&Trenner&TEXT(C43,"00"),L43&Trenner&TEXT(C43,"0")) ),L43&Trenner&C43 ),IF(L43<>"",L43,Titel_Leer) ) -> A Couple of Cuckoos •deu• 01 | O43: Seite 1 | P43: =IF(CELL("spalte",P43)<CELL("spalte",$P43)+$Q$2, IF(MOD(CELL("zeile",P43)-CELL("zeile",P$4),$Q$2)=MOD(CELL("spalte",P43)-(CELL("spalte",$P43)),$Q$2),ean_conv(LEFT($J43,12)),""), "<>") -> <> | Q43: =IF(CELL("spalte",Q43)<CELL("spalte",$P43)+$Q$2, IF(MOD(CELL("zeile",Q43)-CELL("zeile",Q$4),$Q$2)=MOD(CELL("spalte",Q43)-(CELL("spalte",$P43)),$Q$2),ean_conv(LEFT($J43,12)),""), "<>") -> <> | R43: =IF(CELL("spalte",R43)<CELL("spalte",$P43)+$Q$2, IF(MOD(CELL("zeile",R43)-CELL("zeile",R$4),$Q$2)=MOD(CELL("spalte",R43)-(CELL("spalte",$P43)),$Q$2),ean_conv(LEFT($J43,12)),""), "<>") -> <> | S43: =IF(CELL("spalte",S43)<CELL("spalte",$P43)+$Q$2, IF(MOD(CELL("zeile",S43)-CELL("zeile",S$4),$Q$2)=MOD(CELL("spalte",S43)-(CELL("spalte",$P43)),$Q$2),ean_conv(LEFT($J43,12)),""), "<>") -> <> | T43: =IF(CELL("spalte",T43)<CELL("spalte",$P43)+$Q$2, IF(MOD(CELL("zeile",T43)-CELL("zeile",T$4),$Q$2)=MOD(CELL("spalte",T43)-(CELL("spalte",$P43)),$Q$2),ean_conv(LEFT($J43,12)),""), "<>") -> <> | U43: =IF(CELL("spalte",U43)<CELL("spalte",$P43)+$Q$2, IF(MOD(CELL("zeile",U43)-CELL("zeile",U$4),$Q$2)=MOD(CELL("spalte",U43)-(CELL("spalte",$P43)),$Q$2),ean_conv(LEFT($J43,12)),""), "<>") -> <> | V43: =IF(CELL("spalte",V43)<CELL("spalte",$P43)+$Q$2, IF(MOD(CELL("zeile",V43)-CELL("zeile",V$4),$Q$2)=MOD(CELL("spalte",V43)-(CELL("spalte",$P43)),$Q$2),ean_conv(LEFT($J43,12)),""), "<>") -> <> | W43: =IF(CELL("spalte",W43)<CELL("spalte",$P43)+$Q$2, IF(MOD(CELL("zeile",W43)-CELL("zeile",W$4),$Q$2)=MOD(CELL("spalte",W43)-(CELL("spalte",$P43)),$Q$2),ean_conv(LEFT($J43,12)),""), "<>") -> <> | X43: =IF(CELL("spalte",X43)<CELL("spalte",$P43)+$Q$2, IF(MOD(CELL("zeile",X43)-CELL("zeile",X$4),$Q$2)=MOD(CELL("spalte",X43)-(CELL("spalte",$P43)),$Q$2),ean_conv(LEFT($J43,12)),""), "<>") -> <> | Y43: =IF(CELL("spalte",Y43)<CELL("spalte",$P43)+$Q$2, IF(MOD(CELL("zeile",Y43)-CELL("zeile",Y$4),$Q$2)=MOD(CELL("spalte",Y43)-(CELL("spalte",$P43)),$Q$2),ean_conv(LEFT($J43,12)),""), "<>") -> <>
A44: 41 | B44: A Couple of Cuckoos | C44: 2 | D44: Comedy | F44: deu | G44: Standard | H44: Carlsen Manga | I44: X | J44: 9783551793744 | L44: =IF(B44<>"",B44&Trenner&Einschluss&F44&Einschluss,"") -> A Couple of Cuckoos •deu• | M44: =IF(C44<>"", IF(ISNUMBER(C44), IF(COUNTIF(Sort_Titel,L44)>99,L44&Trenner&TEXT(C44,"000"), IF(COUNTIF(Sort_Titel,L44)>9,L44&Trenner&TEXT(C44,"00"),L44&Trenner&TEXT(C44,"0")) ),L44&Trenner&C44 ),IF(L44<>"",L44,Titel_Leer) ) -> A Couple of Cuckoos •deu• 02 | O44: Seite 1 | P44: =IF(CELL("spalte",P44)<CELL("spalte",$P44)+$Q$2, IF(MOD(CELL("zeile",P44)-CELL("zeile",P$4),$Q$2)=MOD(CELL("spalte",P44)-(CELL("spalte",$P44)),$Q$2),ean_conv(LEFT($J44,12)),""), "<>") -> <> | Q44: =IF(CELL("spalte",Q44)<CELL("spalte",$P44)+$Q$2, IF(MOD(CELL("zeile",Q44)-CELL("zeile",Q$4),$Q$2)=MOD(CELL("spalte",Q44)-(CELL("spalte",$P44)),$Q$2),ean_conv(LEFT($J44,12)),""), "<>") -> <> | R44: =IF(CELL("spalte",R44)<CELL("spalte",$P44)+$Q$2, IF(MOD(CELL("zeile",R44)-CELL("zeile",R$4),$Q$2)=MOD(CELL("spalte",R44)-(CELL("spalte",$P44)),$Q$2),ean_conv(LEFT($J44,12)),""), "<>") -> <> | S44: =IF(CELL("spalte",S44)<CELL("spalte",$P44)+$Q$2, IF(MOD(CELL("zeile",S44)-CELL("zeile",S$4),$Q$2)=MOD(CELL("spalte",S44)-(CELL("spalte",$P44)),$Q$2),ean_conv(LEFT($J44,12)),""), "<>") -> <> | T44: =IF(CELL("spalte",T44)<CELL("spalte",$P44)+$Q$2, IF(MOD(CELL("zeile",T44)-CELL("zeile",T$4),$Q$2)=MOD(CELL("spalte",T44)-(CELL("spalte",$P44)),$Q$2),ean_conv(LEFT($J44,12)),""), "<>") -> <> | U44: =IF(CELL("spalte",U44)<CELL("spalte",$P44)+$Q$2, IF(MOD(CELL("zeile",U44)-CELL("zeile",U$4),$Q$2)=MOD(CELL("spalte",U44)-(CELL("spalte",$P44)),$Q$2),ean_conv(LEFT($J44,12)),""), "<>") -> <> | V44: =IF(CELL("spalte",V44)<CELL("spalte",$P44)+$Q$2, IF(MOD(CELL("zeile",V44)-CELL("zeile",V$4),$Q$2)=MOD(CELL("spalte",V44)-(CELL("spalte",$P44)),$Q$2),ean_conv(LEFT($J44,12)),""), "<>") -> <> | W44: =IF(CELL("spalte",W44)<CELL("spalte",$P44)+$Q$2, IF(MOD(CELL("zeile",W44)-CELL("zeile",W$4),$Q$2)=MOD(CELL("spalte",W44)-(CELL("spalte",$P44)),$Q$2),ean_conv(LEFT($J44,12)),""), "<>") -> <> | X44: =IF(CELL("spalte",X44)<CELL("spalte",$P44)+$Q$2, IF(MOD(CELL("zeile",X44)-CELL("zeile",X$4),$Q$2)=MOD(CELL("spalte",X44)-(CELL("spalte",$P44)),$Q$2),ean_conv(LEFT($J44,12)),""), "<>") -> <> | Y44: =IF(CELL("spalte",Y44)<CELL("spalte",$P44)+$Q$2, IF(MOD(CELL("zeile",Y44)-CELL("zeile",Y$4),$Q$2)=MOD(CELL("spalte",Y44)-(CELL("spalte",$P44)),$Q$2),ean_conv(LEFT($J44,12)),""), "<>") -> <>
A45: 42 | B45: A Couple of Cuckoos | C45: 3 | D45: Comedy | F45: deu | G45: Standard | H45: Carlsen Manga | I45: X | J45: 9783551793751 | L45: =IF(B45<>"",B45&Trenner&Einschluss&F45&Einschluss,"") -> A Couple of Cuckoos •deu• | M45: =IF(C45<>"", IF(ISNUMBER(C45), IF(COUNTIF(Sort_Titel,L45)>99,L45&Trenner&TEXT(C45,"000"), IF(COUNTIF(Sort_Titel,L45)>9,L45&Trenner&TEXT(C45,"00"),L45&Trenner&TEXT(C45,"0")) ),L45&Trenner&C45 ),IF(L45<>"",L45,Titel_Leer) ) -> A Couple of Cuckoos •deu• 03 | O45: Seite 1 | P45: =IF(CELL("spalte",P45)<CELL("spalte",$P45)+$Q$2, IF(MOD(CELL("zeile",P45)-CELL("zeile",P$4),$Q$2)=MOD(CELL("spalte",P45)-(CELL("spalte",$P45)),$Q$2),ean_conv(LEFT($J45,12)),""), "<>") -> <> | Q45: =IF(CELL("spalte",Q45)<CELL("spalte",$P45)+$Q$2, IF(MOD(CELL("zeile",Q45)-CELL("zeile",Q$4),$Q$2)=MOD(CELL("spalte",Q45)-(CELL("spalte",$P45)),$Q$2),ean_conv(LEFT($J45,12)),""), "<>") -> <> | R45: =IF(CELL("spalte",R45)<CELL("spalte",$P45)+$Q$2, IF(MOD(CELL("zeile",R45)-CELL("zeile",R$4),$Q$2)=MOD(CELL("spalte",R45)-(CELL("spalte",$P45)),$Q$2),ean_conv(LEFT($J45,12)),""), "<>") -> <> | S45: =IF(CELL("spalte",S45)<CELL("spalte",$P45)+$Q$2, IF(MOD(CELL("zeile",S45)-CELL("zeile",S$4),$Q$2)=MOD(CELL("spalte",S45)-(CELL("spalte",$P45)),$Q$2),ean_conv(LEFT($J45,12)),""), "<>") -> <> | T45: =IF(CELL("spalte",T45)<CELL("spalte",$P45)+$Q$2, IF(MOD(CELL("zeile",T45)-CELL("zeile",T$4),$Q$2)=MOD(CELL("spalte",T45)-(CELL("spalte",$P45)),$Q$2),ean_conv(LEFT($J45,12)),""), "<>") -> <> | U45: =IF(CELL("spalte",U45)<CELL("spalte",$P45)+$Q$2, IF(MOD(CELL("zeile",U45)-CELL("zeile",U$4),$Q$2)=MOD(CELL("spalte",U45)-(CELL("spalte",$P45)),$Q$2),ean_conv(LEFT($J45,12)),""), "<>") -> <> | V45: =IF(CELL("spalte",V45)<CELL("spalte",$P45)+$Q$2, IF(MOD(CELL("zeile",V45)-CELL("zeile",V$4),$Q$2)=MOD(CELL("spalte",V45)-(CELL("spalte",$P45)),$Q$2),ean_conv(LEFT($J45,12)),""), "<>") -> <> | W45: =IF(CELL("spalte",W45)<CELL("spalte",$P45)+$Q$2, IF(MOD(CELL("zeile",W45)-CELL("zeile",W$4),$Q$2)=MOD(CELL("spalte",W45)-(CELL("spalte",$P45)),$Q$2),ean_conv(LEFT($J45,12)),""), "<>") -> <> | X45: =IF(CELL("spalte",X45)<CELL("spalte",$P45)+$Q$2, IF(MOD(CELL("zeile",X45)-CELL("zeile",X$4),$Q$2)=MOD(CELL("spalte",X45)-(CELL("spalte",$P45)),$Q$2),ean_conv(LEFT($J45,12)),""), "<>") -> <> | Y45: =IF(CELL("spalte",Y45)<CELL("spalte",$P45)+$Q$2, IF(MOD(CELL("zeile",Y45)-CELL("zeile",Y$4),$Q$2)=MOD(CELL("spalte",Y45)-(CELL("spalte",$P45)),$Q$2),ean_conv(LEFT($J45,12)),""), "<>") -> <>
A46: 43 | B46: A Couple of Cuckoos | C46: 4 | D46: Comedy | F46: deu | G46: Standard | H46: Carlsen Manga | I46: X | J46: 9783551793768 | L46: =IF(B46<>"",B46&Trenner&Einschluss&F46&Einschluss,"") -> A Couple of Cuckoos •deu• | M46: =IF(C46<>"", IF(ISNUMBER(C46), IF(COUNTIF(Sort_Titel,L46)>99,L46&Trenner&TEXT(C46,"000"), IF(COUNTIF(Sort_Titel,L46)>9,L46&Trenner&TEXT(C46,"00"),L46&Trenner&TEXT(C46,"0")) ),L46&Trenner&C46 ),IF(L46<>"",L46,Titel_Leer) ) -> A Couple of Cuckoos •deu• 04 | O46: Seite 1 | P46: =IF(CELL("spalte",P46)<CELL("spalte",$P46)+$Q$2, IF(MOD(CELL("zeile",P46)-CELL("zeile",P$4),$Q$2)=MOD(CELL("spalte",P46)-(CELL("spalte",$P46)),$Q$2),ean_conv(LEFT($J46,12)),""), "<>") -> <> | Q46: =IF(CELL("spalte",Q46)<CELL("spalte",$P46)+$Q$2, IF(MOD(CELL("zeile",Q46)-CELL("zeile",Q$4),$Q$2)=MOD(CELL("spalte",Q46)-(CELL("spalte",$P46)),$Q$2),ean_conv(LEFT($J46,12)),""), "<>") -> <> | R46: =IF(CELL("spalte",R46)<CELL("spalte",$P46)+$Q$2, IF(MOD(CELL("zeile",R46)-CELL("zeile",R$4),$Q$2)=MOD(CELL("spalte",R46)-(CELL("spalte",$P46)),$Q$2),ean_conv(LEFT($J46,12)),""), "<>") -> <> | S46: =IF(CELL("spalte",S46)<CELL("spalte",$P46)+$Q$2, IF(MOD(CELL("zeile",S46)-CELL("zeile",S$4),$Q$2)=MOD(CELL("spalte",S46)-(CELL("spalte",$P46)),$Q$2),ean_conv(LEFT($J46,12)),""), "<>") -> <> | T46: =IF(CELL("spalte",T46)<CELL("spalte",$P46)+$Q$2, IF(MOD(CELL("zeile",T46)-CELL("zeile",T$4),$Q$2)=MOD(CELL("spalte",T46)-(CELL("spalte",$P46)),$Q$2),ean_conv(LEFT($J46,12)),""), "<>") -> <> | U46: =IF(CELL("spalte",U46)<CELL("spalte",$P46)+$Q$2, IF(MOD(CELL("zeile",U46)-CELL("zeile",U$4),$Q$2)=MOD(CELL("spalte",U46)-(CELL("spalte",$P46)),$Q$2),ean_conv(LEFT($J46,12)),""), "<>") -> <> | V46: =IF(CELL("spalte",V46)<CELL("spalte",$P46)+$Q$2, IF(MOD(CELL("zeile",V46)-CELL("zeile",V$4),$Q$2)=MOD(CELL("spalte",V46)-(CELL("spalte",$P46)),$Q$2),ean_conv(LEFT($J46,12)),""), "<>") -> <> | W46: =IF(CELL("spalte",W46)<CELL("spalte",$P46)+$Q$2, IF(MOD(CELL("zeile",W46)-CELL("zeile",W$4),$Q$2)=MOD(CELL("spalte",W46)-(CELL("spalte",$P46)),$Q$2),ean_conv(LEFT($J46,12)),""), "<>") -> <> | X46: =IF(CELL("spalte",X46)<CELL("spalte",$P46)+$Q$2, IF(MOD(CELL("zeile",X46)-CELL("zeile",X$4),$Q$2)=MOD(CELL("spalte",X46)-(CELL("spalte",$P46)),$Q$2),ean_conv(LEFT($J46,12)),""), "<>") -> <> | Y46: =IF(CELL("spalte",Y46)<CELL("spalte",$P46)+$Q$2, IF(MOD(CELL("zeile",Y46)-CELL("zeile",Y$4),$Q$2)=MOD(CELL("spalte",Y46)-(CELL("spalte",$P46)),$Q$2),ean_conv(LEFT($J46,12)),""), "<>") -> <>
A47: 44 | B47: A Couple of Cuckoos | C47: 5 | D47: Comedy | F47: deu | G47: Standard | H47: Carlsen Manga | I47: X | J47: 9783551793775 | L47: =IF(B47<>"",B47&Trenner&Einschluss&F47&Einschluss,"") -> A Couple of Cuckoos •deu• | M47: =IF(C47<>"", IF(ISNUMBER(C47), IF(COUNTIF(Sort_Titel,L47)>99,L47&Trenner&TEXT(C47,"000"), IF(COUNTIF(Sort_Titel,L47)>9,L47&Trenner&TEXT(C47,"00"),L47&Trenner&TEXT(C47,"0")) ),L47&Trenner&C47 ),IF(L47<>"",L47,Titel_Leer) ) -> A Couple of Cuckoos •deu• 05 | O47: Seite 1 | P47: =IF(CELL("spalte",P47)<CELL("spalte",$P47)+$Q$2, IF(MOD(CELL("zeile",P47)-CELL("zeile",P$4),$Q$2)=MOD(CELL("spalte",P47)-(CELL("spalte",$P47)),$Q$2),ean_conv(LEFT($J47,12)),""), "<>") -> <> | Q47: =IF(CELL("spalte",Q47)<CELL("spalte",$P47)+$Q$2, IF(MOD(CELL("zeile",Q47)-CELL("zeile",Q$4),$Q$2)=MOD(CELL("spalte",Q47)-(CELL("spalte",$P47)),$Q$2),ean_conv(LEFT($J47,12)),""), "<>") -> <> | R47: =IF(CELL("spalte",R47)<CELL("spalte",$P47)+$Q$2, IF(MOD(CELL("zeile",R47)-CELL("zeile",R$4),$Q$2)=MOD(CELL("spalte",R47)-(CELL("spalte",$P47)),$Q$2),ean_conv(LEFT($J47,12)),""), "<>") -> <> | S47: =IF(CELL("spalte",S47)<CELL("spalte",$P47)+$Q$2, IF(MOD(CELL("zeile",S47)-CELL("zeile",S$4),$Q$2)=MOD(CELL("spalte",S47)-(CELL("spalte",$P47)),$Q$2),ean_conv(LEFT($J47,12)),""), "<>") -> <> | T47: =IF(CELL("spalte",T47)<CELL("spalte",$P47)+$Q$2, IF(MOD(CELL("zeile",T47)-CELL("zeile",T$4),$Q$2)=MOD(CELL("spalte",T47)-(CELL("spalte",$P47)),$Q$2),ean_conv(LEFT($J47,12)),""), "<>") -> <> | U47: =IF(CELL("spalte",U47)<CELL("spalte",$P47)+$Q$2, IF(MOD(CELL("zeile",U47)-CELL("zeile",U$4),$Q$2)=MOD(CELL("spalte",U47)-(CELL("spalte",$P47)),$Q$2),ean_conv(LEFT($J47,12)),""), "<>") -> <> | V47: =IF(CELL("spalte",V47)<CELL("spalte",$P47)+$Q$2, IF(MOD(CELL("zeile",V47)-CELL("zeile",V$4),$Q$2)=MOD(CELL("spalte",V47)-(CELL("spalte",$P47)),$Q$2),ean_conv(LEFT($J47,12)),""), "<>") -> <> | W47: =IF(CELL("spalte",W47)<CELL("spalte",$P47)+$Q$2, IF(MOD(CELL("zeile",W47)-CELL("zeile",W$4),$Q$2)=MOD(CELL("spalte",W47)-(CELL("spalte",$P47)),$Q$2),ean_conv(LEFT($J47,12)),""), "<>") -> <> | X47: =IF(CELL("spalte",X47)<CELL("spalte",$P47)+$Q$2, IF(MOD(CELL("zeile",X47)-CELL("zeile",X$4),$Q$2)=MOD(CELL("spalte",X47)-(CELL("spalte",$P47)),$Q$2),ean_conv(LEFT($J47,12)),""), "<>") -> <> | Y47: =IF(CELL("spalte",Y47)<CELL("spalte",$P47)+$Q$2, IF(MOD(CELL("zeile",Y47)-CELL("zeile",Y$4),$Q$2)=MOD(CELL("spalte",Y47)-(CELL("spalte",$P47)),$Q$2),ean_conv(LEFT($J47,12)),""), "<>") -> <>
A48: 45 | B48: A Couple of Cuckoos | C48: 6 | D48: Comedy | F48: deu | G48: Standard | H48: Carlsen Manga | I48: X | J48: 9783551793782 | L48: =IF(B48<>"",B48&Trenner&Einschluss&F48&Einschluss,"") -> A Couple of Cuckoos •deu• | M48: =IF(C48<>"", IF(ISNUMBER(C48), IF(COUNTIF(Sort_Titel,L48)>99,L48&Trenner&TEXT(C48,"000"), IF(COUNTIF(Sort_Titel,L48)>9,L48&Trenner&TEXT(C48,"00"),L48&Trenner&TEXT(C48,"0")) ),L48&Trenner&C48 ),IF(L48<>"",L48,Titel_Leer) ) -> A Couple of Cuckoos •deu• 06 | O48: Seite 1 | P48: =IF(CELL("spalte",P48)<CELL("spalte",$P48)+$Q$2, IF(MOD(CELL("zeile",P48)-CELL("zeile",P$4),$Q$2)=MOD(CELL("spalte",P48)-(CELL("spalte",$P48)),$Q$2),ean_conv(LEFT($J48,12)),""), "<>") -> <> | Q48: =IF(CELL("spalte",Q48)<CELL("spalte",$P48)+$Q$2, IF(MOD(CELL("zeile",Q48)-CELL("zeile",Q$4),$Q$2)=MOD(CELL("spalte",Q48)-(CELL("spalte",$P48)),$Q$2),ean_conv(LEFT($J48,12)),""), "<>") -> <> | R48: =IF(CELL("spalte",R48)<CELL("spalte",$P48)+$Q$2, IF(MOD(CELL("zeile",R48)-CELL("zeile",R$4),$Q$2)=MOD(CELL("spalte",R48)-(CELL("spalte",$P48)),$Q$2),ean_conv(LEFT($J48,12)),""), "<>") -> <> | S48: =IF(CELL("spalte",S48)<CELL("spalte",$P48)+$Q$2, IF(MOD(CELL("zeile",S48)-CELL("zeile",S$4),$Q$2)=MOD(CELL("spalte",S48)-(CELL("spalte",$P48)),$Q$2),ean_conv(LEFT($J48,12)),""), "<>") -> <> | T48: =IF(CELL("spalte",T48)<CELL("spalte",$P48)+$Q$2, IF(MOD(CELL("zeile",T48)-CELL("zeile",T$4),$Q$2)=MOD(CELL("spalte",T48)-(CELL("spalte",$P48)),$Q$2),ean_conv(LEFT($J48,12)),""), "<>") -> <> | U48: =IF(CELL("spalte",U48)<CELL("spalte",$P48)+$Q$2, IF(MOD(CELL("zeile",U48)-CELL("zeile",U$4),$Q$2)=MOD(CELL("spalte",U48)-(CELL("spalte",$P48)),$Q$2),ean_conv(LEFT($J48,12)),""), "<>") -> <> | V48: =IF(CELL("spalte",V48)<CELL("spalte",$P48)+$Q$2, IF(MOD(CELL("zeile",V48)-CELL("zeile",V$4),$Q$2)=MOD(CELL("spalte",V48)-(CELL("spalte",$P48)),$Q$2),ean_conv(LEFT($J48,12)),""), "<>") -> <> | W48: =IF(CELL("spalte",W48)<CELL("spalte",$P48)+$Q$2, IF(MOD(CELL("zeile",W48)-CELL("zeile",W$4),$Q$2)=MOD(CELL("spalte",W48)-(CELL("spalte",$P48)),$Q$2),ean_conv(LEFT($J48,12)),""), "<>") -> <> | X48: =IF(CELL("spalte",X48)<CELL("spalte",$P48)+$Q$2, IF(MOD(CELL("zeile",X48)-CELL("zeile",X$4),$Q$2)=MOD(CELL("spalte",X48)-(CELL("spalte",$P48)),$Q$2),ean_conv(LEFT($J48,12)),""), "<>") -> <> | Y48: =IF(CELL("spalte",Y48)<CELL("spalte",$P48)+$Q$2, IF(MOD(CELL("zeile",Y48)-CELL("zeile",Y$4),$Q$2)=MOD(CELL("spalte",Y48)-(CELL("spalte",$P48)),$Q$2),ean_conv(LEFT($J48,12)),""), "<>") -> <>
A49: 46 | B49: A Couple of Cuckoos | C49: 7 | D49: Comedy | F49: deu | G49: Standard | H49: Carlsen Manga | I49: X | J49: 9783551793799 | L49: =IF(B49<>"",B49&Trenner&Einschluss&F49&Einschluss,"") -> A Couple of Cuckoos •deu• | M49: =IF(C49<>"", IF(ISNUMBER(C49), IF(COUNTIF(Sort_Titel,L49)>99,L49&Trenner&TEXT(C49,"000"), IF(COUNTIF(Sort_Titel,L49)>9,L49&Trenner&TEXT(C49,"00"),L49&Trenner&TEXT(C49,"0")) ),L49&Trenner&C49 ),IF(L49<>"",L49,Titel_Leer) ) -> A Couple of Cuckoos •deu• 07 | O49: Seite 1 | P49: =IF(CELL("spalte",P49)<CELL("spalte",$P49)+$Q$2, IF(MOD(CELL("zeile",P49)-CELL("zeile",P$4),$Q$2)=MOD(CELL("spalte",P49)-(CELL("spalte",$P49)),$Q$2),ean_conv(LEFT($J49,12)),""), "<>") -> <> | Q49: =IF(CELL("spalte",Q49)<CELL("spalte",$P49)+$Q$2, IF(MOD(CELL("zeile",Q49)-CELL("zeile",Q$4),$Q$2)=MOD(CELL("spalte",Q49)-(CELL("spalte",$P49)),$Q$2),ean_conv(LEFT($J49,12)),""), "<>") -> <> | R49: =IF(CELL("spalte",R49)<CELL("spalte",$P49)+$Q$2, IF(MOD(CELL("zeile",R49)-CELL("zeile",R$4),$Q$2)=MOD(CELL("spalte",R49)-(CELL("spalte",$P49)),$Q$2),ean_conv(LEFT($J49,12)),""), "<>") -> <> | S49: =IF(CELL("spalte",S49)<CELL("spalte",$P49)+$Q$2, IF(MOD(CELL("zeile",S49)-CELL("zeile",S$4),$Q$2)=MOD(CELL("spalte",S49)-(CELL("spalte",$P49)),$Q$2),ean_conv(LEFT($J49,12)),""), "<>") -> <> | T49: =IF(CELL("spalte",T49)<CELL("spalte",$P49)+$Q$2, IF(MOD(CELL("zeile",T49)-CELL("zeile",T$4),$Q$2)=MOD(CELL("spalte",T49)-(CELL("spalte",$P49)),$Q$2),ean_conv(LEFT($J49,12)),""), "<>") -> <> | U49: =IF(CELL("spalte",U49)<CELL("spalte",$P49)+$Q$2, IF(MOD(CELL("zeile",U49)-CELL("zeile",U$4),$Q$2)=MOD(CELL("spalte",U49)-(CELL("spalte",$P49)),$Q$2),ean_conv(LEFT($J49,12)),""), "<>") -> <> | V49: =IF(CELL("spalte",V49)<CELL("spalte",$P49)+$Q$2, IF(MOD(CELL("zeile",V49)-CELL("zeile",V$4),$Q$2)=MOD(CELL("spalte",V49)-(CELL("spalte",$P49)),$Q$2),ean_conv(LEFT($J49,12)),""), "<>") -> <> | W49: =IF(CELL("spalte",W49)<CELL("spalte",$P49)+$Q$2, IF(MOD(CELL("zeile",W49)-CELL("zeile",W$4),$Q$2)=MOD(CELL("spalte",W49)-(CELL("spalte",$P49)),$Q$2),ean_conv(LEFT($J49,12)),""), "<>") -> <> | X49: =IF(CELL("spalte",X49)<CELL("spalte",$P49)+$Q$2, IF(MOD(CELL("zeile",X49)-CELL("zeile",X$4),$Q$2)=MOD(CELL("spalte",X49)-(CELL("spalte",$P49)),$Q$2),ean_conv(LEFT($J49,12)),""), "<>") -> <> | Y49: =IF(CELL("spalte",Y49)<CELL("spalte",$P49)+$Q$2, IF(MOD(CELL("zeile",Y49)-CELL("zeile",Y$4),$Q$2)=MOD(CELL("spalte",Y49)-(CELL("spalte",$P49)),$Q$2),ean_conv(LEFT($J49,12)),""), "<>") -> <>
A50: 47 | B50: A Couple of Cuckoos | C50: 8 | D50: Comedy | F50: deu | G50: Standard | H50: Carlsen Manga | I50: X | J50: 9783551793805 | L50: =IF(B50<>"",B50&Trenner&Einschluss&F50&Einschluss,"") -> A Couple of Cuckoos •deu• | M50: =IF(C50<>"", IF(ISNUMBER(C50), IF(COUNTIF(Sort_Titel,L50)>99,L50&Trenner&TEXT(C50,"000"), IF(COUNTIF(Sort_Titel,L50)>9,L50&Trenner&TEXT(C50,"00"),L50&Trenner&TEXT(C50,"0")) ),L50&Trenner&C50 ),IF(L50<>"",L50,Titel_Leer) ) -> A Couple of Cuckoos •deu• 08 | O50: Seite 1 | P50: =IF(CELL("spalte",P50)<CELL("spalte",$P50)+$Q$2, IF(MOD(CELL("zeile",P50)-CELL("zeile",P$4),$Q$2)=MOD(CELL("spalte",P50)-(CELL("spalte",$P50)),$Q$2),ean_conv(LEFT($J50,12)),""), "<>") -> <> | Q50: =IF(CELL("spalte",Q50)<CELL("spalte",$P50)+$Q$2, IF(MOD(CELL("zeile",Q50)-CELL("zeile",Q$4),$Q$2)=MOD(CELL("spalte",Q50)-(CELL("spalte",$P50)),$Q$2),ean_conv(LEFT($J50,12)),""), "<>") -> <> | R50: =IF(CELL("spalte",R50)<CELL("spalte",$P50)+$Q$2, IF(MOD(CELL("zeile",R50)-CELL("zeile",R$4),$Q$2)=MOD(CELL("spalte",R50)-(CELL("spalte",$P50)),$Q$2),ean_conv(LEFT($J50,12)),""), "<>") -> <> | S50: =IF(CELL("spalte",S50)<CELL("spalte",$P50)+$Q$2, IF(MOD(CELL("zeile",S50)-CELL("zeile",S$4),$Q$2)=MOD(CELL("spalte",S50)-(CELL("spalte",$P50)),$Q$2),ean_conv(LEFT($J50,12)),""), "<>") -> <> | T50: =IF(CELL("spalte",T50)<CELL("spalte",$P50)+$Q$2, IF(MOD(CELL("zeile",T50)-CELL("zeile",T$4),$Q$2)=MOD(CELL("spalte",T50)-(CELL("spalte",$P50)),$Q$2),ean_conv(LEFT($J50,12)),""), "<>") -> <> | U50: =IF(CELL("spalte",U50)<CELL("spalte",$P50)+$Q$2, IF(MOD(CELL("zeile",U50)-CELL("zeile",U$4),$Q$2)=MOD(CELL("spalte",U50)-(CELL("spalte",$P50)),$Q$2),ean_conv(LEFT($J50,12)),""), "<>") -> <> | V50: =IF(CELL("spalte",V50)<CELL("spalte",$P50)+$Q$2, IF(MOD(CELL("zeile",V50)-CELL("zeile",V$4),$Q$2)=MOD(CELL("spalte",V50)-(CELL("spalte",$P50)),$Q$2),ean_conv(LEFT($J50,12)),""), "<>") -> <> | W50: =IF(CELL("spalte",W50)<CELL("spalte",$P50)+$Q$2, IF(MOD(CELL("zeile",W50)-CELL("zeile",W$4),$Q$2)=MOD(CELL("spalte",W50)-(CELL("spalte",$P50)),$Q$2),ean_conv(LEFT($J50,12)),""), "<>") -> <> | X50: =IF(CELL("spalte",X50)<CELL("spalte",$P50)+$Q$2, IF(MOD(CELL("zeile",X50)-CELL("zeile",X$4),$Q$2)=MOD(CELL("spalte",X50)-(CELL("spalte",$P50)),$Q$2),ean_conv(LEFT($J50,12)),""), "<>") -> <> | Y50: =IF(CELL("spalte",Y50)<CELL("spalte",$P50)+$Q$2, IF(MOD(CELL("zeile",Y50)-CELL("zeile",Y$4),$Q$2)=MOD(CELL("spalte",Y50)-(CELL("spalte",$P50)),$Q$2),ean_conv(LEFT($J50,12)),""), "<>") -> <>
A51: 48 | B51: A Couple of Cuckoos | C51: 9 | D51: Comedy | F51: deu | G51: Standard | H51: Carlsen Manga | I51: X | J51: 9783551793652 | L51: =IF(B51<>"",B51&Trenner&Einschluss&F51&Einschluss,"") -> A Couple of Cuckoos •deu• | M51: =IF(C51<>"", IF(ISNUMBER(C51), IF(COUNTIF(Sort_Titel,L51)>99,L51&Trenner&TEXT(C51,"000"), IF(COUNTIF(Sort_Titel,L51)>9,L51&Trenner&TEXT(C51,"00"),L51&Trenner&TEXT(C51,"0")) ),L51&Trenner&C51 ),IF(L51<>"",L51,Titel_Leer) ) -> A Couple of Cuckoos •deu• 09 | O51: Seite 1 | P51: =IF(CELL("spalte",P51)<CELL("spalte",$P51)+$Q$2, IF(MOD(CELL("zeile",P51)-CELL("zeile",P$4),$Q$2)=MOD(CELL("spalte",P51)-(CELL("spalte",$P51)),$Q$2),ean_conv(LEFT($J51,12)),""), "<>") -> <> | Q51: =IF(CELL("spalte",Q51)<CELL("spalte",$P51)+$Q$2, IF(MOD(CELL("zeile",Q51)-CELL("zeile",Q$4),$Q$2)=MOD(CELL("spalte",Q51)-(CELL("spalte",$P51)),$Q$2),ean_conv(LEFT($J51,12)),""), "<>") -> <> | R51: =IF(CELL("spalte",R51)<CELL("spalte",$P51)+$Q$2, IF(MOD(CELL("zeile",R51)-CELL("zeile",R$4),$Q$2)=MOD(CELL("spalte",R51)-(CELL("spalte",$P51)),$Q$2),ean_conv(LEFT($J51,12)),""), "<>") -> <> | S51: =IF(CELL("spalte",S51)<CELL("spalte",$P51)+$Q$2, IF(MOD(CELL("zeile",S51)-CELL("zeile",S$4),$Q$2)=MOD(CELL("spalte",S51)-(CELL("spalte",$P51)),$Q$2),ean_conv(LEFT($J51,12)),""), "<>") -> <> | T51: =IF(CELL("spalte",T51)<CELL("spalte",$P51)+$Q$2, IF(MOD(CELL("zeile",T51)-CELL("zeile",T$4),$Q$2)=MOD(CELL("spalte",T51)-(CELL("spalte",$P51)),$Q$2),ean_conv(LEFT($J51,12)),""), "<>") -> <> | U51: =IF(CELL("spalte",U51)<CELL("spalte",$P51)+$Q$2, IF(MOD(CELL("zeile",U51)-CELL("zeile",U$4),$Q$2)=MOD(CELL("spalte",U51)-(CELL("spalte",$P51)),$Q$2),ean_conv(LEFT($J51,12)),""), "<>") -> <> | V51: =IF(CELL("spalte",V51)<CELL("spalte",$P51)+$Q$2, IF(MOD(CELL("zeile",V51)-CELL("zeile",V$4),$Q$2)=MOD(CELL("spalte",V51)-(CELL("spalte",$P51)),$Q$2),ean_conv(LEFT($J51,12)),""), "<>") -> <> | W51: =IF(CELL("spalte",W51)<CELL("spalte",$P51)+$Q$2, IF(MOD(CELL("zeile",W51)-CELL("zeile",W$4),$Q$2)=MOD(CELL("spalte",W51)-(CELL("spalte",$P51)),$Q$2),ean_conv(LEFT($J51,12)),""), "<>") -> <> | X51: =IF(CELL("spalte",X51)<CELL("spalte",$P51)+$Q$2, IF(MOD(CELL("zeile",X51)-CELL("zeile",X$4),$Q$2)=MOD(CELL("spalte",X51)-(CELL("spalte",$P51)),$Q$2),ean_conv(LEFT($J51,12)),""), "<>") -> <> | Y51: =IF(CELL("spalte",Y51)<CELL("spalte",$P51)+$Q$2, IF(MOD(CELL("zeile",Y51)-CELL("zeile",Y$4),$Q$2)=MOD(CELL("spalte",Y51)-(CELL("spalte",$P51)),$Q$2),ean_conv(LEFT($J51,12)),""), "<>") -> <>
A52: 49 | B52: A Couple of Cuckoos | C52: 10 | D52: Comedy | F52: deu | G52: Standard | H52: Carlsen Manga | I52: X | J52: 9783551793850 | L52: =IF(B52<>"",B52&Trenner&Einschluss&F52&Einschluss,"") -> A Couple of Cuckoos •deu• | M52: =IF(C52<>"", IF(ISNUMBER(C52), IF(COUNTIF(Sort_Titel,L52)>99,L52&Trenner&TEXT(C52,"000"), IF(COUNTIF(Sort_Titel,L52)>9,L52&Trenner&TEXT(C52,"00"),L52&Trenner&TEXT(C52,"0")) ),L52&Trenner&C52 ),IF(L52<>"",L52,Titel_Leer) ) -> A Couple of Cuckoos •deu• 10 | O52: Seite 1 | P52: =IF(CELL("spalte",P52)<CELL("spalte",$P52)+$Q$2, IF(MOD(CELL("zeile",P52)-CELL("zeile",P$4),$Q$2)=MOD(CELL("spalte",P52)-(CELL("spalte",$P52)),$Q$2),ean_conv(LEFT($J52,12)),""), "<>") -> <> | Q52: =IF(CELL("spalte",Q52)<CELL("spalte",$P52)+$Q$2, IF(MOD(CELL("zeile",Q52)-CELL("zeile",Q$4),$Q$2)=MOD(CELL("spalte",Q52)-(CELL("spalte",$P52)),$Q$2),ean_conv(LEFT($J52,12)),""), "<>") -> <> | R52: =IF(CELL("spalte",R52)<CELL("spalte",$P52)+$Q$2, IF(MOD(CELL("zeile",R52)-CELL("zeile",R$4),$Q$2)=MOD(CELL("spalte",R52)-(CELL("spalte",$P52)),$Q$2),ean_conv(LEFT($J52,12)),""), "<>") -> <> | S52: =IF(CELL("spalte",S52)<CELL("spalte",$P52)+$Q$2, IF(MOD(CELL("zeile",S52)-CELL("zeile",S$4),$Q$2)=MOD(CELL("spalte",S52)-(CELL("spalte",$P52)),$Q$2),ean_conv(LEFT($J52,12)),""), "<>") -> <> | T52: =IF(CELL("spalte",T52)<CELL("spalte",$P52)+$Q$2, IF(MOD(CELL("zeile",T52)-CELL("zeile",T$4),$Q$2)=MOD(CELL("spalte",T52)-(CELL("spalte",$P52)),$Q$2),ean_conv(LEFT($J52,12)),""), "<>") -> <> | U52: =IF(CELL("spalte",U52)<CELL("spalte",$P52)+$Q$2, IF(MOD(CELL("zeile",U52)-CELL("zeile",U$4),$Q$2)=MOD(CELL("spalte",U52)-(CELL("spalte",$P52)),$Q$2),ean_conv(LEFT($J52,12)),""), "<>") -> <> | V52: =IF(CELL("spalte",V52)<CELL("spalte",$P52)+$Q$2, IF(MOD(CELL("zeile",V52)-CELL("zeile",V$4),$Q$2)=MOD(CELL("spalte",V52)-(CELL("spalte",$P52)),$Q$2),ean_conv(LEFT($J52,12)),""), "<>") -> <> | W52: =IF(CELL("spalte",W52)<CELL("spalte",$P52)+$Q$2, IF(MOD(CELL("zeile",W52)-CELL("zeile",W$4),$Q$2)=MOD(CELL("spalte",W52)-(CELL("spalte",$P52)),$Q$2),ean_conv(LEFT($J52,12)),""), "<>") -> <> | X52: =IF(CELL("spalte",X52)<CELL("spalte",$P52)+$Q$2, IF(MOD(CELL("zeile",X52)-CELL("zeile",X$4),$Q$2)=MOD(CELL("spalte",X52)-(CELL("spalte",$P52)),$Q$2),ean_conv(LEFT($J52,12)),""), "<>") -> <> | Y52: =IF(CELL("spalte",Y52)<CELL("spalte",$P52)+$Q$2, IF(MOD(CELL("zeile",Y52)-CELL("zeile",Y$4),$Q$2)=MOD(CELL("spalte",Y52)-(CELL("spalte",$P52)),$Q$2),ean_conv(LEFT($J52,12)),""), "<>") -> <>
A53: 50 | B53: A Couple of Cuckoos | C53: 11 | D53: Comedy | F53: deu | G53: Standard | H53: Carlsen Manga | I53: X | J53: 9783551741479 | L53: =IF(B53<>"",B53&Trenner&Einschluss&F53&Einschluss,"") -> A Couple of Cuckoos •deu• | M53: =IF(C53<>"", IF(ISNUMBER(C53), IF(COUNTIF(Sort_Titel,L53)>99,L53&Trenner&TEXT(C53,"000"), IF(COUNTIF(Sort_Titel,L53)>9,L53&Trenner&TEXT(C53,"00"),L53&Trenner&TEXT(C53,"0")) ),L53&Trenner&C53 ),IF(L53<>"",L53,Titel_Leer) ) -> A Couple of Cuckoos •deu• 11 | O53: Seite 1 | P53: =IF(CELL("spalte",P53)<CELL("spalte",$P53)+$Q$2, IF(MOD(CELL("zeile",P53)-CELL("zeile",P$4),$Q$2)=MOD(CELL("spalte",P53)-(CELL("spalte",$P53)),$Q$2),ean_conv(LEFT($J53,12)),""), "<>") -> <> | Q53: =IF(CELL("spalte",Q53)<CELL("spalte",$P53)+$Q$2, IF(MOD(CELL("zeile",Q53)-CELL("zeile",Q$4),$Q$2)=MOD(CELL("spalte",Q53)-(CELL("spalte",$P53)),$Q$2),ean_conv(LEFT($J53,12)),""), "<>") -> <> | R53: =IF(CELL("spalte",R53)<CELL("spalte",$P53)+$Q$2, IF(MOD(CELL("zeile",R53)-CELL("zeile",R$4),$Q$2)=MOD(CELL("spalte",R53)-(CELL("spalte",$P53)),$Q$2),ean_conv(LEFT($J53,12)),""), "<>") -> <> | S53: =IF(CELL("spalte",S53)<CELL("spalte",$P53)+$Q$2, IF(MOD(CELL("zeile",S53)-CELL("zeile",S$4),$Q$2)=MOD(CELL("spalte",S53)-(CELL("spalte",$P53)),$Q$2),ean_conv(LEFT($J53,12)),""), "<>") -> <> | T53: =IF(CELL("spalte",T53)<CELL("spalte",$P53)+$Q$2, IF(MOD(CELL("zeile",T53)-CELL("zeile",T$4),$Q$2)=MOD(CELL("spalte",T53)-(CELL("spalte",$P53)),$Q$2),ean_conv(LEFT($J53,12)),""), "<>") -> <> | U53: =IF(CELL("spalte",U53)<CELL("spalte",$P53)+$Q$2, IF(MOD(CELL("zeile",U53)-CELL("zeile",U$4),$Q$2)=MOD(CELL("spalte",U53)-(CELL("spalte",$P53)),$Q$2),ean_conv(LEFT($J53,12)),""), "<>") -> <> | V53: =IF(CELL("spalte",V53)<CELL("spalte",$P53)+$Q$2, IF(MOD(CELL("zeile",V53)-CELL("zeile",V$4),$Q$2)=MOD(CELL("spalte",V53)-(CELL("spalte",$P53)),$Q$2),ean_conv(LEFT($J53,12)),""), "<>") -> <> | W53: =IF(CELL("spalte",W53)<CELL("spalte",$P53)+$Q$2, IF(MOD(CELL("zeile",W53)-CELL("zeile",W$4),$Q$2)=MOD(CELL("spalte",W53)-(CELL("spalte",$P53)),$Q$2),ean_conv(LEFT($J53,12)),""), "<>") -> <> | X53: =IF(CELL("spalte",X53)<CELL("spalte",$P53)+$Q$2, IF(MOD(CELL("zeile",X53)-CELL("zeile",X$4),$Q$2)=MOD(CELL("spalte",X53)-(CELL("spalte",$P53)),$Q$2),ean_conv(LEFT($J53,12)),""), "<>") -> <> | Y53: =IF(CELL("spalte",Y53)<CELL("spalte",$P53)+$Q$2, IF(MOD(CELL("zeile",Y53)-CELL("zeile",Y$4),$Q$2)=MOD(CELL("spalte",Y53)-(CELL("spalte",$P53)),$Q$2),ean_conv(LEFT($J53,12)),""), "<>") -> <>
A54: 51 | B54: A Couple of Cuckoos | C54: 12 | D54: Comedy | F54: deu | G54: Standard | H54: Carlsen Manga | I54: X | J54: 9783551742094 | L54: =IF(B54<>"",B54&Trenner&Einschluss&F54&Einschluss,"") -> A Couple of Cuckoos •deu• | M54: =IF(C54<>"", IF(ISNUMBER(C54), IF(COUNTIF(Sort_Titel,L54)>99,L54&Trenner&TEXT(C54,"000"), IF(COUNTIF(Sort_Titel,L54)>9,L54&Trenner&TEXT(C54,"00"),L54&Trenner&TEXT(C54,"0")) ),L54&Trenner&C54 ),IF(L54<>"",L54,Titel_Leer) ) -> A Couple of Cuckoos •deu• 12 | O54: Seite 1 | P54: =IF(CELL("spalte",P54)<CELL("spalte",$P54)+$Q$2, IF(MOD(CELL("zeile",P54)-CELL("zeile",P$4),$Q$2)=MOD(CELL("spalte",P54)-(CELL("spalte",$P54)),$Q$2),ean_conv(LEFT($J54,12)),""), "<>") -> <> | Q54: =IF(CELL("spalte",Q54)<CELL("spalte",$P54)+$Q$2, IF(MOD(CELL("zeile",Q54)-CELL("zeile",Q$4),$Q$2)=MOD(CELL("spalte",Q54)-(CELL("spalte",$P54)),$Q$2),ean_conv(LEFT($J54,12)),""), "<>") -> <> | R54: =IF(CELL("spalte",R54)<CELL("spalte",$P54)+$Q$2, IF(MOD(CELL("zeile",R54)-CELL("zeile",R$4),$Q$2)=MOD(CELL("spalte",R54)-(CELL("spalte",$P54)),$Q$2),ean_conv(LEFT($J54,12)),""), "<>") -> <> | S54: =IF(CELL("spalte",S54)<CELL("spalte",$P54)+$Q$2, IF(MOD(CELL("zeile",S54)-CELL("zeile",S$4),$Q$2)=MOD(CELL("spalte",S54)-(CELL("spalte",$P54)),$Q$2),ean_conv(LEFT($J54,12)),""), "<>") -> <> | T54: =IF(CELL("spalte",T54)<CELL("spalte",$P54)+$Q$2, IF(MOD(CELL("zeile",T54)-CELL("zeile",T$4),$Q$2)=MOD(CELL("spalte",T54)-(CELL("spalte",$P54)),$Q$2),ean_conv(LEFT($J54,12)),""), "<>") -> <> | U54: =IF(CELL("spalte",U54)<CELL("spalte",$P54)+$Q$2, IF(MOD(CELL("zeile",U54)-CELL("zeile",U$4),$Q$2)=MOD(CELL("spalte",U54)-(CELL("spalte",$P54)),$Q$2),ean_conv(LEFT($J54,12)),""), "<>") -> <> | V54: =IF(CELL("spalte",V54)<CELL("spalte",$P54)+$Q$2, IF(MOD(CELL("zeile",V54)-CELL("zeile",V$4),$Q$2)=MOD(CELL("spalte",V54)-(CELL("spalte",$P54)),$Q$2),ean_conv(LEFT($J54,12)),""), "<>") -> <> | W54: =IF(CELL("spalte",W54)<CELL("spalte",$P54)+$Q$2, IF(MOD(CELL("zeile",W54)-CELL("zeile",W$4),$Q$2)=MOD(CELL("spalte",W54)-(CELL("spalte",$P54)),$Q$2),ean_conv(LEFT($J54,12)),""), "<>") -> <> | X54: =IF(CELL("spalte",X54)<CELL("spalte",$P54)+$Q$2, IF(MOD(CELL("zeile",X54)-CELL("zeile",X$4),$Q$2)=MOD(CELL("spalte",X54)-(CELL("spalte",$P54)),$Q$2),ean_conv(LEFT($J54,12)),""), "<>") -> <> | Y54: =IF(CELL("spalte",Y54)<CELL("spalte",$P54)+$Q$2, IF(MOD(CELL("zeile",Y54)-CELL("zeile",Y$4),$Q$2)=MOD(CELL("spalte",Y54)-(CELL("spalte",$P54)),$Q$2),ean_conv(LEFT($J54,12)),""), "<>") -> <>
A55: 52 | B55: A Couple of Cuckoos | C55: 13 | D55: Comedy | F55: deu | G55: Standard | H55: Carlsen Manga | I55: X | J55: 9783551778109 | L55: =IF(B55<>"",B55&Trenner&Einschluss&F55&Einschluss,"") -> A Couple of Cuckoos •deu• | M55: =IF(C55<>"", IF(ISNUMBER(C55), IF(COUNTIF(Sort_Titel,L55)>99,L55&Trenner&TEXT(C55,"000"), IF(COUNTIF(Sort_Titel,L55)>9,L55&Trenner&TEXT(C55,"00"),L55&Trenner&TEXT(C55,"0")) ),L55&Trenner&C55 ),IF(L55<>"",L55,Titel_Leer) ) -> A Couple of Cuckoos •deu• 13 | O55: Seite 1 | P55: =IF(CELL("spalte",P55)<CELL("spalte",$P55)+$Q$2, IF(MOD(CELL("zeile",P55)-CELL("zeile",P$4),$Q$2)=MOD(CELL("spalte",P55)-(CELL("spalte",$P55)),$Q$2),ean_conv(LEFT($J55,12)),""), "<>") -> <> | Q55: =IF(CELL("spalte",Q55)<CELL("spalte",$P55)+$Q$2, IF(MOD(CELL("zeile",Q55)-CELL("zeile",Q$4),$Q$2)=MOD(CELL("spalte",Q55)-(CELL("spalte",$P55)),$Q$2),ean_conv(LEFT($J55,12)),""), "<>") -> <> | R55: =IF(CELL("spalte",R55)<CELL("spalte",$P55)+$Q$2, IF(MOD(CELL("zeile",R55)-CELL("zeile",R$4),$Q$2)=MOD(CELL("spalte",R55)-(CELL("spalte",$P55)),$Q$2),ean_conv(LEFT($J55,12)),""), "<>") -> <> | S55: =IF(CELL("spalte",S55)<CELL("spalte",$P55)+$Q$2, IF(MOD(CELL("zeile",S55)-CELL("zeile",S$4),$Q$2)=MOD(CELL("spalte",S55)-(CELL("spalte",$P55)),$Q$2),ean_conv(LEFT($J55,12)),""), "<>") -> <> | T55: =IF(CELL("spalte",T55)<CELL("spalte",$P55)+$Q$2, IF(MOD(CELL("zeile",T55)-CELL("zeile",T$4),$Q$2)=MOD(CELL("spalte",T55)-(CELL("spalte",$P55)),$Q$2),ean_conv(LEFT($J55,12)),""), "<>") -> <> | U55: =IF(CELL("spalte",U55)<CELL("spalte",$P55)+$Q$2, IF(MOD(CELL("zeile",U55)-CELL("zeile",U$4),$Q$2)=MOD(CELL("spalte",U55)-(CELL("spalte",$P55)),$Q$2),ean_conv(LEFT($J55,12)),""), "<>") -> <> | V55: =IF(CELL("spalte",V55)<CELL("spalte",$P55)+$Q$2, IF(MOD(CELL("zeile",V55)-CELL("zeile",V$4),$Q$2)=MOD(CELL("spalte",V55)-(CELL("spalte",$P55)),$Q$2),ean_conv(LEFT($J55,12)),""), "<>") -> <> | W55: =IF(CELL("spalte",W55)<CELL("spalte",$P55)+$Q$2, IF(MOD(CELL("zeile",W55)-CELL("zeile",W$4),$Q$2)=MOD(CELL("spalte",W55)-(CELL("spalte",$P55)),$Q$2),ean_conv(LEFT($J55,12)),""), "<>") -> <> | X55: =IF(CELL("spalte",X55)<CELL("spalte",$P55)+$Q$2, IF(MOD(CELL("zeile",X55)-CELL("zeile",X$4),$Q$2)=MOD(CELL("spalte",X55)-(CELL("spalte",$P55)),$Q$2),ean_conv(LEFT($J55,12)),""), "<>") -> <> | Y55: =IF(CELL("spalte",Y55)<CELL("spalte",$P55)+$Q$2, IF(MOD(CELL("zeile",Y55)-CELL("zeile",Y$4),$Q$2)=MOD(CELL("spalte",Y55)-(CELL("spalte",$P55)),$Q$2),ean_conv(LEFT($J55,12)),""), "<>") -> <>
A56: 53 | B56: A Couple of Cuckoos | C56: 14 | D56: Comedy | F56: deu | G56: Standard | H56: Carlsen Manga | I56: X | J56: 9783551778871 | L56: =IF(B56<>"",B56&Trenner&Einschluss&F56&Einschluss,"") -> A Couple of Cuckoos •deu• | M56: =IF(C56<>"", IF(ISNUMBER(C56), IF(COUNTIF(Sort_Titel,L56)>99,L56&Trenner&TEXT(C56,"000"), IF(COUNTIF(Sort_Titel,L56)>9,L56&Trenner&TEXT(C56,"00"),L56&Trenner&TEXT(C56,"0")) ),L56&Trenner&C56 ),IF(L56<>"",L56,Titel_Leer) ) -> A Couple of Cuckoos •deu• 14 | O56: Seite 1 | P56: =IF(CELL("spalte",P56)<CELL("spalte",$P56)+$Q$2, IF(MOD(CELL("zeile",P56)-CELL("zeile",P$4),$Q$2)=MOD(CELL("spalte",P56)-(CELL("spalte",$P56)),$Q$2),ean_conv(LEFT($J56,12)),""), "<>") -> <> | Q56: =IF(CELL("spalte",Q56)<CELL("spalte",$P56)+$Q$2, IF(MOD(CELL("zeile",Q56)-CELL("zeile",Q$4),$Q$2)=MOD(CELL("spalte",Q56)-(CELL("spalte",$P56)),$Q$2),ean_conv(LEFT($J56,12)),""), "<>") -> <> | R56: =IF(CELL("spalte",R56)<CELL("spalte",$P56)+$Q$2, IF(MOD(CELL("zeile",R56)-CELL("zeile",R$4),$Q$2)=MOD(CELL("spalte",R56)-(CELL("spalte",$P56)),$Q$2),ean_conv(LEFT($J56,12)),""), "<>") -> <> | S56: =IF(CELL("spalte",S56)<CELL("spalte",$P56)+$Q$2, IF(MOD(CELL("zeile",S56)-CELL("zeile",S$4),$Q$2)=MOD(CELL("spalte",S56)-(CELL("spalte",$P56)),$Q$2),ean_conv(LEFT($J56,12)),""), "<>") -> <> | T56: =IF(CELL("spalte",T56)<CELL("spalte",$P56)+$Q$2, IF(MOD(CELL("zeile",T56)-CELL("zeile",T$4),$Q$2)=MOD(CELL("spalte",T56)-(CELL("spalte",$P56)),$Q$2),ean_conv(LEFT($J56,12)),""), "<>") -> <> | U56: =IF(CELL("spalte",U56)<CELL("spalte",$P56)+$Q$2, IF(MOD(CELL("zeile",U56)-CELL("zeile",U$4),$Q$2)=MOD(CELL("spalte",U56)-(CELL("spalte",$P56)),$Q$2),ean_conv(LEFT($J56,12)),""), "<>") -> <> | V56: =IF(CELL("spalte",V56)<CELL("spalte",$P56)+$Q$2, IF(MOD(CELL("zeile",V56)-CELL("zeile",V$4),$Q$2)=MOD(CELL("spalte",V56)-(CELL("spalte",$P56)),$Q$2),ean_conv(LEFT($J56,12)),""), "<>") -> <> | W56: =IF(CELL("spalte",W56)<CELL("spalte",$P56)+$Q$2, IF(MOD(CELL("zeile",W56)-CELL("zeile",W$4),$Q$2)=MOD(CELL("spalte",W56)-(CELL("spalte",$P56)),$Q$2),ean_conv(LEFT($J56,12)),""), "<>") -> <> | X56: =IF(CELL("spalte",X56)<CELL("spalte",$P56)+$Q$2, IF(MOD(CELL("zeile",X56)-CELL("zeile",X$4),$Q$2)=MOD(CELL("spalte",X56)-(CELL("spalte",$P56)),$Q$2),ean_conv(LEFT($J56,12)),""), "<>") -> <> | Y56: =IF(CELL("spalte",Y56)<CELL("spalte",$P56)+$Q$2, IF(MOD(CELL("zeile",Y56)-CELL("zeile",Y$4),$Q$2)=MOD(CELL("spalte",Y56)-(CELL("spalte",$P56)),$Q$2),ean_conv(LEFT($J56,12)),""), "<>") -> <>
A57: 54 | B57: A Couple of Cuckoos | C57: 15 | D57: Comedy | F57: deu | G57: Standard | H57: Carlsen Manga | J57: 9783551779052 | L57: =IF(B57<>"",B57&Trenner&Einschluss&F57&Einschluss,"") -> A Couple of Cuckoos •deu• | M57: =IF(C57<>"", IF(ISNUMBER(C57), IF(COUNTIF(Sort_Titel,L57)>99,L57&Trenner&TEXT(C57,"000"), IF(COUNTIF(Sort_Titel,L57)>9,L57&Trenner&TEXT(C57,"00"),L57&Trenner&TEXT(C57,"0")) ),L57&Trenner&C57 ),IF(L57<>"",L57,Titel_Leer) ) -> A Couple of Cuckoos •deu• 15 | O57: Seite 1 | P57: =IF(CELL("spalte",P57)<CELL("spalte",$P57)+$Q$2, IF(MOD(CELL("zeile",P57)-CELL("zeile",P$4),$Q$2)=MOD(CELL("spalte",P57)-(CELL("spalte",$P57)),$Q$2),ean_conv(LEFT($J57,12)),""), "<>") -> <> | Q57: =IF(CELL("spalte",Q57)<CELL("spalte",$P57)+$Q$2, IF(MOD(CELL("zeile",Q57)-CELL("zeile",Q$4),$Q$2)=MOD(CELL("spalte",Q57)-(CELL("spalte",$P57)),$Q$2),ean_conv(LEFT($J57,12)),""), "<>") -> <> | R57: =IF(CELL("spalte",R57)<CELL("spalte",$P57)+$Q$2, IF(MOD(CELL("zeile",R57)-CELL("zeile",R$4),$Q$2)=MOD(CELL("spalte",R57)-(CELL("spalte",$P57)),$Q$2),ean_conv(LEFT($J57,12)),""), "<>") -> <> | S57: =IF(CELL("spalte",S57)<CELL("spalte",$P57)+$Q$2, IF(MOD(CELL("zeile",S57)-CELL("zeile",S$4),$Q$2)=MOD(CELL("spalte",S57)-(CELL("spalte",$P57)),$Q$2),ean_conv(LEFT($J57,12)),""), "<>") -> <> | T57: =IF(CELL("spalte",T57)<CELL("spalte",$P57)+$Q$2, IF(MOD(CELL("zeile",T57)-CELL("zeile",T$4),$Q$2)=MOD(CELL("spalte",T57)-(CELL("spalte",$P57)),$Q$2),ean_conv(LEFT($J57,12)),""), "<>") -> <> | U57: =IF(CELL("spalte",U57)<CELL("spalte",$P57)+$Q$2, IF(MOD(CELL("zeile",U57)-CELL("zeile",U$4),$Q$2)=MOD(CELL("spalte",U57)-(CELL("spalte",$P57)),$Q$2),ean_conv(LEFT($J57,12)),""), "<>") -> <> | V57: =IF(CELL("spalte",V57)<CELL("spalte",$P57)+$Q$2, IF(MOD(CELL("zeile",V57)-CELL("zeile",V$4),$Q$2)=MOD(CELL("spalte",V57)-(CELL("spalte",$P57)),$Q$2),ean_conv(LEFT($J57,12)),""), "<>") -> <> | W57: =IF(CELL("spalte",W57)<CELL("spalte",$P57)+$Q$2, IF(MOD(CELL("zeile",W57)-CELL("zeile",W$4),$Q$2)=MOD(CELL("spalte",W57)-(CELL("spalte",$P57)),$Q$2),ean_conv(LEFT($J57,12)),""), "<>") -> <> | X57: =IF(CELL("spalte",X57)<CELL("spalte",$P57)+$Q$2, IF(MOD(CELL("zeile",X57)-CELL("zeile",X$4),$Q$2)=MOD(CELL("spalte",X57)-(CELL("spalte",$P57)),$Q$2),ean_conv(LEFT($J57,12)),""), "<>") -> <> | Y57: =IF(CELL("spalte",Y57)<CELL("spalte",$P57)+$Q$2, IF(MOD(CELL("zeile",Y57)-CELL("zeile",Y$4),$Q$2)=MOD(CELL("spalte",Y57)-(CELL("spalte",$P57)),$Q$2),ean_conv(LEFT($J57,12)),""), "<>") -> <>
A58: 55 | B58: A Couple of Cuckoos | C58: 16 | D58: Comedy | F58: deu | G58: Standard | H58: Carlsen Manga | J58: 9783551801272 | L58: =IF(B58<>"",B58&Trenner&Einschluss&F58&Einschluss,"") -> A Couple of Cuckoos •deu• | M58: =IF(C58<>"", IF(ISNUMBER(C58), IF(COUNTIF(Sort_Titel,L58)>99,L58&Trenner&TEXT(C58,"000"), IF(COUNTIF(Sort_Titel,L58)>9,L58&Trenner&TEXT(C58,"00"),L58&Trenner&TEXT(C58,"0")) ),L58&Trenner&C58 ),IF(L58<>"",L58,Titel_Leer) ) -> A Couple of Cuckoos •deu• 16 | O58: Seite 1 | P58: =IF(CELL("spalte",P58)<CELL("spalte",$P58)+$Q$2, IF(MOD(CELL("zeile",P58)-CELL("zeile",P$4),$Q$2)=MOD(CELL("spalte",P58)-(CELL("spalte",$P58)),$Q$2),ean_conv(LEFT($J58,12)),""), "<>") -> <> | Q58: =IF(CELL("spalte",Q58)<CELL("spalte",$P58)+$Q$2, IF(MOD(CELL("zeile",Q58)-CELL("zeile",Q$4),$Q$2)=MOD(CELL("spalte",Q58)-(CELL("spalte",$P58)),$Q$2),ean_conv(LEFT($J58,12)),""), "<>") -> <> | R58: =IF(CELL("spalte",R58)<CELL("spalte",$P58)+$Q$2, IF(MOD(CELL("zeile",R58)-CELL("zeile",R$4),$Q$2)=MOD(CELL("spalte",R58)-(CELL("spalte",$P58)),$Q$2),ean_conv(LEFT($J58,12)),""), "<>") -> <> | S58: =IF(CELL("spalte",S58)<CELL("spalte",$P58)+$Q$2, IF(MOD(CELL("zeile",S58)-CELL("zeile",S$4),$Q$2)=MOD(CELL("spalte",S58)-(CELL("spalte",$P58)),$Q$2),ean_conv(LEFT($J58,12)),""), "<>") -> <> | T58: =IF(CELL("spalte",T58)<CELL("spalte",$P58)+$Q$2, IF(MOD(CELL("zeile",T58)-CELL("zeile",T$4),$Q$2)=MOD(CELL("spalte",T58)-(CELL("spalte",$P58)),$Q$2),ean_conv(LEFT($J58,12)),""), "<>") -> <> | U58: =IF(CELL("spalte",U58)<CELL("spalte",$P58)+$Q$2, IF(MOD(CELL("zeile",U58)-CELL("zeile",U$4),$Q$2)=MOD(CELL("spalte",U58)-(CELL("spalte",$P58)),$Q$2),ean_conv(LEFT($J58,12)),""), "<>") -> <> | V58: =IF(CELL("spalte",V58)<CELL("spalte",$P58)+$Q$2, IF(MOD(CELL("zeile",V58)-CELL("zeile",V$4),$Q$2)=MOD(CELL("spalte",V58)-(CELL("spalte",$P58)),$Q$2),ean_conv(LEFT($J58,12)),""), "<>") -> <> | W58: =IF(CELL("spalte",W58)<CELL("spalte",$P58)+$Q$2, IF(MOD(CELL("zeile",W58)-CELL("zeile",W$4),$Q$2)=MOD(CELL("spalte",W58)-(CELL("spalte",$P58)),$Q$2),ean_conv(LEFT($J58,12)),""), "<>") -> <> | X58: =IF(CELL("spalte",X58)<CELL("spalte",$P58)+$Q$2, IF(MOD(CELL("zeile",X58)-CELL("zeile",X$4),$Q$2)=MOD(CELL("spalte",X58)-(CELL("spalte",$P58)),$Q$2),ean_conv(LEFT($J58,12)),""), "<>") -> <> | Y58: =IF(CELL("spalte",Y58)<CELL("spalte",$P58)+$Q$2, IF(MOD(CELL("zeile",Y58)-CELL("zeile",Y$4),$Q$2)=MOD(CELL("spalte",Y58)-(CELL("spalte",$P58)),$Q$2),ean_conv(LEFT($J58,12)),""), "<>") -> <>
A59: 56 | B59: A Couple of Cuckoos | C59: 17 | D59: Comedy | F59: deu | G59: Standard | H59: Carlsen Manga | J59: 9783551802309 | L59: =IF(B59<>"",B59&Trenner&Einschluss&F59&Einschluss,"") -> A Couple of Cuckoos •deu• | M59: =IF(C59<>"", IF(ISNUMBER(C59), IF(COUNTIF(Sort_Titel,L59)>99,L59&Trenner&TEXT(C59,"000"), IF(COUNTIF(Sort_Titel,L59)>9,L59&Trenner&TEXT(C59,"00"),L59&Trenner&TEXT(C59,"0")) ),L59&Trenner&C59 ),IF(L59<>"",L59,Titel_Leer) ) -> A Couple of Cuckoos •deu• 17 | O59: Seite 1 | P59: =IF(CELL("spalte",P59)<CELL("spalte",$P59)+$Q$2, IF(MOD(CELL("zeile",P59)-CELL("zeile",P$4),$Q$2)=MOD(CELL("spalte",P59)-(CELL("spalte",$P59)),$Q$2),ean_conv(LEFT($J59,12)),""), "<>") -> <> | Q59: =IF(CELL("spalte",Q59)<CELL("spalte",$P59)+$Q$2, IF(MOD(CELL("zeile",Q59)-CELL("zeile",Q$4),$Q$2)=MOD(CELL("spalte",Q59)-(CELL("spalte",$P59)),$Q$2),ean_conv(LEFT($J59,12)),""), "<>") -> <> | R59: =IF(CELL("spalte",R59)<CELL("spalte",$P59)+$Q$2, IF(MOD(CELL("zeile",R59)-CELL("zeile",R$4),$Q$2)=MOD(CELL("spalte",R59)-(CELL("spalte",$P59)),$Q$2),ean_conv(LEFT($J59,12)),""), "<>") -> <> | S59: =IF(CELL("spalte",S59)<CELL("spalte",$P59)+$Q$2, IF(MOD(CELL("zeile",S59)-CELL("zeile",S$4),$Q$2)=MOD(CELL("spalte",S59)-(CELL("spalte",$P59)),$Q$2),ean_conv(LEFT($J59,12)),""), "<>") -> <> | T59: =IF(CELL("spalte",T59)<CELL("spalte",$P59)+$Q$2, IF(MOD(CELL("zeile",T59)-CELL("zeile",T$4),$Q$2)=MOD(CELL("spalte",T59)-(CELL("spalte",$P59)),$Q$2),ean_conv(LEFT($J59,12)),""), "<>") -> <> | U59: =IF(CELL("spalte",U59)<CELL("spalte",$P59)+$Q$2, IF(MOD(CELL("zeile",U59)-CELL("zeile",U$4),$Q$2)=MOD(CELL("spalte",U59)-(CELL("spalte",$P59)),$Q$2),ean_conv(LEFT($J59,12)),""), "<>") -> <> | V59: =IF(CELL("spalte",V59)<CELL("spalte",$P59)+$Q$2, IF(MOD(CELL("zeile",V59)-CELL("zeile",V$4),$Q$2)=MOD(CELL("spalte",V59)-(CELL("spalte",$P59)),$Q$2),ean_conv(LEFT($J59,12)),""), "<>") -> <> | W59: =IF(CELL("spalte",W59)<CELL("spalte",$P59)+$Q$2, IF(MOD(CELL("zeile",W59)-CELL("zeile",W$4),$Q$2)=MOD(CELL("spalte",W59)-(CELL("spalte",$P59)),$Q$2),ean_conv(LEFT($J59,12)),""), "<>") -> <> | X59: =IF(CELL("spalte",X59)<CELL("spalte",$P59)+$Q$2, IF(MOD(CELL("zeile",X59)-CELL("zeile",X$4),$Q$2)=MOD(CELL("spalte",X59)-(CELL("spalte",$P59)),$Q$2),ean_conv(LEFT($J59,12)),""), "<>") -> <> | Y59: =IF(CELL("spalte",Y59)<CELL("spalte",$P59)+$Q$2, IF(MOD(CELL("zeile",Y59)-CELL("zeile",Y$4),$Q$2)=MOD(CELL("spalte",Y59)-(CELL("spalte",$P59)),$Q$2),ean_conv(LEFT($J59,12)),""), "<>") -> <>
A60: 57 | B60: A Couple of Cuckoos | C60: 18 | D60: Comedy | F60: deu | G60: Standard | H60: Carlsen Manga | J60: 9783551802316 | L60: =IF(B60<>"",B60&Trenner&Einschluss&F60&Einschluss,"") -> A Couple of Cuckoos •deu• | M60: =IF(C60<>"", IF(ISNUMBER(C60), IF(COUNTIF(Sort_Titel,L60)>99,L60&Trenner&TEXT(C60,"000"), IF(COUNTIF(Sort_Titel,L60)>9,L60&Trenner&TEXT(C60,"00"),L60&Trenner&TEXT(C60,"0")) ),L60&Trenner&C60 ),IF(L60<>"",L60,Titel_Leer) ) -> A Couple of Cuckoos •deu• 18 | O60: Seite 1 | P60: =IF(CELL("spalte",P60)<CELL("spalte",$P60)+$Q$2, IF(MOD(CELL("zeile",P60)-CELL("zeile",P$4),$Q$2)=MOD(CELL("spalte",P60)-(CELL("spalte",$P60)),$Q$2),ean_conv(LEFT($J60,12)),""), "<>") -> <> | Q60: =IF(CELL("spalte",Q60)<CELL("spalte",$P60)+$Q$2, IF(MOD(CELL("zeile",Q60)-CELL("zeile",Q$4),$Q$2)=MOD(CELL("spalte",Q60)-(CELL("spalte",$P60)),$Q$2),ean_conv(LEFT($J60,12)),""), "<>") -> <> | R60: =IF(CELL("spalte",R60)<CELL("spalte",$P60)+$Q$2, IF(MOD(CELL("zeile",R60)-CELL("zeile",R$4),$Q$2)=MOD(CELL("spalte",R60)-(CELL("spalte",$P60)),$Q$2),ean_conv(LEFT($J60,12)),""), "<>") -> <> | S60: =IF(CELL("spalte",S60)<CELL("spalte",$P60)+$Q$2, IF(MOD(CELL("zeile",S60)-CELL("zeile",S$4),$Q$2)=MOD(CELL("spalte",S60)-(CELL("spalte",$P60)),$Q$2),ean_conv(LEFT($J60,12)),""), "<>") -> <> | T60: =IF(CELL("spalte",T60)<CELL("spalte",$P60)+$Q$2, IF(MOD(CELL("zeile",T60)-CELL("zeile",T$4),$Q$2)=MOD(CELL("spalte",T60)-(CELL("spalte",$P60)),$Q$2),ean_conv(LEFT($J60,12)),""), "<>") -> <> | U60: =IF(CELL("spalte",U60)<CELL("spalte",$P60)+$Q$2, IF(MOD(CELL("zeile",U60)-CELL("zeile",U$4),$Q$2)=MOD(CELL("spalte",U60)-(CELL("spalte",$P60)),$Q$2),ean_conv(LEFT($J60,12)),""), "<>") -> <> | V60: =IF(CELL("spalte",V60)<CELL("spalte",$P60)+$Q$2, IF(MOD(CELL("zeile",V60)-CELL("zeile",V$4),$Q$2)=MOD(CELL("spalte",V60)-(CELL("spalte",$P60)),$Q$2),ean_conv(LEFT($J60,12)),""), "<>") -> <> | W60: =IF(CELL("spalte",W60)<CELL("spalte",$P60)+$Q$2, IF(MOD(CELL("zeile",W60)-CELL("zeile",W$4),$Q$2)=MOD(CELL("spalte",W60)-(CELL("spalte",$P60)),$Q$2),ean_conv(LEFT($J60,12)),""), "<>") -> <> | X60: =IF(CELL("spalte",X60)<CELL("spalte",$P60)+$Q$2, IF(MOD(CELL("zeile",X60)-CELL("zeile",X$4),$Q$2)=MOD(CELL("spalte",X60)-(CELL("spalte",$P60)),$Q$2),ean_conv(LEFT($J60,12)),""), "<>") -> <> | Y60: =IF(CELL("spalte",Y60)<CELL("spalte",$P60)+$Q$2, IF(MOD(CELL("zeile",Y60)-CELL("zeile",Y$4),$Q$2)=MOD(CELL("spalte",Y60)-(CELL("spalte",$P60)),$Q$2),ean_conv(LEFT($J60,12)),""), "<>") -> <>
A61: 58 | B61: A Healthy Appetite | D61: Hentai | E61: X | F61: eng | G61: Groß | H61: Fakku Books | I61: X | J61: 9781634420587 | L61: =IF(B61<>"",B61&Trenner&Einschluss&F61&Einschluss,"") -> A Healthy Appetite •eng• | M61: =IF(C61<>"", IF(ISNUMBER(C61), IF(COUNTIF(Sort_Titel,L61)>99,L61&Trenner&TEXT(C61,"000"), IF(COUNTIF(Sort_Titel,L61)>9,L61&Trenner&TEXT(C61,"00"),L61&Trenner&TEXT(C61,"0")) ),L61&Trenner&C61 ),IF(L61<>"",L61,Titel_Leer) ) -> A Healthy Appetite •eng• | O61: Seite 1 | P61: =IF(CELL("spalte",P61)<CELL("spalte",$P61)+$Q$2, IF(MOD(CELL("zeile",P61)-CELL("zeile",P$4),$Q$2)=MOD(CELL("spalte",P61)-(CELL("spalte",$P61)),$Q$2),ean_conv(LEFT($J61,12)),""), "<>") -> <> | Q61: =IF(CELL("spalte",Q61)<CELL("spalte",$P61)+$Q$2, IF(MOD(CELL("zeile",Q61)-CELL("zeile",Q$4),$Q$2)=MOD(CELL("spalte",Q61)-(CELL("spalte",$P61)),$Q$2),ean_conv(LEFT($J61,12)),""), "<>") -> <> | R61: =IF(CELL("spalte",R61)<CELL("spalte",$P61)+$Q$2, IF(MOD(CELL("zeile",R61)-CELL("zeile",R$4),$Q$2)=MOD(CELL("spalte",R61)-(CELL("spalte",$P61)),$Q$2),ean_conv(LEFT($J61,12)),""), "<>") -> <> | S61: =IF(CELL("spalte",S61)<CELL("spalte",$P61)+$Q$2, IF(MOD(CELL("zeile",S61)-CELL("zeile",S$4),$Q$2)=MOD(CELL("spalte",S61)-(CELL("spalte",$P61)),$Q$2),ean_conv(LEFT($J61,12)),""), "<>") -> <> | T61: =IF(CELL("spalte",T61)<CELL("spalte",$P61)+$Q$2, IF(MOD(CELL("zeile",T61)-CELL("zeile",T$4),$Q$2)=MOD(CELL("spalte",T61)-(CELL("spalte",$P61)),$Q$2),ean_conv(LEFT($J61,12)),""), "<>") -> <> | U61: =IF(CELL("spalte",U61)<CELL("spalte",$P61)+$Q$2, IF(MOD(CELL("zeile",U61)-CELL("zeile",U$4),$Q$2)=MOD(CELL("spalte",U61)-(CELL("spalte",$P61)),$Q$2),ean_conv(LEFT($J61,12)),""), "<>") -> <> | V61: =IF(CELL("spalte",V61)<CELL("spalte",$P61)+$Q$2, IF(MOD(CELL("zeile",V61)-CELL("zeile",V$4),$Q$2)=MOD(CELL("spalte",V61)-(CELL("spalte",$P61)),$Q$2),ean_conv(LEFT($J61,12)),""), "<>") -> <> | W61: =IF(CELL("spalte",W61)<CELL("spalte",$P61)+$Q$2, IF(MOD(CELL("zeile",W61)-CELL("zeile",W$4),$Q$2)=MOD(CELL("spalte",W61)-(CELL("spalte",$P61)),$Q$2),ean_conv(LEFT($J61,12)),""), "<>") -> <> | X61: =IF(CELL("spalte",X61)<CELL("spalte",$P61)+$Q$2, IF(MOD(CELL("zeile",X61)-CELL("zeile",X$4),$Q$2)=MOD(CELL("spalte",X61)-(CELL("spalte",$P61)),$Q$2),ean_conv(LEFT($J61,12)),""), "<>") -> <> | Y61: =IF(CELL("spalte",Y61)<CELL("spalte",$P61)+$Q$2, IF(MOD(CELL("zeile",Y61)-CELL("zeile",Y$4),$Q$2)=MOD(CELL("spalte",Y61)-(CELL("spalte",$P61)),$Q$2),ean_conv(LEFT($J61,12)),""), "<>") -> <>
A62: 59 | B62: Ab sofort Schwester! | C62: 1 | D62: Comedy | F62: deu | G62: Standard | H62: Manga Jamsession | I62: X | J62: 9783950488005 | L62: =IF(B62<>"",B62&Trenner&Einschluss&F62&Einschluss,"") -> Ab sofort Schwester! •deu• | M62: =IF(C62<>"", IF(ISNUMBER(C62), IF(COUNTIF(Sort_Titel,L62)>99,L62&Trenner&TEXT(C62,"000"), IF(COUNTIF(Sort_Titel,L62)>9,L62&Trenner&TEXT(C62,"00"),L62&Trenner&TEXT(C62,"0")) ),L62&Trenner&C62 ),IF(L62<>"",L62,Titel_Leer) ) -> Ab sofort Schwester! •deu• 1 | O62: Seite 1 | P62: =IF(CELL("spalte",P62)<CELL("spalte",$P62)+$Q$2, IF(MOD(CELL("zeile",P62)-CELL("zeile",P$4),$Q$2)=MOD(CELL("spalte",P62)-(CELL("spalte",$P62)),$Q$2),ean_conv(LEFT($J62,12)),""), "<>") -> <> | Q62: =IF(CELL("spalte",Q62)<CELL("spalte",$P62)+$Q$2, IF(MOD(CELL("zeile",Q62)-CELL("zeile",Q$4),$Q$2)=MOD(CELL("spalte",Q62)-(CELL("spalte",$P62)),$Q$2),ean_conv(LEFT($J62,12)),""), "<>") -> <> | R62: =IF(CELL("spalte",R62)<CELL("spalte",$P62)+$Q$2, IF(MOD(CELL("zeile",R62)-CELL("zeile",R$4),$Q$2)=MOD(CELL("spalte",R62)-(CELL("spalte",$P62)),$Q$2),ean_conv(LEFT($J62,12)),""), "<>") -> <> | S62: =IF(CELL("spalte",S62)<CELL("spalte",$P62)+$Q$2, IF(MOD(CELL("zeile",S62)-CELL("zeile",S$4),$Q$2)=MOD(CELL("spalte",S62)-(CELL("spalte",$P62)),$Q$2),ean_conv(LEFT($J62,12)),""), "<>") -> <> | T62: =IF(CELL("spalte",T62)<CELL("spalte",$P62)+$Q$2, IF(MOD(CELL("zeile",T62)-CELL("zeile",T$4),$Q$2)=MOD(CELL("spalte",T62)-(CELL("spalte",$P62)),$Q$2),ean_conv(LEFT($J62,12)),""), "<>") -> <> | U62: =IF(CELL("spalte",U62)<CELL("spalte",$P62)+$Q$2, IF(MOD(CELL("zeile",U62)-CELL("zeile",U$4),$Q$2)=MOD(CELL("spalte",U62)-(CELL("spalte",$P62)),$Q$2),ean_conv(LEFT($J62,12)),""), "<>") -> <> | V62: =IF(CELL("spalte",V62)<CELL("spalte",$P62)+$Q$2, IF(MOD(CELL("zeile",V62)-CELL("zeile",V$4),$Q$2)=MOD(CELL("spalte",V62)-(CELL("spalte",$P62)),$Q$2),ean_conv(LEFT($J62,12)),""), "<>") -> <> | W62: =IF(CELL("spalte",W62)<CELL("spalte",$P62)+$Q$2, IF(MOD(CELL("zeile",W62)-CELL("zeile",W$4),$Q$2)=MOD(CELL("spalte",W62)-(CELL("spalte",$P62)),$Q$2),ean_conv(LEFT($J62,12)),""), "<>") -> <> | X62: =IF(CELL("spalte",X62)<CELL("spalte",$P62)+$Q$2, IF(MOD(CELL("zeile",X62)-CELL("zeile",X$4),$Q$2)=MOD(CELL("spalte",X62)-(CELL("spalte",$P62)),$Q$2),ean_conv(LEFT($J62,12)),""), "<>") -> <> | Y62: =IF(CELL("spalte",Y62)<CELL("spalte",$P62)+$Q$2, IF(MOD(CELL("zeile",Y62)-CELL("zeile",Y$4),$Q$2)=MOD(CELL("spalte",Y62)-(CELL("spalte",$P62)),$Q$2),ean_conv(LEFT($J62,12)),""), "<>") -> <>
A63: 60 | B63: Ab sofort Schwester! | C63: 2 | D63: Comedy | F63: deu | G63: Standard | H63: Manga Jamsession | I63: X | J63: 9783950488029 | L63: =IF(B63<>"",B63&Trenner&Einschluss&F63&Einschluss,"") -> Ab sofort Schwester! •deu• | M63: =IF(C63<>"", IF(ISNUMBER(C63), IF(COUNTIF(Sort_Titel,L63)>99,L63&Trenner&TEXT(C63,"000"), IF(COUNTIF(Sort_Titel,L63)>9,L63&Trenner&TEXT(C63,"00"),L63&Trenner&TEXT(C63,"0")) ),L63&Trenner&C63 ),IF(L63<>"",L63,Titel_Leer) ) -> Ab sofort Schwester! •deu• 2 | O63: Seite 1 | P63: =IF(CELL("spalte",P63)<CELL("spalte",$P63)+$Q$2, IF(MOD(CELL("zeile",P63)-CELL("zeile",P$4),$Q$2)=MOD(CELL("spalte",P63)-(CELL("spalte",$P63)),$Q$2),ean_conv(LEFT($J63,12)),""), "<>") -> <> | Q63: =IF(CELL("spalte",Q63)<CELL("spalte",$P63)+$Q$2, IF(MOD(CELL("zeile",Q63)-CELL("zeile",Q$4),$Q$2)=MOD(CELL("spalte",Q63)-(CELL("spalte",$P63)),$Q$2),ean_conv(LEFT($J63,12)),""), "<>") -> <> | R63: =IF(CELL("spalte",R63)<CELL("spalte",$P63)+$Q$2, IF(MOD(CELL("zeile",R63)-CELL("zeile",R$4),$Q$2)=MOD(CELL("spalte",R63)-(CELL("spalte",$P63)),$Q$2),ean_conv(LEFT($J63,12)),""), "<>") -> <> | S63: =IF(CELL("spalte",S63)<CELL("spalte",$P63)+$Q$2, IF(MOD(CELL("zeile",S63)-CELL("zeile",S$4),$Q$2)=MOD(CELL("spalte",S63)-(CELL("spalte",$P63)),$Q$2),ean_conv(LEFT($J63,12)),""), "<>") -> <> | T63: =IF(CELL("spalte",T63)<CELL("spalte",$P63)+$Q$2, IF(MOD(CELL("zeile",T63)-CELL("zeile",T$4),$Q$2)=MOD(CELL("spalte",T63)-(CELL("spalte",$P63)),$Q$2),ean_conv(LEFT($J63,12)),""), "<>") -> <> | U63: =IF(CELL("spalte",U63)<CELL("spalte",$P63)+$Q$2, IF(MOD(CELL("zeile",U63)-CELL("zeile",U$4),$Q$2)=MOD(CELL("spalte",U63)-(CELL("spalte",$P63)),$Q$2),ean_conv(LEFT($J63,12)),""), "<>") -> <> | V63: =IF(CELL("spalte",V63)<CELL("spalte",$P63)+$Q$2, IF(MOD(CELL("zeile",V63)-CELL("zeile",V$4),$Q$2)=MOD(CELL("spalte",V63)-(CELL("spalte",$P63)),$Q$2),ean_conv(LEFT($J63,12)),""), "<>") -> <> | W63: =IF(CELL("spalte",W63)<CELL("spalte",$P63)+$Q$2, IF(MOD(CELL("zeile",W63)-CELL("zeile",W$4),$Q$2)=MOD(CELL("spalte",W63)-(CELL("spalte",$P63)),$Q$2),ean_conv(LEFT($J63,12)),""), "<>") -> <> | X63: =IF(CELL("spalte",X63)<CELL("spalte",$P63)+$Q$2, IF(MOD(CELL("zeile",X63)-CELL("zeile",X$4),$Q$2)=MOD(CELL("spalte",X63)-(CELL("spalte",$P63)),$Q$2),ean_conv(LEFT($J63,12)),""), "<>") -> <> | Y63: =IF(CELL("spalte",Y63)<CELL("spalte",$P63)+$Q$2, IF(MOD(CELL("zeile",Y63)-CELL("zeile",Y$4),$Q$2)=MOD(CELL("spalte",Y63)-(CELL("spalte",$P63)),$Q$2),ean_conv(LEFT($J63,12)),""), "<>") -> <>
A64: 61 | B64: Ab sofort Schwester! | C64: 3 | D64: Comedy | F64: deu | G64: Standard | H64: Manga Jamsession | I64: X | J64: 9783950488036 | L64: =IF(B64<>"",B64&Trenner&Einschluss&F64&Einschluss,"") -> Ab sofort Schwester! •deu• | M64: =IF(C64<>"", IF(ISNUMBER(C64), IF(COUNTIF(Sort_Titel,L64)>99,L64&Trenner&TEXT(C64,"000"), IF(COUNTIF(Sort_Titel,L64)>9,L64&Trenner&TEXT(C64,"00"),L64&Trenner&TEXT(C64,"0")) ),L64&Trenner&C64 ),IF(L64<>"",L64,Titel_Leer) ) -> Ab sofort Schwester! •deu• 3 | O64: Seite 1 | P64: =IF(CELL("spalte",P64)<CELL("spalte",$P64)+$Q$2, IF(MOD(CELL("zeile",P64)-CELL("zeile",P$4),$Q$2)=MOD(CELL("spalte",P64)-(CELL("spalte",$P64)),$Q$2),ean_conv(LEFT($J64,12)),""), "<>") -> <> | Q64: =IF(CELL("spalte",Q64)<CELL("spalte",$P64)+$Q$2, IF(MOD(CELL("zeile",Q64)-CELL("zeile",Q$4),$Q$2)=MOD(CELL("spalte",Q64)-(CELL("spalte",$P64)),$Q$2),ean_conv(LEFT($J64,12)),""), "<>") -> <> | R64: =IF(CELL("spalte",R64)<CELL("spalte",$P64)+$Q$2, IF(MOD(CELL("zeile",R64)-CELL("zeile",R$4),$Q$2)=MOD(CELL("spalte",R64)-(CELL("spalte",$P64)),$Q$2),ean_conv(LEFT($J64,12)),""), "<>") -> <> | S64: =IF(CELL("spalte",S64)<CELL("spalte",$P64)+$Q$2, IF(MOD(CELL("zeile",S64)-CELL("zeile",S$4),$Q$2)=MOD(CELL("spalte",S64)-(CELL("spalte",$P64)),$Q$2),ean_conv(LEFT($J64,12)),""), "<>") -> <> | T64: =IF(CELL("spalte",T64)<CELL("spalte",$P64)+$Q$2, IF(MOD(CELL("zeile",T64)-CELL("zeile",T$4),$Q$2)=MOD(CELL("spalte",T64)-(CELL("spalte",$P64)),$Q$2),ean_conv(LEFT($J64,12)),""), "<>") -> <> | U64: =IF(CELL("spalte",U64)<CELL("spalte",$P64)+$Q$2, IF(MOD(CELL("zeile",U64)-CELL("zeile",U$4),$Q$2)=MOD(CELL("spalte",U64)-(CELL("spalte",$P64)),$Q$2),ean_conv(LEFT($J64,12)),""), "<>") -> <> | V64: =IF(CELL("spalte",V64)<CELL("spalte",$P64)+$Q$2, IF(MOD(CELL("zeile",V64)-CELL("zeile",V$4),$Q$2)=MOD(CELL("spalte",V64)-(CELL("spalte",$P64)),$Q$2),ean_conv(LEFT($J64,12)),""), "<>") -> <> | W64: =IF(CELL("spalte",W64)<CELL("spalte",$P64)+$Q$2, IF(MOD(CELL("zeile",W64)-CELL("zeile",W$4),$Q$2)=MOD(CELL("spalte",W64)-(CELL("spalte",$P64)),$Q$2),ean_conv(LEFT($J64,12)),""), "<>") -> <> | X64: =IF(CELL("spalte",X64)<CELL("spalte",$P64)+$Q$2, IF(MOD(CELL("zeile",X64)-CELL("zeile",X$4),$Q$2)=MOD(CELL("spalte",X64)-(CELL("spalte",$P64)),$Q$2),ean_conv(LEFT($J64,12)),""), "<>") -> <> | Y64: =IF(CELL("spalte",Y64)<CELL("spalte",$P64)+$Q$2, IF(MOD(CELL("zeile",Y64)-CELL("zeile",Y$4),$Q$2)=MOD(CELL("spalte",Y64)-(CELL("spalte",$P64)),$Q$2),ean_conv(LEFT($J64,12)),""), "<>") -> <>
A65: 62 | B65: Ab sofort Schwester! | C65: 4 | D65: Comedy | F65: deu | G65: Standard | H65: Manga Jamsession | I65: X | J65: 9783903427082 | L65: =IF(B65<>"",B65&Trenner&Einschluss&F65&Einschluss,"") -> Ab sofort Schwester! •deu• | M65: =IF(C65<>"", IF(ISNUMBER(C65), IF(COUNTIF(Sort_Titel,L65)>99,L65&Trenner&TEXT(C65,"000"), IF(COUNTIF(Sort_Titel,L65)>9,L65&Trenner&TEXT(C65,"00"),L65&Trenner&TEXT(C65,"0")) ),L65&Trenner&C65 ),IF(L65<>"",L65,Titel_Leer) ) -> Ab sofort Schwester! •deu• 4 | O65: Seite 1 | P65: =IF(CELL("spalte",P65)<CELL("spalte",$P65)+$Q$2, IF(MOD(CELL("zeile",P65)-CELL("zeile",P$4),$Q$2)=MOD(CELL("spalte",P65)-(CELL("spalte",$P65)),$Q$2),ean_conv(LEFT($J65,12)),""), "<>") -> <> | Q65: =IF(CELL("spalte",Q65)<CELL("spalte",$P65)+$Q$2, IF(MOD(CELL("zeile",Q65)-CELL("zeile",Q$4),$Q$2)=MOD(CELL("spalte",Q65)-(CELL("spalte",$P65)),$Q$2),ean_conv(LEFT($J65,12)),""), "<>") -> <> | R65: =IF(CELL("spalte",R65)<CELL("spalte",$P65)+$Q$2, IF(MOD(CELL("zeile",R65)-CELL("zeile",R$4),$Q$2)=MOD(CELL("spalte",R65)-(CELL("spalte",$P65)),$Q$2),ean_conv(LEFT($J65,12)),""), "<>") -> <> | S65: =IF(CELL("spalte",S65)<CELL("spalte",$P65)+$Q$2, IF(MOD(CELL("zeile",S65)-CELL("zeile",S$4),$Q$2)=MOD(CELL("spalte",S65)-(CELL("spalte",$P65)),$Q$2),ean_conv(LEFT($J65,12)),""), "<>") -> <> | T65: =IF(CELL("spalte",T65)<CELL("spalte",$P65)+$Q$2, IF(MOD(CELL("zeile",T65)-CELL("zeile",T$4),$Q$2)=MOD(CELL("spalte",T65)-(CELL("spalte",$P65)),$Q$2),ean_conv(LEFT($J65,12)),""), "<>") -> <> | U65: =IF(CELL("spalte",U65)<CELL("spalte",$P65)+$Q$2, IF(MOD(CELL("zeile",U65)-CELL("zeile",U$4),$Q$2)=MOD(CELL("spalte",U65)-(CELL("spalte",$P65)),$Q$2),ean_conv(LEFT($J65,12)),""), "<>") -> <> | V65: =IF(CELL("spalte",V65)<CELL("spalte",$P65)+$Q$2, IF(MOD(CELL("zeile",V65)-CELL("zeile",V$4),$Q$2)=MOD(CELL("spalte",V65)-(CELL("spalte",$P65)),$Q$2),ean_conv(LEFT($J65,12)),""), "<>") -> <> | W65: =IF(CELL("spalte",W65)<CELL("spalte",$P65)+$Q$2, IF(MOD(CELL("zeile",W65)-CELL("zeile",W$4),$Q$2)=MOD(CELL("spalte",W65)-(CELL("spalte",$P65)),$Q$2),ean_conv(LEFT($J65,12)),""), "<>") -> <> | X65: =IF(CELL("spalte",X65)<CELL("spalte",$P65)+$Q$2, IF(MOD(CELL("zeile",X65)-CELL("zeile",X$4),$Q$2)=MOD(CELL("spalte",X65)-(CELL("spalte",$P65)),$Q$2),ean_conv(LEFT($J65,12)),""), "<>") -> <> | Y65: =IF(CELL("spalte",Y65)<CELL("spalte",$P65)+$Q$2, IF(MOD(CELL("zeile",Y65)-CELL("zeile",Y$4),$Q$2)=MOD(CELL("spalte",Y65)-(CELL("spalte",$P65)),$Q$2),ean_conv(LEFT($J65,12)),""), "<>") -> <>
A66: 63 | B66: Ab sofort Schwester! | C66: 5 | D66: Comedy | F66: deu | G66: Standard | H66: Manga Jamsession | I66: X | J66: 9783903427211 | L66: =IF(B66<>"",B66&Trenner&Einschluss&F66&Einschluss,"") -> Ab sofort Schwester! •deu• | M66: =IF(C66<>"", IF(ISNUMBER(C66), IF(COUNTIF(Sort_Titel,L66)>99,L66&Trenner&TEXT(C66,"000"), IF(COUNTIF(Sort_Titel,L66)>9,L66&Trenner&TEXT(C66,"00"),L66&Trenner&TEXT(C66,"0")) ),L66&Trenner&C66 ),IF(L66<>"",L66,Titel_Leer) ) -> Ab sofort Schwester! •deu• 5 | O66: Seite 1 | P66: =IF(CELL("spalte",P66)<CELL("spalte",$P66)+$Q$2, IF(MOD(CELL("zeile",P66)-CELL("zeile",P$4),$Q$2)=MOD(CELL("spalte",P66)-(CELL("spalte",$P66)),$Q$2),ean_conv(LEFT($J66,12)),""), "<>") -> <> | Q66: =IF(CELL("spalte",Q66)<CELL("spalte",$P66)+$Q$2, IF(MOD(CELL("zeile",Q66)-CELL("zeile",Q$4),$Q$2)=MOD(CELL("spalte",Q66)-(CELL("spalte",$P66)),$Q$2),ean_conv(LEFT($J66,12)),""), "<>") -> <> | R66: =IF(CELL("spalte",R66)<CELL("spalte",$P66)+$Q$2, IF(MOD(CELL("zeile",R66)-CELL("zeile",R$4),$Q$2)=MOD(CELL("spalte",R66)-(CELL("spalte",$P66)),$Q$2),ean_conv(LEFT($J66,12)),""), "<>") -> <> | S66: =IF(CELL("spalte",S66)<CELL("spalte",$P66)+$Q$2, IF(MOD(CELL("zeile",S66)-CELL("zeile",S$4),$Q$2)=MOD(CELL("spalte",S66)-(CELL("spalte",$P66)),$Q$2),ean_conv(LEFT($J66,12)),""), "<>") -> <> | T66: =IF(CELL("spalte",T66)<CELL("spalte",$P66)+$Q$2, IF(MOD(CELL("zeile",T66)-CELL("zeile",T$4),$Q$2)=MOD(CELL("spalte",T66)-(CELL("spalte",$P66)),$Q$2),ean_conv(LEFT($J66,12)),""), "<>") -> <> | U66: =IF(CELL("spalte",U66)<CELL("spalte",$P66)+$Q$2, IF(MOD(CELL("zeile",U66)-CELL("zeile",U$4),$Q$2)=MOD(CELL("spalte",U66)-(CELL("spalte",$P66)),$Q$2),ean_conv(LEFT($J66,12)),""), "<>") -> <> | V66: =IF(CELL("spalte",V66)<CELL("spalte",$P66)+$Q$2, IF(MOD(CELL("zeile",V66)-CELL("zeile",V$4),$Q$2)=MOD(CELL("spalte",V66)-(CELL("spalte",$P66)),$Q$2),ean_conv(LEFT($J66,12)),""), "<>") -> <> | W66: =IF(CELL("spalte",W66)<CELL("spalte",$P66)+$Q$2, IF(MOD(CELL("zeile",W66)-CELL("zeile",W$4),$Q$2)=MOD(CELL("spalte",W66)-(CELL("spalte",$P66)),$Q$2),ean_conv(LEFT($J66,12)),""), "<>") -> <> | X66: =IF(CELL("spalte",X66)<CELL("spalte",$P66)+$Q$2, IF(MOD(CELL("zeile",X66)-CELL("zeile",X$4),$Q$2)=MOD(CELL("spalte",X66)-(CELL("spalte",$P66)),$Q$2),ean_conv(LEFT($J66,12)),""), "<>") -> <> | Y66: =IF(CELL("spalte",Y66)<CELL("spalte",$P66)+$Q$2, IF(MOD(CELL("zeile",Y66)-CELL("zeile",Y$4),$Q$2)=MOD(CELL("spalte",Y66)-(CELL("spalte",$P66)),$Q$2),ean_conv(LEFT($J66,12)),""), "<>") -> <>
A67: 64 | B67: Ab sofort Schwester! | C67: 6 | D67: Comedy | F67: deu | G67: Standard | H67: Manga Jamsession | J67: 9783903427327 | L67: =IF(B67<>"",B67&Trenner&Einschluss&F67&Einschluss,"") -> Ab sofort Schwester! •deu• | M67: =IF(C67<>"", IF(ISNUMBER(C67), IF(COUNTIF(Sort_Titel,L67)>99,L67&Trenner&TEXT(C67,"000"), IF(COUNTIF(Sort_Titel,L67)>9,L67&Trenner&TEXT(C67,"00"),L67&Trenner&TEXT(C67,"0")) ),L67&Trenner&C67 ),IF(L67<>"",L67,Titel_Leer) ) -> Ab sofort Schwester! •deu• 6 | O67: Seite 1 | P67: =IF(CELL("spalte",P67)<CELL("spalte",$P67)+$Q$2, IF(MOD(CELL("zeile",P67)-CELL("zeile",P$4),$Q$2)=MOD(CELL("spalte",P67)-(CELL("spalte",$P67)),$Q$2),ean_conv(LEFT($J67,12)),""), "<>") -> <> | Q67: =IF(CELL("spalte",Q67)<CELL("spalte",$P67)+$Q$2, IF(MOD(CELL("zeile",Q67)-CELL("zeile",Q$4),$Q$2)=MOD(CELL("spalte",Q67)-(CELL("spalte",$P67)),$Q$2),ean_conv(LEFT($J67,12)),""), "<>") -> <> | R67: =IF(CELL("spalte",R67)<CELL("spalte",$P67)+$Q$2, IF(MOD(CELL("zeile",R67)-CELL("zeile",R$4),$Q$2)=MOD(CELL("spalte",R67)-(CELL("spalte",$P67)),$Q$2),ean_conv(LEFT($J67,12)),""), "<>") -> <> | S67: =IF(CELL("spalte",S67)<CELL("spalte",$P67)+$Q$2, IF(MOD(CELL("zeile",S67)-CELL("zeile",S$4),$Q$2)=MOD(CELL("spalte",S67)-(CELL("spalte",$P67)),$Q$2),ean_conv(LEFT($J67,12)),""), "<>") -> <> | T67: =IF(CELL("spalte",T67)<CELL("spalte",$P67)+$Q$2, IF(MOD(CELL("zeile",T67)-CELL("zeile",T$4),$Q$2)=MOD(CELL("spalte",T67)-(CELL("spalte",$P67)),$Q$2),ean_conv(LEFT($J67,12)),""), "<>") -> <> | U67: =IF(CELL("spalte",U67)<CELL("spalte",$P67)+$Q$2, IF(MOD(CELL("zeile",U67)-CELL("zeile",U$4),$Q$2)=MOD(CELL("spalte",U67)-(CELL("spalte",$P67)),$Q$2),ean_conv(LEFT($J67,12)),""), "<>") -> <> | V67: =IF(CELL("spalte",V67)<CELL("spalte",$P67)+$Q$2, IF(MOD(CELL("zeile",V67)-CELL("zeile",V$4),$Q$2)=MOD(CELL("spalte",V67)-(CELL("spalte",$P67)),$Q$2),ean_conv(LEFT($J67,12)),""), "<>") -> <> | W67: =IF(CELL("spalte",W67)<CELL("spalte",$P67)+$Q$2, IF(MOD(CELL("zeile",W67)-CELL("zeile",W$4),$Q$2)=MOD(CELL("spalte",W67)-(CELL("spalte",$P67)),$Q$2),ean_conv(LEFT($J67,12)),""), "<>") -> <> | X67: =IF(CELL("spalte",X67)<CELL("spalte",$P67)+$Q$2, IF(MOD(CELL("zeile",X67)-CELL("zeile",X$4),$Q$2)=MOD(CELL("spalte",X67)-(CELL("spalte",$P67)),$Q$2),ean_conv(LEFT($J67,12)),""), "<>") -> <> | Y67: =IF(CELL("spalte",Y67)<CELL("spalte",$P67)+$Q$2, IF(MOD(CELL("zeile",Y67)-CELL("zeile",Y$4),$Q$2)=MOD(CELL("spalte",Y67)-(CELL("spalte",$P67)),$Q$2),ean_conv(LEFT($J67,12)),""), "<>") -> <>
A68: =A67+1 -> 65 | B68: Ab sofort Schwester! | C68: 7 | D68: Comedy | F68: deu | G68: Standard | H68: Manga Jamsession | J68: 9783903427549 | L68: =IF(B68<>"",B68&Trenner&Einschluss&F68&Einschluss,"") -> Ab sofort Schwester! •deu• | M68: =IF(C68<>"", IF(ISNUMBER(C68), IF(COUNTIF(Sort_Titel,L68)>99,L68&Trenner&TEXT(C68,"000"), IF(COUNTIF(Sort_Titel,L68)>9,L68&Trenner&TEXT(C68,"00"),L68&Trenner&TEXT(C68,"0")) ),L68&Trenner&C68 ),IF(L68<>"",L68,Titel_Leer) ) -> Ab sofort Schwester! •deu• 7 | O68: ="Seite "&TEXT(ROUND(((A68-1)/$O$3)+0.5,0),"0") -> Seite 1 | P68: =IF(CELL("spalte",P68)<CELL("spalte",$P68)+$Q$2, IF(MOD(CELL("zeile",P68)-CELL("zeile",P$4),$Q$2)=MOD(CELL("spalte",P68)-(CELL("spalte",$P68)),$Q$2),ean_conv(LEFT($J68,12)),""), "<>") -> <> | Q68: =IF(CELL("spalte",Q68)<CELL("spalte",$P68)+$Q$2, IF(MOD(CELL("zeile",Q68)-CELL("zeile",Q$4),$Q$2)=MOD(CELL("spalte",Q68)-(CELL("spalte",$P68)),$Q$2),ean_conv(LEFT($J68,12)),""), "<>") -> <> | R68: =IF(CELL("spalte",R68)<CELL("spalte",$P68)+$Q$2, IF(MOD(CELL("zeile",R68)-CELL("zeile",R$4),$Q$2)=MOD(CELL("spalte",R68)-(CELL("spalte",$P68)),$Q$2),ean_conv(LEFT($J68,12)),""), "<>") -> <> | S68: =IF(CELL("spalte",S68)<CELL("spalte",$P68)+$Q$2, IF(MOD(CELL("zeile",S68)-CELL("zeile",S$4),$Q$2)=MOD(CELL("spalte",S68)-(CELL("spalte",$P68)),$Q$2),ean_conv(LEFT($J68,12)),""), "<>") -> <> | T68: =IF(CELL("spalte",T68)<CELL("spalte",$P68)+$Q$2, IF(MOD(CELL("zeile",T68)-CELL("zeile",T$4),$Q$2)=MOD(CELL("spalte",T68)-(CELL("spalte",$P68)),$Q$2),ean_conv(LEFT($J68,12)),""), "<>") -> <> | U68: =IF(CELL("spalte",U68)<CELL("spalte",$P68)+$Q$2, IF(MOD(CELL("zeile",U68)-CELL("zeile",U$4),$Q$2)=MOD(CELL("spalte",U68)-(CELL("spalte",$P68)),$Q$2),ean_conv(LEFT($J68,12)),""), "<>") -> <> | V68: =IF(CELL("spalte",V68)<CELL("spalte",$P68)+$Q$2, IF(MOD(CELL("zeile",V68)-CELL("zeile",V$4),$Q$2)=MOD(CELL("spalte",V68)-(CELL("spalte",$P68)),$Q$2),ean_conv(LEFT($J68,12)),""), "<>") -> <> | W68: =IF(CELL("spalte",W68)<CELL("spalte",$P68)+$Q$2, IF(MOD(CELL("zeile",W68)-CELL("zeile",W$4),$Q$2)=MOD(CELL("spalte",W68)-(CELL("spalte",$P68)),$Q$2),ean_conv(LEFT($J68,12)),""), "<>") -> <> | X68: =IF(CELL("spalte",X68)<CELL("spalte",$P68)+$Q$2, IF(MOD(CELL("zeile",X68)-CELL("zeile",X$4),$Q$2)=MOD(CELL("spalte",X68)-(CELL("spalte",$P68)),$Q$2),ean_conv(LEFT($J68,12)),""), "<>") -> <> | Y68: =IF(CELL("spalte",Y68)<CELL("spalte",$P68)+$Q$2, IF(MOD(CELL("zeile",Y68)-CELL("zeile",Y$4),$Q$2)=MOD(CELL("spalte",Y68)-(CELL("spalte",$P68)),$Q$2),ean_conv(LEFT($J68,12)),""), "<>") -> <>
A69: 66 | B69: Accel World | C69: 1 | D69: Action | F69: deu | G69: Standard | H69: Tokyopop | I69: X | J69: 9783842011717 | L69: =IF(B69<>"",B69&Trenner&Einschluss&F69&Einschluss,"") -> Accel World •deu• | M69: =IF(C69<>"", IF(ISNUMBER(C69), IF(COUNTIF(Sort_Titel,L69)>99,L69&Trenner&TEXT(C69,"000"), IF(COUNTIF(Sort_Titel,L69)>9,L69&Trenner&TEXT(C69,"00"),L69&Trenner&TEXT(C69,"0")) ),L69&Trenner&C69 ),IF(L69<>"",L69,Titel_Leer) ) -> Accel World •deu• 1 | O69: Seite 1 | P69: =IF(CELL("spalte",P69)<CELL("spalte",$P69)+$Q$2, IF(MOD(CELL("zeile",P69)-CELL("zeile",P$4),$Q$2)=MOD(CELL("spalte",P69)-(CELL("spalte",$P69)),$Q$2),ean_conv(LEFT($J69,12)),""), "<>") -> <> | Q69: =IF(CELL("spalte",Q69)<CELL("spalte",$P69)+$Q$2, IF(MOD(CELL("zeile",Q69)-CELL("zeile",Q$4),$Q$2)=MOD(CELL("spalte",Q69)-(CELL("spalte",$P69)),$Q$2),ean_conv(LEFT($J69,12)),""), "<>") -> <> | R69: =IF(CELL("spalte",R69)<CELL("spalte",$P69)+$Q$2, IF(MOD(CELL("zeile",R69)-CELL("zeile",R$4),$Q$2)=MOD(CELL("spalte",R69)-(CELL("spalte",$P69)),$Q$2),ean_conv(LEFT($J69,12)),""), "<>") -> <> | S69: =IF(CELL("spalte",S69)<CELL("spalte",$P69)+$Q$2, IF(MOD(CELL("zeile",S69)-CELL("zeile",S$4),$Q$2)=MOD(CELL("spalte",S69)-(CELL("spalte",$P69)),$Q$2),ean_conv(LEFT($J69,12)),""), "<>") -> <> | T69: =IF(CELL("spalte",T69)<CELL("spalte",$P69)+$Q$2, IF(MOD(CELL("zeile",T69)-CELL("zeile",T$4),$Q$2)=MOD(CELL("spalte",T69)-(CELL("spalte",$P69)),$Q$2),ean_conv(LEFT($J69,12)),""), "<>") -> <> | U69: =IF(CELL("spalte",U69)<CELL("spalte",$P69)+$Q$2, IF(MOD(CELL("zeile",U69)-CELL("zeile",U$4),$Q$2)=MOD(CELL("spalte",U69)-(CELL("spalte",$P69)),$Q$2),ean_conv(LEFT($J69,12)),""), "<>") -> <> | V69: =IF(CELL("spalte",V69)<CELL("spalte",$P69)+$Q$2, IF(MOD(CELL("zeile",V69)-CELL("zeile",V$4),$Q$2)=MOD(CELL("spalte",V69)-(CELL("spalte",$P69)),$Q$2),ean_conv(LEFT($J69,12)),""), "<>") -> <> | W69: =IF(CELL("spalte",W69)<CELL("spalte",$P69)+$Q$2, IF(MOD(CELL("zeile",W69)-CELL("zeile",W$4),$Q$2)=MOD(CELL("spalte",W69)-(CELL("spalte",$P69)),$Q$2),ean_conv(LEFT($J69,12)),""), "<>") -> <> | X69: =IF(CELL("spalte",X69)<CELL("spalte",$P69)+$Q$2, IF(MOD(CELL("zeile",X69)-CELL("zeile",X$4),$Q$2)=MOD(CELL("spalte",X69)-(CELL("spalte",$P69)),$Q$2),ean_conv(LEFT($J69,12)),""), "<>") -> <> | Y69: =IF(CELL("spalte",Y69)<CELL("spalte",$P69)+$Q$2, IF(MOD(CELL("zeile",Y69)-CELL("zeile",Y$4),$Q$2)=MOD(CELL("spalte",Y69)-(CELL("spalte",$P69)),$Q$2),ean_conv(LEFT($J69,12)),""), "<>") -> <>
A70: 67 | B70: Accel World | C70: 2 | D70: Action | F70: deu | G70: Standard | H70: Tokyopop | I70: X | J70: 9783842011724 | L70: =IF(B70<>"",B70&Trenner&Einschluss&F70&Einschluss,"") -> Accel World •deu• | M70: =IF(C70<>"", IF(ISNUMBER(C70), IF(COUNTIF(Sort_Titel,L70)>99,L70&Trenner&TEXT(C70,"000"), IF(COUNTIF(Sort_Titel,L70)>9,L70&Trenner&TEXT(C70,"00"),L70&Trenner&TEXT(C70,"0")) ),L70&Trenner&C70 ),IF(L70<>"",L70,Titel_Leer) ) -> Accel World •deu• 2 | O70: Seite 1 | P70: =IF(CELL("spalte",P70)<CELL("spalte",$P70)+$Q$2, IF(MOD(CELL("zeile",P70)-CELL("zeile",P$4),$Q$2)=MOD(CELL("spalte",P70)-(CELL("spalte",$P70)),$Q$2),ean_conv(LEFT($J70,12)),""), "<>") -> <> | Q70: =IF(CELL("spalte",Q70)<CELL("spalte",$P70)+$Q$2, IF(MOD(CELL("zeile",Q70)-CELL("zeile",Q$4),$Q$2)=MOD(CELL("spalte",Q70)-(CELL("spalte",$P70)),$Q$2),ean_conv(LEFT($J70,12)),""), "<>") -> <> | R70: =IF(CELL("spalte",R70)<CELL("spalte",$P70)+$Q$2, IF(MOD(CELL("zeile",R70)-CELL("zeile",R$4),$Q$2)=MOD(CELL("spalte",R70)-(CELL("spalte",$P70)),$Q$2),ean_conv(LEFT($J70,12)),""), "<>") -> <> | S70: =IF(CELL("spalte",S70)<CELL("spalte",$P70)+$Q$2, IF(MOD(CELL("zeile",S70)-CELL("zeile",S$4),$Q$2)=MOD(CELL("spalte",S70)-(CELL("spalte",$P70)),$Q$2),ean_conv(LEFT($J70,12)),""), "<>") -> <> | T70: =IF(CELL("spalte",T70)<CELL("spalte",$P70)+$Q$2, IF(MOD(CELL("zeile",T70)-CELL("zeile",T$4),$Q$2)=MOD(CELL("spalte",T70)-(CELL("spalte",$P70)),$Q$2),ean_conv(LEFT($J70,12)),""), "<>") -> <> | U70: =IF(CELL("spalte",U70)<CELL("spalte",$P70)+$Q$2, IF(MOD(CELL("zeile",U70)-CELL("zeile",U$4),$Q$2)=MOD(CELL("spalte",U70)-(CELL("spalte",$P70)),$Q$2),ean_conv(LEFT($J70,12)),""), "<>") -> <> | V70: =IF(CELL("spalte",V70)<CELL("spalte",$P70)+$Q$2, IF(MOD(CELL("zeile",V70)-CELL("zeile",V$4),$Q$2)=MOD(CELL("spalte",V70)-(CELL("spalte",$P70)),$Q$2),ean_conv(LEFT($J70,12)),""), "<>") -> <> | W70: =IF(CELL("spalte",W70)<CELL("spalte",$P70)+$Q$2, IF(MOD(CELL("zeile",W70)-CELL("zeile",W$4),$Q$2)=MOD(CELL("spalte",W70)-(CELL("spalte",$P70)),$Q$2),ean_conv(LEFT($J70,12)),""), "<>") -> <> | X70: =IF(CELL("spalte",X70)<CELL("spalte",$P70)+$Q$2, IF(MOD(CELL("zeile",X70)-CELL("zeile",X$4),$Q$2)=MOD(CELL("spalte",X70)-(CELL("spalte",$P70)),$Q$2),ean_conv(LEFT($J70,12)),""), "<>") -> <> | Y70: =IF(CELL("spalte",Y70)<CELL("spalte",$P70)+$Q$2, IF(MOD(CELL("zeile",Y70)-CELL("zeile",Y$4),$Q$2)=MOD(CELL("spalte",Y70)-(CELL("spalte",$P70)),$Q$2),ean_conv(LEFT($J70,12)),""), "<>") -> <>
A71: 68 | B71: Accel World | C71: 3 | D71: Action | F71: deu | G71: Standard | H71: Tokyopop | I71: X | J71: 9783842011731 | L71: =IF(B71<>"",B71&Trenner&Einschluss&F71&Einschluss,"") -> Accel World •deu• | M71: =IF(C71<>"", IF(ISNUMBER(C71), IF(COUNTIF(Sort_Titel,L71)>99,L71&Trenner&TEXT(C71,"000"), IF(COUNTIF(Sort_Titel,L71)>9,L71&Trenner&TEXT(C71,"00"),L71&Trenner&TEXT(C71,"0")) ),L71&Trenner&C71 ),IF(L71<>"",L71,Titel_Leer) ) -> Accel World •deu• 3 | O71: Seite 1 | P71: =IF(CELL("spalte",P71)<CELL("spalte",$P71)+$Q$2, IF(MOD(CELL("zeile",P71)-CELL("zeile",P$4),$Q$2)=MOD(CELL("spalte",P71)-(CELL("spalte",$P71)),$Q$2),ean_conv(LEFT($J71,12)),""), "<>") -> <> | Q71: =IF(CELL("spalte",Q71)<CELL("spalte",$P71)+$Q$2, IF(MOD(CELL("zeile",Q71)-CELL("zeile",Q$4),$Q$2)=MOD(CELL("spalte",Q71)-(CELL("spalte",$P71)),$Q$2),ean_conv(LEFT($J71,12)),""), "<>") -> <> | R71: =IF(CELL("spalte",R71)<CELL("spalte",$P71)+$Q$2, IF(MOD(CELL("zeile",R71)-CELL("zeile",R$4),$Q$2)=MOD(CELL("spalte",R71)-(CELL("spalte",$P71)),$Q$2),ean_conv(LEFT($J71,12)),""), "<>") -> <> | S71: =IF(CELL("spalte",S71)<CELL("spalte",$P71)+$Q$2, IF(MOD(CELL("zeile",S71)-CELL("zeile",S$4),$Q$2)=MOD(CELL("spalte",S71)-(CELL("spalte",$P71)),$Q$2),ean_conv(LEFT($J71,12)),""), "<>") -> <> | T71: =IF(CELL("spalte",T71)<CELL("spalte",$P71)+$Q$2, IF(MOD(CELL("zeile",T71)-CELL("zeile",T$4),$Q$2)=MOD(CELL("spalte",T71)-(CELL("spalte",$P71)),$Q$2),ean_conv(LEFT($J71,12)),""), "<>") -> <> | U71: =IF(CELL("spalte",U71)<CELL("spalte",$P71)+$Q$2, IF(MOD(CELL("zeile",U71)-CELL("zeile",U$4),$Q$2)=MOD(CELL("spalte",U71)-(CELL("spalte",$P71)),$Q$2),ean_conv(LEFT($J71,12)),""), "<>") -> <> | V71: =IF(CELL("spalte",V71)<CELL("spalte",$P71)+$Q$2, IF(MOD(CELL("zeile",V71)-CELL("zeile",V$4),$Q$2)=MOD(CELL("spalte",V71)-(CELL("spalte",$P71)),$Q$2),ean_conv(LEFT($J71,12)),""), "<>") -> <> | W71: =IF(CELL("spalte",W71)<CELL("spalte",$P71)+$Q$2, IF(MOD(CELL("zeile",W71)-CELL("zeile",W$4),$Q$2)=MOD(CELL("spalte",W71)-(CELL("spalte",$P71)),$Q$2),ean_conv(LEFT($J71,12)),""), "<>") -> <> | X71: =IF(CELL("spalte",X71)<CELL("spalte",$P71)+$Q$2, IF(MOD(CELL("zeile",X71)-CELL("zeile",X$4),$Q$2)=MOD(CELL("spalte",X71)-(CELL("spalte",$P71)),$Q$2),ean_conv(LEFT($J71,12)),""), "<>") -> <> | Y71: =IF(CELL("spalte",Y71)<CELL("spalte",$P71)+$Q$2, IF(MOD(CELL("zeile",Y71)-CELL("zeile",Y$4),$Q$2)=MOD(CELL("spalte",Y71)-(CELL("spalte",$P71)),$Q$2),ean_conv(LEFT($J71,12)),""), "<>") -> <>
A72: 69 | B72: Accel World | C72: 4 | D72: Action | F72: deu | G72: Standard | H72: Tokyopop | I72: X | J72: 9783842011748 | L72: =IF(B72<>"",B72&Trenner&Einschluss&F72&Einschluss,"") -> Accel World •deu• | M72: =IF(C72<>"", IF(ISNUMBER(C72), IF(COUNTIF(Sort_Titel,L72)>99,L72&Trenner&TEXT(C72,"000"), IF(COUNTIF(Sort_Titel,L72)>9,L72&Trenner&TEXT(C72,"00"),L72&Trenner&TEXT(C72,"0")) ),L72&Trenner&C72 ),IF(L72<>"",L72,Titel_Leer) ) -> Accel World •deu• 4 | O72: Seite 1 | P72: =IF(CELL("spalte",P72)<CELL("spalte",$P72)+$Q$2, IF(MOD(CELL("zeile",P72)-CELL("zeile",P$4),$Q$2)=MOD(CELL("spalte",P72)-(CELL("spalte",$P72)),$Q$2),ean_conv(LEFT($J72,12)),""), "<>") -> <> | Q72: =IF(CELL("spalte",Q72)<CELL("spalte",$P72)+$Q$2, IF(MOD(CELL("zeile",Q72)-CELL("zeile",Q$4),$Q$2)=MOD(CELL("spalte",Q72)-(CELL("spalte",$P72)),$Q$2),ean_conv(LEFT($J72,12)),""), "<>") -> <> | R72: =IF(CELL("spalte",R72)<CELL("spalte",$P72)+$Q$2, IF(MOD(CELL("zeile",R72)-CELL("zeile",R$4),$Q$2)=MOD(CELL("spalte",R72)-(CELL("spalte",$P72)),$Q$2),ean_conv(LEFT($J72,12)),""), "<>") -> <> | S72: =IF(CELL("spalte",S72)<CELL("spalte",$P72)+$Q$2, IF(MOD(CELL("zeile",S72)-CELL("zeile",S$4),$Q$2)=MOD(CELL("spalte",S72)-(CELL("spalte",$P72)),$Q$2),ean_conv(LEFT($J72,12)),""), "<>") -> <> | T72: =IF(CELL("spalte",T72)<CELL("spalte",$P72)+$Q$2, IF(MOD(CELL("zeile",T72)-CELL("zeile",T$4),$Q$2)=MOD(CELL("spalte",T72)-(CELL("spalte",$P72)),$Q$2),ean_conv(LEFT($J72,12)),""), "<>") -> <> | U72: =IF(CELL("spalte",U72)<CELL("spalte",$P72)+$Q$2, IF(MOD(CELL("zeile",U72)-CELL("zeile",U$4),$Q$2)=MOD(CELL("spalte",U72)-(CELL("spalte",$P72)),$Q$2),ean_conv(LEFT($J72,12)),""), "<>") -> <> | V72: =IF(CELL("spalte",V72)<CELL("spalte",$P72)+$Q$2, IF(MOD(CELL("zeile",V72)-CELL("zeile",V$4),$Q$2)=MOD(CELL("spalte",V72)-(CELL("spalte",$P72)),$Q$2),ean_conv(LEFT($J72,12)),""), "<>") -> <> | W72: =IF(CELL("spalte",W72)<CELL("spalte",$P72)+$Q$2, IF(MOD(CELL("zeile",W72)-CELL("zeile",W$4),$Q$2)=MOD(CELL("spalte",W72)-(CELL("spalte",$P72)),$Q$2),ean_conv(LEFT($J72,12)),""), "<>") -> <> | X72: =IF(CELL("spalte",X72)<CELL("spalte",$P72)+$Q$2, IF(MOD(CELL("zeile",X72)-CELL("zeile",X$4),$Q$2)=MOD(CELL("spalte",X72)-(CELL("spalte",$P72)),$Q$2),ean_conv(LEFT($J72,12)),""), "<>") -> <> | Y72: =IF(CELL("spalte",Y72)<CELL("spalte",$P72)+$Q$2, IF(MOD(CELL("zeile",Y72)-CELL("zeile",Y$4),$Q$2)=MOD(CELL("spalte",Y72)-(CELL("spalte",$P72)),$Q$2),ean_conv(LEFT($J72,12)),""), "<>") -> <>
A73: 70 | B73: Accel World | C73: 5 | D73: Action | F73: deu | G73: Standard | H73: Tokyopop | I73: X | J73: 9783842017467 | L73: =IF(B73<>"",B73&Trenner&Einschluss&F73&Einschluss,"") -> Accel World •deu• | M73: =IF(C73<>"", IF(ISNUMBER(C73), IF(COUNTIF(Sort_Titel,L73)>99,L73&Trenner&TEXT(C73,"000"), IF(COUNTIF(Sort_Titel,L73)>9,L73&Trenner&TEXT(C73,"00"),L73&Trenner&TEXT(C73,"0")) ),L73&Trenner&C73 ),IF(L73<>"",L73,Titel_Leer) ) -> Accel World •deu• 5 | O73: Seite 1 | P73: =IF(CELL("spalte",P73)<CELL("spalte",$P73)+$Q$2, IF(MOD(CELL("zeile",P73)-CELL("zeile",P$4),$Q$2)=MOD(CELL("spalte",P73)-(CELL("spalte",$P73)),$Q$2),ean_conv(LEFT($J73,12)),""), "<>") -> <> | Q73: =IF(CELL("spalte",Q73)<CELL("spalte",$P73)+$Q$2, IF(MOD(CELL("zeile",Q73)-CELL("zeile",Q$4),$Q$2)=MOD(CELL("spalte",Q73)-(CELL("spalte",$P73)),$Q$2),ean_conv(LEFT($J73,12)),""), "<>") -> <> | R73: =IF(CELL("spalte",R73)<CELL("spalte",$P73)+$Q$2, IF(MOD(CELL("zeile",R73)-CELL("zeile",R$4),$Q$2)=MOD(CELL("spalte",R73)-(CELL("spalte",$P73)),$Q$2),ean_conv(LEFT($J73,12)),""), "<>") -> <> | S73: =IF(CELL("spalte",S73)<CELL("spalte",$P73)+$Q$2, IF(MOD(CELL("zeile",S73)-CELL("zeile",S$4),$Q$2)=MOD(CELL("spalte",S73)-(CELL("spalte",$P73)),$Q$2),ean_conv(LEFT($J73,12)),""), "<>") -> <> | T73: =IF(CELL("spalte",T73)<CELL("spalte",$P73)+$Q$2, IF(MOD(CELL("zeile",T73)-CELL("zeile",T$4),$Q$2)=MOD(CELL("spalte",T73)-(CELL("spalte",$P73)),$Q$2),ean_conv(LEFT($J73,12)),""), "<>") -> <> | U73: =IF(CELL("spalte",U73)<CELL("spalte",$P73)+$Q$2, IF(MOD(CELL("zeile",U73)-CELL("zeile",U$4),$Q$2)=MOD(CELL("spalte",U73)-(CELL("spalte",$P73)),$Q$2),ean_conv(LEFT($J73,12)),""), "<>") -> <> | V73: =IF(CELL("spalte",V73)<CELL("spalte",$P73)+$Q$2, IF(MOD(CELL("zeile",V73)-CELL("zeile",V$4),$Q$2)=MOD(CELL("spalte",V73)-(CELL("spalte",$P73)),$Q$2),ean_conv(LEFT($J73,12)),""), "<>") -> <> | W73: =IF(CELL("spalte",W73)<CELL("spalte",$P73)+$Q$2, IF(MOD(CELL("zeile",W73)-CELL("zeile",W$4),$Q$2)=MOD(CELL("spalte",W73)-(CELL("spalte",$P73)),$Q$2),ean_conv(LEFT($J73,12)),""), "<>") -> <> | X73: =IF(CELL("spalte",X73)<CELL("spalte",$P73)+$Q$2, IF(MOD(CELL("zeile",X73)-CELL("zeile",X$4),$Q$2)=MOD(CELL("spalte",X73)-(CELL("spalte",$P73)),$Q$2),ean_conv(LEFT($J73,12)),""), "<>") -> <> | Y73: =IF(CELL("spalte",Y73)<CELL("spalte",$P73)+$Q$2, IF(MOD(CELL("zeile",Y73)-CELL("zeile",Y$4),$Q$2)=MOD(CELL("spalte",Y73)-(CELL("spalte",$P73)),$Q$2),ean_conv(LEFT($J73,12)),""), "<>") -> <>
A74: 71 | B74: Accel World | C74: 6 | D74: Action | F74: deu | G74: Standard | H74: Tokyopop | I74: X | J74: 9783842017474 | L74: =IF(B74<>"",B74&Trenner&Einschluss&F74&Einschluss,"") -> Accel World •deu• | M74: =IF(C74<>"", IF(ISNUMBER(C74), IF(COUNTIF(Sort_Titel,L74)>99,L74&Trenner&TEXT(C74,"000"), IF(COUNTIF(Sort_Titel,L74)>9,L74&Trenner&TEXT(C74,"00"),L74&Trenner&TEXT(C74,"0")) ),L74&Trenner&C74 ),IF(L74<>"",L74,Titel_Leer) ) -> Accel World •deu• 6 | O74: Seite 1 | P74: =IF(CELL("spalte",P74)<CELL("spalte",$P74)+$Q$2, IF(MOD(CELL("zeile",P74)-CELL("zeile",P$4),$Q$2)=MOD(CELL("spalte",P74)-(CELL("spalte",$P74)),$Q$2),ean_conv(LEFT($J74,12)),""), "<>") -> <> | Q74: =IF(CELL("spalte",Q74)<CELL("spalte",$P74)+$Q$2, IF(MOD(CELL("zeile",Q74)-CELL("zeile",Q$4),$Q$2)=MOD(CELL("spalte",Q74)-(CELL("spalte",$P74)),$Q$2),ean_conv(LEFT($J74,12)),""), "<>") -> <> | R74: =IF(CELL("spalte",R74)<CELL("spalte",$P74)+$Q$2, IF(MOD(CELL("zeile",R74)-CELL("zeile",R$4),$Q$2)=MOD(CELL("spalte",R74)-(CELL("spalte",$P74)),$Q$2),ean_conv(LEFT($J74,12)),""), "<>") -> <> | S74: =IF(CELL("spalte",S74)<CELL("spalte",$P74)+$Q$2, IF(MOD(CELL("zeile",S74)-CELL("zeile",S$4),$Q$2)=MOD(CELL("spalte",S74)-(CELL("spalte",$P74)),$Q$2),ean_conv(LEFT($J74,12)),""), "<>") -> <> | T74: =IF(CELL("spalte",T74)<CELL("spalte",$P74)+$Q$2, IF(MOD(CELL("zeile",T74)-CELL("zeile",T$4),$Q$2)=MOD(CELL("spalte",T74)-(CELL("spalte",$P74)),$Q$2),ean_conv(LEFT($J74,12)),""), "<>") -> <> | U74: =IF(CELL("spalte",U74)<CELL("spalte",$P74)+$Q$2, IF(MOD(CELL("zeile",U74)-CELL("zeile",U$4),$Q$2)=MOD(CELL("spalte",U74)-(CELL("spalte",$P74)),$Q$2),ean_conv(LEFT($J74,12)),""), "<>") -> <> | V74: =IF(CELL("spalte",V74)<CELL("spalte",$P74)+$Q$2, IF(MOD(CELL("zeile",V74)-CELL("zeile",V$4),$Q$2)=MOD(CELL("spalte",V74)-(CELL("spalte",$P74)),$Q$2),ean_conv(LEFT($J74,12)),""), "<>") -> <> | W74: =IF(CELL("spalte",W74)<CELL("spalte",$P74)+$Q$2, IF(MOD(CELL("zeile",W74)-CELL("zeile",W$4),$Q$2)=MOD(CELL("spalte",W74)-(CELL("spalte",$P74)),$Q$2),ean_conv(LEFT($J74,12)),""), "<>") -> <> | X74: =IF(CELL("spalte",X74)<CELL("spalte",$P74)+$Q$2, IF(MOD(CELL("zeile",X74)-CELL("zeile",X$4),$Q$2)=MOD(CELL("spalte",X74)-(CELL("spalte",$P74)),$Q$2),ean_conv(LEFT($J74,12)),""), "<>") -> <> | Y74: =IF(CELL("spalte",Y74)<CELL("spalte",$P74)+$Q$2, IF(MOD(CELL("zeile",Y74)-CELL("zeile",Y$4),$Q$2)=MOD(CELL("spalte",Y74)-(CELL("spalte",$P74)),$Q$2),ean_conv(LEFT($J74,12)),""), "<>") -> <>
A75: 72 | B75: Accel World | C75: 7 | D75: Action | F75: deu | G75: Standard | H75: Tokyopop | I75: X | J75: 9783842035508 | L75: =IF(B75<>"",B75&Trenner&Einschluss&F75&Einschluss,"") -> Accel World •deu• | M75: =IF(C75<>"", IF(ISNUMBER(C75), IF(COUNTIF(Sort_Titel,L75)>99,L75&Trenner&TEXT(C75,"000"), IF(COUNTIF(Sort_Titel,L75)>9,L75&Trenner&TEXT(C75,"00"),L75&Trenner&TEXT(C75,"0")) ),L75&Trenner&C75 ),IF(L75<>"",L75,Titel_Leer) ) -> Accel World •deu• 7 | O75: Seite 1 | P75: =IF(CELL("spalte",P75)<CELL("spalte",$P75)+$Q$2, IF(MOD(CELL("zeile",P75)-CELL("zeile",P$4),$Q$2)=MOD(CELL("spalte",P75)-(CELL("spalte",$P75)),$Q$2),ean_conv(LEFT($J75,12)),""), "<>") -> <> | Q75: =IF(CELL("spalte",Q75)<CELL("spalte",$P75)+$Q$2, IF(MOD(CELL("zeile",Q75)-CELL("zeile",Q$4),$Q$2)=MOD(CELL("spalte",Q75)-(CELL("spalte",$P75)),$Q$2),ean_conv(LEFT($J75,12)),""), "<>") -> <> | R75: =IF(CELL("spalte",R75)<CELL("spalte",$P75)+$Q$2, IF(MOD(CELL("zeile",R75)-CELL("zeile",R$4),$Q$2)=MOD(CELL("spalte",R75)-(CELL("spalte",$P75)),$Q$2),ean_conv(LEFT($J75,12)),""), "<>") -> <> | S75: =IF(CELL("spalte",S75)<CELL("spalte",$P75)+$Q$2, IF(MOD(CELL("zeile",S75)-CELL("zeile",S$4),$Q$2)=MOD(CELL("spalte",S75)-(CELL("spalte",$P75)),$Q$2),ean_conv(LEFT($J75,12)),""), "<>") -> <> | T75: =IF(CELL("spalte",T75)<CELL("spalte",$P75)+$Q$2, IF(MOD(CELL("zeile",T75)-CELL("zeile",T$4),$Q$2)=MOD(CELL("spalte",T75)-(CELL("spalte",$P75)),$Q$2),ean_conv(LEFT($J75,12)),""), "<>") -> <> | U75: =IF(CELL("spalte",U75)<CELL("spalte",$P75)+$Q$2, IF(MOD(CELL("zeile",U75)-CELL("zeile",U$4),$Q$2)=MOD(CELL("spalte",U75)-(CELL("spalte",$P75)),$Q$2),ean_conv(LEFT($J75,12)),""), "<>") -> <> | V75: =IF(CELL("spalte",V75)<CELL("spalte",$P75)+$Q$2, IF(MOD(CELL("zeile",V75)-CELL("zeile",V$4),$Q$2)=MOD(CELL("spalte",V75)-(CELL("spalte",$P75)),$Q$2),ean_conv(LEFT($J75,12)),""), "<>") -> <> | W75: =IF(CELL("spalte",W75)<CELL("spalte",$P75)+$Q$2, IF(MOD(CELL("zeile",W75)-CELL("zeile",W$4),$Q$2)=MOD(CELL("spalte",W75)-(CELL("spalte",$P75)),$Q$2),ean_conv(LEFT($J75,12)),""), "<>") -> <> | X75: =IF(CELL("spalte",X75)<CELL("spalte",$P75)+$Q$2, IF(MOD(CELL("zeile",X75)-CELL("zeile",X$4),$Q$2)=MOD(CELL("spalte",X75)-(CELL("spalte",$P75)),$Q$2),ean_conv(LEFT($J75,12)),""), "<>") -> <> | Y75: =IF(CELL("spalte",Y75)<CELL("spalte",$P75)+$Q$2, IF(MOD(CELL("zeile",Y75)-CELL("zeile",Y$4),$Q$2)=MOD(CELL("spalte",Y75)-(CELL("spalte",$P75)),$Q$2),ean_conv(LEFT($J75,12)),""), "<>") -> <>
A76: 73 | B76: Accel World | C76: 8 | D76: Action | F76: deu | G76: Standard | H76: Tokyopop | I76: X | J76: 9783842043084 | L76: =IF(B76<>"",B76&Trenner&Einschluss&F76&Einschluss,"") -> Accel World •deu• | M76: =IF(C76<>"", IF(ISNUMBER(C76), IF(COUNTIF(Sort_Titel,L76)>99,L76&Trenner&TEXT(C76,"000"), IF(COUNTIF(Sort_Titel,L76)>9,L76&Trenner&TEXT(C76,"00"),L76&Trenner&TEXT(C76,"0")) ),L76&Trenner&C76 ),IF(L76<>"",L76,Titel_Leer) ) -> Accel World •deu• 8 | O76: Seite 1 | P76: =IF(CELL("spalte",P76)<CELL("spalte",$P76)+$Q$2, IF(MOD(CELL("zeile",P76)-CELL("zeile",P$4),$Q$2)=MOD(CELL("spalte",P76)-(CELL("spalte",$P76)),$Q$2),ean_conv(LEFT($J76,12)),""), "<>") -> <> | Q76: =IF(CELL("spalte",Q76)<CELL("spalte",$P76)+$Q$2, IF(MOD(CELL("zeile",Q76)-CELL("zeile",Q$4),$Q$2)=MOD(CELL("spalte",Q76)-(CELL("spalte",$P76)),$Q$2),ean_conv(LEFT($J76,12)),""), "<>") -> <> | R76: =IF(CELL("spalte",R76)<CELL("spalte",$P76)+$Q$2, IF(MOD(CELL("zeile",R76)-CELL("zeile",R$4),$Q$2)=MOD(CELL("spalte",R76)-(CELL("spalte",$P76)),$Q$2),ean_conv(LEFT($J76,12)),""), "<>") -> <> | S76: =IF(CELL("spalte",S76)<CELL("spalte",$P76)+$Q$2, IF(MOD(CELL("zeile",S76)-CELL("zeile",S$4),$Q$2)=MOD(CELL("spalte",S76)-(CELL("spalte",$P76)),$Q$2),ean_conv(LEFT($J76,12)),""), "<>") -> <> | T76: =IF(CELL("spalte",T76)<CELL("spalte",$P76)+$Q$2, IF(MOD(CELL("zeile",T76)-CELL("zeile",T$4),$Q$2)=MOD(CELL("spalte",T76)-(CELL("spalte",$P76)),$Q$2),ean_conv(LEFT($J76,12)),""), "<>") -> <> | U76: =IF(CELL("spalte",U76)<CELL("spalte",$P76)+$Q$2, IF(MOD(CELL("zeile",U76)-CELL("zeile",U$4),$Q$2)=MOD(CELL("spalte",U76)-(CELL("spalte",$P76)),$Q$2),ean_conv(LEFT($J76,12)),""), "<>") -> <> | V76: =IF(CELL("spalte",V76)<CELL("spalte",$P76)+$Q$2, IF(MOD(CELL("zeile",V76)-CELL("zeile",V$4),$Q$2)=MOD(CELL("spalte",V76)-(CELL("spalte",$P76)),$Q$2),ean_conv(LEFT($J76,12)),""), "<>") -> <> | W76: =IF(CELL("spalte",W76)<CELL("spalte",$P76)+$Q$2, IF(MOD(CELL("zeile",W76)-CELL("zeile",W$4),$Q$2)=MOD(CELL("spalte",W76)-(CELL("spalte",$P76)),$Q$2),ean_conv(LEFT($J76,12)),""), "<>") -> <> | X76: =IF(CELL("spalte",X76)<CELL("spalte",$P76)+$Q$2, IF(MOD(CELL("zeile",X76)-CELL("zeile",X$4),$Q$2)=MOD(CELL("spalte",X76)-(CELL("spalte",$P76)),$Q$2),ean_conv(LEFT($J76,12)),""), "<>") -> <> | Y76: =IF(CELL("spalte",Y76)<CELL("spalte",$P76)+$Q$2, IF(MOD(CELL("zeile",Y76)-CELL("zeile",Y$4),$Q$2)=MOD(CELL("spalte",Y76)-(CELL("spalte",$P76)),$Q$2),ean_conv(LEFT($J76,12)),""), "<>") -> <>
A77: 74 | B77: Accel World/Dural - Magisa Garden | C77: 1 | D77: Action | F77: deu | G77: Standard | H77: Tokyopop | I77: X | J77: 9783842032248 | L77: =IF(B77<>"",B77&Trenner&Einschluss&F77&Einschluss,"") -> Accel World/Dural - Magisa Garden •deu• | M77: =IF(C77<>"", IF(ISNUMBER(C77), IF(COUNTIF(Sort_Titel,L77)>99,L77&Trenner&TEXT(C77,"000"), IF(COUNTIF(Sort_Titel,L77)>9,L77&Trenner&TEXT(C77,"00"),L77&Trenner&TEXT(C77,"0")) ),L77&Trenner&C77 ),IF(L77<>"",L77,Titel_Leer) ) -> Accel World/Dural - Magisa Garden •deu• 1 | O77: Seite 1 | P77: =IF(CELL("spalte",P77)<CELL("spalte",$P77)+$Q$2, IF(MOD(CELL("zeile",P77)-CELL("zeile",P$4),$Q$2)=MOD(CELL("spalte",P77)-(CELL("spalte",$P77)),$Q$2),ean_conv(LEFT($J77,12)),""), "<>") -> <> | Q77: =IF(CELL("spalte",Q77)<CELL("spalte",$P77)+$Q$2, IF(MOD(CELL("zeile",Q77)-CELL("zeile",Q$4),$Q$2)=MOD(CELL("spalte",Q77)-(CELL("spalte",$P77)),$Q$2),ean_conv(LEFT($J77,12)),""), "<>") -> <> | R77: =IF(CELL("spalte",R77)<CELL("spalte",$P77)+$Q$2, IF(MOD(CELL("zeile",R77)-CELL("zeile",R$4),$Q$2)=MOD(CELL("spalte",R77)-(CELL("spalte",$P77)),$Q$2),ean_conv(LEFT($J77,12)),""), "<>") -> <> | S77: =IF(CELL("spalte",S77)<CELL("spalte",$P77)+$Q$2, IF(MOD(CELL("zeile",S77)-CELL("zeile",S$4),$Q$2)=MOD(CELL("spalte",S77)-(CELL("spalte",$P77)),$Q$2),ean_conv(LEFT($J77,12)),""), "<>") -> <> | T77: =IF(CELL("spalte",T77)<CELL("spalte",$P77)+$Q$2, IF(MOD(CELL("zeile",T77)-CELL("zeile",T$4),$Q$2)=MOD(CELL("spalte",T77)-(CELL("spalte",$P77)),$Q$2),ean_conv(LEFT($J77,12)),""), "<>") -> <> | U77: =IF(CELL("spalte",U77)<CELL("spalte",$P77)+$Q$2, IF(MOD(CELL("zeile",U77)-CELL("zeile",U$4),$Q$2)=MOD(CELL("spalte",U77)-(CELL("spalte",$P77)),$Q$2),ean_conv(LEFT($J77,12)),""), "<>") -> <> | V77: =IF(CELL("spalte",V77)<CELL("spalte",$P77)+$Q$2, IF(MOD(CELL("zeile",V77)-CELL("zeile",V$4),$Q$2)=MOD(CELL("spalte",V77)-(CELL("spalte",$P77)),$Q$2),ean_conv(LEFT($J77,12)),""), "<>") -> <> | W77: =IF(CELL("spalte",W77)<CELL("spalte",$P77)+$Q$2, IF(MOD(CELL("zeile",W77)-CELL("zeile",W$4),$Q$2)=MOD(CELL("spalte",W77)-(CELL("spalte",$P77)),$Q$2),ean_conv(LEFT($J77,12)),""), "<>") -> <> | X77: =IF(CELL("spalte",X77)<CELL("spalte",$P77)+$Q$2, IF(MOD(CELL("zeile",X77)-CELL("zeile",X$4),$Q$2)=MOD(CELL("spalte",X77)-(CELL("spalte",$P77)),$Q$2),ean_conv(LEFT($J77,12)),""), "<>") -> <> | Y77: =IF(CELL("spalte",Y77)<CELL("spalte",$P77)+$Q$2, IF(MOD(CELL("zeile",Y77)-CELL("zeile",Y$4),$Q$2)=MOD(CELL("spalte",Y77)-(CELL("spalte",$P77)),$Q$2),ean_conv(LEFT($J77,12)),""), "<>") -> <>
A78: 75 | B78: Accel World/Dural - Magisa Garden | C78: 2 | D78: Action | F78: deu | G78: Standard | H78: Tokyopop | I78: X | J78: 9783842032255 | L78: =IF(B78<>"",B78&Trenner&Einschluss&F78&Einschluss,"") -> Accel World/Dural - Magisa Garden •deu• | M78: =IF(C78<>"", IF(ISNUMBER(C78), IF(COUNTIF(Sort_Titel,L78)>99,L78&Trenner&TEXT(C78,"000"), IF(COUNTIF(Sort_Titel,L78)>9,L78&Trenner&TEXT(C78,"00"),L78&Trenner&TEXT(C78,"0")) ),L78&Trenner&C78 ),IF(L78<>"",L78,Titel_Leer) ) -> Accel World/Dural - Magisa Garden •deu• 2 | O78: Seite 1 | P78: =IF(CELL("spalte",P78)<CELL("spalte",$P78)+$Q$2, IF(MOD(CELL("zeile",P78)-CELL("zeile",P$4),$Q$2)=MOD(CELL("spalte",P78)-(CELL("spalte",$P78)),$Q$2),ean_conv(LEFT($J78,12)),""), "<>") -> <> | Q78: =IF(CELL("spalte",Q78)<CELL("spalte",$P78)+$Q$2, IF(MOD(CELL("zeile",Q78)-CELL("zeile",Q$4),$Q$2)=MOD(CELL("spalte",Q78)-(CELL("spalte",$P78)),$Q$2),ean_conv(LEFT($J78,12)),""), "<>") -> <> | R78: =IF(CELL("spalte",R78)<CELL("spalte",$P78)+$Q$2, IF(MOD(CELL("zeile",R78)-CELL("zeile",R$4),$Q$2)=MOD(CELL("spalte",R78)-(CELL("spalte",$P78)),$Q$2),ean_conv(LEFT($J78,12)),""), "<>") -> <> | S78: =IF(CELL("spalte",S78)<CELL("spalte",$P78)+$Q$2, IF(MOD(CELL("zeile",S78)-CELL("zeile",S$4),$Q$2)=MOD(CELL("spalte",S78)-(CELL("spalte",$P78)),$Q$2),ean_conv(LEFT($J78,12)),""), "<>") -> <> | T78: =IF(CELL("spalte",T78)<CELL("spalte",$P78)+$Q$2, IF(MOD(CELL("zeile",T78)-CELL("zeile",T$4),$Q$2)=MOD(CELL("spalte",T78)-(CELL("spalte",$P78)),$Q$2),ean_conv(LEFT($J78,12)),""), "<>") -> <> | U78: =IF(CELL("spalte",U78)<CELL("spalte",$P78)+$Q$2, IF(MOD(CELL("zeile",U78)-CELL("zeile",U$4),$Q$2)=MOD(CELL("spalte",U78)-(CELL("spalte",$P78)),$Q$2),ean_conv(LEFT($J78,12)),""), "<>") -> <> | V78: =IF(CELL("spalte",V78)<CELL("spalte",$P78)+$Q$2, IF(MOD(CELL("zeile",V78)-CELL("zeile",V$4),$Q$2)=MOD(CELL("spalte",V78)-(CELL("spalte",$P78)),$Q$2),ean_conv(LEFT($J78,12)),""), "<>") -> <> | W78: =IF(CELL("spalte",W78)<CELL("spalte",$P78)+$Q$2, IF(MOD(CELL("zeile",W78)-CELL("zeile",W$4),$Q$2)=MOD(CELL("spalte",W78)-(CELL("spalte",$P78)),$Q$2),ean_conv(LEFT($J78,12)),""), "<>") -> <> | X78: =IF(CELL("spalte",X78)<CELL("spalte",$P78)+$Q$2, IF(MOD(CELL("zeile",X78)-CELL("zeile",X$4),$Q$2)=MOD(CELL("spalte",X78)-(CELL("spalte",$P78)),$Q$2),ean_conv(LEFT($J78,12)),""), "<>") -> <> | Y78: =IF(CELL("spalte",Y78)<CELL("spalte",$P78)+$Q$2, IF(MOD(CELL("zeile",Y78)-CELL("zeile",Y$4),$Q$2)=MOD(CELL("spalte",Y78)-(CELL("spalte",$P78)),$Q$2),ean_conv(LEFT($J78,12)),""), "<>") -> <>
A79: 76 | B79: Accel World/Dural - Magisa Garden | C79: 3 | D79: Action | F79: deu | G79: Standard | H79: Tokyopop | I79: X | J79: 9783842032262 | L79: =IF(B79<>"",B79&Trenner&Einschluss&F79&Einschluss,"") -> Accel World/Dural - Magisa Garden •deu• | M79: =IF(C79<>"", IF(ISNUMBER(C79), IF(COUNTIF(Sort_Titel,L79)>99,L79&Trenner&TEXT(C79,"000"), IF(COUNTIF(Sort_Titel,L79)>9,L79&Trenner&TEXT(C79,"00"),L79&Trenner&TEXT(C79,"0")) ),L79&Trenner&C79 ),IF(L79<>"",L79,Titel_Leer) ) -> Accel World/Dural - Magisa Garden •deu• 3 | O79: Seite 1 | P79: =IF(CELL("spalte",P79)<CELL("spalte",$P79)+$Q$2, IF(MOD(CELL("zeile",P79)-CELL("zeile",P$4),$Q$2)=MOD(CELL("spalte",P79)-(CELL("spalte",$P79)),$Q$2),ean_conv(LEFT($J79,12)),""), "<>") -> <> | Q79: =IF(CELL("spalte",Q79)<CELL("spalte",$P79)+$Q$2, IF(MOD(CELL("zeile",Q79)-CELL("zeile",Q$4),$Q$2)=MOD(CELL("spalte",Q79)-(CELL("spalte",$P79)),$Q$2),ean_conv(LEFT($J79,12)),""), "<>") -> <> | R79: =IF(CELL("spalte",R79)<CELL("spalte",$P79)+$Q$2, IF(MOD(CELL("zeile",R79)-CELL("zeile",R$4),$Q$2)=MOD(CELL("spalte",R79)-(CELL("spalte",$P79)),$Q$2),ean_conv(LEFT($J79,12)),""), "<>") -> <> | S79: =IF(CELL("spalte",S79)<CELL("spalte",$P79)+$Q$2, IF(MOD(CELL("zeile",S79)-CELL("zeile",S$4),$Q$2)=MOD(CELL("spalte",S79)-(CELL("spalte",$P79)),$Q$2),ean_conv(LEFT($J79,12)),""), "<>") -> <> | T79: =IF(CELL("spalte",T79)<CELL("spalte",$P79)+$Q$2, IF(MOD(CELL("zeile",T79)-CELL("zeile",T$4),$Q$2)=MOD(CELL("spalte",T79)-(CELL("spalte",$P79)),$Q$2),ean_conv(LEFT($J79,12)),""), "<>") -> <> | U79: =IF(CELL("spalte",U79)<CELL("spalte",$P79)+$Q$2, IF(MOD(CELL("zeile",U79)-CELL("zeile",U$4),$Q$2)=MOD(CELL("spalte",U79)-(CELL("spalte",$P79)),$Q$2),ean_conv(LEFT($J79,12)),""), "<>") -> <> | V79: =IF(CELL("spalte",V79)<CELL("spalte",$P79)+$Q$2, IF(MOD(CELL("zeile",V79)-CELL("zeile",V$4),$Q$2)=MOD(CELL("spalte",V79)-(CELL("spalte",$P79)),$Q$2),ean_conv(LEFT($J79,12)),""), "<>") -> <> | W79: =IF(CELL("spalte",W79)<CELL("spalte",$P79)+$Q$2, IF(MOD(CELL("zeile",W79)-CELL("zeile",W$4),$Q$2)=MOD(CELL("spalte",W79)-(CELL("spalte",$P79)),$Q$2),ean_conv(LEFT($J79,12)),""), "<>") -> <> | X79: =IF(CELL("spalte",X79)<CELL("spalte",$P79)+$Q$2, IF(MOD(CELL("zeile",X79)-CELL("zeile",X$4),$Q$2)=MOD(CELL("spalte",X79)-(CELL("spalte",$P79)),$Q$2),ean_conv(LEFT($J79,12)),""), "<>") -> <> | Y79: =IF(CELL("spalte",Y79)<CELL("spalte",$P79)+$Q$2, IF(MOD(CELL("zeile",Y79)-CELL("zeile",Y$4),$Q$2)=MOD(CELL("spalte",Y79)-(CELL("spalte",$P79)),$Q$2),ean_conv(LEFT($J79,12)),""), "<>") -> <>
A80: 77 | B80: Accel World/Dural - Magisa Garden | C80: 4 | D80: Action | F80: deu | G80: Standard | H80: Tokyopop | I80: X | J80: 9783842032279 | L80: =IF(B80<>"",B80&Trenner&Einschluss&F80&Einschluss,"") -> Accel World/Dural - Magisa Garden •deu• | M80: =IF(C80<>"", IF(ISNUMBER(C80), IF(COUNTIF(Sort_Titel,L80)>99,L80&Trenner&TEXT(C80,"000"), IF(COUNTIF(Sort_Titel,L80)>9,L80&Trenner&TEXT(C80,"00"),L80&Trenner&TEXT(C80,"0")) ),L80&Trenner&C80 ),IF(L80<>"",L80,Titel_Leer) ) -> Accel World/Dural - Magisa Garden •deu• 4 | O80: Seite 1 | P80: =IF(CELL("spalte",P80)<CELL("spalte",$P80)+$Q$2, IF(MOD(CELL("zeile",P80)-CELL("zeile",P$4),$Q$2)=MOD(CELL("spalte",P80)-(CELL("spalte",$P80)),$Q$2),ean_conv(LEFT($J80,12)),""), "<>") -> <> | Q80: =IF(CELL("spalte",Q80)<CELL("spalte",$P80)+$Q$2, IF(MOD(CELL("zeile",Q80)-CELL("zeile",Q$4),$Q$2)=MOD(CELL("spalte",Q80)-(CELL("spalte",$P80)),$Q$2),ean_conv(LEFT($J80,12)),""), "<>") -> <> | R80: =IF(CELL("spalte",R80)<CELL("spalte",$P80)+$Q$2, IF(MOD(CELL("zeile",R80)-CELL("zeile",R$4),$Q$2)=MOD(CELL("spalte",R80)-(CELL("spalte",$P80)),$Q$2),ean_conv(LEFT($J80,12)),""), "<>") -> <> | S80: =IF(CELL("spalte",S80)<CELL("spalte",$P80)+$Q$2, IF(MOD(CELL("zeile",S80)-CELL("zeile",S$4),$Q$2)=MOD(CELL("spalte",S80)-(CELL("spalte",$P80)),$Q$2),ean_conv(LEFT($J80,12)),""), "<>") -> <> | T80: =IF(CELL("spalte",T80)<CELL("spalte",$P80)+$Q$2, IF(MOD(CELL("zeile",T80)-CELL("zeile",T$4),$Q$2)=MOD(CELL("spalte",T80)-(CELL("spalte",$P80)),$Q$2),ean_conv(LEFT($J80,12)),""), "<>") -> <> | U80: =IF(CELL("spalte",U80)<CELL("spalte",$P80)+$Q$2, IF(MOD(CELL("zeile",U80)-CELL("zeile",U$4),$Q$2)=MOD(CELL("spalte",U80)-(CELL("spalte",$P80)),$Q$2),ean_conv(LEFT($J80,12)),""), "<>") -> <> | V80: =IF(CELL("spalte",V80)<CELL("spalte",$P80)+$Q$2, IF(MOD(CELL("zeile",V80)-CELL("zeile",V$4),$Q$2)=MOD(CELL("spalte",V80)-(CELL("spalte",$P80)),$Q$2),ean_conv(LEFT($J80,12)),""), "<>") -> <> | W80: =IF(CELL("spalte",W80)<CELL("spalte",$P80)+$Q$2, IF(MOD(CELL("zeile",W80)-CELL("zeile",W$4),$Q$2)=MOD(CELL("spalte",W80)-(CELL("spalte",$P80)),$Q$2),ean_conv(LEFT($J80,12)),""), "<>") -> <> | X80: =IF(CELL("spalte",X80)<CELL("spalte",$P80)+$Q$2, IF(MOD(CELL("zeile",X80)-CELL("zeile",X$4),$Q$2)=MOD(CELL("spalte",X80)-(CELL("spalte",$P80)),$Q$2),ean_conv(LEFT($J80,12)),""), "<>") -> <> | Y80: =IF(CELL("spalte",Y80)<CELL("spalte",$P80)+$Q$2, IF(MOD(CELL("zeile",Y80)-CELL("zeile",Y$4),$Q$2)=MOD(CELL("spalte",Y80)-(CELL("spalte",$P80)),$Q$2),ean_conv(LEFT($J80,12)),""), "<>") -> <>
A81: 78 | B81: Accel World/Dural - Magisa Garden | C81: 5 | D81: Action | F81: deu | G81: Standard | H81: Tokyopop | I81: X | J81: 9783842032286 | L81: =IF(B81<>"",B81&Trenner&Einschluss&F81&Einschluss,"") -> Accel World/Dural - Magisa Garden •deu• | M81: =IF(C81<>"", IF(ISNUMBER(C81), IF(COUNTIF(Sort_Titel,L81)>99,L81&Trenner&TEXT(C81,"000"), IF(COUNTIF(Sort_Titel,L81)>9,L81&Trenner&TEXT(C81,"00"),L81&Trenner&TEXT(C81,"0")) ),L81&Trenner&C81 ),IF(L81<>"",L81,Titel_Leer) ) -> Accel World/Dural - Magisa Garden •deu• 5 | O81: Seite 1 | P81: =IF(CELL("spalte",P81)<CELL("spalte",$P81)+$Q$2, IF(MOD(CELL("zeile",P81)-CELL("zeile",P$4),$Q$2)=MOD(CELL("spalte",P81)-(CELL("spalte",$P81)),$Q$2),ean_conv(LEFT($J81,12)),""), "<>") -> <> | Q81: =IF(CELL("spalte",Q81)<CELL("spalte",$P81)+$Q$2, IF(MOD(CELL("zeile",Q81)-CELL("zeile",Q$4),$Q$2)=MOD(CELL("spalte",Q81)-(CELL("spalte",$P81)),$Q$2),ean_conv(LEFT($J81,12)),""), "<>") -> <> | R81: =IF(CELL("spalte",R81)<CELL("spalte",$P81)+$Q$2, IF(MOD(CELL("zeile",R81)-CELL("zeile",R$4),$Q$2)=MOD(CELL("spalte",R81)-(CELL("spalte",$P81)),$Q$2),ean_conv(LEFT($J81,12)),""), "<>") -> <> | S81: =IF(CELL("spalte",S81)<CELL("spalte",$P81)+$Q$2, IF(MOD(CELL("zeile",S81)-CELL("zeile",S$4),$Q$2)=MOD(CELL("spalte",S81)-(CELL("spalte",$P81)),$Q$2),ean_conv(LEFT($J81,12)),""), "<>") -> <> | T81: =IF(CELL("spalte",T81)<CELL("spalte",$P81)+$Q$2, IF(MOD(CELL("zeile",T81)-CELL("zeile",T$4),$Q$2)=MOD(CELL("spalte",T81)-(CELL("spalte",$P81)),$Q$2),ean_conv(LEFT($J81,12)),""), "<>") -> <> | U81: =IF(CELL("spalte",U81)<CELL("spalte",$P81)+$Q$2, IF(MOD(CELL("zeile",U81)-CELL("zeile",U$4),$Q$2)=MOD(CELL("spalte",U81)-(CELL("spalte",$P81)),$Q$2),ean_conv(LEFT($J81,12)),""), "<>") -> <> | V81: =IF(CELL("spalte",V81)<CELL("spalte",$P81)+$Q$2, IF(MOD(CELL("zeile",V81)-CELL("zeile",V$4),$Q$2)=MOD(CELL("spalte",V81)-(CELL("spalte",$P81)),$Q$2),ean_conv(LEFT($J81,12)),""), "<>") -> <> | W81: =IF(CELL("spalte",W81)<CELL("spalte",$P81)+$Q$2, IF(MOD(CELL("zeile",W81)-CELL("zeile",W$4),$Q$2)=MOD(CELL("spalte",W81)-(CELL("spalte",$P81)),$Q$2),ean_conv(LEFT($J81,12)),""), "<>") -> <> | X81: =IF(CELL("spalte",X81)<CELL("spalte",$P81)+$Q$2, IF(MOD(CELL("zeile",X81)-CELL("zeile",X$4),$Q$2)=MOD(CELL("spalte",X81)-(CELL("spalte",$P81)),$Q$2),ean_conv(LEFT($J81,12)),""), "<>") -> <> | Y81: =IF(CELL("spalte",Y81)<CELL("spalte",$P81)+$Q$2, IF(MOD(CELL("zeile",Y81)-CELL("zeile",Y$4),$Q$2)=MOD(CELL("spalte",Y81)-(CELL("spalte",$P81)),$Q$2),ean_conv(LEFT($J81,12)),""), "<>") -> <>
A82: 79 | B82: Accel World/Dural - Magisa Garden | C82: 6 | D82: Action | F82: deu | G82: Standard | H82: Tokyopop | I82: X | J82: 9783842032293 | L82: =IF(B82<>"",B82&Trenner&Einschluss&F82&Einschluss,"") -> Accel World/Dural - Magisa Garden •deu• | M82: =IF(C82<>"", IF(ISNUMBER(C82), IF(COUNTIF(Sort_Titel,L82)>99,L82&Trenner&TEXT(C82,"000"), IF(COUNTIF(Sort_Titel,L82)>9,L82&Trenner&TEXT(C82,"00"),L82&Trenner&TEXT(C82,"0")) ),L82&Trenner&C82 ),IF(L82<>"",L82,Titel_Leer) ) -> Accel World/Dural - Magisa Garden •deu• 6 | O82: Seite 1 | P82: =IF(CELL("spalte",P82)<CELL("spalte",$P82)+$Q$2, IF(MOD(CELL("zeile",P82)-CELL("zeile",P$4),$Q$2)=MOD(CELL("spalte",P82)-(CELL("spalte",$P82)),$Q$2),ean_conv(LEFT($J82,12)),""), "<>") -> <> | Q82: =IF(CELL("spalte",Q82)<CELL("spalte",$P82)+$Q$2, IF(MOD(CELL("zeile",Q82)-CELL("zeile",Q$4),$Q$2)=MOD(CELL("spalte",Q82)-(CELL("spalte",$P82)),$Q$2),ean_conv(LEFT($J82,12)),""), "<>") -> <> | R82: =IF(CELL("spalte",R82)<CELL("spalte",$P82)+$Q$2, IF(MOD(CELL("zeile",R82)-CELL("zeile",R$4),$Q$2)=MOD(CELL("spalte",R82)-(CELL("spalte",$P82)),$Q$2),ean_conv(LEFT($J82,12)),""), "<>") -> <> | S82: =IF(CELL("spalte",S82)<CELL("spalte",$P82)+$Q$2, IF(MOD(CELL("zeile",S82)-CELL("zeile",S$4),$Q$2)=MOD(CELL("spalte",S82)-(CELL("spalte",$P82)),$Q$2),ean_conv(LEFT($J82,12)),""), "<>") -> <> | T82: =IF(CELL("spalte",T82)<CELL("spalte",$P82)+$Q$2, IF(MOD(CELL("zeile",T82)-CELL("zeile",T$4),$Q$2)=MOD(CELL("spalte",T82)-(CELL("spalte",$P82)),$Q$2),ean_conv(LEFT($J82,12)),""), "<>") -> <> | U82: =IF(CELL("spalte",U82)<CELL("spalte",$P82)+$Q$2, IF(MOD(CELL("zeile",U82)-CELL("zeile",U$4),$Q$2)=MOD(CELL("spalte",U82)-(CELL("spalte",$P82)),$Q$2),ean_conv(LEFT($J82,12)),""), "<>") -> <> | V82: =IF(CELL("spalte",V82)<CELL("spalte",$P82)+$Q$2, IF(MOD(CELL("zeile",V82)-CELL("zeile",V$4),$Q$2)=MOD(CELL("spalte",V82)-(CELL("spalte",$P82)),$Q$2),ean_conv(LEFT($J82,12)),""), "<>") -> <> | W82: =IF(CELL("spalte",W82)<CELL("spalte",$P82)+$Q$2, IF(MOD(CELL("zeile",W82)-CELL("zeile",W$4),$Q$2)=MOD(CELL("spalte",W82)-(CELL("spalte",$P82)),$Q$2),ean_conv(LEFT($J82,12)),""), "<>") -> <> | X82: =IF(CELL("spalte",X82)<CELL("spalte",$P82)+$Q$2, IF(MOD(CELL("zeile",X82)-CELL("zeile",X$4),$Q$2)=MOD(CELL("spalte",X82)-(CELL("spalte",$P82)),$Q$2),ean_conv(LEFT($J82,12)),""), "<>") -> <> | Y82: =IF(CELL("spalte",Y82)<CELL("spalte",$P82)+$Q$2, IF(MOD(CELL("zeile",Y82)-CELL("zeile",Y$4),$Q$2)=MOD(CELL("spalte",Y82)-(CELL("spalte",$P82)),$Q$2),ean_conv(LEFT($J82,12)),""), "<>") -> <>
A83: 80 | B83: Accel World/Dural - Magisa Garden | C83: 7 | D83: Action | F83: deu | G83: Standard | H83: Tokyopop | I83: X | J83: 9783842035379 | L83: =IF(B83<>"",B83&Trenner&Einschluss&F83&Einschluss,"") -> Accel World/Dural - Magisa Garden •deu• | M83: =IF(C83<>"", IF(ISNUMBER(C83), IF(COUNTIF(Sort_Titel,L83)>99,L83&Trenner&TEXT(C83,"000"), IF(COUNTIF(Sort_Titel,L83)>9,L83&Trenner&TEXT(C83,"00"),L83&Trenner&TEXT(C83,"0")) ),L83&Trenner&C83 ),IF(L83<>"",L83,Titel_Leer) ) -> Accel World/Dural - Magisa Garden •deu• 7 | O83: Seite 1 | P83: =IF(CELL("spalte",P83)<CELL("spalte",$P83)+$Q$2, IF(MOD(CELL("zeile",P83)-CELL("zeile",P$4),$Q$2)=MOD(CELL("spalte",P83)-(CELL("spalte",$P83)),$Q$2),ean_conv(LEFT($J83,12)),""), "<>") -> <> | Q83: =IF(CELL("spalte",Q83)<CELL("spalte",$P83)+$Q$2, IF(MOD(CELL("zeile",Q83)-CELL("zeile",Q$4),$Q$2)=MOD(CELL("spalte",Q83)-(CELL("spalte",$P83)),$Q$2),ean_conv(LEFT($J83,12)),""), "<>") -> <> | R83: =IF(CELL("spalte",R83)<CELL("spalte",$P83)+$Q$2, IF(MOD(CELL("zeile",R83)-CELL("zeile",R$4),$Q$2)=MOD(CELL("spalte",R83)-(CELL("spalte",$P83)),$Q$2),ean_conv(LEFT($J83,12)),""), "<>") -> <> | S83: =IF(CELL("spalte",S83)<CELL("spalte",$P83)+$Q$2, IF(MOD(CELL("zeile",S83)-CELL("zeile",S$4),$Q$2)=MOD(CELL("spalte",S83)-(CELL("spalte",$P83)),$Q$2),ean_conv(LEFT($J83,12)),""), "<>") -> <> | T83: =IF(CELL("spalte",T83)<CELL("spalte",$P83)+$Q$2, IF(MOD(CELL("zeile",T83)-CELL("zeile",T$4),$Q$2)=MOD(CELL("spalte",T83)-(CELL("spalte",$P83)),$Q$2),ean_conv(LEFT($J83,12)),""), "<>") -> <> | U83: =IF(CELL("spalte",U83)<CELL("spalte",$P83)+$Q$2, IF(MOD(CELL("zeile",U83)-CELL("zeile",U$4),$Q$2)=MOD(CELL("spalte",U83)-(CELL("spalte",$P83)),$Q$2),ean_conv(LEFT($J83,12)),""), "<>") -> <> | V83: =IF(CELL("spalte",V83)<CELL("spalte",$P83)+$Q$2, IF(MOD(CELL("zeile",V83)-CELL("zeile",V$4),$Q$2)=MOD(CELL("spalte",V83)-(CELL("spalte",$P83)),$Q$2),ean_conv(LEFT($J83,12)),""), "<>") -> <> | W83: =IF(CELL("spalte",W83)<CELL("spalte",$P83)+$Q$2, IF(MOD(CELL("zeile",W83)-CELL("zeile",W$4),$Q$2)=MOD(CELL("spalte",W83)-(CELL("spalte",$P83)),$Q$2),ean_conv(LEFT($J83,12)),""), "<>") -> <> | X83: =IF(CELL("spalte",X83)<CELL("spalte",$P83)+$Q$2, IF(MOD(CELL("zeile",X83)-CELL("zeile",X$4),$Q$2)=MOD(CELL("spalte",X83)-(CELL("spalte",$P83)),$Q$2),ean_conv(LEFT($J83,12)),""), "<>") -> <> | Y83: =IF(CELL("spalte",Y83)<CELL("spalte",$P83)+$Q$2, IF(MOD(CELL("zeile",Y83)-CELL("zeile",Y$4),$Q$2)=MOD(CELL("spalte",Y83)-(CELL("spalte",$P83)),$Q$2),ean_conv(LEFT($J83,12)),""), "<>") -> <>
A84: 81 | B84: Accel World/Dural - Magisa Garden | C84: 8 | D84: Action | F84: deu | G84: Standard | H84: Tokyopop | I84: X | J84: 9783842044197 | L84: =IF(B84<>"",B84&Trenner&Einschluss&F84&Einschluss,"") -> Accel World/Dural - Magisa Garden •deu• | M84: =IF(C84<>"", IF(ISNUMBER(C84), IF(COUNTIF(Sort_Titel,L84)>99,L84&Trenner&TEXT(C84,"000"), IF(COUNTIF(Sort_Titel,L84)>9,L84&Trenner&TEXT(C84,"00"),L84&Trenner&TEXT(C84,"0")) ),L84&Trenner&C84 ),IF(L84<>"",L84,Titel_Leer) ) -> Accel World/Dural - Magisa Garden •deu• 8 | O84: Seite 2 | P84: =IF(CELL("spalte",P84)<CELL("spalte",$P84)+$Q$2, IF(MOD(CELL("zeile",P84)-CELL("zeile",P$4),$Q$2)=MOD(CELL("spalte",P84)-(CELL("spalte",$P84)),$Q$2),ean_conv(LEFT($J84,12)),""), "<>") -> <> | Q84: =IF(CELL("spalte",Q84)<CELL("spalte",$P84)+$Q$2, IF(MOD(CELL("zeile",Q84)-CELL("zeile",Q$4),$Q$2)=MOD(CELL("spalte",Q84)-(CELL("spalte",$P84)),$Q$2),ean_conv(LEFT($J84,12)),""), "<>") -> <> | R84: =IF(CELL("spalte",R84)<CELL("spalte",$P84)+$Q$2, IF(MOD(CELL("zeile",R84)-CELL("zeile",R$4),$Q$2)=MOD(CELL("spalte",R84)-(CELL("spalte",$P84)),$Q$2),ean_conv(LEFT($J84,12)),""), "<>") -> <> | S84: =IF(CELL("spalte",S84)<CELL("spalte",$P84)+$Q$2, IF(MOD(CELL("zeile",S84)-CELL("zeile",S$4),$Q$2)=MOD(CELL("spalte",S84)-(CELL("spalte",$P84)),$Q$2),ean_conv(LEFT($J84,12)),""), "<>") -> <> | T84: =IF(CELL("spalte",T84)<CELL("spalte",$P84)+$Q$2, IF(MOD(CELL("zeile",T84)-CELL("zeile",T$4),$Q$2)=MOD(CELL("spalte",T84)-(CELL("spalte",$P84)),$Q$2),ean_conv(LEFT($J84,12)),""), "<>") -> <> | U84: =IF(CELL("spalte",U84)<CELL("spalte",$P84)+$Q$2, IF(MOD(CELL("zeile",U84)-CELL("zeile",U$4),$Q$2)=MOD(CELL("spalte",U84)-(CELL("spalte",$P84)),$Q$2),ean_conv(LEFT($J84,12)),""), "<>") -> <> | V84: =IF(CELL("spalte",V84)<CELL("spalte",$P84)+$Q$2, IF(MOD(CELL("zeile",V84)-CELL("zeile",V$4),$Q$2)=MOD(CELL("spalte",V84)-(CELL("spalte",$P84)),$Q$2),ean_conv(LEFT($J84,12)),""), "<>") -> <> | W84: =IF(CELL("spalte",W84)<CELL("spalte",$P84)+$Q$2, IF(MOD(CELL("zeile",W84)-CELL("zeile",W$4),$Q$2)=MOD(CELL("spalte",W84)-(CELL("spalte",$P84)),$Q$2),ean_conv(LEFT($J84,12)),""), "<>") -> <> | X84: =IF(CELL("spalte",X84)<CELL("spalte",$P84)+$Q$2, IF(MOD(CELL("zeile",X84)-CELL("zeile",X$4),$Q$2)=MOD(CELL("spalte",X84)-(CELL("spalte",$P84)),$Q$2),ean_conv(LEFT($J84,12)),""), "<>") -> <> | Y84: =IF(CELL("spalte",Y84)<CELL("spalte",$P84)+$Q$2, IF(MOD(CELL("zeile",Y84)-CELL("zeile",Y$4),$Q$2)=MOD(CELL("spalte",Y84)-(CELL("spalte",$P84)),$Q$2),ean_conv(LEFT($J84,12)),""), "<>") -> <>
A85: 82 | B85: After Hours | C85: 1 | D85: Girls Love | F85: deu | G85: Standard | H85: Tokyopop | I85: X | J85: 9783842051805 | L85: =IF(B85<>"",B85&Trenner&Einschluss&F85&Einschluss,"") -> After Hours •deu• | M85: =IF(C85<>"", IF(ISNUMBER(C85), IF(COUNTIF(Sort_Titel,L85)>99,L85&Trenner&TEXT(C85,"000"), IF(COUNTIF(Sort_Titel,L85)>9,L85&Trenner&TEXT(C85,"00"),L85&Trenner&TEXT(C85,"0")) ),L85&Trenner&C85 ),IF(L85<>"",L85,Titel_Leer) ) -> After Hours •deu• 1 | O85: Seite 2 | P85: =IF(CELL("spalte",P85)<CELL("spalte",$P85)+$Q$2, IF(MOD(CELL("zeile",P85)-CELL("zeile",P$4),$Q$2)=MOD(CELL("spalte",P85)-(CELL("spalte",$P85)),$Q$2),ean_conv(LEFT($J85,12)),""), "<>") -> <> | Q85: =IF(CELL("spalte",Q85)<CELL("spalte",$P85)+$Q$2, IF(MOD(CELL("zeile",Q85)-CELL("zeile",Q$4),$Q$2)=MOD(CELL("spalte",Q85)-(CELL("spalte",$P85)),$Q$2),ean_conv(LEFT($J85,12)),""), "<>") -> <> | R85: =IF(CELL("spalte",R85)<CELL("spalte",$P85)+$Q$2, IF(MOD(CELL("zeile",R85)-CELL("zeile",R$4),$Q$2)=MOD(CELL("spalte",R85)-(CELL("spalte",$P85)),$Q$2),ean_conv(LEFT($J85,12)),""), "<>") -> <> | S85: =IF(CELL("spalte",S85)<CELL("spalte",$P85)+$Q$2, IF(MOD(CELL("zeile",S85)-CELL("zeile",S$4),$Q$2)=MOD(CELL("spalte",S85)-(CELL("spalte",$P85)),$Q$2),ean_conv(LEFT($J85,12)),""), "<>") -> <> | T85: =IF(CELL("spalte",T85)<CELL("spalte",$P85)+$Q$2, IF(MOD(CELL("zeile",T85)-CELL("zeile",T$4),$Q$2)=MOD(CELL("spalte",T85)-(CELL("spalte",$P85)),$Q$2),ean_conv(LEFT($J85,12)),""), "<>") -> <> | U85: =IF(CELL("spalte",U85)<CELL("spalte",$P85)+$Q$2, IF(MOD(CELL("zeile",U85)-CELL("zeile",U$4),$Q$2)=MOD(CELL("spalte",U85)-(CELL("spalte",$P85)),$Q$2),ean_conv(LEFT($J85,12)),""), "<>") -> <> | V85: =IF(CELL("spalte",V85)<CELL("spalte",$P85)+$Q$2, IF(MOD(CELL("zeile",V85)-CELL("zeile",V$4),$Q$2)=MOD(CELL("spalte",V85)-(CELL("spalte",$P85)),$Q$2),ean_conv(LEFT($J85,12)),""), "<>") -> <> | W85: =IF(CELL("spalte",W85)<CELL("spalte",$P85)+$Q$2, IF(MOD(CELL("zeile",W85)-CELL("zeile",W$4),$Q$2)=MOD(CELL("spalte",W85)-(CELL("spalte",$P85)),$Q$2),ean_conv(LEFT($J85,12)),""), "<>") -> <> | X85: =IF(CELL("spalte",X85)<CELL("spalte",$P85)+$Q$2, IF(MOD(CELL("zeile",X85)-CELL("zeile",X$4),$Q$2)=MOD(CELL("spalte",X85)-(CELL("spalte",$P85)),$Q$2),ean_conv(LEFT($J85,12)),""), "<>") -> <> | Y85: =IF(CELL("spalte",Y85)<CELL("spalte",$P85)+$Q$2, IF(MOD(CELL("zeile",Y85)-CELL("zeile",Y$4),$Q$2)=MOD(CELL("spalte",Y85)-(CELL("spalte",$P85)),$Q$2),ean_conv(LEFT($J85,12)),""), "<>") -> <>
A86: 83 | B86: After Hours | C86: 2 | D86: Girls Love | F86: deu | G86: Standard | H86: Tokyopop | I86: X | J86: 9783842051812 | L86: =IF(B86<>"",B86&Trenner&Einschluss&F86&Einschluss,"") -> After Hours •deu• | M86: =IF(C86<>"", IF(ISNUMBER(C86), IF(COUNTIF(Sort_Titel,L86)>99,L86&Trenner&TEXT(C86,"000"), IF(COUNTIF(Sort_Titel,L86)>9,L86&Trenner&TEXT(C86,"00"),L86&Trenner&TEXT(C86,"0")) ),L86&Trenner&C86 ),IF(L86<>"",L86,Titel_Leer) ) -> After Hours •deu• 2 | O86: Seite 2 | P86: =IF(CELL("spalte",P86)<CELL("spalte",$P86)+$Q$2, IF(MOD(CELL("zeile",P86)-CELL("zeile",P$4),$Q$2)=MOD(CELL("spalte",P86)-(CELL("spalte",$P86)),$Q$2),ean_conv(LEFT($J86,12)),""), "<>") -> <> | Q86: =IF(CELL("spalte",Q86)<CELL("spalte",$P86)+$Q$2, IF(MOD(CELL("zeile",Q86)-CELL("zeile",Q$4),$Q$2)=MOD(CELL("spalte",Q86)-(CELL("spalte",$P86)),$Q$2),ean_conv(LEFT($J86,12)),""), "<>") -> <> | R86: =IF(CELL("spalte",R86)<CELL("spalte",$P86)+$Q$2, IF(MOD(CELL("zeile",R86)-CELL("zeile",R$4),$Q$2)=MOD(CELL("spalte",R86)-(CELL("spalte",$P86)),$Q$2),ean_conv(LEFT($J86,12)),""), "<>") -> <> | S86: =IF(CELL("spalte",S86)<CELL("spalte",$P86)+$Q$2, IF(MOD(CELL("zeile",S86)-CELL("zeile",S$4),$Q$2)=MOD(CELL("spalte",S86)-(CELL("spalte",$P86)),$Q$2),ean_conv(LEFT($J86,12)),""), "<>") -> <> | T86: =IF(CELL("spalte",T86)<CELL("spalte",$P86)+$Q$2, IF(MOD(CELL("zeile",T86)-CELL("zeile",T$4),$Q$2)=MOD(CELL("spalte",T86)-(CELL("spalte",$P86)),$Q$2),ean_conv(LEFT($J86,12)),""), "<>") -> <> | U86: =IF(CELL("spalte",U86)<CELL("spalte",$P86)+$Q$2, IF(MOD(CELL("zeile",U86)-CELL("zeile",U$4),$Q$2)=MOD(CELL("spalte",U86)-(CELL("spalte",$P86)),$Q$2),ean_conv(LEFT($J86,12)),""), "<>") -> <> | V86: =IF(CELL("spalte",V86)<CELL("spalte",$P86)+$Q$2, IF(MOD(CELL("zeile",V86)-CELL("zeile",V$4),$Q$2)=MOD(CELL("spalte",V86)-(CELL("spalte",$P86)),$Q$2),ean_conv(LEFT($J86,12)),""), "<>") -> <> | W86: =IF(CELL("spalte",W86)<CELL("spalte",$P86)+$Q$2, IF(MOD(CELL("zeile",W86)-CELL("zeile",W$4),$Q$2)=MOD(CELL("spalte",W86)-(CELL("spalte",$P86)),$Q$2),ean_conv(LEFT($J86,12)),""), "<>") -> <> | X86: =IF(CELL("spalte",X86)<CELL("spalte",$P86)+$Q$2, IF(MOD(CELL("zeile",X86)-CELL("zeile",X$4),$Q$2)=MOD(CELL("spalte",X86)-(CELL("spalte",$P86)),$Q$2),ean_conv(LEFT($J86,12)),""), "<>") -> <> | Y86: =IF(CELL("spalte",Y86)<CELL("spalte",$P86)+$Q$2, IF(MOD(CELL("zeile",Y86)-CELL("zeile",Y$4),$Q$2)=MOD(CELL("spalte",Y86)-(CELL("spalte",$P86)),$Q$2),ean_conv(LEFT($J86,12)),""), "<>") -> <>
A87: 84 | B87: After Hours | C87: 3 | D87: Girls Love | F87: deu | G87: Standard | H87: Tokyopop | I87: X | J87: 9783842051829 | L87: =IF(B87<>"",B87&Trenner&Einschluss&F87&Einschluss,"") -> After Hours •deu• | M87: =IF(C87<>"", IF(ISNUMBER(C87), IF(COUNTIF(Sort_Titel,L87)>99,L87&Trenner&TEXT(C87,"000"), IF(COUNTIF(Sort_Titel,L87)>9,L87&Trenner&TEXT(C87,"00"),L87&Trenner&TEXT(C87,"0")) ),L87&Trenner&C87 ),IF(L87<>"",L87,Titel_Leer) ) -> After Hours •deu• 3 | O87: Seite 2 | P87: =IF(CELL("spalte",P87)<CELL("spalte",$P87)+$Q$2, IF(MOD(CELL("zeile",P87)-CELL("zeile",P$4),$Q$2)=MOD(CELL("spalte",P87)-(CELL("spalte",$P87)),$Q$2),ean_conv(LEFT($J87,12)),""), "<>") -> <> | Q87: =IF(CELL("spalte",Q87)<CELL("spalte",$P87)+$Q$2, IF(MOD(CELL("zeile",Q87)-CELL("zeile",Q$4),$Q$2)=MOD(CELL("spalte",Q87)-(CELL("spalte",$P87)),$Q$2),ean_conv(LEFT($J87,12)),""), "<>") -> <> | R87: =IF(CELL("spalte",R87)<CELL("spalte",$P87)+$Q$2, IF(MOD(CELL("zeile",R87)-CELL("zeile",R$4),$Q$2)=MOD(CELL("spalte",R87)-(CELL("spalte",$P87)),$Q$2),ean_conv(LEFT($J87,12)),""), "<>") -> <> | S87: =IF(CELL("spalte",S87)<CELL("spalte",$P87)+$Q$2, IF(MOD(CELL("zeile",S87)-CELL("zeile",S$4),$Q$2)=MOD(CELL("spalte",S87)-(CELL("spalte",$P87)),$Q$2),ean_conv(LEFT($J87,12)),""), "<>") -> <> | T87: =IF(CELL("spalte",T87)<CELL("spalte",$P87)+$Q$2, IF(MOD(CELL("zeile",T87)-CELL("zeile",T$4),$Q$2)=MOD(CELL("spalte",T87)-(CELL("spalte",$P87)),$Q$2),ean_conv(LEFT($J87,12)),""), "<>") -> <> | U87: =IF(CELL("spalte",U87)<CELL("spalte",$P87)+$Q$2, IF(MOD(CELL("zeile",U87)-CELL("zeile",U$4),$Q$2)=MOD(CELL("spalte",U87)-(CELL("spalte",$P87)),$Q$2),ean_conv(LEFT($J87,12)),""), "<>") -> <> | V87: =IF(CELL("spalte",V87)<CELL("spalte",$P87)+$Q$2, IF(MOD(CELL("zeile",V87)-CELL("zeile",V$4),$Q$2)=MOD(CELL("spalte",V87)-(CELL("spalte",$P87)),$Q$2),ean_conv(LEFT($J87,12)),""), "<>") -> <> | W87: =IF(CELL("spalte",W87)<CELL("spalte",$P87)+$Q$2, IF(MOD(CELL("zeile",W87)-CELL("zeile",W$4),$Q$2)=MOD(CELL("spalte",W87)-(CELL("spalte",$P87)),$Q$2),ean_conv(LEFT($J87,12)),""), "<>") -> <> | X87: =IF(CELL("spalte",X87)<CELL("spalte",$P87)+$Q$2, IF(MOD(CELL("zeile",X87)-CELL("zeile",X$4),$Q$2)=MOD(CELL("spalte",X87)-(CELL("spalte",$P87)),$Q$2),ean_conv(LEFT($J87,12)),""), "<>") -> <> | Y87: =IF(CELL("spalte",Y87)<CELL("spalte",$P87)+$Q$2, IF(MOD(CELL("zeile",Y87)-CELL("zeile",Y$4),$Q$2)=MOD(CELL("spalte",Y87)-(CELL("spalte",$P87)),$Q$2),ean_conv(LEFT($J87,12)),""), "<>") -> <>
A88: 85 | B88: After-Scool Bitchcraft | C88: 1 | D88: Fantasy | F88: deu | G88: Standard | H88: Yen Press | I88: X | J88: 9781975399221 | L88: =IF(B88<>"",B88&Trenner&Einschluss&F88&Einschluss,"") -> After-Scool Bitchcraft •deu• | M88: =IF(C88<>"", IF(ISNUMBER(C88), IF(COUNTIF(Sort_Titel,L88)>99,L88&Trenner&TEXT(C88,"000"), IF(COUNTIF(Sort_Titel,L88)>9,L88&Trenner&TEXT(C88,"00"),L88&Trenner&TEXT(C88,"0")) ),L88&Trenner&C88 ),IF(L88<>"",L88,Titel_Leer) ) -> After-Scool Bitchcraft •deu• 1 | O88: Seite 2 | P88: =IF(CELL("spalte",P88)<CELL("spalte",$P88)+$Q$2, IF(MOD(CELL("zeile",P88)-CELL("zeile",P$4),$Q$2)=MOD(CELL("spalte",P88)-(CELL("spalte",$P88)),$Q$2),ean_conv(LEFT($J88,12)),""), "<>") -> <> | Q88: =IF(CELL("spalte",Q88)<CELL("spalte",$P88)+$Q$2, IF(MOD(CELL("zeile",Q88)-CELL("zeile",Q$4),$Q$2)=MOD(CELL("spalte",Q88)-(CELL("spalte",$P88)),$Q$2),ean_conv(LEFT($J88,12)),""), "<>") -> <> | R88: =IF(CELL("spalte",R88)<CELL("spalte",$P88)+$Q$2, IF(MOD(CELL("zeile",R88)-CELL("zeile",R$4),$Q$2)=MOD(CELL("spalte",R88)-(CELL("spalte",$P88)),$Q$2),ean_conv(LEFT($J88,12)),""), "<>") -> <> | S88: =IF(CELL("spalte",S88)<CELL("spalte",$P88)+$Q$2, IF(MOD(CELL("zeile",S88)-CELL("zeile",S$4),$Q$2)=MOD(CELL("spalte",S88)-(CELL("spalte",$P88)),$Q$2),ean_conv(LEFT($J88,12)),""), "<>") -> <> | T88: =IF(CELL("spalte",T88)<CELL("spalte",$P88)+$Q$2, IF(MOD(CELL("zeile",T88)-CELL("zeile",T$4),$Q$2)=MOD(CELL("spalte",T88)-(CELL("spalte",$P88)),$Q$2),ean_conv(LEFT($J88,12)),""), "<>") -> <> | U88: =IF(CELL("spalte",U88)<CELL("spalte",$P88)+$Q$2, IF(MOD(CELL("zeile",U88)-CELL("zeile",U$4),$Q$2)=MOD(CELL("spalte",U88)-(CELL("spalte",$P88)),$Q$2),ean_conv(LEFT($J88,12)),""), "<>") -> <> | V88: =IF(CELL("spalte",V88)<CELL("spalte",$P88)+$Q$2, IF(MOD(CELL("zeile",V88)-CELL("zeile",V$4),$Q$2)=MOD(CELL("spalte",V88)-(CELL("spalte",$P88)),$Q$2),ean_conv(LEFT($J88,12)),""), "<>") -> <> | W88: =IF(CELL("spalte",W88)<CELL("spalte",$P88)+$Q$2, IF(MOD(CELL("zeile",W88)-CELL("zeile",W$4),$Q$2)=MOD(CELL("spalte",W88)-(CELL("spalte",$P88)),$Q$2),ean_conv(LEFT($J88,12)),""), "<>") -> <> | X88: =IF(CELL("spalte",X88)<CELL("spalte",$P88)+$Q$2, IF(MOD(CELL("zeile",X88)-CELL("zeile",X$4),$Q$2)=MOD(CELL("spalte",X88)-(CELL("spalte",$P88)),$Q$2),ean_conv(LEFT($J88,12)),""), "<>") -> <> | Y88: =IF(CELL("spalte",Y88)<CELL("spalte",$P88)+$Q$2, IF(MOD(CELL("zeile",Y88)-CELL("zeile",Y$4),$Q$2)=MOD(CELL("spalte",Y88)-(CELL("spalte",$P88)),$Q$2),ean_conv(LEFT($J88,12)),""), "<>") -> <>
A89: 86 | B89: After-Scool Bitchcraft | C89: 2 | D89: Fantasy | F89: deu | G89: Standard | H89: Yen Press | I89: X | J89: 9781975319052 | L89: =IF(B89<>"",B89&Trenner&Einschluss&F89&Einschluss,"") -> After-Scool Bitchcraft •deu• | M89: =IF(C89<>"", IF(ISNUMBER(C89), IF(COUNTIF(Sort_Titel,L89)>99,L89&Trenner&TEXT(C89,"000"), IF(COUNTIF(Sort_Titel,L89)>9,L89&Trenner&TEXT(C89,"00"),L89&Trenner&TEXT(C89,"0")) ),L89&Trenner&C89 ),IF(L89<>"",L89,Titel_Leer) ) -> After-Scool Bitchcraft •deu• 2 | O89: Seite 2 | P89: =IF(CELL("spalte",P89)<CELL("spalte",$P89)+$Q$2, IF(MOD(CELL("zeile",P89)-CELL("zeile",P$4),$Q$2)=MOD(CELL("spalte",P89)-(CELL("spalte",$P89)),$Q$2),ean_conv(LEFT($J89,12)),""), "<>") -> <> | Q89: =IF(CELL("spalte",Q89)<CELL("spalte",$P89)+$Q$2, IF(MOD(CELL("zeile",Q89)-CELL("zeile",Q$4),$Q$2)=MOD(CELL("spalte",Q89)-(CELL("spalte",$P89)),$Q$2),ean_conv(LEFT($J89,12)),""), "<>") -> <> | R89: =IF(CELL("spalte",R89)<CELL("spalte",$P89)+$Q$2, IF(MOD(CELL("zeile",R89)-CELL("zeile",R$4),$Q$2)=MOD(CELL("spalte",R89)-(CELL("spalte",$P89)),$Q$2),ean_conv(LEFT($J89,12)),""), "<>") -> <> | S89: =IF(CELL("spalte",S89)<CELL("spalte",$P89)+$Q$2, IF(MOD(CELL("zeile",S89)-CELL("zeile",S$4),$Q$2)=MOD(CELL("spalte",S89)-(CELL("spalte",$P89)),$Q$2),ean_conv(LEFT($J89,12)),""), "<>") -> <> | T89: =IF(CELL("spalte",T89)<CELL("spalte",$P89)+$Q$2, IF(MOD(CELL("zeile",T89)-CELL("zeile",T$4),$Q$2)=MOD(CELL("spalte",T89)-(CELL("spalte",$P89)),$Q$2),ean_conv(LEFT($J89,12)),""), "<>") -> <> | U89: =IF(CELL("spalte",U89)<CELL("spalte",$P89)+$Q$2, IF(MOD(CELL("zeile",U89)-CELL("zeile",U$4),$Q$2)=MOD(CELL("spalte",U89)-(CELL("spalte",$P89)),$Q$2),ean_conv(LEFT($J89,12)),""), "<>") -> <> | V89: =IF(CELL("spalte",V89)<CELL("spalte",$P89)+$Q$2, IF(MOD(CELL("zeile",V89)-CELL("zeile",V$4),$Q$2)=MOD(CELL("spalte",V89)-(CELL("spalte",$P89)),$Q$2),ean_conv(LEFT($J89,12)),""), "<>") -> <> | W89: =IF(CELL("spalte",W89)<CELL("spalte",$P89)+$Q$2, IF(MOD(CELL("zeile",W89)-CELL("zeile",W$4),$Q$2)=MOD(CELL("spalte",W89)-(CELL("spalte",$P89)),$Q$2),ean_conv(LEFT($J89,12)),""), "<>") -> <> | X89: =IF(CELL("spalte",X89)<CELL("spalte",$P89)+$Q$2, IF(MOD(CELL("zeile",X89)-CELL("zeile",X$4),$Q$2)=MOD(CELL("spalte",X89)-(CELL("spalte",$P89)),$Q$2),ean_conv(LEFT($J89,12)),""), "<>") -> <> | Y89: =IF(CELL("spalte",Y89)<CELL("spalte",$P89)+$Q$2, IF(MOD(CELL("zeile",Y89)-CELL("zeile",Y$4),$Q$2)=MOD(CELL("spalte",Y89)-(CELL("spalte",$P89)),$Q$2),ean_conv(LEFT($J89,12)),""), "<>") -> <>
A90: 87 | B90: After-Scool Bitchcraft | C90: 3 | D90: Fantasy | F90: deu | G90: Standard | H90: Yen Press | I90: X | J90: 9781975334956 | L90: =IF(B90<>"",B90&Trenner&Einschluss&F90&Einschluss,"") -> After-Scool Bitchcraft •deu• | M90: =IF(C90<>"", IF(ISNUMBER(C90), IF(COUNTIF(Sort_Titel,L90)>99,L90&Trenner&TEXT(C90,"000"), IF(COUNTIF(Sort_Titel,L90)>9,L90&Trenner&TEXT(C90,"00"),L90&Trenner&TEXT(C90,"0")) ),L90&Trenner&C90 ),IF(L90<>"",L90,Titel_Leer) ) -> After-Scool Bitchcraft •deu• 3 | O90: Seite 2 | P90: =IF(CELL("spalte",P90)<CELL("spalte",$P90)+$Q$2, IF(MOD(CELL("zeile",P90)-CELL("zeile",P$4),$Q$2)=MOD(CELL("spalte",P90)-(CELL("spalte",$P90)),$Q$2),ean_conv(LEFT($J90,12)),""), "<>") -> <> | Q90: =IF(CELL("spalte",Q90)<CELL("spalte",$P90)+$Q$2, IF(MOD(CELL("zeile",Q90)-CELL("zeile",Q$4),$Q$2)=MOD(CELL("spalte",Q90)-(CELL("spalte",$P90)),$Q$2),ean_conv(LEFT($J90,12)),""), "<>") -> <> | R90: =IF(CELL("spalte",R90)<CELL("spalte",$P90)+$Q$2, IF(MOD(CELL("zeile",R90)-CELL("zeile",R$4),$Q$2)=MOD(CELL("spalte",R90)-(CELL("spalte",$P90)),$Q$2),ean_conv(LEFT($J90,12)),""), "<>") -> <> | S90: =IF(CELL("spalte",S90)<CELL("spalte",$P90)+$Q$2, IF(MOD(CELL("zeile",S90)-CELL("zeile",S$4),$Q$2)=MOD(CELL("spalte",S90)-(CELL("spalte",$P90)),$Q$2),ean_conv(LEFT($J90,12)),""), "<>") -> <> | T90: =IF(CELL("spalte",T90)<CELL("spalte",$P90)+$Q$2, IF(MOD(CELL("zeile",T90)-CELL("zeile",T$4),$Q$2)=MOD(CELL("spalte",T90)-(CELL("spalte",$P90)),$Q$2),ean_conv(LEFT($J90,12)),""), "<>") -> <> | U90: =IF(CELL("spalte",U90)<CELL("spalte",$P90)+$Q$2, IF(MOD(CELL("zeile",U90)-CELL("zeile",U$4),$Q$2)=MOD(CELL("spalte",U90)-(CELL("spalte",$P90)),$Q$2),ean_conv(LEFT($J90,12)),""), "<>") -> <> | V90: =IF(CELL("spalte",V90)<CELL("spalte",$P90)+$Q$2, IF(MOD(CELL("zeile",V90)-CELL("zeile",V$4),$Q$2)=MOD(CELL("spalte",V90)-(CELL("spalte",$P90)),$Q$2),ean_conv(LEFT($J90,12)),""), "<>") -> <> | W90: =IF(CELL("spalte",W90)<CELL("spalte",$P90)+$Q$2, IF(MOD(CELL("zeile",W90)-CELL("zeile",W$4),$Q$2)=MOD(CELL("spalte",W90)-(CELL("spalte",$P90)),$Q$2),ean_conv(LEFT($J90,12)),""), "<>") -> <> | X90: =IF(CELL("spalte",X90)<CELL("spalte",$P90)+$Q$2, IF(MOD(CELL("zeile",X90)-CELL("zeile",X$4),$Q$2)=MOD(CELL("spalte",X90)-(CELL("spalte",$P90)),$Q$2),ean_conv(LEFT($J90,12)),""), "<>") -> <> | Y90: =IF(CELL("spalte",Y90)<CELL("spalte",$P90)+$Q$2, IF(MOD(CELL("zeile",Y90)-CELL("zeile",Y$4),$Q$2)=MOD(CELL("spalte",Y90)-(CELL("spalte",$P90)),$Q$2),ean_conv(LEFT($J90,12)),""), "<>") -> <>
A91: 88 | B91: Agent of my Heart | C91: 1 | D91: Romance | F91: deu | G91: Standard | H91: Tokyopop | I91: X | J91: 9783842084032 | L91: =IF(B91<>"",B91&Trenner&Einschluss&F91&Einschluss,"") -> Agent of my Heart •deu• | M91: =IF(C91<>"", IF(ISNUMBER(C91), IF(COUNTIF(Sort_Titel,L91)>99,L91&Trenner&TEXT(C91,"000"), IF(COUNTIF(Sort_Titel,L91)>9,L91&Trenner&TEXT(C91,"00"),L91&Trenner&TEXT(C91,"0")) ),L91&Trenner&C91 ),IF(L91<>"",L91,Titel_Leer) ) -> Agent of my Heart •deu• 1 | O91: Seite 2 | P91: =IF(CELL("spalte",P91)<CELL("spalte",$P91)+$Q$2, IF(MOD(CELL("zeile",P91)-CELL("zeile",P$4),$Q$2)=MOD(CELL("spalte",P91)-(CELL("spalte",$P91)),$Q$2),ean_conv(LEFT($J91,12)),""), "<>") -> <> | Q91: =IF(CELL("spalte",Q91)<CELL("spalte",$P91)+$Q$2, IF(MOD(CELL("zeile",Q91)-CELL("zeile",Q$4),$Q$2)=MOD(CELL("spalte",Q91)-(CELL("spalte",$P91)),$Q$2),ean_conv(LEFT($J91,12)),""), "<>") -> <> | R91: =IF(CELL("spalte",R91)<CELL("spalte",$P91)+$Q$2, IF(MOD(CELL("zeile",R91)-CELL("zeile",R$4),$Q$2)=MOD(CELL("spalte",R91)-(CELL("spalte",$P91)),$Q$2),ean_conv(LEFT($J91,12)),""), "<>") -> <> | S91: =IF(CELL("spalte",S91)<CELL("spalte",$P91)+$Q$2, IF(MOD(CELL("zeile",S91)-CELL("zeile",S$4),$Q$2)=MOD(CELL("spalte",S91)-(CELL("spalte",$P91)),$Q$2),ean_conv(LEFT($J91,12)),""), "<>") -> <> | T91: =IF(CELL("spalte",T91)<CELL("spalte",$P91)+$Q$2, IF(MOD(CELL("zeile",T91)-CELL("zeile",T$4),$Q$2)=MOD(CELL("spalte",T91)-(CELL("spalte",$P91)),$Q$2),ean_conv(LEFT($J91,12)),""), "<>") -> <> | U91: =IF(CELL("spalte",U91)<CELL("spalte",$P91)+$Q$2, IF(MOD(CELL("zeile",U91)-CELL("zeile",U$4),$Q$2)=MOD(CELL("spalte",U91)-(CELL("spalte",$P91)),$Q$2),ean_conv(LEFT($J91,12)),""), "<>") -> <> | V91: =IF(CELL("spalte",V91)<CELL("spalte",$P91)+$Q$2, IF(MOD(CELL("zeile",V91)-CELL("zeile",V$4),$Q$2)=MOD(CELL("spalte",V91)-(CELL("spalte",$P91)),$Q$2),ean_conv(LEFT($J91,12)),""), "<>") -> <> | W91: =IF(CELL("spalte",W91)<CELL("spalte",$P91)+$Q$2, IF(MOD(CELL("zeile",W91)-CELL("zeile",W$4),$Q$2)=MOD(CELL("spalte",W91)-(CELL("spalte",$P91)),$Q$2),ean_conv(LEFT($J91,12)),""), "<>") -> <> | X91: =IF(CELL("spalte",X91)<CELL("spalte",$P91)+$Q$2, IF(MOD(CELL("zeile",X91)-CELL("zeile",X$4),$Q$2)=MOD(CELL("spalte",X91)-(CELL("spalte",$P91)),$Q$2),ean_conv(LEFT($J91,12)),""), "<>") -> <> | Y91: =IF(CELL("spalte",Y91)<CELL("spalte",$P91)+$Q$2, IF(MOD(CELL("zeile",Y91)-CELL("zeile",Y$4),$Q$2)=MOD(CELL("spalte",Y91)-(CELL("spalte",$P91)),$Q$2),ean_conv(LEFT($J91,12)),""), "<>") -> <>
A92: 89 | B92: Agent of my Heart | C92: 2 | D92: Romance | F92: deu | G92: Standard | H92: Tokyopop | I92: X | J92: 9783842084049 | L92: =IF(B92<>"",B92&Trenner&Einschluss&F92&Einschluss,"") -> Agent of my Heart •deu• | M92: =IF(C92<>"", IF(ISNUMBER(C92), IF(COUNTIF(Sort_Titel,L92)>99,L92&Trenner&TEXT(C92,"000"), IF(COUNTIF(Sort_Titel,L92)>9,L92&Trenner&TEXT(C92,"00"),L92&Trenner&TEXT(C92,"0")) ),L92&Trenner&C92 ),IF(L92<>"",L92,Titel_Leer) ) -> Agent of my Heart •deu• 2 | O92: Seite 2 | P92: =IF(CELL("spalte",P92)<CELL("spalte",$P92)+$Q$2, IF(MOD(CELL("zeile",P92)-CELL("zeile",P$4),$Q$2)=MOD(CELL("spalte",P92)-(CELL("spalte",$P92)),$Q$2),ean_conv(LEFT($J92,12)),""), "<>") -> <> | Q92: =IF(CELL("spalte",Q92)<CELL("spalte",$P92)+$Q$2, IF(MOD(CELL("zeile",Q92)-CELL("zeile",Q$4),$Q$2)=MOD(CELL("spalte",Q92)-(CELL("spalte",$P92)),$Q$2),ean_conv(LEFT($J92,12)),""), "<>") -> <> | R92: =IF(CELL("spalte",R92)<CELL("spalte",$P92)+$Q$2, IF(MOD(CELL("zeile",R92)-CELL("zeile",R$4),$Q$2)=MOD(CELL("spalte",R92)-(CELL("spalte",$P92)),$Q$2),ean_conv(LEFT($J92,12)),""), "<>") -> <> | S92: =IF(CELL("spalte",S92)<CELL("spalte",$P92)+$Q$2, IF(MOD(CELL("zeile",S92)-CELL("zeile",S$4),$Q$2)=MOD(CELL("spalte",S92)-(CELL("spalte",$P92)),$Q$2),ean_conv(LEFT($J92,12)),""), "<>") -> <> | T92: =IF(CELL("spalte",T92)<CELL("spalte",$P92)+$Q$2, IF(MOD(CELL("zeile",T92)-CELL("zeile",T$4),$Q$2)=MOD(CELL("spalte",T92)-(CELL("spalte",$P92)),$Q$2),ean_conv(LEFT($J92,12)),""), "<>") -> <> | U92: =IF(CELL("spalte",U92)<CELL("spalte",$P92)+$Q$2, IF(MOD(CELL("zeile",U92)-CELL("zeile",U$4),$Q$2)=MOD(CELL("spalte",U92)-(CELL("spalte",$P92)),$Q$2),ean_conv(LEFT($J92,12)),""), "<>") -> <> | V92: =IF(CELL("spalte",V92)<CELL("spalte",$P92)+$Q$2, IF(MOD(CELL("zeile",V92)-CELL("zeile",V$4),$Q$2)=MOD(CELL("spalte",V92)-(CELL("spalte",$P92)),$Q$2),ean_conv(LEFT($J92,12)),""), "<>") -> <> | W92: =IF(CELL("spalte",W92)<CELL("spalte",$P92)+$Q$2, IF(MOD(CELL("zeile",W92)-CELL("zeile",W$4),$Q$2)=MOD(CELL("spalte",W92)-(CELL("spalte",$P92)),$Q$2),ean_conv(LEFT($J92,12)),""), "<>") -> <> | X92: =IF(CELL("spalte",X92)<CELL("spalte",$P92)+$Q$2, IF(MOD(CELL("zeile",X92)-CELL("zeile",X$4),$Q$2)=MOD(CELL("spalte",X92)-(CELL("spalte",$P92)),$Q$2),ean_conv(LEFT($J92,12)),""), "<>") -> <> | Y92: =IF(CELL("spalte",Y92)<CELL("spalte",$P92)+$Q$2, IF(MOD(CELL("zeile",Y92)-CELL("zeile",Y$4),$Q$2)=MOD(CELL("spalte",Y92)-(CELL("spalte",$P92)),$Q$2),ean_conv(LEFT($J92,12)),""), "<>") -> <>
A93: 90 | B93: Agent of my Heart | C93: 3 | D93: Romance | F93: deu | G93: Standard | H93: Tokyopop | I93: X | J93: 9783842084704 | L93: =IF(B93<>"",B93&Trenner&Einschluss&F93&Einschluss,"") -> Agent of my Heart •deu• | M93: =IF(C93<>"", IF(ISNUMBER(C93), IF(COUNTIF(Sort_Titel,L93)>99,L93&Trenner&TEXT(C93,"000"), IF(COUNTIF(Sort_Titel,L93)>9,L93&Trenner&TEXT(C93,"00"),L93&Trenner&TEXT(C93,"0")) ),L93&Trenner&C93 ),IF(L93<>"",L93,Titel_Leer) ) -> Agent of my Heart •deu• 3 | O93: Seite 2 | P93: =IF(CELL("spalte",P93)<CELL("spalte",$P93)+$Q$2, IF(MOD(CELL("zeile",P93)-CELL("zeile",P$4),$Q$2)=MOD(CELL("spalte",P93)-(CELL("spalte",$P93)),$Q$2),ean_conv(LEFT($J93,12)),""), "<>") -> <> | Q93: =IF(CELL("spalte",Q93)<CELL("spalte",$P93)+$Q$2, IF(MOD(CELL("zeile",Q93)-CELL("zeile",Q$4),$Q$2)=MOD(CELL("spalte",Q93)-(CELL("spalte",$P93)),$Q$2),ean_conv(LEFT($J93,12)),""), "<>") -> <> | R93: =IF(CELL("spalte",R93)<CELL("spalte",$P93)+$Q$2, IF(MOD(CELL("zeile",R93)-CELL("zeile",R$4),$Q$2)=MOD(CELL("spalte",R93)-(CELL("spalte",$P93)),$Q$2),ean_conv(LEFT($J93,12)),""), "<>") -> <> | S93: =IF(CELL("spalte",S93)<CELL("spalte",$P93)+$Q$2, IF(MOD(CELL("zeile",S93)-CELL("zeile",S$4),$Q$2)=MOD(CELL("spalte",S93)-(CELL("spalte",$P93)),$Q$2),ean_conv(LEFT($J93,12)),""), "<>") -> <> | T93: =IF(CELL("spalte",T93)<CELL("spalte",$P93)+$Q$2, IF(MOD(CELL("zeile",T93)-CELL("zeile",T$4),$Q$2)=MOD(CELL("spalte",T93)-(CELL("spalte",$P93)),$Q$2),ean_conv(LEFT($J93,12)),""), "<>") -> <> | U93: =IF(CELL("spalte",U93)<CELL("spalte",$P93)+$Q$2, IF(MOD(CELL("zeile",U93)-CELL("zeile",U$4),$Q$2)=MOD(CELL("spalte",U93)-(CELL("spalte",$P93)),$Q$2),ean_conv(LEFT($J93,12)),""), "<>") -> <> | V93: =IF(CELL("spalte",V93)<CELL("spalte",$P93)+$Q$2, IF(MOD(CELL("zeile",V93)-CELL("zeile",V$4),$Q$2)=MOD(CELL("spalte",V93)-(CELL("spalte",$P93)),$Q$2),ean_conv(LEFT($J93,12)),""), "<>") -> <> | W93: =IF(CELL("spalte",W93)<CELL("spalte",$P93)+$Q$2, IF(MOD(CELL("zeile",W93)-CELL("zeile",W$4),$Q$2)=MOD(CELL("spalte",W93)-(CELL("spalte",$P93)),$Q$2),ean_conv(LEFT($J93,12)),""), "<>") -> <> | X93: =IF(CELL("spalte",X93)<CELL("spalte",$P93)+$Q$2, IF(MOD(CELL("zeile",X93)-CELL("zeile",X$4),$Q$2)=MOD(CELL("spalte",X93)-(CELL("spalte",$P93)),$Q$2),ean_conv(LEFT($J93,12)),""), "<>") -> <> | Y93: =IF(CELL("spalte",Y93)<CELL("spalte",$P93)+$Q$2, IF(MOD(CELL("zeile",Y93)-CELL("zeile",Y$4),$Q$2)=MOD(CELL("spalte",Y93)-(CELL("spalte",$P93)),$Q$2),ean_conv(LEFT($J93,12)),""), "<>") -> <>
A94: 91 | B94: Agent of my Heart | C94: 4 | D94: Romance | F94: deu | G94: Standard | H94: Tokyopop | I94: X | J94: 9783842089716 | L94: =IF(B94<>"",B94&Trenner&Einschluss&F94&Einschluss,"") -> Agent of my Heart •deu• | M94: =IF(C94<>"", IF(ISNUMBER(C94), IF(COUNTIF(Sort_Titel,L94)>99,L94&Trenner&TEXT(C94,"000"), IF(COUNTIF(Sort_Titel,L94)>9,L94&Trenner&TEXT(C94,"00"),L94&Trenner&TEXT(C94,"0")) ),L94&Trenner&C94 ),IF(L94<>"",L94,Titel_Leer) ) -> Agent of my Heart •deu• 4 | O94: Seite 2 | P94: =IF(CELL("spalte",P94)<CELL("spalte",$P94)+$Q$2, IF(MOD(CELL("zeile",P94)-CELL("zeile",P$4),$Q$2)=MOD(CELL("spalte",P94)-(CELL("spalte",$P94)),$Q$2),ean_conv(LEFT($J94,12)),""), "<>") -> <> | Q94: =IF(CELL("spalte",Q94)<CELL("spalte",$P94)+$Q$2, IF(MOD(CELL("zeile",Q94)-CELL("zeile",Q$4),$Q$2)=MOD(CELL("spalte",Q94)-(CELL("spalte",$P94)),$Q$2),ean_conv(LEFT($J94,12)),""), "<>") -> <> | R94: =IF(CELL("spalte",R94)<CELL("spalte",$P94)+$Q$2, IF(MOD(CELL("zeile",R94)-CELL("zeile",R$4),$Q$2)=MOD(CELL("spalte",R94)-(CELL("spalte",$P94)),$Q$2),ean_conv(LEFT($J94,12)),""), "<>") -> <> | S94: =IF(CELL("spalte",S94)<CELL("spalte",$P94)+$Q$2, IF(MOD(CELL("zeile",S94)-CELL("zeile",S$4),$Q$2)=MOD(CELL("spalte",S94)-(CELL("spalte",$P94)),$Q$2),ean_conv(LEFT($J94,12)),""), "<>") -> <> | T94: =IF(CELL("spalte",T94)<CELL("spalte",$P94)+$Q$2, IF(MOD(CELL("zeile",T94)-CELL("zeile",T$4),$Q$2)=MOD(CELL("spalte",T94)-(CELL("spalte",$P94)),$Q$2),ean_conv(LEFT($J94,12)),""), "<>") -> <> | U94: =IF(CELL("spalte",U94)<CELL("spalte",$P94)+$Q$2, IF(MOD(CELL("zeile",U94)-CELL("zeile",U$4),$Q$2)=MOD(CELL("spalte",U94)-(CELL("spalte",$P94)),$Q$2),ean_conv(LEFT($J94,12)),""), "<>") -> <> | V94: =IF(CELL("spalte",V94)<CELL("spalte",$P94)+$Q$2, IF(MOD(CELL("zeile",V94)-CELL("zeile",V$4),$Q$2)=MOD(CELL("spalte",V94)-(CELL("spalte",$P94)),$Q$2),ean_conv(LEFT($J94,12)),""), "<>") -> <> | W94: =IF(CELL("spalte",W94)<CELL("spalte",$P94)+$Q$2, IF(MOD(CELL("zeile",W94)-CELL("zeile",W$4),$Q$2)=MOD(CELL("spalte",W94)-(CELL("spalte",$P94)),$Q$2),ean_conv(LEFT($J94,12)),""), "<>") -> <> | X94: =IF(CELL("spalte",X94)<CELL("spalte",$P94)+$Q$2, IF(MOD(CELL("zeile",X94)-CELL("zeile",X$4),$Q$2)=MOD(CELL("spalte",X94)-(CELL("spalte",$P94)),$Q$2),ean_conv(LEFT($J94,12)),""), "<>") -> <> | Y94: =IF(CELL("spalte",Y94)<CELL("spalte",$P94)+$Q$2, IF(MOD(CELL("zeile",Y94)-CELL("zeile",Y$4),$Q$2)=MOD(CELL("spalte",Y94)-(CELL("spalte",$P94)),$Q$2),ean_conv(LEFT($J94,12)),""), "<>") -> <>
A95: 92 | B95: Akuma no riddle | C95: 1 | D95: Mystery | F95: deu | G95: Standard | H95: Egmont Manga | I95: X | J95: 9783770486304 | L95: =IF(B95<>"",B95&Trenner&Einschluss&F95&Einschluss,"") -> Akuma no riddle •deu• | M95: =IF(C95<>"", IF(ISNUMBER(C95), IF(COUNTIF(Sort_Titel,L95)>99,L95&Trenner&TEXT(C95,"000"), IF(COUNTIF(Sort_Titel,L95)>9,L95&Trenner&TEXT(C95,"00"),L95&Trenner&TEXT(C95,"0")) ),L95&Trenner&C95 ),IF(L95<>"",L95,Titel_Leer) ) -> Akuma no riddle •deu• 1 | O95: Seite 2 | P95: =IF(CELL("spalte",P95)<CELL("spalte",$P95)+$Q$2, IF(MOD(CELL("zeile",P95)-CELL("zeile",P$4),$Q$2)=MOD(CELL("spalte",P95)-(CELL("spalte",$P95)),$Q$2),ean_conv(LEFT($J95,12)),""), "<>") -> <> | Q95: =IF(CELL("spalte",Q95)<CELL("spalte",$P95)+$Q$2, IF(MOD(CELL("zeile",Q95)-CELL("zeile",Q$4),$Q$2)=MOD(CELL("spalte",Q95)-(CELL("spalte",$P95)),$Q$2),ean_conv(LEFT($J95,12)),""), "<>") -> <> | R95: =IF(CELL("spalte",R95)<CELL("spalte",$P95)+$Q$2, IF(MOD(CELL("zeile",R95)-CELL("zeile",R$4),$Q$2)=MOD(CELL("spalte",R95)-(CELL("spalte",$P95)),$Q$2),ean_conv(LEFT($J95,12)),""), "<>") -> <> | S95: =IF(CELL("spalte",S95)<CELL("spalte",$P95)+$Q$2, IF(MOD(CELL("zeile",S95)-CELL("zeile",S$4),$Q$2)=MOD(CELL("spalte",S95)-(CELL("spalte",$P95)),$Q$2),ean_conv(LEFT($J95,12)),""), "<>") -> <> | T95: =IF(CELL("spalte",T95)<CELL("spalte",$P95)+$Q$2, IF(MOD(CELL("zeile",T95)-CELL("zeile",T$4),$Q$2)=MOD(CELL("spalte",T95)-(CELL("spalte",$P95)),$Q$2),ean_conv(LEFT($J95,12)),""), "<>") -> <> | U95: =IF(CELL("spalte",U95)<CELL("spalte",$P95)+$Q$2, IF(MOD(CELL("zeile",U95)-CELL("zeile",U$4),$Q$2)=MOD(CELL("spalte",U95)-(CELL("spalte",$P95)),$Q$2),ean_conv(LEFT($J95,12)),""), "<>") -> <> | V95: =IF(CELL("spalte",V95)<CELL("spalte",$P95)+$Q$2, IF(MOD(CELL("zeile",V95)-CELL("zeile",V$4),$Q$2)=MOD(CELL("spalte",V95)-(CELL("spalte",$P95)),$Q$2),ean_conv(LEFT($J95,12)),""), "<>") -> <> | W95: =IF(CELL("spalte",W95)<CELL("spalte",$P95)+$Q$2, IF(MOD(CELL("zeile",W95)-CELL("zeile",W$4),$Q$2)=MOD(CELL("spalte",W95)-(CELL("spalte",$P95)),$Q$2),ean_conv(LEFT($J95,12)),""), "<>") -> <> | X95: =IF(CELL("spalte",X95)<CELL("spalte",$P95)+$Q$2, IF(MOD(CELL("zeile",X95)-CELL("zeile",X$4),$Q$2)=MOD(CELL("spalte",X95)-(CELL("spalte",$P95)),$Q$2),ean_conv(LEFT($J95,12)),""), "<>") -> <> | Y95: =IF(CELL("spalte",Y95)<CELL("spalte",$P95)+$Q$2, IF(MOD(CELL("zeile",Y95)-CELL("zeile",Y$4),$Q$2)=MOD(CELL("spalte",Y95)-(CELL("spalte",$P95)),$Q$2),ean_conv(LEFT($J95,12)),""), "<>") -> <>
A96: 93 | B96: Akuma no riddle | C96: 2 | D96: Mystery | F96: deu | G96: Standard | H96: Egmont Manga | I96: X | J96: 9783770486311 | L96: =IF(B96<>"",B96&Trenner&Einschluss&F96&Einschluss,"") -> Akuma no riddle •deu• | M96: =IF(C96<>"", IF(ISNUMBER(C96), IF(COUNTIF(Sort_Titel,L96)>99,L96&Trenner&TEXT(C96,"000"), IF(COUNTIF(Sort_Titel,L96)>9,L96&Trenner&TEXT(C96,"00"),L96&Trenner&TEXT(C96,"0")) ),L96&Trenner&C96 ),IF(L96<>"",L96,Titel_Leer) ) -> Akuma no riddle •deu• 2 | O96: Seite 2 | P96: =IF(CELL("spalte",P96)<CELL("spalte",$P96)+$Q$2, IF(MOD(CELL("zeile",P96)-CELL("zeile",P$4),$Q$2)=MOD(CELL("spalte",P96)-(CELL("spalte",$P96)),$Q$2),ean_conv(LEFT($J96,12)),""), "<>") -> <> | Q96: =IF(CELL("spalte",Q96)<CELL("spalte",$P96)+$Q$2, IF(MOD(CELL("zeile",Q96)-CELL("zeile",Q$4),$Q$2)=MOD(CELL("spalte",Q96)-(CELL("spalte",$P96)),$Q$2),ean_conv(LEFT($J96,12)),""), "<>") -> <> | R96: =IF(CELL("spalte",R96)<CELL("spalte",$P96)+$Q$2, IF(MOD(CELL("zeile",R96)-CELL("zeile",R$4),$Q$2)=MOD(CELL("spalte",R96)-(CELL("spalte",$P96)),$Q$2),ean_conv(LEFT($J96,12)),""), "<>") -> <> | S96: =IF(CELL("spalte",S96)<CELL("spalte",$P96)+$Q$2, IF(MOD(CELL("zeile",S96)-CELL("zeile",S$4),$Q$2)=MOD(CELL("spalte",S96)-(CELL("spalte",$P96)),$Q$2),ean_conv(LEFT($J96,12)),""), "<>") -> <> | T96: =IF(CELL("spalte",T96)<CELL("spalte",$P96)+$Q$2, IF(MOD(CELL("zeile",T96)-CELL("zeile",T$4),$Q$2)=MOD(CELL("spalte",T96)-(CELL("spalte",$P96)),$Q$2),ean_conv(LEFT($J96,12)),""), "<>") -> <> | U96: =IF(CELL("spalte",U96)<CELL("spalte",$P96)+$Q$2, IF(MOD(CELL("zeile",U96)-CELL("zeile",U$4),$Q$2)=MOD(CELL("spalte",U96)-(CELL("spalte",$P96)),$Q$2),ean_conv(LEFT($J96,12)),""), "<>") -> <> | V96: =IF(CELL("spalte",V96)<CELL("spalte",$P96)+$Q$2, IF(MOD(CELL("zeile",V96)-CELL("zeile",V$4),$Q$2)=MOD(CELL("spalte",V96)-(CELL("spalte",$P96)),$Q$2),ean_conv(LEFT($J96,12)),""), "<>") -> <> | W96: =IF(CELL("spalte",W96)<CELL("spalte",$P96)+$Q$2, IF(MOD(CELL("zeile",W96)-CELL("zeile",W$4),$Q$2)=MOD(CELL("spalte",W96)-(CELL("spalte",$P96)),$Q$2),ean_conv(LEFT($J96,12)),""), "<>") -> <> | X96: =IF(CELL("spalte",X96)<CELL("spalte",$P96)+$Q$2, IF(MOD(CELL("zeile",X96)-CELL("zeile",X$4),$Q$2)=MOD(CELL("spalte",X96)-(CELL("spalte",$P96)),$Q$2),ean_conv(LEFT($J96,12)),""), "<>") -> <> | Y96: =IF(CELL("spalte",Y96)<CELL("spalte",$P96)+$Q$2, IF(MOD(CELL("zeile",Y96)-CELL("zeile",Y$4),$Q$2)=MOD(CELL("spalte",Y96)-(CELL("spalte",$P96)),$Q$2),ean_conv(LEFT($J96,12)),""), "<>") -> <>
A97: 94 | B97: Akuma no riddle | C97: 3 | D97: Mystery | F97: deu | G97: Standard | H97: Egmont Manga | I97: X | J97: 9783770487257 | L97: =IF(B97<>"",B97&Trenner&Einschluss&F97&Einschluss,"") -> Akuma no riddle •deu• | M97: =IF(C97<>"", IF(ISNUMBER(C97), IF(COUNTIF(Sort_Titel,L97)>99,L97&Trenner&TEXT(C97,"000"), IF(COUNTIF(Sort_Titel,L97)>9,L97&Trenner&TEXT(C97,"00"),L97&Trenner&TEXT(C97,"0")) ),L97&Trenner&C97 ),IF(L97<>"",L97,Titel_Leer) ) -> Akuma no riddle •deu• 3 | O97: Seite 2 | P97: =IF(CELL("spalte",P97)<CELL("spalte",$P97)+$Q$2, IF(MOD(CELL("zeile",P97)-CELL("zeile",P$4),$Q$2)=MOD(CELL("spalte",P97)-(CELL("spalte",$P97)),$Q$2),ean_conv(LEFT($J97,12)),""), "<>") -> <> | Q97: =IF(CELL("spalte",Q97)<CELL("spalte",$P97)+$Q$2, IF(MOD(CELL("zeile",Q97)-CELL("zeile",Q$4),$Q$2)=MOD(CELL("spalte",Q97)-(CELL("spalte",$P97)),$Q$2),ean_conv(LEFT($J97,12)),""), "<>") -> <> | R97: =IF(CELL("spalte",R97)<CELL("spalte",$P97)+$Q$2, IF(MOD(CELL("zeile",R97)-CELL("zeile",R$4),$Q$2)=MOD(CELL("spalte",R97)-(CELL("spalte",$P97)),$Q$2),ean_conv(LEFT($J97,12)),""), "<>") -> <> | S97: =IF(CELL("spalte",S97)<CELL("spalte",$P97)+$Q$2, IF(MOD(CELL("zeile",S97)-CELL("zeile",S$4),$Q$2)=MOD(CELL("spalte",S97)-(CELL("spalte",$P97)),$Q$2),ean_conv(LEFT($J97,12)),""), "<>") -> <> | T97: =IF(CELL("spalte",T97)<CELL("spalte",$P97)+$Q$2, IF(MOD(CELL("zeile",T97)-CELL("zeile",T$4),$Q$2)=MOD(CELL("spalte",T97)-(CELL("spalte",$P97)),$Q$2),ean_conv(LEFT($J97,12)),""), "<>") -> <> | U97: =IF(CELL("spalte",U97)<CELL("spalte",$P97)+$Q$2, IF(MOD(CELL("zeile",U97)-CELL("zeile",U$4),$Q$2)=MOD(CELL("spalte",U97)-(CELL("spalte",$P97)),$Q$2),ean_conv(LEFT($J97,12)),""), "<>") -> <> | V97: =IF(CELL("spalte",V97)<CELL("spalte",$P97)+$Q$2, IF(MOD(CELL("zeile",V97)-CELL("zeile",V$4),$Q$2)=MOD(CELL("spalte",V97)-(CELL("spalte",$P97)),$Q$2),ean_conv(LEFT($J97,12)),""), "<>") -> <> | W97: =IF(CELL("spalte",W97)<CELL("spalte",$P97)+$Q$2, IF(MOD(CELL("zeile",W97)-CELL("zeile",W$4),$Q$2)=MOD(CELL("spalte",W97)-(CELL("spalte",$P97)),$Q$2),ean_conv(LEFT($J97,12)),""), "<>") -> <> | X97: =IF(CELL("spalte",X97)<CELL("spalte",$P97)+$Q$2, IF(MOD(CELL("zeile",X97)-CELL("zeile",X$4),$Q$2)=MOD(CELL("spalte",X97)-(CELL("spalte",$P97)),$Q$2),ean_conv(LEFT($J97,12)),""), "<>") -> <> | Y97: =IF(CELL("spalte",Y97)<CELL("spalte",$P97)+$Q$2, IF(MOD(CELL("zeile",Y97)-CELL("zeile",Y$4),$Q$2)=MOD(CELL("spalte",Y97)-(CELL("spalte",$P97)),$Q$2),ean_conv(LEFT($J97,12)),""), "<>") -> <>
A98: 95 | B98: Akuma no riddle | C98: 4 | D98: Mystery | F98: deu | G98: Standard | H98: Egmont Manga | I98: X | J98: 9783770488490 | L98: =IF(B98<>"",B98&Trenner&Einschluss&F98&Einschluss,"") -> Akuma no riddle •deu• | M98: =IF(C98<>"", IF(ISNUMBER(C98), IF(COUNTIF(Sort_Titel,L98)>99,L98&Trenner&TEXT(C98,"000"), IF(COUNTIF(Sort_Titel,L98)>9,L98&Trenner&TEXT(C98,"00"),L98&Trenner&TEXT(C98,"0")) ),L98&Trenner&C98 ),IF(L98<>"",L98,Titel_Leer) ) -> Akuma no riddle •deu• 4 | O98: Seite 2 | P98: =IF(CELL("spalte",P98)<CELL("spalte",$P98)+$Q$2, IF(MOD(CELL("zeile",P98)-CELL("zeile",P$4),$Q$2)=MOD(CELL("spalte",P98)-(CELL("spalte",$P98)),$Q$2),ean_conv(LEFT($J98,12)),""), "<>") -> <> | Q98: =IF(CELL("spalte",Q98)<CELL("spalte",$P98)+$Q$2, IF(MOD(CELL("zeile",Q98)-CELL("zeile",Q$4),$Q$2)=MOD(CELL("spalte",Q98)-(CELL("spalte",$P98)),$Q$2),ean_conv(LEFT($J98,12)),""), "<>") -> <> | R98: =IF(CELL("spalte",R98)<CELL("spalte",$P98)+$Q$2, IF(MOD(CELL("zeile",R98)-CELL("zeile",R$4),$Q$2)=MOD(CELL("spalte",R98)-(CELL("spalte",$P98)),$Q$2),ean_conv(LEFT($J98,12)),""), "<>") -> <> | S98: =IF(CELL("spalte",S98)<CELL("spalte",$P98)+$Q$2, IF(MOD(CELL("zeile",S98)-CELL("zeile",S$4),$Q$2)=MOD(CELL("spalte",S98)-(CELL("spalte",$P98)),$Q$2),ean_conv(LEFT($J98,12)),""), "<>") -> <> | T98: =IF(CELL("spalte",T98)<CELL("spalte",$P98)+$Q$2, IF(MOD(CELL("zeile",T98)-CELL("zeile",T$4),$Q$2)=MOD(CELL("spalte",T98)-(CELL("spalte",$P98)),$Q$2),ean_conv(LEFT($J98,12)),""), "<>") -> <> | U98: =IF(CELL("spalte",U98)<CELL("spalte",$P98)+$Q$2, IF(MOD(CELL("zeile",U98)-CELL("zeile",U$4),$Q$2)=MOD(CELL("spalte",U98)-(CELL("spalte",$P98)),$Q$2),ean_conv(LEFT($J98,12)),""), "<>") -> <> | V98: =IF(CELL("spalte",V98)<CELL("spalte",$P98)+$Q$2, IF(MOD(CELL("zeile",V98)-CELL("zeile",V$4),$Q$2)=MOD(CELL("spalte",V98)-(CELL("spalte",$P98)),$Q$2),ean_conv(LEFT($J98,12)),""), "<>") -> <> | W98: =IF(CELL("spalte",W98)<CELL("spalte",$P98)+$Q$2, IF(MOD(CELL("zeile",W98)-CELL("zeile",W$4),$Q$2)=MOD(CELL("spalte",W98)-(CELL("spalte",$P98)),$Q$2),ean_conv(LEFT($J98,12)),""), "<>") -> <> | X98: =IF(CELL("spalte",X98)<CELL("spalte",$P98)+$Q$2, IF(MOD(CELL("zeile",X98)-CELL("zeile",X$4),$Q$2)=MOD(CELL("spalte",X98)-(CELL("spalte",$P98)),$Q$2),ean_conv(LEFT($J98,12)),""), "<>") -> <> | Y98: =IF(CELL("spalte",Y98)<CELL("spalte",$P98)+$Q$2, IF(MOD(CELL("zeile",Y98)-CELL("zeile",Y$4),$Q$2)=MOD(CELL("spalte",Y98)-(CELL("spalte",$P98)),$Q$2),ean_conv(LEFT($J98,12)),""), "<>") -> <>
A99: 96 | B99: Akuma no riddle | C99: 5 | D99: Mystery | F99: deu | G99: Standard | H99: Egmont Manga | I99: X | J99: 9783770491360 | L99: =IF(B99<>"",B99&Trenner&Einschluss&F99&Einschluss,"") -> Akuma no riddle •deu• | M99: =IF(C99<>"", IF(ISNUMBER(C99), IF(COUNTIF(Sort_Titel,L99)>99,L99&Trenner&TEXT(C99,"000"), IF(COUNTIF(Sort_Titel,L99)>9,L99&Trenner&TEXT(C99,"00"),L99&Trenner&TEXT(C99,"0")) ),L99&Trenner&C99 ),IF(L99<>"",L99,Titel_Leer) ) -> Akuma no riddle •deu• 5 | O99: Seite 2 | P99: =IF(CELL("spalte",P99)<CELL("spalte",$P99)+$Q$2, IF(MOD(CELL("zeile",P99)-CELL("zeile",P$4),$Q$2)=MOD(CELL("spalte",P99)-(CELL("spalte",$P99)),$Q$2),ean_conv(LEFT($J99,12)),""), "<>") -> <> | Q99: =IF(CELL("spalte",Q99)<CELL("spalte",$P99)+$Q$2, IF(MOD(CELL("zeile",Q99)-CELL("zeile",Q$4),$Q$2)=MOD(CELL("spalte",Q99)-(CELL("spalte",$P99)),$Q$2),ean_conv(LEFT($J99,12)),""), "<>") -> <> | R99: =IF(CELL("spalte",R99)<CELL("spalte",$P99)+$Q$2, IF(MOD(CELL("zeile",R99)-CELL("zeile",R$4),$Q$2)=MOD(CELL("spalte",R99)-(CELL("spalte",$P99)),$Q$2),ean_conv(LEFT($J99,12)),""), "<>") -> <> | S99: =IF(CELL("spalte",S99)<CELL("spalte",$P99)+$Q$2, IF(MOD(CELL("zeile",S99)-CELL("zeile",S$4),$Q$2)=MOD(CELL("spalte",S99)-(CELL("spalte",$P99)),$Q$2),ean_conv(LEFT($J99,12)),""), "<>") -> <> | T99: =IF(CELL("spalte",T99)<CELL("spalte",$P99)+$Q$2, IF(MOD(CELL("zeile",T99)-CELL("zeile",T$4),$Q$2)=MOD(CELL("spalte",T99)-(CELL("spalte",$P99)),$Q$2),ean_conv(LEFT($J99,12)),""), "<>") -> <> | U99: =IF(CELL("spalte",U99)<CELL("spalte",$P99)+$Q$2, IF(MOD(CELL("zeile",U99)-CELL("zeile",U$4),$Q$2)=MOD(CELL("spalte",U99)-(CELL("spalte",$P99)),$Q$2),ean_conv(LEFT($J99,12)),""), "<>") -> <> | V99: =IF(CELL("spalte",V99)<CELL("spalte",$P99)+$Q$2, IF(MOD(CELL("zeile",V99)-CELL("zeile",V$4),$Q$2)=MOD(CELL("spalte",V99)-(CELL("spalte",$P99)),$Q$2),ean_conv(LEFT($J99,12)),""), "<>") -> <> | W99: =IF(CELL("spalte",W99)<CELL("spalte",$P99)+$Q$2, IF(MOD(CELL("zeile",W99)-CELL("zeile",W$4),$Q$2)=MOD(CELL("spalte",W99)-(CELL("spalte",$P99)),$Q$2),ean_conv(LEFT($J99,12)),""), "<>") -> <> | X99: =IF(CELL("spalte",X99)<CELL("spalte",$P99)+$Q$2, IF(MOD(CELL("zeile",X99)-CELL("zeile",X$4),$Q$2)=MOD(CELL("spalte",X99)-(CELL("spalte",$P99)),$Q$2),ean_conv(LEFT($J99,12)),""), "<>") -> <> | Y99: =IF(CELL("spalte",Y99)<CELL("spalte",$P99)+$Q$2, IF(MOD(CELL("zeile",Y99)-CELL("zeile",Y$4),$Q$2)=MOD(CELL("spalte",Y99)-(CELL("spalte",$P99)),$Q$2),ean_conv(LEFT($J99,12)),""), "<>") -> <>
A100: 97 | B100: Alice und die Halbbluthexe | C100: 1 | D100: Girls Love | F100: deu | G100: Standard | H100: Tokyopop | I100: X | J100: 9783842090774 | L100: =IF(B100<>"",B100&Trenner&Einschluss&F100&Einschluss,"") -> Alice und die Halbbluthexe •deu• | M100: =IF(C100<>"", IF(ISNUMBER(C100), IF(COUNTIF(Sort_Titel,L100)>99,L100&Trenner&TEXT(C100,"000"), IF(COUNTIF(Sort_Titel,L100)>9,L100&Trenner&TEXT(C100,"00"),L100&Trenner&TEXT(C100,"0")) ),L100&Trenner&C100 ),IF(L100<>"",L100,Titel_Leer) ) -> Alice und die Halbbluthexe •deu• 1 | O100: Seite 2 | P100: =IF(CELL("spalte",P100)<CELL("spalte",$P100)+$Q$2, IF(MOD(CELL("zeile",P100)-CELL("zeile",P$4),$Q$2)=MOD(CELL("spalte",P100)-(CELL("spalte",$P100)),$Q$2),ean_conv(LEFT($J100,12)),""), "<>") -> <> | Q100: =IF(CELL("spalte",Q100)<CELL("spalte",$P100)+$Q$2, IF(MOD(CELL("zeile",Q100)-CELL("zeile",Q$4),$Q$2)=MOD(CELL("spalte",Q100)-(CELL("spalte",$P100)),$Q$2),ean_conv(LEFT($J100,12)),""), "<>") -> <> | R100: =IF(CELL("spalte",R100)<CELL("spalte",$P100)+$Q$2, IF(MOD(CELL("zeile",R100)-CELL("zeile",R$4),$Q$2)=MOD(CELL("spalte",R100)-(CELL("spalte",$P100)),$Q$2),ean_conv(LEFT($J100,12)),""), "<>") -> <> | S100: =IF(CELL("spalte",S100)<CELL("spalte",$P100)+$Q$2, IF(MOD(CELL("zeile",S100)-CELL("zeile",S$4),$Q$2)=MOD(CELL("spalte",S100)-(CELL("spalte",$P100)),$Q$2),ean_conv(LEFT($J100,12)),""), "<>") -> <> | T100: =IF(CELL("spalte",T100)<CELL("spalte",$P100)+$Q$2, IF(MOD(CELL("zeile",T100)-CELL("zeile",T$4),$Q$2)=MOD(CELL("spalte",T100)-(CELL("spalte",$P100)),$Q$2),ean_conv(LEFT($J100,12)),""), "<>") -> <> | U100: =IF(CELL("spalte",U100)<CELL("spalte",$P100)+$Q$2, IF(MOD(CELL("zeile",U100)-CELL("zeile",U$4),$Q$2)=MOD(CELL("spalte",U100)-(CELL("spalte",$P100)),$Q$2),ean_conv(LEFT($J100,12)),""), "<>") -> <> | V100: =IF(CELL("spalte",V100)<CELL("spalte",$P100)+$Q$2, IF(MOD(CELL("zeile",V100)-CELL("zeile",V$4),$Q$2)=MOD(CELL("spalte",V100)-(CELL("spalte",$P100)),$Q$2),ean_conv(LEFT($J100,12)),""), "<>") -> <> | W100: =IF(CELL("spalte",W100)<CELL("spalte",$P100)+$Q$2, IF(MOD(CELL("zeile",W100)-CELL("zeile",W$4),$Q$2)=MOD(CELL("spalte",W100)-(CELL("spalte",$P100)),$Q$2),ean_conv(LEFT($J100,12)),""), "<>") -> <> | X100: =IF(CELL("spalte",X100)<CELL("spalte",$P100)+$Q$2, IF(MOD(CELL("zeile",X100)-CELL("zeile",X$4),$Q$2)=MOD(CELL("spalte",X100)-(CELL("spalte",$P100)),$Q$2),ean_conv(LEFT($J100,12)),""), "<>") -> <> | Y100: =IF(CELL("spalte",Y100)<CELL("spalte",$P100)+$Q$2, IF(MOD(CELL("zeile",Y100)-CELL("zeile",Y$4),$Q$2)=MOD(CELL("spalte",Y100)-(CELL("spalte",$P100)),$Q$2),ean_conv(LEFT($J100,12)),""), "<>") -> <>
A101: 98 | B101: Alice und die Halbbluthexe | C101: 2 | D101: Girls Love | F101: deu | G101: Standard | H101: Tokyopop | I101: X | J101: 9783842090781 | L101: =IF(B101<>"",B101&Trenner&Einschluss&F101&Einschluss,"") -> Alice und die Halbbluthexe •deu• | M101: =IF(C101<>"", IF(ISNUMBER(C101), IF(COUNTIF(Sort_Titel,L101)>99,L101&Trenner&TEXT(C101,"000"), IF(COUNTIF(Sort_Titel,L101)>9,L101&Trenner&TEXT(C101,"00"),L101&Trenner&TEXT(C101,"0")) ),L101&Trenner&C101 ),IF(L101<>"",L101,Titel_Leer) ) -> Alice und die Halbbluthexe •deu• 2 | O101: Seite 2 | P101: =IF(CELL("spalte",P101)<CELL("spalte",$P101)+$Q$2, IF(MOD(CELL("zeile",P101)-CELL("zeile",P$4),$Q$2)=MOD(CELL("spalte",P101)-(CELL("spalte",$P101)),$Q$2),ean_conv(LEFT($J101,12)),""), "<>") -> <> | Q101: =IF(CELL("spalte",Q101)<CELL("spalte",$P101)+$Q$2, IF(MOD(CELL("zeile",Q101)-CELL("zeile",Q$4),$Q$2)=MOD(CELL("spalte",Q101)-(CELL("spalte",$P101)),$Q$2),ean_conv(LEFT($J101,12)),""), "<>") -> <> | R101: =IF(CELL("spalte",R101)<CELL("spalte",$P101)+$Q$2, IF(MOD(CELL("zeile",R101)-CELL("zeile",R$4),$Q$2)=MOD(CELL("spalte",R101)-(CELL("spalte",$P101)),$Q$2),ean_conv(LEFT($J101,12)),""), "<>") -> <> | S101: =IF(CELL("spalte",S101)<CELL("spalte",$P101)+$Q$2, IF(MOD(CELL("zeile",S101)-CELL("zeile",S$4),$Q$2)=MOD(CELL("spalte",S101)-(CELL("spalte",$P101)),$Q$2),ean_conv(LEFT($J101,12)),""), "<>") -> <> | T101: =IF(CELL("spalte",T101)<CELL("spalte",$P101)+$Q$2, IF(MOD(CELL("zeile",T101)-CELL("zeile",T$4),$Q$2)=MOD(CELL("spalte",T101)-(CELL("spalte",$P101)),$Q$2),ean_conv(LEFT($J101,12)),""), "<>") -> <> | U101: =IF(CELL("spalte",U101)<CELL("spalte",$P101)+$Q$2, IF(MOD(CELL("zeile",U101)-CELL("zeile",U$4),$Q$2)=MOD(CELL("spalte",U101)-(CELL("spalte",$P101)),$Q$2),ean_conv(LEFT($J101,12)),""), "<>") -> <> | V101: =IF(CELL("spalte",V101)<CELL("spalte",$P101)+$Q$2, IF(MOD(CELL("zeile",V101)-CELL("zeile",V$4),$Q$2)=MOD(CELL("spalte",V101)-(CELL("spalte",$P101)),$Q$2),ean_conv(LEFT($J101,12)),""), "<>") -> <> | W101: =IF(CELL("spalte",W101)<CELL("spalte",$P101)+$Q$2, IF(MOD(CELL("zeile",W101)-CELL("zeile",W$4),$Q$2)=MOD(CELL("spalte",W101)-(CELL("spalte",$P101)),$Q$2),ean_conv(LEFT($J101,12)),""), "<>") -> <> | X101: =IF(CELL("spalte",X101)<CELL("spalte",$P101)+$Q$2, IF(MOD(CELL("zeile",X101)-CELL("zeile",X$4),$Q$2)=MOD(CELL("spalte",X101)-(CELL("spalte",$P101)),$Q$2),ean_conv(LEFT($J101,12)),""), "<>") -> <> | Y101: =IF(CELL("spalte",Y101)<CELL("spalte",$P101)+$Q$2, IF(MOD(CELL("zeile",Y101)-CELL("zeile",Y$4),$Q$2)=MOD(CELL("spalte",Y101)-(CELL("spalte",$P101)),$Q$2),ean_conv(LEFT($J101,12)),""), "<>") -> <>
A102: 99 | B102: Alice und die Halbbluthexe | C102: 3 | D102: Girls Love | F102: deu | G102: Standard | H102: Tokyopop | I102: X | J102: 9783842090798 | L102: =IF(B102<>"",B102&Trenner&Einschluss&F102&Einschluss,"") -> Alice und die Halbbluthexe •deu• | M102: =IF(C102<>"", IF(ISNUMBER(C102), IF(COUNTIF(Sort_Titel,L102)>99,L102&Trenner&TEXT(C102,"000"), IF(COUNTIF(Sort_Titel,L102)>9,L102&Trenner&TEXT(C102,"00"),L102&Trenner&TEXT(C102,"0")) ),L102&Trenner&C102 ),IF(L102<>"",L102,Titel_Leer) ) -> Alice und die Halbbluthexe •deu• 3 | O102: Seite 2 | P102: =IF(CELL("spalte",P102)<CELL("spalte",$P102)+$Q$2, IF(MOD(CELL("zeile",P102)-CELL("zeile",P$4),$Q$2)=MOD(CELL("spalte",P102)-(CELL("spalte",$P102)),$Q$2),ean_conv(LEFT($J102,12)),""), "<>") -> <> | Q102: =IF(CELL("spalte",Q102)<CELL("spalte",$P102)+$Q$2, IF(MOD(CELL("zeile",Q102)-CELL("zeile",Q$4),$Q$2)=MOD(CELL("spalte",Q102)-(CELL("spalte",$P102)),$Q$2),ean_conv(LEFT($J102,12)),""), "<>") -> <> | R102: =IF(CELL("spalte",R102)<CELL("spalte",$P102)+$Q$2, IF(MOD(CELL("zeile",R102)-CELL("zeile",R$4),$Q$2)=MOD(CELL("spalte",R102)-(CELL("spalte",$P102)),$Q$2),ean_conv(LEFT($J102,12)),""), "<>") -> <> | S102: =IF(CELL("spalte",S102)<CELL("spalte",$P102)+$Q$2, IF(MOD(CELL("zeile",S102)-CELL("zeile",S$4),$Q$2)=MOD(CELL("spalte",S102)-(CELL("spalte",$P102)),$Q$2),ean_conv(LEFT($J102,12)),""), "<>") -> <> | T102: =IF(CELL("spalte",T102)<CELL("spalte",$P102)+$Q$2, IF(MOD(CELL("zeile",T102)-CELL("zeile",T$4),$Q$2)=MOD(CELL("spalte",T102)-(CELL("spalte",$P102)),$Q$2),ean_conv(LEFT($J102,12)),""), "<>") -> <> | U102: =IF(CELL("spalte",U102)<CELL("spalte",$P102)+$Q$2, IF(MOD(CELL("zeile",U102)-CELL("zeile",U$4),$Q$2)=MOD(CELL("spalte",U102)-(CELL("spalte",$P102)),$Q$2),ean_conv(LEFT($J102,12)),""), "<>") -> <> | V102: =IF(CELL("spalte",V102)<CELL("spalte",$P102)+$Q$2, IF(MOD(CELL("zeile",V102)-CELL("zeile",V$4),$Q$2)=MOD(CELL("spalte",V102)-(CELL("spalte",$P102)),$Q$2),ean_conv(LEFT($J102,12)),""), "<>") -> <> | W102: =IF(CELL("spalte",W102)<CELL("spalte",$P102)+$Q$2, IF(MOD(CELL("zeile",W102)-CELL("zeile",W$4),$Q$2)=MOD(CELL("spalte",W102)-(CELL("spalte",$P102)),$Q$2),ean_conv(LEFT($J102,12)),""), "<>") -> <> | X102: =IF(CELL("spalte",X102)<CELL("spalte",$P102)+$Q$2, IF(MOD(CELL("zeile",X102)-CELL("zeile",X$4),$Q$2)=MOD(CELL("spalte",X102)-(CELL("spalte",$P102)),$Q$2),ean_conv(LEFT($J102,12)),""), "<>") -> <> | Y102: =IF(CELL("spalte",Y102)<CELL("spalte",$P102)+$Q$2, IF(MOD(CELL("zeile",Y102)-CELL("zeile",Y$4),$Q$2)=MOD(CELL("spalte",Y102)-(CELL("spalte",$P102)),$Q$2),ean_conv(LEFT($J102,12)),""), "<>") -> <>
A103: 100 | B103: Alter Ego | D103: Girls Love | F103: eng | G103: Standard | H103: Tokyopop | I103: X | J103: 9781427867568 | L103: =IF(B103<>"",B103&Trenner&Einschluss&F103&Einschluss,"") -> Alter Ego •eng• | M103: =IF(C103<>"", IF(ISNUMBER(C103), IF(COUNTIF(Sort_Titel,L103)>99,L103&Trenner&TEXT(C103,"000"), IF(COUNTIF(Sort_Titel,L103)>9,L103&Trenner&TEXT(C103,"00"),L103&Trenner&TEXT(C103,"0")) ),L103&Trenner&C103 ),IF(L103<>"",L103,Titel_Leer) ) -> Alter Ego •eng• | O103: Seite 2 | P103: =IF(CELL("spalte",P103)<CELL("spalte",$P103)+$Q$2, IF(MOD(CELL("zeile",P103)-CELL("zeile",P$4),$Q$2)=MOD(CELL("spalte",P103)-(CELL("spalte",$P103)),$Q$2),ean_conv(LEFT($J103,12)),""), "<>") -> <> | Q103: =IF(CELL("spalte",Q103)<CELL("spalte",$P103)+$Q$2, IF(MOD(CELL("zeile",Q103)-CELL("zeile",Q$4),$Q$2)=MOD(CELL("spalte",Q103)-(CELL("spalte",$P103)),$Q$2),ean_conv(LEFT($J103,12)),""), "<>") -> <> | R103: =IF(CELL("spalte",R103)<CELL("spalte",$P103)+$Q$2, IF(MOD(CELL("zeile",R103)-CELL("zeile",R$4),$Q$2)=MOD(CELL("spalte",R103)-(CELL("spalte",$P103)),$Q$2),ean_conv(LEFT($J103,12)),""), "<>") -> <> | S103: =IF(CELL("spalte",S103)<CELL("spalte",$P103)+$Q$2, IF(MOD(CELL("zeile",S103)-CELL("zeile",S$4),$Q$2)=MOD(CELL("spalte",S103)-(CELL("spalte",$P103)),$Q$2),ean_conv(LEFT($J103,12)),""), "<>") -> <> | T103: =IF(CELL("spalte",T103)<CELL("spalte",$P103)+$Q$2, IF(MOD(CELL("zeile",T103)-CELL("zeile",T$4),$Q$2)=MOD(CELL("spalte",T103)-(CELL("spalte",$P103)),$Q$2),ean_conv(LEFT($J103,12)),""), "<>") -> <> | U103: =IF(CELL("spalte",U103)<CELL("spalte",$P103)+$Q$2, IF(MOD(CELL("zeile",U103)-CELL("zeile",U$4),$Q$2)=MOD(CELL("spalte",U103)-(CELL("spalte",$P103)),$Q$2),ean_conv(LEFT($J103,12)),""), "<>") -> <> | V103: =IF(CELL("spalte",V103)<CELL("spalte",$P103)+$Q$2, IF(MOD(CELL("zeile",V103)-CELL("zeile",V$4),$Q$2)=MOD(CELL("spalte",V103)-(CELL("spalte",$P103)),$Q$2),ean_conv(LEFT($J103,12)),""), "<>") -> <> | W103: =IF(CELL("spalte",W103)<CELL("spalte",$P103)+$Q$2, IF(MOD(CELL("zeile",W103)-CELL("zeile",W$4),$Q$2)=MOD(CELL("spalte",W103)-(CELL("spalte",$P103)),$Q$2),ean_conv(LEFT($J103,12)),""), "<>") -> <> | X103: =IF(CELL("spalte",X103)<CELL("spalte",$P103)+$Q$2, IF(MOD(CELL("zeile",X103)-CELL("zeile",X$4),$Q$2)=MOD(CELL("spalte",X103)-(CELL("spalte",$P103)),$Q$2),ean_conv(LEFT($J103,12)),""), "<>") -> <> | Y103: =IF(CELL("spalte",Y103)<CELL("spalte",$P103)+$Q$2, IF(MOD(CELL("zeile",Y103)-CELL("zeile",Y$4),$Q$2)=MOD(CELL("spalte",Y103)-(CELL("spalte",$P103)),$Q$2),ean_conv(LEFT($J103,12)),""), "<>") -> <>
A104: 101 | B104: An Archdemon's Dilemma: How to Love Your Elf Bride | C104: 1 | D104: RomCom | F104: deu | G104: Standard | H104: Dokico | I104: X | J104: 9783987450846 | L104: =IF(B104<>"",B104&Trenner&Einschluss&F104&Einschluss,"") -> An Archdemon's Dilemma: How to Love Your Elf Bride •deu• | M104: =IF(C104<>"", IF(ISNUMBER(C104), IF(COUNTIF(Sort_Titel,L104)>99,L104&Trenner&TEXT(C104,"000"), IF(COUNTIF(Sort_Titel,L104)>9,L104&Trenner&TEXT(C104,"00"),L104&Trenner&TEXT(C104,"0")) ),L104&Trenner&C104 ),IF(L104<>"",L104,Titel_Leer) ) -> An Archdemon's Dilemma: How to Love Your Elf Bride •deu• 1 | O104: Seite 2 | P104: =IF(CELL("spalte",P104)<CELL("spalte",$P104)+$Q$2, IF(MOD(CELL("zeile",P104)-CELL("zeile",P$4),$Q$2)=MOD(CELL("spalte",P104)-(CELL("spalte",$P104)),$Q$2),ean_conv(LEFT($J104,12)),""), "<>") -> <> | Q104: =IF(CELL("spalte",Q104)<CELL("spalte",$P104)+$Q$2, IF(MOD(CELL("zeile",Q104)-CELL("zeile",Q$4),$Q$2)=MOD(CELL("spalte",Q104)-(CELL("spalte",$P104)),$Q$2),ean_conv(LEFT($J104,12)),""), "<>") -> <> | R104: =IF(CELL("spalte",R104)<CELL("spalte",$P104)+$Q$2, IF(MOD(CELL("zeile",R104)-CELL("zeile",R$4),$Q$2)=MOD(CELL("spalte",R104)-(CELL("spalte",$P104)),$Q$2),ean_conv(LEFT($J104,12)),""), "<>") -> <> | S104: =IF(CELL("spalte",S104)<CELL("spalte",$P104)+$Q$2, IF(MOD(CELL("zeile",S104)-CELL("zeile",S$4),$Q$2)=MOD(CELL("spalte",S104)-(CELL("spalte",$P104)),$Q$2),ean_conv(LEFT($J104,12)),""), "<>") -> <> | T104: =IF(CELL("spalte",T104)<CELL("spalte",$P104)+$Q$2, IF(MOD(CELL("zeile",T104)-CELL("zeile",T$4),$Q$2)=MOD(CELL("spalte",T104)-(CELL("spalte",$P104)),$Q$2),ean_conv(LEFT($J104,12)),""), "<>") -> <> | U104: =IF(CELL("spalte",U104)<CELL("spalte",$P104)+$Q$2, IF(MOD(CELL("zeile",U104)-CELL("zeile",U$4),$Q$2)=MOD(CELL("spalte",U104)-(CELL("spalte",$P104)),$Q$2),ean_conv(LEFT($J104,12)),""), "<>") -> <> | V104: =IF(CELL("spalte",V104)<CELL("spalte",$P104)+$Q$2, IF(MOD(CELL("zeile",V104)-CELL("zeile",V$4),$Q$2)=MOD(CELL("spalte",V104)-(CELL("spalte",$P104)),$Q$2),ean_conv(LEFT($J104,12)),""), "<>") -> <> | W104: =IF(CELL("spalte",W104)<CELL("spalte",$P104)+$Q$2, IF(MOD(CELL("zeile",W104)-CELL("zeile",W$4),$Q$2)=MOD(CELL("spalte",W104)-(CELL("spalte",$P104)),$Q$2),ean_conv(LEFT($J104,12)),""), "<>") -> <> | X104: =IF(CELL("spalte",X104)<CELL("spalte",$P104)+$Q$2, IF(MOD(CELL("zeile",X104)-CELL("zeile",X$4),$Q$2)=MOD(CELL("spalte",X104)-(CELL("spalte",$P104)),$Q$2),ean_conv(LEFT($J104,12)),""), "<>") -> <> | Y104: =IF(CELL("spalte",Y104)<CELL("spalte",$P104)+$Q$2, IF(MOD(CELL("zeile",Y104)-CELL("zeile",Y$4),$Q$2)=MOD(CELL("spalte",Y104)-(CELL("spalte",$P104)),$Q$2),ean_conv(LEFT($J104,12)),""), "<>") -> <>
A105: 102 | B105: An Archdemon's Dilemma: How to Love Your Elf Bride | C105: 2 | D105: RomCom | F105: deu | G105: Standard | H105: Dokico | J105: 9783987451546 | L105: =IF(B105<>"",B105&Trenner&Einschluss&F105&Einschluss,"") -> An Archdemon's Dilemma: How to Love Your Elf Bride •deu• | M105: =IF(C105<>"", IF(ISNUMBER(C105), IF(COUNTIF(Sort_Titel,L105)>99,L105&Trenner&TEXT(C105,"000"), IF(COUNTIF(Sort_Titel,L105)>9,L105&Trenner&TEXT(C105,"00"),L105&Trenner&TEXT(C105,"0")) ),L105&Trenner&C105 ),IF(L105<>"",L105,Titel_Leer) ) -> An Archdemon's Dilemma: How to Love Your Elf Bride •deu• 2 | O105: Seite 2 | P105: =IF(CELL("spalte",P105)<CELL("spalte",$P105)+$Q$2, IF(MOD(CELL("zeile",P105)-CELL("zeile",P$4),$Q$2)=MOD(CELL("spalte",P105)-(CELL("spalte",$P105)),$Q$2),ean_conv(LEFT($J105,12)),""), "<>") -> <> | Q105: =IF(CELL("spalte",Q105)<CELL("spalte",$P105)+$Q$2, IF(MOD(CELL("zeile",Q105)-CELL("zeile",Q$4),$Q$2)=MOD(CELL("spalte",Q105)-(CELL("spalte",$P105)),$Q$2),ean_conv(LEFT($J105,12)),""), "<>") -> <> | R105: =IF(CELL("spalte",R105)<CELL("spalte",$P105)+$Q$2, IF(MOD(CELL("zeile",R105)-CELL("zeile",R$4),$Q$2)=MOD(CELL("spalte",R105)-(CELL("spalte",$P105)),$Q$2),ean_conv(LEFT($J105,12)),""), "<>") -> <> | S105: =IF(CELL("spalte",S105)<CELL("spalte",$P105)+$Q$2, IF(MOD(CELL("zeile",S105)-CELL("zeile",S$4),$Q$2)=MOD(CELL("spalte",S105)-(CELL("spalte",$P105)),$Q$2),ean_conv(LEFT($J105,12)),""), "<>") -> <> | T105: =IF(CELL("spalte",T105)<CELL("spalte",$P105)+$Q$2, IF(MOD(CELL("zeile",T105)-CELL("zeile",T$4),$Q$2)=MOD(CELL("spalte",T105)-(CELL("spalte",$P105)),$Q$2),ean_conv(LEFT($J105,12)),""), "<>") -> <> | U105: =IF(CELL("spalte",U105)<CELL("spalte",$P105)+$Q$2, IF(MOD(CELL("zeile",U105)-CELL("zeile",U$4),$Q$2)=MOD(CELL("spalte",U105)-(CELL("spalte",$P105)),$Q$2),ean_conv(LEFT($J105,12)),""), "<>") -> <> | V105: =IF(CELL("spalte",V105)<CELL("spalte",$P105)+$Q$2, IF(MOD(CELL("zeile",V105)-CELL("zeile",V$4),$Q$2)=MOD(CELL("spalte",V105)-(CELL("spalte",$P105)),$Q$2),ean_conv(LEFT($J105,12)),""), "<>") -> <> | W105: =IF(CELL("spalte",W105)<CELL("spalte",$P105)+$Q$2, IF(MOD(CELL("zeile",W105)-CELL("zeile",W$4),$Q$2)=MOD(CELL("spalte",W105)-(CELL("spalte",$P105)),$Q$2),ean_conv(LEFT($J105,12)),""), "<>") -> <> | X105: =IF(CELL("spalte",X105)<CELL("spalte",$P105)+$Q$2, IF(MOD(CELL("zeile",X105)-CELL("zeile",X$4),$Q$2)=MOD(CELL("spalte",X105)-(CELL("spalte",$P105)),$Q$2),ean_conv(LEFT($J105,12)),""), "<>") -> <> | Y105: =IF(CELL("spalte",Y105)<CELL("spalte",$P105)+$Q$2, IF(MOD(CELL("zeile",Y105)-CELL("zeile",Y$4),$Q$2)=MOD(CELL("spalte",Y105)-(CELL("spalte",$P105)),$Q$2),ean_conv(LEFT($J105,12)),""), "<>") -> <>
A106: 103 | B106: Another | C106: 1 | D106: Mystery | F106: deu | G106: Standard | H106: Egmont Manga | I106: X | J106: 9783770477326 | L106: =IF(B106<>"",B106&Trenner&Einschluss&F106&Einschluss,"") -> Another •deu• | M106: =IF(C106<>"", IF(ISNUMBER(C106), IF(COUNTIF(Sort_Titel,L106)>99,L106&Trenner&TEXT(C106,"000"), IF(COUNTIF(Sort_Titel,L106)>9,L106&Trenner&TEXT(C106,"00"),L106&Trenner&TEXT(C106,"0")) ),L106&Trenner&C106 ),IF(L106<>"",L106,Titel_Leer) ) -> Another •deu• 1 | O106: Seite 2 | P106: =IF(CELL("spalte",P106)<CELL("spalte",$P106)+$Q$2, IF(MOD(CELL("zeile",P106)-CELL("zeile",P$4),$Q$2)=MOD(CELL("spalte",P106)-(CELL("spalte",$P106)),$Q$2),ean_conv(LEFT($J106,12)),""), "<>") -> <> | Q106: =IF(CELL("spalte",Q106)<CELL("spalte",$P106)+$Q$2, IF(MOD(CELL("zeile",Q106)-CELL("zeile",Q$4),$Q$2)=MOD(CELL("spalte",Q106)-(CELL("spalte",$P106)),$Q$2),ean_conv(LEFT($J106,12)),""), "<>") -> <> | R106: =IF(CELL("spalte",R106)<CELL("spalte",$P106)+$Q$2, IF(MOD(CELL("zeile",R106)-CELL("zeile",R$4),$Q$2)=MOD(CELL("spalte",R106)-(CELL("spalte",$P106)),$Q$2),ean_conv(LEFT($J106,12)),""), "<>") -> <> | S106: =IF(CELL("spalte",S106)<CELL("spalte",$P106)+$Q$2, IF(MOD(CELL("zeile",S106)-CELL("zeile",S$4),$Q$2)=MOD(CELL("spalte",S106)-(CELL("spalte",$P106)),$Q$2),ean_conv(LEFT($J106,12)),""), "<>") -> <> | T106: =IF(CELL("spalte",T106)<CELL("spalte",$P106)+$Q$2, IF(MOD(CELL("zeile",T106)-CELL("zeile",T$4),$Q$2)=MOD(CELL("spalte",T106)-(CELL("spalte",$P106)),$Q$2),ean_conv(LEFT($J106,12)),""), "<>") -> <> | U106: =IF(CELL("spalte",U106)<CELL("spalte",$P106)+$Q$2, IF(MOD(CELL("zeile",U106)-CELL("zeile",U$4),$Q$2)=MOD(CELL("spalte",U106)-(CELL("spalte",$P106)),$Q$2),ean_conv(LEFT($J106,12)),""), "<>") -> <> | V106: =IF(CELL("spalte",V106)<CELL("spalte",$P106)+$Q$2, IF(MOD(CELL("zeile",V106)-CELL("zeile",V$4),$Q$2)=MOD(CELL("spalte",V106)-(CELL("spalte",$P106)),$Q$2),ean_conv(LEFT($J106,12)),""), "<>") -> <> | W106: =IF(CELL("spalte",W106)<CELL("spalte",$P106)+$Q$2, IF(MOD(CELL("zeile",W106)-CELL("zeile",W$4),$Q$2)=MOD(CELL("spalte",W106)-(CELL("spalte",$P106)),$Q$2),ean_conv(LEFT($J106,12)),""), "<>") -> <> | X106: =IF(CELL("spalte",X106)<CELL("spalte",$P106)+$Q$2, IF(MOD(CELL("zeile",X106)-CELL("zeile",X$4),$Q$2)=MOD(CELL("spalte",X106)-(CELL("spalte",$P106)),$Q$2),ean_conv(LEFT($J106,12)),""), "<>") -> <> | Y106: =IF(CELL("spalte",Y106)<CELL("spalte",$P106)+$Q$2, IF(MOD(CELL("zeile",Y106)-CELL("zeile",Y$4),$Q$2)=MOD(CELL("spalte",Y106)-(CELL("spalte",$P106)),$Q$2),ean_conv(LEFT($J106,12)),""), "<>") -> <>
A107: 104 | B107: Another | C107: 2 | D107: Mystery | F107: deu | G107: Standard | H107: Egmont Manga | I107: X | J107: 9783770477333 | L107: =IF(B107<>"",B107&Trenner&Einschluss&F107&Einschluss,"") -> Another •deu• | M107: =IF(C107<>"", IF(ISNUMBER(C107), IF(COUNTIF(Sort_Titel,L107)>99,L107&Trenner&TEXT(C107,"000"), IF(COUNTIF(Sort_Titel,L107)>9,L107&Trenner&TEXT(C107,"00"),L107&Trenner&TEXT(C107,"0")) ),L107&Trenner&C107 ),IF(L107<>"",L107,Titel_Leer) ) -> Another •deu• 2 | O107: Seite 2 | P107: =IF(CELL("spalte",P107)<CELL("spalte",$P107)+$Q$2, IF(MOD(CELL("zeile",P107)-CELL("zeile",P$4),$Q$2)=MOD(CELL("spalte",P107)-(CELL("spalte",$P107)),$Q$2),ean_conv(LEFT($J107,12)),""), "<>") -> <> | Q107: =IF(CELL("spalte",Q107)<CELL("spalte",$P107)+$Q$2, IF(MOD(CELL("zeile",Q107)-CELL("zeile",Q$4),$Q$2)=MOD(CELL("spalte",Q107)-(CELL("spalte",$P107)),$Q$2),ean_conv(LEFT($J107,12)),""), "<>") -> <> | R107: =IF(CELL("spalte",R107)<CELL("spalte",$P107)+$Q$2, IF(MOD(CELL("zeile",R107)-CELL("zeile",R$4),$Q$2)=MOD(CELL("spalte",R107)-(CELL("spalte",$P107)),$Q$2),ean_conv(LEFT($J107,12)),""), "<>") -> <> | S107: =IF(CELL("spalte",S107)<CELL("spalte",$P107)+$Q$2, IF(MOD(CELL("zeile",S107)-CELL("zeile",S$4),$Q$2)=MOD(CELL("spalte",S107)-(CELL("spalte",$P107)),$Q$2),ean_conv(LEFT($J107,12)),""), "<>") -> <> | T107: =IF(CELL("spalte",T107)<CELL("spalte",$P107)+$Q$2, IF(MOD(CELL("zeile",T107)-CELL("zeile",T$4),$Q$2)=MOD(CELL("spalte",T107)-(CELL("spalte",$P107)),$Q$2),ean_conv(LEFT($J107,12)),""), "<>") -> <> | U107: =IF(CELL("spalte",U107)<CELL("spalte",$P107)+$Q$2, IF(MOD(CELL("zeile",U107)-CELL("zeile",U$4),$Q$2)=MOD(CELL("spalte",U107)-(CELL("spalte",$P107)),$Q$2),ean_conv(LEFT($J107,12)),""), "<>") -> <> | V107: =IF(CELL("spalte",V107)<CELL("spalte",$P107)+$Q$2, IF(MOD(CELL("zeile",V107)-CELL("zeile",V$4),$Q$2)=MOD(CELL("spalte",V107)-(CELL("spalte",$P107)),$Q$2),ean_conv(LEFT($J107,12)),""), "<>") -> <> | W107: =IF(CELL("spalte",W107)<CELL("spalte",$P107)+$Q$2, IF(MOD(CELL("zeile",W107)-CELL("zeile",W$4),$Q$2)=MOD(CELL("spalte",W107)-(CELL("spalte",$P107)),$Q$2),ean_conv(LEFT($J107,12)),""), "<>") -> <> | X107: =IF(CELL("spalte",X107)<CELL("spalte",$P107)+$Q$2, IF(MOD(CELL("zeile",X107)-CELL("zeile",X$4),$Q$2)=MOD(CELL("spalte",X107)-(CELL("spalte",$P107)),$Q$2),ean_conv(LEFT($J107,12)),""), "<>") -> <> | Y107: =IF(CELL("spalte",Y107)<CELL("spalte",$P107)+$Q$2, IF(MOD(CELL("zeile",Y107)-CELL("zeile",Y$4),$Q$2)=MOD(CELL("spalte",Y107)-(CELL("spalte",$P107)),$Q$2),ean_conv(LEFT($J107,12)),""), "<>") -> <>
A108: 105 | B108: Another | C108: 3 | D108: Mystery | F108: deu | G108: Standard | H108: Egmont Manga | I108: X | J108: 9783770479122 | L108: =IF(B108<>"",B108&Trenner&Einschluss&F108&Einschluss,"") -> Another •deu• | M108: =IF(C108<>"", IF(ISNUMBER(C108), IF(COUNTIF(Sort_Titel,L108)>99,L108&Trenner&TEXT(C108,"000"), IF(COUNTIF(Sort_Titel,L108)>9,L108&Trenner&TEXT(C108,"00"),L108&Trenner&TEXT(C108,"0")) ),L108&Trenner&C108 ),IF(L108<>"",L108,Titel_Leer) ) -> Another •deu• 3 | O108: Seite 2 | P108: =IF(CELL("spalte",P108)<CELL("spalte",$P108)+$Q$2, IF(MOD(CELL("zeile",P108)-CELL("zeile",P$4),$Q$2)=MOD(CELL("spalte",P108)-(CELL("spalte",$P108)),$Q$2),ean_conv(LEFT($J108,12)),""), "<>") -> <> | Q108: =IF(CELL("spalte",Q108)<CELL("spalte",$P108)+$Q$2, IF(MOD(CELL("zeile",Q108)-CELL("zeile",Q$4),$Q$2)=MOD(CELL("spalte",Q108)-(CELL("spalte",$P108)),$Q$2),ean_conv(LEFT($J108,12)),""), "<>") -> <> | R108: =IF(CELL("spalte",R108)<CELL("spalte",$P108)+$Q$2, IF(MOD(CELL("zeile",R108)-CELL("zeile",R$4),$Q$2)=MOD(CELL("spalte",R108)-(CELL("spalte",$P108)),$Q$2),ean_conv(LEFT($J108,12)),""), "<>") -> <> | S108: =IF(CELL("spalte",S108)<CELL("spalte",$P108)+$Q$2, IF(MOD(CELL("zeile",S108)-CELL("zeile",S$4),$Q$2)=MOD(CELL("spalte",S108)-(CELL("spalte",$P108)),$Q$2),ean_conv(LEFT($J108,12)),""), "<>") -> <> | T108: =IF(CELL("spalte",T108)<CELL("spalte",$P108)+$Q$2, IF(MOD(CELL("zeile",T108)-CELL("zeile",T$4),$Q$2)=MOD(CELL("spalte",T108)-(CELL("spalte",$P108)),$Q$2),ean_conv(LEFT($J108,12)),""), "<>") -> <> | U108: =IF(CELL("spalte",U108)<CELL("spalte",$P108)+$Q$2, IF(MOD(CELL("zeile",U108)-CELL("zeile",U$4),$Q$2)=MOD(CELL("spalte",U108)-(CELL("spalte",$P108)),$Q$2),ean_conv(LEFT($J108,12)),""), "<>") -> <> | V108: =IF(CELL("spalte",V108)<CELL("spalte",$P108)+$Q$2, IF(MOD(CELL("zeile",V108)-CELL("zeile",V$4),$Q$2)=MOD(CELL("spalte",V108)-(CELL("spalte",$P108)),$Q$2),ean_conv(LEFT($J108,12)),""), "<>") -> <> | W108: =IF(CELL("spalte",W108)<CELL("spalte",$P108)+$Q$2, IF(MOD(CELL("zeile",W108)-CELL("zeile",W$4),$Q$2)=MOD(CELL("spalte",W108)-(CELL("spalte",$P108)),$Q$2),ean_conv(LEFT($J108,12)),""), "<>") -> <> | X108: =IF(CELL("spalte",X108)<CELL("spalte",$P108)+$Q$2, IF(MOD(CELL("zeile",X108)-CELL("zeile",X$4),$Q$2)=MOD(CELL("spalte",X108)-(CELL("spalte",$P108)),$Q$2),ean_conv(LEFT($J108,12)),""), "<>") -> <> | Y108: =IF(CELL("spalte",Y108)<CELL("spalte",$P108)+$Q$2, IF(MOD(CELL("zeile",Y108)-CELL("zeile",Y$4),$Q$2)=MOD(CELL("spalte",Y108)-(CELL("spalte",$P108)),$Q$2),ean_conv(LEFT($J108,12)),""), "<>") -> <>
A109: 106 | B109: Another | C109: 4 | D109: Mystery | F109: deu | G109: Standard | H109: Egmont Manga | I109: X | J109: 9783770479139 | L109: =IF(B109<>"",B109&Trenner&Einschluss&F109&Einschluss,"") -> Another •deu• | M109: =IF(C109<>"", IF(ISNUMBER(C109), IF(COUNTIF(Sort_Titel,L109)>99,L109&Trenner&TEXT(C109,"000"), IF(COUNTIF(Sort_Titel,L109)>9,L109&Trenner&TEXT(C109,"00"),L109&Trenner&TEXT(C109,"0")) ),L109&Trenner&C109 ),IF(L109<>"",L109,Titel_Leer) ) -> Another •deu• 4 | O109: Seite 2 | P109: =IF(CELL("spalte",P109)<CELL("spalte",$P109)+$Q$2, IF(MOD(CELL("zeile",P109)-CELL("zeile",P$4),$Q$2)=MOD(CELL("spalte",P109)-(CELL("spalte",$P109)),$Q$2),ean_conv(LEFT($J109,12)),""), "<>") -> <> | Q109: =IF(CELL("spalte",Q109)<CELL("spalte",$P109)+$Q$2, IF(MOD(CELL("zeile",Q109)-CELL("zeile",Q$4),$Q$2)=MOD(CELL("spalte",Q109)-(CELL("spalte",$P109)),$Q$2),ean_conv(LEFT($J109,12)),""), "<>") -> <> | R109: =IF(CELL("spalte",R109)<CELL("spalte",$P109)+$Q$2, IF(MOD(CELL("zeile",R109)-CELL("zeile",R$4),$Q$2)=MOD(CELL("spalte",R109)-(CELL("spalte",$P109)),$Q$2),ean_conv(LEFT($J109,12)),""), "<>") -> <> | S109: =IF(CELL("spalte",S109)<CELL("spalte",$P109)+$Q$2, IF(MOD(CELL("zeile",S109)-CELL("zeile",S$4),$Q$2)=MOD(CELL("spalte",S109)-(CELL("spalte",$P109)),$Q$2),ean_conv(LEFT($J109,12)),""), "<>") -> <> | T109: =IF(CELL("spalte",T109)<CELL("spalte",$P109)+$Q$2, IF(MOD(CELL("zeile",T109)-CELL("zeile",T$4),$Q$2)=MOD(CELL("spalte",T109)-(CELL("spalte",$P109)),$Q$2),ean_conv(LEFT($J109,12)),""), "<>") -> <> | U109: =IF(CELL("spalte",U109)<CELL("spalte",$P109)+$Q$2, IF(MOD(CELL("zeile",U109)-CELL("zeile",U$4),$Q$2)=MOD(CELL("spalte",U109)-(CELL("spalte",$P109)),$Q$2),ean_conv(LEFT($J109,12)),""), "<>") -> <> | V109: =IF(CELL("spalte",V109)<CELL("spalte",$P109)+$Q$2, IF(MOD(CELL("zeile",V109)-CELL("zeile",V$4),$Q$2)=MOD(CELL("spalte",V109)-(CELL("spalte",$P109)),$Q$2),ean_conv(LEFT($J109,12)),""), "<>") -> <> | W109: =IF(CELL("spalte",W109)<CELL("spalte",$P109)+$Q$2, IF(MOD(CELL("zeile",W109)-CELL("zeile",W$4),$Q$2)=MOD(CELL("spalte",W109)-(CELL("spalte",$P109)),$Q$2),ean_conv(LEFT($J109,12)),""), "<>") -> <> | X109: =IF(CELL("spalte",X109)<CELL("spalte",$P109)+$Q$2, IF(MOD(CELL("zeile",X109)-CELL("zeile",X$4),$Q$2)=MOD(CELL("spalte",X109)-(CELL("spalte",$P109)),$Q$2),ean_conv(LEFT($J109,12)),""), "<>") -> <> | Y109: =IF(CELL("spalte",Y109)<CELL("spalte",$P109)+$Q$2, IF(MOD(CELL("zeile",Y109)-CELL("zeile",Y$4),$Q$2)=MOD(CELL("spalte",Y109)-(CELL("spalte",$P109)),$Q$2),ean_conv(LEFT($J109,12)),""), "<>") -> <>
A110: 107 | B110: Apocalyptic Organs | C110: 1 | D110: Action | F110: deu | G110: Standard | H110: Tokyopop | I110: X | J110: 9783842058804 | L110: =IF(B110<>"",B110&Trenner&Einschluss&F110&Einschluss,"") -> Apocalyptic Organs •deu• | M110: =IF(C110<>"", IF(ISNUMBER(C110), IF(COUNTIF(Sort_Titel,L110)>99,L110&Trenner&TEXT(C110,"000"), IF(COUNTIF(Sort_Titel,L110)>9,L110&Trenner&TEXT(C110,"00"),L110&Trenner&TEXT(C110,"0")) ),L110&Trenner&C110 ),IF(L110<>"",L110,Titel_Leer) ) -> Apocalyptic Organs •deu• 1 | O110: Seite 2 | P110: =IF(CELL("spalte",P110)<CELL("spalte",$P110)+$Q$2, IF(MOD(CELL("zeile",P110)-CELL("zeile",P$4),$Q$2)=MOD(CELL("spalte",P110)-(CELL("spalte",$P110)),$Q$2),ean_conv(LEFT($J110,12)),""), "<>") -> <> | Q110: =IF(CELL("spalte",Q110)<CELL("spalte",$P110)+$Q$2, IF(MOD(CELL("zeile",Q110)-CELL("zeile",Q$4),$Q$2)=MOD(CELL("spalte",Q110)-(CELL("spalte",$P110)),$Q$2),ean_conv(LEFT($J110,12)),""), "<>") -> <> | R110: =IF(CELL("spalte",R110)<CELL("spalte",$P110)+$Q$2, IF(MOD(CELL("zeile",R110)-CELL("zeile",R$4),$Q$2)=MOD(CELL("spalte",R110)-(CELL("spalte",$P110)),$Q$2),ean_conv(LEFT($J110,12)),""), "<>") -> <> | S110: =IF(CELL("spalte",S110)<CELL("spalte",$P110)+$Q$2, IF(MOD(CELL("zeile",S110)-CELL("zeile",S$4),$Q$2)=MOD(CELL("spalte",S110)-(CELL("spalte",$P110)),$Q$2),ean_conv(LEFT($J110,12)),""), "<>") -> <> | T110: =IF(CELL("spalte",T110)<CELL("spalte",$P110)+$Q$2, IF(MOD(CELL("zeile",T110)-CELL("zeile",T$4),$Q$2)=MOD(CELL("spalte",T110)-(CELL("spalte",$P110)),$Q$2),ean_conv(LEFT($J110,12)),""), "<>") -> <> | U110: =IF(CELL("spalte",U110)<CELL("spalte",$P110)+$Q$2, IF(MOD(CELL("zeile",U110)-CELL("zeile",U$4),$Q$2)=MOD(CELL("spalte",U110)-(CELL("spalte",$P110)),$Q$2),ean_conv(LEFT($J110,12)),""), "<>") -> <> | V110: =IF(CELL("spalte",V110)<CELL("spalte",$P110)+$Q$2, IF(MOD(CELL("zeile",V110)-CELL("zeile",V$4),$Q$2)=MOD(CELL("spalte",V110)-(CELL("spalte",$P110)),$Q$2),ean_conv(LEFT($J110,12)),""), "<>") -> <> | W110: =IF(CELL("spalte",W110)<CELL("spalte",$P110)+$Q$2, IF(MOD(CELL("zeile",W110)-CELL("zeile",W$4),$Q$2)=MOD(CELL("spalte",W110)-(CELL("spalte",$P110)),$Q$2),ean_conv(LEFT($J110,12)),""), "<>") -> <> | X110: =IF(CELL("spalte",X110)<CELL("spalte",$P110)+$Q$2, IF(MOD(CELL("zeile",X110)-CELL("zeile",X$4),$Q$2)=MOD(CELL("spalte",X110)-(CELL("spalte",$P110)),$Q$2),ean_conv(LEFT($J110,12)),""), "<>") -> <> | Y110: =IF(CELL("spalte",Y110)<CELL("spalte",$P110)+$Q$2, IF(MOD(CELL("zeile",Y110)-CELL("zeile",Y$4),$Q$2)=MOD(CELL("spalte",Y110)-(CELL("spalte",$P110)),$Q$2),ean_conv(LEFT($J110,12)),""), "<>") -> <>
A111: 108 | B111: Apocalyptic Organs | C111: 2 | D111: Action | F111: deu | G111: Standard | H111: Tokyopop | I111: X | J111: 9783842058811 | L111: =IF(B111<>"",B111&Trenner&Einschluss&F111&Einschluss,"") -> Apocalyptic Organs •deu• | M111: =IF(C111<>"", IF(ISNUMBER(C111), IF(COUNTIF(Sort_Titel,L111)>99,L111&Trenner&TEXT(C111,"000"), IF(COUNTIF(Sort_Titel,L111)>9,L111&Trenner&TEXT(C111,"00"),L111&Trenner&TEXT(C111,"0")) ),L111&Trenner&C111 ),IF(L111<>"",L111,Titel_Leer) ) -> Apocalyptic Organs •deu• 2 | O111: Seite 2 | P111: =IF(CELL("spalte",P111)<CELL("spalte",$P111)+$Q$2, IF(MOD(CELL("zeile",P111)-CELL("zeile",P$4),$Q$2)=MOD(CELL("spalte",P111)-(CELL("spalte",$P111)),$Q$2),ean_conv(LEFT($J111,12)),""), "<>") -> <> | Q111: =IF(CELL("spalte",Q111)<CELL("spalte",$P111)+$Q$2, IF(MOD(CELL("zeile",Q111)-CELL("zeile",Q$4),$Q$2)=MOD(CELL("spalte",Q111)-(CELL("spalte",$P111)),$Q$2),ean_conv(LEFT($J111,12)),""), "<>") -> <> | R111: =IF(CELL("spalte",R111)<CELL("spalte",$P111)+$Q$2, IF(MOD(CELL("zeile",R111)-CELL("zeile",R$4),$Q$2)=MOD(CELL("spalte",R111)-(CELL("spalte",$P111)),$Q$2),ean_conv(LEFT($J111,12)),""), "<>") -> <> | S111: =IF(CELL("spalte",S111)<CELL("spalte",$P111)+$Q$2, IF(MOD(CELL("zeile",S111)-CELL("zeile",S$4),$Q$2)=MOD(CELL("spalte",S111)-(CELL("spalte",$P111)),$Q$2),ean_conv(LEFT($J111,12)),""), "<>") -> <> | T111: =IF(CELL("spalte",T111)<CELL("spalte",$P111)+$Q$2, IF(MOD(CELL("zeile",T111)-CELL("zeile",T$4),$Q$2)=MOD(CELL("spalte",T111)-(CELL("spalte",$P111)),$Q$2),ean_conv(LEFT($J111,12)),""), "<>") -> <> | U111: =IF(CELL("spalte",U111)<CELL("spalte",$P111)+$Q$2, IF(MOD(CELL("zeile",U111)-CELL("zeile",U$4),$Q$2)=MOD(CELL("spalte",U111)-(CELL("spalte",$P111)),$Q$2),ean_conv(LEFT($J111,12)),""), "<>") -> <> | V111: =IF(CELL("spalte",V111)<CELL("spalte",$P111)+$Q$2, IF(MOD(CELL("zeile",V111)-CELL("zeile",V$4),$Q$2)=MOD(CELL("spalte",V111)-(CELL("spalte",$P111)),$Q$2),ean_conv(LEFT($J111,12)),""), "<>") -> <> | W111: =IF(CELL("spalte",W111)<CELL("spalte",$P111)+$Q$2, IF(MOD(CELL("zeile",W111)-CELL("zeile",W$4),$Q$2)=MOD(CELL("spalte",W111)-(CELL("spalte",$P111)),$Q$2),ean_conv(LEFT($J111,12)),""), "<>") -> <> | X111: =IF(CELL("spalte",X111)<CELL("spalte",$P111)+$Q$2, IF(MOD(CELL("zeile",X111)-CELL("zeile",X$4),$Q$2)=MOD(CELL("spalte",X111)-(CELL("spalte",$P111)),$Q$2),ean_conv(LEFT($J111,12)),""), "<>") -> <> | Y111: =IF(CELL("spalte",Y111)<CELL("spalte",$P111)+$Q$2, IF(MOD(CELL("zeile",Y111)-CELL("zeile",Y$4),$Q$2)=MOD(CELL("spalte",Y111)-(CELL("spalte",$P111)),$Q$2),ean_conv(LEFT($J111,12)),""), "<>") -> <>
A112: 109 | B112: Apocalyptic Organs | C112: 3 | D112: Action | F112: deu | G112: Standard | H112: Tokyopop | I112: X | J112: 9783842067769 | L112: =IF(B112<>"",B112&Trenner&Einschluss&F112&Einschluss,"") -> Apocalyptic Organs •deu• | M112: =IF(C112<>"", IF(ISNUMBER(C112), IF(COUNTIF(Sort_Titel,L112)>99,L112&Trenner&TEXT(C112,"000"), IF(COUNTIF(Sort_Titel,L112)>9,L112&Trenner&TEXT(C112,"00"),L112&Trenner&TEXT(C112,"0")) ),L112&Trenner&C112 ),IF(L112<>"",L112,Titel_Leer) ) -> Apocalyptic Organs •deu• 3 | O112: Seite 2 | P112: =IF(CELL("spalte",P112)<CELL("spalte",$P112)+$Q$2, IF(MOD(CELL("zeile",P112)-CELL("zeile",P$4),$Q$2)=MOD(CELL("spalte",P112)-(CELL("spalte",$P112)),$Q$2),ean_conv(LEFT($J112,12)),""), "<>") -> <> | Q112: =IF(CELL("spalte",Q112)<CELL("spalte",$P112)+$Q$2, IF(MOD(CELL("zeile",Q112)-CELL("zeile",Q$4),$Q$2)=MOD(CELL("spalte",Q112)-(CELL("spalte",$P112)),$Q$2),ean_conv(LEFT($J112,12)),""), "<>") -> <> | R112: =IF(CELL("spalte",R112)<CELL("spalte",$P112)+$Q$2, IF(MOD(CELL("zeile",R112)-CELL("zeile",R$4),$Q$2)=MOD(CELL("spalte",R112)-(CELL("spalte",$P112)),$Q$2),ean_conv(LEFT($J112,12)),""), "<>") -> <> | S112: =IF(CELL("spalte",S112)<CELL("spalte",$P112)+$Q$2, IF(MOD(CELL("zeile",S112)-CELL("zeile",S$4),$Q$2)=MOD(CELL("spalte",S112)-(CELL("spalte",$P112)),$Q$2),ean_conv(LEFT($J112,12)),""), "<>") -> <> | T112: =IF(CELL("spalte",T112)<CELL("spalte",$P112)+$Q$2, IF(MOD(CELL("zeile",T112)-CELL("zeile",T$4),$Q$2)=MOD(CELL("spalte",T112)-(CELL("spalte",$P112)),$Q$2),ean_conv(LEFT($J112,12)),""), "<>") -> <> | U112: =IF(CELL("spalte",U112)<CELL("spalte",$P112)+$Q$2, IF(MOD(CELL("zeile",U112)-CELL("zeile",U$4),$Q$2)=MOD(CELL("spalte",U112)-(CELL("spalte",$P112)),$Q$2),ean_conv(LEFT($J112,12)),""), "<>") -> <> | V112: =IF(CELL("spalte",V112)<CELL("spalte",$P112)+$Q$2, IF(MOD(CELL("zeile",V112)-CELL("zeile",V$4),$Q$2)=MOD(CELL("spalte",V112)-(CELL("spalte",$P112)),$Q$2),ean_conv(LEFT($J112,12)),""), "<>") -> <> | W112: =IF(CELL("spalte",W112)<CELL("spalte",$P112)+$Q$2, IF(MOD(CELL("zeile",W112)-CELL("zeile",W$4),$Q$2)=MOD(CELL("spalte",W112)-(CELL("spalte",$P112)),$Q$2),ean_conv(LEFT($J112,12)),""), "<>") -> <> | X112: =IF(CELL("spalte",X112)<CELL("spalte",$P112)+$Q$2, IF(MOD(CELL("zeile",X112)-CELL("zeile",X$4),$Q$2)=MOD(CELL("spalte",X112)-(CELL("spalte",$P112)),$Q$2),ean_conv(LEFT($J112,12)),""), "<>") -> <> | Y112: =IF(CELL("spalte",Y112)<CELL("spalte",$P112)+$Q$2, IF(MOD(CELL("zeile",Y112)-CELL("zeile",Y$4),$Q$2)=MOD(CELL("spalte",Y112)-(CELL("spalte",$P112)),$Q$2),ean_conv(LEFT($J112,12)),""), "<>") -> <>
A113: 110 | B113: Apocalyptic Organs | C113: 4 | D113: Action | F113: deu | G113: Standard | H113: Tokyopop | I113: X | J113: 9783842068391 | L113: =IF(B113<>"",B113&Trenner&Einschluss&F113&Einschluss,"") -> Apocalyptic Organs •deu• | M113: =IF(C113<>"", IF(ISNUMBER(C113), IF(COUNTIF(Sort_Titel,L113)>99,L113&Trenner&TEXT(C113,"000"), IF(COUNTIF(Sort_Titel,L113)>9,L113&Trenner&TEXT(C113,"00"),L113&Trenner&TEXT(C113,"0")) ),L113&Trenner&C113 ),IF(L113<>"",L113,Titel_Leer) ) -> Apocalyptic Organs •deu• 4 | O113: Seite 2 | P113: =IF(CELL("spalte",P113)<CELL("spalte",$P113)+$Q$2, IF(MOD(CELL("zeile",P113)-CELL("zeile",P$4),$Q$2)=MOD(CELL("spalte",P113)-(CELL("spalte",$P113)),$Q$2),ean_conv(LEFT($J113,12)),""), "<>") -> <> | Q113: =IF(CELL("spalte",Q113)<CELL("spalte",$P113)+$Q$2, IF(MOD(CELL("zeile",Q113)-CELL("zeile",Q$4),$Q$2)=MOD(CELL("spalte",Q113)-(CELL("spalte",$P113)),$Q$2),ean_conv(LEFT($J113,12)),""), "<>") -> <> | R113: =IF(CELL("spalte",R113)<CELL("spalte",$P113)+$Q$2, IF(MOD(CELL("zeile",R113)-CELL("zeile",R$4),$Q$2)=MOD(CELL("spalte",R113)-(CELL("spalte",$P113)),$Q$2),ean_conv(LEFT($J113,12)),""), "<>") -> <> | S113: =IF(CELL("spalte",S113)<CELL("spalte",$P113)+$Q$2, IF(MOD(CELL("zeile",S113)-CELL("zeile",S$4),$Q$2)=MOD(CELL("spalte",S113)-(CELL("spalte",$P113)),$Q$2),ean_conv(LEFT($J113,12)),""), "<>") -> <> | T113: =IF(CELL("spalte",T113)<CELL("spalte",$P113)+$Q$2, IF(MOD(CELL("zeile",T113)-CELL("zeile",T$4),$Q$2)=MOD(CELL("spalte",T113)-(CELL("spalte",$P113)),$Q$2),ean_conv(LEFT($J113,12)),""), "<>") -> <> | U113: =IF(CELL("spalte",U113)<CELL("spalte",$P113)+$Q$2, IF(MOD(CELL("zeile",U113)-CELL("zeile",U$4),$Q$2)=MOD(CELL("spalte",U113)-(CELL("spalte",$P113)),$Q$2),ean_conv(LEFT($J113,12)),""), "<>") -> <> | V113: =IF(CELL("spalte",V113)<CELL("spalte",$P113)+$Q$2, IF(MOD(CELL("zeile",V113)-CELL("zeile",V$4),$Q$2)=MOD(CELL("spalte",V113)-(CELL("spalte",$P113)),$Q$2),ean_conv(LEFT($J113,12)),""), "<>") -> <> | W113: =IF(CELL("spalte",W113)<CELL("spalte",$P113)+$Q$2, IF(MOD(CELL("zeile",W113)-CELL("zeile",W$4),$Q$2)=MOD(CELL("spalte",W113)-(CELL("spalte",$P113)),$Q$2),ean_conv(LEFT($J113,12)),""), "<>") -> <> | X113: =IF(CELL("spalte",X113)<CELL("spalte",$P113)+$Q$2, IF(MOD(CELL("zeile",X113)-CELL("zeile",X$4),$Q$2)=MOD(CELL("spalte",X113)-(CELL("spalte",$P113)),$Q$2),ean_conv(LEFT($J113,12)),""), "<>") -> <> | Y113: =IF(CELL("spalte",Y113)<CELL("spalte",$P113)+$Q$2, IF(MOD(CELL("zeile",Y113)-CELL("zeile",Y$4),$Q$2)=MOD(CELL("spalte",Y113)-(CELL("spalte",$P113)),$Q$2),ean_conv(LEFT($J113,12)),""), "<>") -> <>
A114: 111 | B114: Aria & Die goldene Sanduhr der Zeit | C114: 1 | D114: Romantasy | F114: deu | G114: Groß | H114: Papertoons | I114: X | J114: 9783910530522 | L114: =IF(B114<>"",B114&Trenner&Einschluss&F114&Einschluss,"") -> Aria & Die goldene Sanduhr der Zeit •deu• | M114: =IF(C114<>"", IF(ISNUMBER(C114), IF(COUNTIF(Sort_Titel,L114)>99,L114&Trenner&TEXT(C114,"000"), IF(COUNTIF(Sort_Titel,L114)>9,L114&Trenner&TEXT(C114,"00"),L114&Trenner&TEXT(C114,"0")) ),L114&Trenner&C114 ),IF(L114<>"",L114,Titel_Leer) ) -> Aria & Die goldene Sanduhr der Zeit •deu• 1 | O114: Seite 2 | P114: =IF(CELL("spalte",P114)<CELL("spalte",$P114)+$Q$2, IF(MOD(CELL("zeile",P114)-CELL("zeile",P$4),$Q$2)=MOD(CELL("spalte",P114)-(CELL("spalte",$P114)),$Q$2),ean_conv(LEFT($J114,12)),""), "<>") -> <> | Q114: =IF(CELL("spalte",Q114)<CELL("spalte",$P114)+$Q$2, IF(MOD(CELL("zeile",Q114)-CELL("zeile",Q$4),$Q$2)=MOD(CELL("spalte",Q114)-(CELL("spalte",$P114)),$Q$2),ean_conv(LEFT($J114,12)),""), "<>") -> <> | R114: =IF(CELL("spalte",R114)<CELL("spalte",$P114)+$Q$2, IF(MOD(CELL("zeile",R114)-CELL("zeile",R$4),$Q$2)=MOD(CELL("spalte",R114)-(CELL("spalte",$P114)),$Q$2),ean_conv(LEFT($J114,12)),""), "<>") -> <> | S114: =IF(CELL("spalte",S114)<CELL("spalte",$P114)+$Q$2, IF(MOD(CELL("zeile",S114)-CELL("zeile",S$4),$Q$2)=MOD(CELL("spalte",S114)-(CELL("spalte",$P114)),$Q$2),ean_conv(LEFT($J114,12)),""), "<>") -> <> | T114: =IF(CELL("spalte",T114)<CELL("spalte",$P114)+$Q$2, IF(MOD(CELL("zeile",T114)-CELL("zeile",T$4),$Q$2)=MOD(CELL("spalte",T114)-(CELL("spalte",$P114)),$Q$2),ean_conv(LEFT($J114,12)),""), "<>") -> <> | U114: =IF(CELL("spalte",U114)<CELL("spalte",$P114)+$Q$2, IF(MOD(CELL("zeile",U114)-CELL("zeile",U$4),$Q$2)=MOD(CELL("spalte",U114)-(CELL("spalte",$P114)),$Q$2),ean_conv(LEFT($J114,12)),""), "<>") -> <> | V114: =IF(CELL("spalte",V114)<CELL("spalte",$P114)+$Q$2, IF(MOD(CELL("zeile",V114)-CELL("zeile",V$4),$Q$2)=MOD(CELL("spalte",V114)-(CELL("spalte",$P114)),$Q$2),ean_conv(LEFT($J114,12)),""), "<>") -> <> | W114: =IF(CELL("spalte",W114)<CELL("spalte",$P114)+$Q$2, IF(MOD(CELL("zeile",W114)-CELL("zeile",W$4),$Q$2)=MOD(CELL("spalte",W114)-(CELL("spalte",$P114)),$Q$2),ean_conv(LEFT($J114,12)),""), "<>") -> <> | X114: =IF(CELL("spalte",X114)<CELL("spalte",$P114)+$Q$2, IF(MOD(CELL("zeile",X114)-CELL("zeile",X$4),$Q$2)=MOD(CELL("spalte",X114)-(CELL("spalte",$P114)),$Q$2),ean_conv(LEFT($J114,12)),""), "<>") -> <> | Y114: =IF(CELL("spalte",Y114)<CELL("spalte",$P114)+$Q$2, IF(MOD(CELL("zeile",Y114)-CELL("zeile",Y$4),$Q$2)=MOD(CELL("spalte",Y114)-(CELL("spalte",$P114)),$Q$2),ean_conv(LEFT($J114,12)),""), "<>") -> <>
A115: 112 | B115: Aria & Die goldene Sanduhr der Zeit | C115: 2 | D115: Romantasy | F115: deu | G115: Groß | H115: Papertoons | I115: X | J115: 9783910530539 | L115: =IF(B115<>"",B115&Trenner&Einschluss&F115&Einschluss,"") -> Aria & Die goldene Sanduhr der Zeit •deu• | M115: =IF(C115<>"", IF(ISNUMBER(C115), IF(COUNTIF(Sort_Titel,L115)>99,L115&Trenner&TEXT(C115,"000"), IF(COUNTIF(Sort_Titel,L115)>9,L115&Trenner&TEXT(C115,"00"),L115&Trenner&TEXT(C115,"0")) ),L115&Trenner&C115 ),IF(L115<>"",L115,Titel_Leer) ) -> Aria & Die goldene Sanduhr der Zeit •deu• 2 | O115: Seite 2 | P115: =IF(CELL("spalte",P115)<CELL("spalte",$P115)+$Q$2, IF(MOD(CELL("zeile",P115)-CELL("zeile",P$4),$Q$2)=MOD(CELL("spalte",P115)-(CELL("spalte",$P115)),$Q$2),ean_conv(LEFT($J115,12)),""), "<>") -> <> | Q115: =IF(CELL("spalte",Q115)<CELL("spalte",$P115)+$Q$2, IF(MOD(CELL("zeile",Q115)-CELL("zeile",Q$4),$Q$2)=MOD(CELL("spalte",Q115)-(CELL("spalte",$P115)),$Q$2),ean_conv(LEFT($J115,12)),""), "<>") -> <> | R115: =IF(CELL("spalte",R115)<CELL("spalte",$P115)+$Q$2, IF(MOD(CELL("zeile",R115)-CELL("zeile",R$4),$Q$2)=MOD(CELL("spalte",R115)-(CELL("spalte",$P115)),$Q$2),ean_conv(LEFT($J115,12)),""), "<>") -> <> | S115: =IF(CELL("spalte",S115)<CELL("spalte",$P115)+$Q$2, IF(MOD(CELL("zeile",S115)-CELL("zeile",S$4),$Q$2)=MOD(CELL("spalte",S115)-(CELL("spalte",$P115)),$Q$2),ean_conv(LEFT($J115,12)),""), "<>") -> <> | T115: =IF(CELL("spalte",T115)<CELL("spalte",$P115)+$Q$2, IF(MOD(CELL("zeile",T115)-CELL("zeile",T$4),$Q$2)=MOD(CELL("spalte",T115)-(CELL("spalte",$P115)),$Q$2),ean_conv(LEFT($J115,12)),""), "<>") -> <> | U115: =IF(CELL("spalte",U115)<CELL("spalte",$P115)+$Q$2, IF(MOD(CELL("zeile",U115)-CELL("zeile",U$4),$Q$2)=MOD(CELL("spalte",U115)-(CELL("spalte",$P115)),$Q$2),ean_conv(LEFT($J115,12)),""), "<>") -> <> | V115: =IF(CELL("spalte",V115)<CELL("spalte",$P115)+$Q$2, IF(MOD(CELL("zeile",V115)-CELL("zeile",V$4),$Q$2)=MOD(CELL("spalte",V115)-(CELL("spalte",$P115)),$Q$2),ean_conv(LEFT($J115,12)),""), "<>") -> <> | W115: =IF(CELL("spalte",W115)<CELL("spalte",$P115)+$Q$2, IF(MOD(CELL("zeile",W115)-CELL("zeile",W$4),$Q$2)=MOD(CELL("spalte",W115)-(CELL("spalte",$P115)),$Q$2),ean_conv(LEFT($J115,12)),""), "<>") -> <> | X115: =IF(CELL("spalte",X115)<CELL("spalte",$P115)+$Q$2, IF(MOD(CELL("zeile",X115)-CELL("zeile",X$4),$Q$2)=MOD(CELL("spalte",X115)-(CELL("spalte",$P115)),$Q$2),ean_conv(LEFT($J115,12)),""), "<>") -> <> | Y115: =IF(CELL("spalte",Y115)<CELL("spalte",$P115)+$Q$2, IF(MOD(CELL("zeile",Y115)-CELL("zeile",Y$4),$Q$2)=MOD(CELL("spalte",Y115)-(CELL("spalte",$P115)),$Q$2),ean_conv(LEFT($J115,12)),""), "<>") -> <>
A116: 113 | B116: Aria & Die goldene Sanduhr der Zeit | C116: 3 | D116: Romantasy | F116: deu | G116: Groß | H116: Papertoons | I116: X | J116: 9783910530546 | L116: =IF(B116<>"",B116&Trenner&Einschluss&F116&Einschluss,"") -> Aria & Die goldene Sanduhr der Zeit •deu• | M116: =IF(C116<>"", IF(ISNUMBER(C116), IF(COUNTIF(Sort_Titel,L116)>99,L116&Trenner&TEXT(C116,"000"), IF(COUNTIF(Sort_Titel,L116)>9,L116&Trenner&TEXT(C116,"00"),L116&Trenner&TEXT(C116,"0")) ),L116&Trenner&C116 ),IF(L116<>"",L116,Titel_Leer) ) -> Aria & Die goldene Sanduhr der Zeit •deu• 3 | O116: Seite 2 | P116: =IF(CELL("spalte",P116)<CELL("spalte",$P116)+$Q$2, IF(MOD(CELL("zeile",P116)-CELL("zeile",P$4),$Q$2)=MOD(CELL("spalte",P116)-(CELL("spalte",$P116)),$Q$2),ean_conv(LEFT($J116,12)),""), "<>") -> <> | Q116: =IF(CELL("spalte",Q116)<CELL("spalte",$P116)+$Q$2, IF(MOD(CELL("zeile",Q116)-CELL("zeile",Q$4),$Q$2)=MOD(CELL("spalte",Q116)-(CELL("spalte",$P116)),$Q$2),ean_conv(LEFT($J116,12)),""), "<>") -> <> | R116: =IF(CELL("spalte",R116)<CELL("spalte",$P116)+$Q$2, IF(MOD(CELL("zeile",R116)-CELL("zeile",R$4),$Q$2)=MOD(CELL("spalte",R116)-(CELL("spalte",$P116)),$Q$2),ean_conv(LEFT($J116,12)),""), "<>") -> <> | S116: =IF(CELL("spalte",S116)<CELL("spalte",$P116)+$Q$2, IF(MOD(CELL("zeile",S116)-CELL("zeile",S$4),$Q$2)=MOD(CELL("spalte",S116)-(CELL("spalte",$P116)),$Q$2),ean_conv(LEFT($J116,12)),""), "<>") -> <> | T116: =IF(CELL("spalte",T116)<CELL("spalte",$P116)+$Q$2, IF(MOD(CELL("zeile",T116)-CELL("zeile",T$4),$Q$2)=MOD(CELL("spalte",T116)-(CELL("spalte",$P116)),$Q$2),ean_conv(LEFT($J116,12)),""), "<>") -> <> | U116: =IF(CELL("spalte",U116)<CELL("spalte",$P116)+$Q$2, IF(MOD(CELL("zeile",U116)-CELL("zeile",U$4),$Q$2)=MOD(CELL("spalte",U116)-(CELL("spalte",$P116)),$Q$2),ean_conv(LEFT($J116,12)),""), "<>") -> <> | V116: =IF(CELL("spalte",V116)<CELL("spalte",$P116)+$Q$2, IF(MOD(CELL("zeile",V116)-CELL("zeile",V$4),$Q$2)=MOD(CELL("spalte",V116)-(CELL("spalte",$P116)),$Q$2),ean_conv(LEFT($J116,12)),""), "<>") -> <> | W116: =IF(CELL("spalte",W116)<CELL("spalte",$P116)+$Q$2, IF(MOD(CELL("zeile",W116)-CELL("zeile",W$4),$Q$2)=MOD(CELL("spalte",W116)-(CELL("spalte",$P116)),$Q$2),ean_conv(LEFT($J116,12)),""), "<>") -> <> | X116: =IF(CELL("spalte",X116)<CELL("spalte",$P116)+$Q$2, IF(MOD(CELL("zeile",X116)-CELL("zeile",X$4),$Q$2)=MOD(CELL("spalte",X116)-(CELL("spalte",$P116)),$Q$2),ean_conv(LEFT($J116,12)),""), "<>") -> <> | Y116: =IF(CELL("spalte",Y116)<CELL("spalte",$P116)+$Q$2, IF(MOD(CELL("zeile",Y116)-CELL("zeile",Y$4),$Q$2)=MOD(CELL("spalte",Y116)-(CELL("spalte",$P116)),$Q$2),ean_conv(LEFT($J116,12)),""), "<>") -> <>
A117: 114 | B117: Aria & die goldene Sanduhr der Zeit | C117: 4 | D117: Romantasy | F117: deu | G117: Groß | H117: Papertoons | I117: X | J117: 9783910530553 | L117: =IF(B117<>"",B117&Trenner&Einschluss&F117&Einschluss,"") -> Aria & die goldene Sanduhr der Zeit •deu• | M117: =IF(C117<>"", IF(ISNUMBER(C117), IF(COUNTIF(Sort_Titel,L117)>99,L117&Trenner&TEXT(C117,"000"), IF(COUNTIF(Sort_Titel,L117)>9,L117&Trenner&TEXT(C117,"00"),L117&Trenner&TEXT(C117,"0")) ),L117&Trenner&C117 ),IF(L117<>"",L117,Titel_Leer) ) -> Aria & die goldene Sanduhr der Zeit •deu• 4 | O117: Seite 2 | P117: =IF(CELL("spalte",P117)<CELL("spalte",$P117)+$Q$2, IF(MOD(CELL("zeile",P117)-CELL("zeile",P$4),$Q$2)=MOD(CELL("spalte",P117)-(CELL("spalte",$P117)),$Q$2),ean_conv(LEFT($J117,12)),""), "<>") -> <> | Q117: =IF(CELL("spalte",Q117)<CELL("spalte",$P117)+$Q$2, IF(MOD(CELL("zeile",Q117)-CELL("zeile",Q$4),$Q$2)=MOD(CELL("spalte",Q117)-(CELL("spalte",$P117)),$Q$2),ean_conv(LEFT($J117,12)),""), "<>") -> <> | R117: =IF(CELL("spalte",R117)<CELL("spalte",$P117)+$Q$2, IF(MOD(CELL("zeile",R117)-CELL("zeile",R$4),$Q$2)=MOD(CELL("spalte",R117)-(CELL("spalte",$P117)),$Q$2),ean_conv(LEFT($J117,12)),""), "<>") -> <> | S117: =IF(CELL("spalte",S117)<CELL("spalte",$P117)+$Q$2, IF(MOD(CELL("zeile",S117)-CELL("zeile",S$4),$Q$2)=MOD(CELL("spalte",S117)-(CELL("spalte",$P117)),$Q$2),ean_conv(LEFT($J117,12)),""), "<>") -> <> | T117: =IF(CELL("spalte",T117)<CELL("spalte",$P117)+$Q$2, IF(MOD(CELL("zeile",T117)-CELL("zeile",T$4),$Q$2)=MOD(CELL("spalte",T117)-(CELL("spalte",$P117)),$Q$2),ean_conv(LEFT($J117,12)),""), "<>") -> <> | U117: =IF(CELL("spalte",U117)<CELL("spalte",$P117)+$Q$2, IF(MOD(CELL("zeile",U117)-CELL("zeile",U$4),$Q$2)=MOD(CELL("spalte",U117)-(CELL("spalte",$P117)),$Q$2),ean_conv(LEFT($J117,12)),""), "<>") -> <> | V117: =IF(CELL("spalte",V117)<CELL("spalte",$P117)+$Q$2, IF(MOD(CELL("zeile",V117)-CELL("zeile",V$4),$Q$2)=MOD(CELL("spalte",V117)-(CELL("spalte",$P117)),$Q$2),ean_conv(LEFT($J117,12)),""), "<>") -> <> | W117: =IF(CELL("spalte",W117)<CELL("spalte",$P117)+$Q$2, IF(MOD(CELL("zeile",W117)-CELL("zeile",W$4),$Q$2)=MOD(CELL("spalte",W117)-(CELL("spalte",$P117)),$Q$2),ean_conv(LEFT($J117,12)),""), "<>") -> <> | X117: =IF(CELL("spalte",X117)<CELL("spalte",$P117)+$Q$2, IF(MOD(CELL("zeile",X117)-CELL("zeile",X$4),$Q$2)=MOD(CELL("spalte",X117)-(CELL("spalte",$P117)),$Q$2),ean_conv(LEFT($J117,12)),""), "<>") -> <> | Y117: =IF(CELL("spalte",Y117)<CELL("spalte",$P117)+$Q$2, IF(MOD(CELL("zeile",Y117)-CELL("zeile",Y$4),$Q$2)=MOD(CELL("spalte",Y117)-(CELL("spalte",$P117)),$Q$2),ean_conv(LEFT($J117,12)),""), "<>") -> <>
A118: 115 | B118: Aria & Die goldene Sanduhr der Zeit | C118: 5 | D118: Romantasy | F118: deu | G118: Groß | H118: Papertoons | I118: X | J118: 9783910530560 | L118: =IF(B118<>"",B118&Trenner&Einschluss&F118&Einschluss,"") -> Aria & Die goldene Sanduhr der Zeit •deu• | M118: =IF(C118<>"", IF(ISNUMBER(C118), IF(COUNTIF(Sort_Titel,L118)>99,L118&Trenner&TEXT(C118,"000"), IF(COUNTIF(Sort_Titel,L118)>9,L118&Trenner&TEXT(C118,"00"),L118&Trenner&TEXT(C118,"0")) ),L118&Trenner&C118 ),IF(L118<>"",L118,Titel_Leer) ) -> Aria & Die goldene Sanduhr der Zeit •deu• 5 | O118: Seite 2 | P118: =IF(CELL("spalte",P118)<CELL("spalte",$P118)+$Q$2, IF(MOD(CELL("zeile",P118)-CELL("zeile",P$4),$Q$2)=MOD(CELL("spalte",P118)-(CELL("spalte",$P118)),$Q$2),ean_conv(LEFT($J118,12)),""), "<>") -> <> | Q118: =IF(CELL("spalte",Q118)<CELL("spalte",$P118)+$Q$2, IF(MOD(CELL("zeile",Q118)-CELL("zeile",Q$4),$Q$2)=MOD(CELL("spalte",Q118)-(CELL("spalte",$P118)),$Q$2),ean_conv(LEFT($J118,12)),""), "<>") -> <> | R118: =IF(CELL("spalte",R118)<CELL("spalte",$P118)+$Q$2, IF(MOD(CELL("zeile",R118)-CELL("zeile",R$4),$Q$2)=MOD(CELL("spalte",R118)-(CELL("spalte",$P118)),$Q$2),ean_conv(LEFT($J118,12)),""), "<>") -> <> | S118: =IF(CELL("spalte",S118)<CELL("spalte",$P118)+$Q$2, IF(MOD(CELL("zeile",S118)-CELL("zeile",S$4),$Q$2)=MOD(CELL("spalte",S118)-(CELL("spalte",$P118)),$Q$2),ean_conv(LEFT($J118,12)),""), "<>") -> <> | T118: =IF(CELL("spalte",T118)<CELL("spalte",$P118)+$Q$2, IF(MOD(CELL("zeile",T118)-CELL("zeile",T$4),$Q$2)=MOD(CELL("spalte",T118)-(CELL("spalte",$P118)),$Q$2),ean_conv(LEFT($J118,12)),""), "<>") -> <> | U118: =IF(CELL("spalte",U118)<CELL("spalte",$P118)+$Q$2, IF(MOD(CELL("zeile",U118)-CELL("zeile",U$4),$Q$2)=MOD(CELL("spalte",U118)-(CELL("spalte",$P118)),$Q$2),ean_conv(LEFT($J118,12)),""), "<>") -> <> | V118: =IF(CELL("spalte",V118)<CELL("spalte",$P118)+$Q$2, IF(MOD(CELL("zeile",V118)-CELL("zeile",V$4),$Q$2)=MOD(CELL("spalte",V118)-(CELL("spalte",$P118)),$Q$2),ean_conv(LEFT($J118,12)),""), "<>") -> <> | W118: =IF(CELL("spalte",W118)<CELL("spalte",$P118)+$Q$2, IF(MOD(CELL("zeile",W118)-CELL("zeile",W$4),$Q$2)=MOD(CELL("spalte",W118)-(CELL("spalte",$P118)),$Q$2),ean_conv(LEFT($J118,12)),""), "<>") -> <> | X118: =IF(CELL("spalte",X118)<CELL("spalte",$P118)+$Q$2, IF(MOD(CELL("zeile",X118)-CELL("zeile",X$4),$Q$2)=MOD(CELL("spalte",X118)-(CELL("spalte",$P118)),$Q$2),ean_conv(LEFT($J118,12)),""), "<>") -> <> | Y118: =IF(CELL("spalte",Y118)<CELL("spalte",$P118)+$Q$2, IF(MOD(CELL("zeile",Y118)-CELL("zeile",Y$4),$Q$2)=MOD(CELL("spalte",Y118)-(CELL("spalte",$P118)),$Q$2),ean_conv(LEFT($J118,12)),""), "<>") -> <>
A119: 116 | B119: Aria & Die goldene Sanduhr der Zeit | C119: 6 | D119: Romantasy | F119: deu | G119: Groß | H119: Papertoons | I119: X | J119: 9783910530577 | L119: =IF(B119<>"",B119&Trenner&Einschluss&F119&Einschluss,"") -> Aria & Die goldene Sanduhr der Zeit •deu• | M119: =IF(C119<>"", IF(ISNUMBER(C119), IF(COUNTIF(Sort_Titel,L119)>99,L119&Trenner&TEXT(C119,"000"), IF(COUNTIF(Sort_Titel,L119)>9,L119&Trenner&TEXT(C119,"00"),L119&Trenner&TEXT(C119,"0")) ),L119&Trenner&C119 ),IF(L119<>"",L119,Titel_Leer) ) -> Aria & Die goldene Sanduhr der Zeit •deu• 6 | O119: Seite 2 | P119: =IF(CELL("spalte",P119)<CELL("spalte",$P119)+$Q$2, IF(MOD(CELL("zeile",P119)-CELL("zeile",P$4),$Q$2)=MOD(CELL("spalte",P119)-(CELL("spalte",$P119)),$Q$2),ean_conv(LEFT($J119,12)),""), "<>") -> <> | Q119: =IF(CELL("spalte",Q119)<CELL("spalte",$P119)+$Q$2, IF(MOD(CELL("zeile",Q119)-CELL("zeile",Q$4),$Q$2)=MOD(CELL("spalte",Q119)-(CELL("spalte",$P119)),$Q$2),ean_conv(LEFT($J119,12)),""), "<>") -> <> | R119: =IF(CELL("spalte",R119)<CELL("spalte",$P119)+$Q$2, IF(MOD(CELL("zeile",R119)-CELL("zeile",R$4),$Q$2)=MOD(CELL("spalte",R119)-(CELL("spalte",$P119)),$Q$2),ean_conv(LEFT($J119,12)),""), "<>") -> <> | S119: =IF(CELL("spalte",S119)<CELL("spalte",$P119)+$Q$2, IF(MOD(CELL("zeile",S119)-CELL("zeile",S$4),$Q$2)=MOD(CELL("spalte",S119)-(CELL("spalte",$P119)),$Q$2),ean_conv(LEFT($J119,12)),""), "<>") -> <> | T119: =IF(CELL("spalte",T119)<CELL("spalte",$P119)+$Q$2, IF(MOD(CELL("zeile",T119)-CELL("zeile",T$4),$Q$2)=MOD(CELL("spalte",T119)-(CELL("spalte",$P119)),$Q$2),ean_conv(LEFT($J119,12)),""), "<>") -> <> | U119: =IF(CELL("spalte",U119)<CELL("spalte",$P119)+$Q$2, IF(MOD(CELL("zeile",U119)-CELL("zeile",U$4),$Q$2)=MOD(CELL("spalte",U119)-(CELL("spalte",$P119)),$Q$2),ean_conv(LEFT($J119,12)),""), "<>") -> <> | V119: =IF(CELL("spalte",V119)<CELL("spalte",$P119)+$Q$2, IF(MOD(CELL("zeile",V119)-CELL("zeile",V$4),$Q$2)=MOD(CELL("spalte",V119)-(CELL("spalte",$P119)),$Q$2),ean_conv(LEFT($J119,12)),""), "<>") -> <> | W119: =IF(CELL("spalte",W119)<CELL("spalte",$P119)+$Q$2, IF(MOD(CELL("zeile",W119)-CELL("zeile",W$4),$Q$2)=MOD(CELL("spalte",W119)-(CELL("spalte",$P119)),$Q$2),ean_conv(LEFT($J119,12)),""), "<>") -> <> | X119: =IF(CELL("spalte",X119)<CELL("spalte",$P119)+$Q$2, IF(MOD(CELL("zeile",X119)-CELL("zeile",X$4),$Q$2)=MOD(CELL("spalte",X119)-(CELL("spalte",$P119)),$Q$2),ean_conv(LEFT($J119,12)),""), "<>") -> <> | Y119: =IF(CELL("spalte",Y119)<CELL("spalte",$P119)+$Q$2, IF(MOD(CELL("zeile",Y119)-CELL("zeile",Y$4),$Q$2)=MOD(CELL("spalte",Y119)-(CELL("spalte",$P119)),$Q$2),ean_conv(LEFT($J119,12)),""), "<>") -> <>
